Workbook

Sheet 使用方法
B2: 本エクセルの目的
B3: 発電能力、月別減少出力、供給電力を自動で算出し、マクロで供給計画届出様式に転記することで手間の削減・間違いの防止を目的とする。
B5: 使用方法
B7: ① | C7: 諸元入力シート以降の様式３４－１，２，３の該当シート（１，２年度目があることに注意）を選択し黄色部分に以下の（例）のように値等を入力する。
C9: （例） | D9: 様式３４－２
D25: 記入後の転記シート(様式３４－２)
C59: なお、計画停止、休止、長期計画停止ユニットについては、「ユニット名」、「発電所の分類及び発電機番号（水力）、ボイラ及びタービンの番号（火力）、原子炉及びタービンの番号（原子力）」、
C60: 「認可出力」の項目のみ入力すること。また、備考欄に当該期間を記載すること。
C62: （注意事項）
C63: 諸元入力シートには、最大１００機分の記載が可能（表示のデフォルトとして、１５機分（原子力は１０機分）表示している）。
C64: 補修作業期間の入力誤り（年度日数（３６５日、うるう年度は３６６日）を上回る日数が入力されている場合）は、P3セルにエラーメッセージが出力される。
C65: 各シートは、一つのエリアのみ入力可能（複数エリアの同時転記は不可）。複数エリアに跨る事業者は、エリア毎に作成すること。
C66: 補修作業が同一月に複数ある場合，様式34へは最初の１件名しか補修期間が転記されないため，2件名以上の場合は手書きで記入願います。
C67: 自流式水力（調整係数使用）については，調整係数を停止電力と所内電力が除かれた実績から算出しているため，算出補修量ならびに月別減少出力はゼロとなります。
B69: ② | C69: 本エクセル以外を開いていない状態で、転記先の供給計画届出様式エクセルを開く。
B70: ③ | C70: 転記シート（様式３４－○）を開き、【供計様式３４－○(１,２年度目)転記マクロ】ボタンを押下。
B71: ④ | C71: 供給計画届出様式に記載されているか確認。再度記入する場合は、【供計様式３４－○(１，２年度目)入力値削除マクロ】を押下し、③に戻る。
B72: ⑤ | C72: 供給計画届出様式の様式３４にある供給電力量と欄外備考に値等を記入する。
C74: ※○＝１or２or３
C76: ＜参考＞
C77: 【供計様式３４－○(１,２年度目)転記マクロ】は転記先である供給計画届出様式の様式３４の記載行が足りない場合は、自動で行を追加するため、手動での行追加は不要。

Sheet 転記シート（様式34-1）
B1: 様式34 第1表【水力発電所（揚水式を含む）発電・補修計画明細書】
C2: 転記データ抽出 | NO2: 様式34-1_1年度目 | NQ2: ='様式34-1_1年度目'!AC2 -> 0
C3: 様式34-1_2年度目 | NO3: 様式34-1_2年度目 | NQ3: ='様式34-1_2年度目'!AC2 -> 0
MD4: =+IF(MOD(NO5+1,4)=0,"うるう年",0) -> 0
G5: 年月日参照元セル【各エリア共通使用につき削除不可】→ | H5: =401+NO5*10000 -> 20240401 | I5: =1+H5 -> 20240402 | J5: =1+I5 -> 20240403 | K5: 20240404 | L5: 20240405 | M5: 20240406 | N5: 20240407 | O5: 20240408 | P5: 20240409 | Q5: 20240410 | R5: 20240411 | S5: 20240412 | T5: 20240413 | U5: 20240414 | V5: 20240415 | W5: 20240416 | X5: 20240417 | Y5: 20240418 | Z5: 20240419 | AA5: 20240420 | AB5: 20240421 | AC5: 20240422 | AD5: 20240423 | AE5: 20240424 | AF5: 20240425 | AG5: 20240426 | AH5: 20240427 | AI5: 20240428 | AJ5: 20240429 | AK5: 20240430 | AL5: =+H5+100 -> 20240501 | AM5: 20240502 | AN5: 20240503 | AO5: 20240504 | AP5: 20240505 | AQ5: 20240506 | AR5: 20240507 | AS5: 20240508 | AT5: 20240509 | AU5: 20240510 | AV5: 20240511 | AW5: 20240512 | AX5: 20240513 | AY5: 20240514 | AZ5: 20240515 | BA5: 20240516 | BB5: 20240517 | BC5: 20240518 | BD5: 20240519 | BE5: 20240520 | BF5: 20240521 | BG5: 20240522 | BH5: 20240523 | BI5: 20240524 | BJ5: 20240525 | BK5: 20240526 | BL5: 20240527 | BM5: 20240528 | BN5: 20240529 | BO5: 20240530 | BP5: 20240531 | BQ5: =+AL5+100 -> 20240601 | BR5: 20240602 | BS5: 20240603 | BT5: 20240604 | BU5: 20240605 | BV5: =1+BU5 -> 20240606 | BW5: 20240607 | BX5: 20240608 | BY5: 20240609 | BZ5: 20240610 | CA5: 20240611 | CB5: 20240612 | CC5: 20240613 | CD5: 20240614 | CE5: 20240615 | CF5: 20240616 | CG5: 20240617 | CH5: 20240618 | CI5: 20240619 | CJ5: 20240620 | CK5: 20240621 | CL5: 20240622 | CM5: 20240623 | CN5: 20240624 | CO5: 20240625 | CP5: 20240626 | CQ5: 20240627 | CR5: 20240628 | CS5: 20240629 | CT5: 20240630 | CU5: =+BQ5+100 -> 20240701 | CV5: =1+CU5 -> 20240702 | CW5: 20240703 | CX5: 20240704 | CY5: 20240705 | CZ5: 20240706 | DA5: 20240707 | DB5: 20240708 | DC5: 20240709 | DD5: 20240710 | DE5: 20240711 | DF5: 20240712 | DG5: 20240713 | DH5: 20240714 | DI5: 20240715 | DJ5: 20240716 | DK5: 20240717 | DL5: 20240718 | DM5: 20240719 | DN5: 20240720 | DO5: 20240721 | DP5: 20240722 | DQ5: 20240723 | DR5: 20240724 | DS5: 20240725 | DT5: 20240726 | DU5: 20240727 | DV5: 20240728 | DW5: 20240729 | DX5: 20240730 | DY5: 20240731 | DZ5: =+CU5+100 -> 20240801 | EA5: =1+DZ5 -> 20240802 | EB5: 20240803 | EC5: 20240804 | ED5: 20240805 | EE5: 20240806 | EF5: 20240807 | EG5: 20240808 | EH5: 20240809 | EI5: 20240810 | EJ5: 20240811 | EK5: 20240812 | EL5: 20240813 | EM5: 20240814 | EN5: 20240815 | EO5: 20240816 | EP5: 20240817 | EQ5: 20240818 | ER5: 20240819 | ES5: 20240820 | ET5: 20240821 | EU5: 20240822 | EV5: 20240823 | EW5: 20240824 | EX5: 20240825 | EY5: 20240826 | EZ5: 20240827 | FA5: 20240828 | FB5: 20240829 | FC5: 20240830 | FD5: 20240831 | FE5: =+DZ5+100 -> 20240901 | FF5: =1+FE5 -> 20240902 | FG5: 20240903 | FH5: 20240904 | FI5: 20240905 | FJ5: 20240906 | FK5: 20240907 | FL5: 20240908 | FM5: 20240909 | FN5: 20240910 | FO5: 20240911 | FP5: 20240912 | FQ5: 20240913 | FR5: 20240914 | FS5: 20240915 | FT5: 20240916 | FU5: 20240917 | FV5: 20240918 | FW5: 20240919 | FX5: 20240920 | FY5: 20240921 | FZ5: 20240922 | GA5: 20240923 | GB5: 20240924 | GC5: 20240925 | GD5: 20240926 | GE5: 20240927 | GF5: 20240928 | GG5: 20240929 | GH5: 20240930 | GI5: =+FE5+100 -> 20241001 | GJ5: =1+GI5 -> 20241002 | GK5: 20241003 | GL5: 20241004 | GM5: 20241005 | GN5: 20241006 | GO5: 20241007 | GP5: 20241008 | GQ5: 20241009 | GR5: 20241010 | GS5: 20241011 | GT5: 20241012 | GU5: 20241013 | GV5: 20241014 | GW5: 20241015 | GX5: 20241016 | GY5: 20241017 | GZ5: 20241018 | HA5: 20241019 | HB5: 20241020 | HC5: 20241021 | HD5: 20241022 | HE5: 20241023 | HF5: 20241024 | HG5: 20241025 | HH5: 20241026 | HI5: 20241027 | HJ5: 20241028 | HK5: 20241029 | HL5: 20241030 | HM5: 20241031 | HN5: =+GI5+100 -> 20241101 | HO5: =1+HN5 -> 20241102 | HP5: 20241103 | HQ5: 20241104 | HR5: 20241105 | HS5: 20241106 | HT5: 20241107 | HU5: 20241108 | HV5: 20241109 | HW5: 20241110 | HX5: 20241111 | HY5: 20241112 | HZ5: 20241113 | IA5: 20241114 | IB5: 20241115 | IC5: 20241116 | ID5: 20241117 | IE5: 20241118 | IF5: 20241119 | IG5: 20241120 | IH5: 20241121 | II5: 20241122 | IJ5: 20241123 | IK5: 20241124 | IL5: 20241125 | IM5: 20241126 | IN5: 20241127 | IO5: 20241128 | IP5: 20241129 | IQ5: 20241130 | IR5: =+HN5+100 -> 20241201 | IS5: =1+IR5 -> 20241202 | IT5: 20241203 | IU5: 20241204 | IV5: 20241205 | IW5: 20241206 | IX5: 20241207 | IY5: 20241208 | IZ5: 20241209 | JA5: 20241210 | JB5: 20241211 | JC5: 20241212 | JD5: 20241213 | JE5: 20241214 | JF5: 20241215 | JG5: 20241216 | JH5: 20241217 | JI5: 20241218 | JJ5: 20241219 | JK5: 20241220 | JL5: 20241221 | JM5: 20241222 | JN5: 20241223 | JO5: 20241224 | JP5: 20241225 | JQ5: 20241226 | JR5: 20241227 | JS5: 20241228 | JT5: 20241229 | JU5: 20241230 | JV5: 20241231 | JW5: =+IR5+8900 -> 20250101 | JX5: =1+JW5 -> 20250102 | JY5: 20250103 | JZ5: 20250104 | KA5: 20250105 | KB5: 20250106 | KC5: 20250107 | KD5: 20250108 | KE5: 20250109 | KF5: 20250110 | KG5: 20250111 | KH5: 20250112 | KI5: 20250113 | KJ5: 20250114 | KK5: 20250115 | KL5: 20250116 | KM5: 20250117 | KN5: 20250118 | KO5: 20250119 | KP5: 20250120 | KQ5: 20250121 | KR5: 20250122 | KS5: 20250123 | KT5: 20250124 | KU5: 20250125 | KV5: 20250126 | KW5: 20250127 | KX5: 20250128 | KY5: 20250129 | KZ5: 20250130 | LA5: 20250131 | LB5: =+JW5+100 -> 20250201 | LC5: =1+LB5 -> 20250202 | LD5: 20250203 | LE5: 20250204 | LF5: 20250205 | LG5: 20250206 | LH5: 20250207 | LI5: 20250208 | LJ5: 20250209 | LK5: 20250210 | LL5: 20250211 | LM5: 20250212 | LN5: 20250213 | LO5: 20250214 | LP5: 20250215 | LQ5: 20250216 | LR5: 20250217 | LS5: 20250218 | LT5: 20250219 | LU5: 20250220 | LV5: 20250221 | LW5: 20250222 | LX5: 20250223 | LY5: 20250224 | LZ5: 20250225 | MA5: 20250226 | MB5: 20250227 | MC5: 20250228 | MD5: 20250229 | ME5: =+LB5+100 -> 20250301 | MF5: =1+ME5 -> 20250302 | MG5: 20250303 | MH5: 20250304 | MI5: 20250305 | MJ5: 20250306 | MK5: 20250307 | ML5: 20250308 | MM5: 20250309 | MN5: 20250310 | MO5: 20250311 | MP5: 20250312 | MQ5: 20250313 | MR5: 20250314 | MS5: 20250315 | MT5: 20250316 | MU5: 20250317 | MV5: 20250318 | MW5: 20250319 | MX5: 20250320 | MY5: 20250321 | MZ5: 20250322 | NA5: 20250323 | NB5: 20250324 | NC5: 20250325 | ND5: 20250326 | NE5: 20250327 | NF5: 20250328 | NG5: 20250329 | NH5: 20250330 | NI5: 20250331 | NN5: 供計年度入力【削除不可】→ | NO5: =IF($C$3="様式34-1_2年度目",'様式34-1_2年度目'!D2,'様式34-1_1年度目'!D2) -> 2024
C6: 様式第３４ 第２表
C7: 火力発電所発電・補修計画明細書
C8: 供給区域 | F8: =IF($C$3="","",'様式34-1_1年度目'!$C$3) -> 0
C9: 発 電 所 名 | F9: 発電所の分類 及び 発電機番号 | G9: 出力 (103kW) | H9: 補 修 計 画 | GI9: 補 修 計 画 | NJ9: 年度計 | NK9: 備考
H10: ４月 | AL10: ５月 | BQ10: ６月 | CU10: ７月 | DZ10: ８月 | FE10: ９月 | GI10: １０月 | HN10: １１月 | IR10: １２月 | JW10: １月 | LB10: ２月 | ME10: ３月
H11: =IF($C$3="","",'様式34-2_1年度目'!D7) ->  | AL11: =IF($C$3="","",'様式34-2_1年度目'!E7) ->  | BQ11: =IF($C$3="","",'様式34-2_1年度目'!F7) ->  | CU11: =IF($C$3="","",'様式34-2_1年度目'!G7) ->  | DZ11: =IF($C$3="","",'様式34-2_1年度目'!H7) ->  | FE11: =IF($C$3="","",'様式34-2_1年度目'!I7) ->  | GI11: =IF($C$3="","",'様式34-2_1年度目'!J7) ->  | HN11: =IF($C$3="","",'様式34-2_1年度目'!K7) ->  | IR11: =IF($C$3="","",'様式34-2_1年度目'!L7) ->  | JW11: =IF($C$3="","",'様式34-2_1年度目'!M7) ->  | LB11: =IF($C$3="","",'様式34-2_1年度目'!N7) ->  | ME11: =IF($C$3="","",'様式34-2_1年度目'!O7) ->  | NN11: ※補修期間はyyyymmddの8桁整数で入力 | NO11: 開始① | NP11: 終了① | NQ11: 開始② | NR11: 終了② | NS11: 開始③ | NT11: 終了③ | NU11: 開始④ | NV11: 終了④ | NW11: 開始⑤ | NX11: 終了⑤ | NY11: 開始⑥ | NZ11: 終了⑥
C12: =IF($C$3="様式34-1_1年度目",IF('様式34-1_1年度目'!AC8="","",'様式34-1_1年度目'!AC8),IF($C$3="様式34-1_2年度目",IF('様式34-1_2年度目'!AC8="","",'様式34-1_2年度目'!AC8),"")) ->  | F12: =IF($C$3="様式34-1_1年度目",IF('様式34-1_1年度目'!AD8="","",'様式34-1_1年度目'!AD8&" "&'様式34-1_1年度目'!AE8),IF($C$3="様式34-1_2年度目",IF('様式34-1_2年度目'!AD8="","",'様式34-1_2年度目'!AD8&" "&'様式34-1_2年度目'!AE8),"")) ->  | G12: =IF($C$3="様式34-1_1年度目",IF('様式34-1_1年度目'!AF8="","",'様式34-1_1年度目'!AF8),IF($C$3="様式34-1_2年度目",IF('様式34-1_2年度目'!AF8="","",'様式34-1_2年度目'!AF8),"")) ->  | H12: =IF(AND($NO12<>"",$NO12<$H$5),"("&1+DATE(LEFT($NP12,4),MID($NP12,5,2),RIGHT($NP12,2))-DATE(LEFT($NO12,4),MID($NO12,5,2),RIGHT($NO12,2))&")",IF(LEFT($NO12,6)=LEFT(H$5,6),"("&1+DATE(LEFT($NP12,4),MID($NP12,5,2),RIGHT($NP12,2))-DATE(LEFT($NO12,4),MID($NO12,5,2),RIGHT($NO12,2))&")",IF(LEFT($NQ12,6)=LEFT(H$5,6),"("&1+DATE(LEFT($NR12,4),MID($NR12,5,2),RIGHT($NR12,2))-DATE(LEFT($NQ12,4),MID($NQ12,5,2),RIGHT($NQ12,2))&")",IF(LEFT($NS12,6)=LEFT(H$5,6),"("&1+DATE(LEFT($NT12,4),MID($NT12,5,2),RIGHT($NT12,2))-DATE(LEFT($NS12,4),MID($NS12,5,2),RIGHT($NS12,2))&")",IF(LEFT($NU12,6)=LEFT(H$5,6),"("&1+DATE(LEFT($NV12,4),MID($NV12,5,2),RIGHT($NV12,2))-DATE(LEFT($NU12,4),MID($NU12,5,2),RIGHT($NU12,2))&")",IF(LEFT($NW12,6)=LEFT(H$5,6),"("&1+DATE(LEFT($NX12,4),MID($NX12,5,2),RIGHT($NX12,2))-DATE(LEFT($NW12,4),MID($NW12,5,2),RIGHT($NW12,2))&")",IF(LEFT($NY12,6)=LEFT(H$5,6),"("&1+DATE(LEFT($NZ12,4),MID($NZ12,5,2),RIGHT($NZ12,2))-DATE(LEFT($NY12,4),MID($NY12,5,2),RIGHT($NY12,2))&")",""))))))) ->  | AL12: =IF(LEFT($NO12,6)=LEFT(AL$5,6),"("&1+DATE(LEFT($NP12,4),MID($NP12,5,2),RIGHT($NP12,2))-DATE(LEFT($NO12,4),MID($NO12,5,2),RIGHT($NO12,2))&")",IF(LEFT($NQ12,6)=LEFT(AL$5,6),"("&1+DATE(LEFT($NR12,4),MID($NR12,5,2),RIGHT($NR12,2))-DATE(LEFT($NQ12,4),MID($NQ12,5,2),RIGHT($NQ12,2))&")",IF(LEFT($NS12,6)=LEFT(AL$5,6),"("&1+DATE(LEFT($NT12,4),MID($NT12,5,2),RIGHT($NT12,2))-DATE(LEFT($NS12,4),MID($NS12,5,2),RIGHT($NS12,2))&")",IF(LEFT($NU12,6)=LEFT(AL$5,6),"("&1+DATE(LEFT($NV12,4),MID($NV12,5,2),RIGHT($NV12,2))-DATE(LEFT($NU12,4),MID($NU12,5,2),RIGHT($NU12,2))&")",IF(LEFT($NW12,6)=LEFT(AL$5,6),"("&1+DATE(LEFT($NX12,4),MID($NX12,5,2),RIGHT($NX12,2))-DATE(LEFT($NW12,4),MID($NW12,5,2),RIGHT($NW12,2))&")",IF(LEFT($NY12,6)=LEFT(AL$5,6),"("&1+DATE(LEFT($NZ12,4),MID($NZ12,5,2),RIGHT($NZ12,2))-DATE(LEFT($NY12,4),MID($NY12,5,2),RIGHT($NY12,2))&")","")))))) ->  | BQ12: =IF(LEFT($NO12,6)=LEFT(BQ$5,6),"("&1+DATE(LEFT($NP12,4),MID($NP12,5,2),RIGHT($NP12,2))-DATE(LEFT($NO12,4),MID($NO12,5,2),RIGHT($NO12,2))&")",IF(LEFT($NQ12,6)=LEFT(BQ$5,6),"("&1+DATE(LEFT($NR12,4),MID($NR12,5,2),RIGHT($NR12,2))-DATE(LEFT($NQ12,4),MID($NQ12,5,2),RIGHT($NQ12,2))&")",IF(LEFT($NS12,6)=LEFT(BQ$5,6),"("&1+DATE(LEFT($NT12,4),MID($NT12,5,2),RIGHT($NT12,2))-DATE(LEFT($NS12,4),MID($NS12,5,2),RIGHT($NS12,2))&")",IF(LEFT($NU12,6)=LEFT(BQ$5,6),"("&1+DATE(LEFT($NV12,4),MID($NV12,5,2),RIGHT($NV12,2))-DATE(LEFT($NU12,4),MID($NU12,5,2),RIGHT($NU12,2))&")",IF(LEFT($NW12,6)=LEFT(BQ$5,6),"("&1+DATE(LEFT($NX12,4),MID($NX12,5,2),RIGHT($NX12,2))-DATE(LEFT($NW12,4),MID($NW12,5,2),RIGHT($NW12,2))&")",IF(LEFT($NY12,6)=LEFT(BQ$5,6),"("&1+DATE(LEFT($NZ12,4),MID($NZ12,5,2),RIGHT($NZ12,2))-DATE(LEFT($NY12,4),MID($NY12,5,2),RIGHT($NY12,2))&")","")))))) ->  | CU12: =IF(LEFT($NO12,6)=LEFT(CU$5,6),"("&1+DATE(LEFT($NP12,4),MID($NP12,5,2),RIGHT($NP12,2))-DATE(LEFT($NO12,4),MID($NO12,5,2),RIGHT($NO12,2))&")",IF(LEFT($NQ12,6)=LEFT(CU$5,6),"("&1+DATE(LEFT($NR12,4),MID($NR12,5,2),RIGHT($NR12,2))-DATE(LEFT($NQ12,4),MID($NQ12,5,2),RIGHT($NQ12,2))&")",IF(LEFT($NS12,6)=LEFT(CU$5,6),"("&1+DATE(LEFT($NT12,4),MID($NT12,5,2),RIGHT($NT12,2))-DATE(LEFT($NS12,4),MID($NS12,5,2),RIGHT($NS12,2))&")",IF(LEFT($NU12,6)=LEFT(CU$5,6),"("&1+DATE(LEFT($NV12,4),MID($NV12,5,2),RIGHT($NV12,2))-DATE(LEFT($NU12,4),MID($NU12,5,2),RIGHT($NU12,2))&")",IF(LEFT($NW12,6)=LEFT(CU$5,6),"("&1+DATE(LEFT($NX12,4),MID($NX12,5,2),RIGHT($NX12,2))-DATE(LEFT($NW12,4),MID($NW12,5,2),RIGHT($NW12,2))&")",IF(LEFT($NY12,6)=LEFT(CU$5,6),"("&1+DATE(LEFT($NZ12,4),MID($NZ12,5,2),RIGHT($NZ12,2))-DATE(LEFT($NY12,4),MID($NY12,5,2),RIGHT($NY12,2))&")","")))))) ->  | DZ12: =IF(LEFT($NO12,6)=LEFT(DZ$5,6),"("&1+DATE(LEFT($NP12,4),MID($NP12,5,2),RIGHT($NP12,2))-DATE(LEFT($NO12,4),MID($NO12,5,2),RIGHT($NO12,2))&")",IF(LEFT($NQ12,6)=LEFT(DZ$5,6),"("&1+DATE(LEFT($NR12,4),MID($NR12,5,2),RIGHT($NR12,2))-DATE(LEFT($NQ12,4),MID($NQ12,5,2),RIGHT($NQ12,2))&")",IF(LEFT($NS12,6)=LEFT(DZ$5,6),"("&1+DATE(LEFT($NT12,4),MID($NT12,5,2),RIGHT($NT12,2))-DATE(LEFT($NS12,4),MID($NS12,5,2),RIGHT($NS12,2))&")",IF(LEFT($NU12,6)=LEFT(DZ$5,6),"("&1+DATE(LEFT($NV12,4),MID($NV12,5,2),RIGHT($NV12,2))-DATE(LEFT($NU12,4),MID($NU12,5,2),RIGHT($NU12,2))&")",IF(LEFT($NW12,6)=LEFT(DZ$5,6),"("&1+DATE(LEFT($NX12,4),MID($NX12,5,2),RIGHT($NX12,2))-DATE(LEFT($NW12,4),MID($NW12,5,2),RIGHT($NW12,2))&")",IF(LEFT($NY12,6)=LEFT(DZ$5,6),"("&1+DATE(LEFT($NZ12,4),MID($NZ12,5,2),RIGHT($NZ12,2))-DATE(LEFT($NY12,4),MID($NY12,5,2),RIGHT($NY12,2))&")","")))))) ->  | FE12: =IF(LEFT($NO12,6)=LEFT(FE$5,6),"("&1+DATE(LEFT($NP12,4),MID($NP12,5,2),RIGHT($NP12,2))-DATE(LEFT($NO12,4),MID($NO12,5,2),RIGHT($NO12,2))&")",IF(LEFT($NQ12,6)=LEFT(FE$5,6),"("&1+DATE(LEFT($NR12,4),MID($NR12,5,2),RIGHT($NR12,2))-DATE(LEFT($NQ12,4),MID($NQ12,5,2),RIGHT($NQ12,2))&")",IF(LEFT($NS12,6)=LEFT(FE$5,6),"("&1+DATE(LEFT($NT12,4),MID($NT12,5,2),RIGHT($NT12,2))-DATE(LEFT($NS12,4),MID($NS12,5,2),RIGHT($NS12,2))&")",IF(LEFT($NU12,6)=LEFT(FE$5,6),"("&1+DATE(LEFT($NV12,4),MID($NV12,5,2),RIGHT($NV12,2))-DATE(LEFT($NU12,4),MID($NU12,5,2),RIGHT($NU12,2))&")",IF(LEFT($NW12,6)=LEFT(FE$5,6),"("&1+DATE(LEFT($NX12,4),MID($NX12,5,2),RIGHT($NX12,2))-DATE(LEFT($NW12,4),MID($NW12,5,2),RIGHT($NW12,2))&")",IF(LEFT($NY12,6)=LEFT(FE$5,6),"("&1+DATE(LEFT($NZ12,4),MID($NZ12,5,2),RIGHT($NZ12,2))-DATE(LEFT($NY12,4),MID($NY12,5,2),RIGHT($NY12,2))&")","")))))) ->  | GI12: =IF(LEFT($NO12,6)=LEFT(GI$5,6),"("&1+DATE(LEFT($NP12,4),MID($NP12,5,2),RIGHT($NP12,2))-DATE(LEFT($NO12,4),MID($NO12,5,2),RIGHT($NO12,2))&")",IF(LEFT($NQ12,6)=LEFT(GI$5,6),"("&1+DATE(LEFT($NR12,4),MID($NR12,5,2),RIGHT($NR12,2))-DATE(LEFT($NQ12,4),MID($NQ12,5,2),RIGHT($NQ12,2))&")",IF(LEFT($NS12,6)=LEFT(GI$5,6),"("&1+DATE(LEFT($NT12,4),MID($NT12,5,2),RIGHT($NT12,2))-DATE(LEFT($NS12,4),MID($NS12,5,2),RIGHT($NS12,2))&")",IF(LEFT($NU12,6)=LEFT(GI$5,6),"("&1+DATE(LEFT($NV12,4),MID($NV12,5,2),RIGHT($NV12,2))-DATE(LEFT($NU12,4),MID($NU12,5,2),RIGHT($NU12,2))&")",IF(LEFT($NW12,6)=LEFT(GI$5,6),"("&1+DATE(LEFT($NX12,4),MID($NX12,5,2),RIGHT($NX12,2))-DATE(LEFT($NW12,4),MID($NW12,5,2),RIGHT($NW12,2))&")",IF(LEFT($NY12,6)=LEFT(GI$5,6),"("&1+DATE(LEFT($NZ12,4),MID($NZ12,5,2),RIGHT($NZ12,2))-DATE(LEFT($NY12,4),MID($NY12,5,2),RIGHT($NY12,2))&")","")))))) ->  | HN12: =IF(LEFT($NO12,6)=LEFT(HN$5,6),"("&1+DATE(LEFT($NP12,4),MID($NP12,5,2),RIGHT($NP12,2))-DATE(LEFT($NO12,4),MID($NO12,5,2),RIGHT($NO12,2))&")",IF(LEFT($NQ12,6)=LEFT(HN$5,6),"("&1+DATE(LEFT($NR12,4),MID($NR12,5,2),RIGHT($NR12,2))-DATE(LEFT($NQ12,4),MID($NQ12,5,2),RIGHT($NQ12,2))&")",IF(LEFT($NS12,6)=LEFT(HN$5,6),"("&1+DATE(LEFT($NT12,4),MID($NT12,5,2),RIGHT($NT12,2))-DATE(LEFT($NS12,4),MID($NS12,5,2),RIGHT($NS12,2))&")",IF(LEFT($NU12,6)=LEFT(HN$5,6),"("&1+DATE(LEFT($NV12,4),MID($NV12,5,2),RIGHT($NV12,2))-DATE(LEFT($NU12,4),MID($NU12,5,2),RIGHT($NU12,2))&")",IF(LEFT($NW12,6)=LEFT(HN$5,6),"("&1+DATE(LEFT($NX12,4),MID($NX12,5,2),RIGHT($NX12,2))-DATE(LEFT($NW12,4),MID($NW12,5,2),RIGHT($NW12,2))&")",IF(LEFT($NY12,6)=LEFT(HN$5,6),"("&1+DATE(LEFT($NZ12,4),MID($NZ12,5,2),RIGHT($NZ12,2))-DATE(LEFT($NY12,4),MID($NY12,5,2),RIGHT($NY12,2))&")","")))))) ->  | IR12: =IF(LEFT($NO12,6)=LEFT(IR$5,6),"("&1+DATE(LEFT($NP12,4),MID($NP12,5,2),RIGHT($NP12,2))-DATE(LEFT($NO12,4),MID($NO12,5,2),RIGHT($NO12,2))&")",IF(LEFT($NQ12,6)=LEFT(IR$5,6),"("&1+DATE(LEFT($NR12,4),MID($NR12,5,2),RIGHT($NR12,2))-DATE(LEFT($NQ12,4),MID($NQ12,5,2),RIGHT($NQ12,2))&")",IF(LEFT($NS12,6)=LEFT(IR$5,6),"("&1+DATE(LEFT($NT12,4),MID($NT12,5,2),RIGHT($NT12,2))-DATE(LEFT($NS12,4),MID($NS12,5,2),RIGHT($NS12,2))&")",IF(LEFT($NU12,6)=LEFT(IR$5,6),"("&1+DATE(LEFT($NV12,4),MID($NV12,5,2),RIGHT($NV12,2))-DATE(LEFT($NU12,4),MID($NU12,5,2),RIGHT($NU12,2))&")",IF(LEFT($NW12,6)=LEFT(IR$5,6),"("&1+DATE(LEFT($NX12,4),MID($NX12,5,2),RIGHT($NX12,2))-DATE(LEFT($NW12,4),MID($NW12,5,2),RIGHT($NW12,2))&")",IF(LEFT($NY12,6)=LEFT(IR$5,6),"("&1+DATE(LEFT($NZ12,4),MID($NZ12,5,2),RIGHT($NZ12,2))-DATE(LEFT($NY12,4),MID($NY12,5,2),RIGHT($NY12,2))&")","")))))) ->  | JW12: =IF(LEFT($NO12,6)=LEFT(JW$5,6),"("&1+DATE(LEFT($NP12,4),MID($NP12,5,2),RIGHT($NP12,2))-DATE(LEFT($NO12,4),MID($NO12,5,2),RIGHT($NO12,2))&")",IF(LEFT($NQ12,6)=LEFT(JW$5,6),"("&1+DATE(LEFT($NR12,4),MID($NR12,5,2),RIGHT($NR12,2))-DATE(LEFT($NQ12,4),MID($NQ12,5,2),RIGHT($NQ12,2))&")",IF(LEFT($NS12,6)=LEFT(JW$5,6),"("&1+DATE(LEFT($NT12,4),MID($NT12,5,2),RIGHT($NT12,2))-DATE(LEFT($NS12,4),MID($NS12,5,2),RIGHT($NS12,2))&")",IF(LEFT($NU12,6)=LEFT(JW$5,6),"("&1+DATE(LEFT($NV12,4),MID($NV12,5,2),RIGHT($NV12,2))-DATE(LEFT($NU12,4),MID($NU12,5,2),RIGHT($NU12,2))&")",IF(LEFT($NW12,6)=LEFT(JW$5,6),"("&1+DATE(LEFT($NX12,4),MID($NX12,5,2),RIGHT($NX12,2))-DATE(LEFT($NW12,4),MID($NW12,5,2),RIGHT($NW12,2))&")",IF(LEFT($NY12,6)=LEFT(JW$5,6),"("&1+DATE(LEFT($NZ12,4),MID($NZ12,5,2),RIGHT($NZ12,2))-DATE(LEFT($NY12,4),MID($NY12,5,2),RIGHT($NY12,2))&")","")))))) ->  | LB12: =IF(LEFT($NO12,6)=LEFT(LB$5,6),"("&1+DATE(LEFT($NP12,4),MID($NP12,5,2),RIGHT($NP12,2))-DATE(LEFT($NO12,4),MID($NO12,5,2),RIGHT($NO12,2))&")",IF(LEFT($NQ12,6)=LEFT(LB$5,6),"("&1+DATE(LEFT($NR12,4),MID($NR12,5,2),RIGHT($NR12,2))-DATE(LEFT($NQ12,4),MID($NQ12,5,2),RIGHT($NQ12,2))&")",IF(LEFT($NS12,6)=LEFT(LB$5,6),"("&1+DATE(LEFT($NT12,4),MID($NT12,5,2),RIGHT($NT12,2))-DATE(LEFT($NS12,4),MID($NS12,5,2),RIGHT($NS12,2))&")",IF(LEFT($NU12,6)=LEFT(LB$5,6),"("&1+DATE(LEFT($NV12,4),MID($NV12,5,2),RIGHT($NV12,2))-DATE(LEFT($NU12,4),MID($NU12,5,2),RIGHT($NU12,2))&")",IF(LEFT($NW12,6)=LEFT(LB$5,6),"("&1+DATE(LEFT($NX12,4),MID($NX12,5,2),RIGHT($NX12,2))-DATE(LEFT($NW12,4),MID($NW12,5,2),RIGHT($NW12,2))&")",IF(LEFT($NY12,6)=LEFT(LB$5,6),"("&1+DATE(LEFT($NZ12,4),MID($NZ12,5,2),RIGHT($NZ12,2))-DATE(LEFT($NY12,4),MID($NY12,5,2),RIGHT($NY12,2))&")","")))))) ->  | ME12: =IF(LEFT($NO12,6)=LEFT(ME$5,6),"("&1+DATE(LEFT($NP12,4),MID($NP12,5,2),RIGHT($NP12,2))-DATE(LEFT($NO12,4),MID($NO12,5,2),RIGHT($NO12,2))&")",IF(LEFT($NQ12,6)=LEFT(ME$5,6),"("&1+DATE(LEFT($NR12,4),MID($NR12,5,2),RIGHT($NR12,2))-DATE(LEFT($NQ12,4),MID($NQ12,5,2),RIGHT($NQ12,2))&")",IF(LEFT($NS12,6)=LEFT(ME$5,6),"("&1+DATE(LEFT($NT12,4),MID($NT12,5,2),RIGHT($NT12,2))-DATE(LEFT($NS12,4),MID($NS12,5,2),RIGHT($NS12,2))&")",IF(LEFT($NU12,6)=LEFT(ME$5,6),"("&1+DATE(LEFT($NV12,4),MID($NV12,5,2),RIGHT($NV12,2))-DATE(LEFT($NU12,4),MID($NU12,5,2),RIGHT($NU12,2))&")",IF(LEFT($NW12,6)=LEFT(ME$5,6),"("&1+DATE(LEFT($NX12,4),MID($NX12,5,2),RIGHT($NX12,2))-DATE(LEFT($NW12,4),MID($NW12,5,2),RIGHT($NW12,2))&")",IF(LEFT($NY12,6)=LEFT(ME$5,6),"("&1+DATE(LEFT($NZ12,4),MID($NZ12,5,2),RIGHT($NZ12,2))-DATE(LEFT($NY12,4),MID($NY12,5,2),RIGHT($NY12,2))&")","")))))) ->  | NK12: =IF($C$3="様式34-1_1年度目",IF('様式34-1_1年度目'!AS8="","",'様式34-1_1年度目'!AS8),IF($C$3="様式34-1_2年度目",IF('様式34-1_2年度目'!AS8="","",'様式34-1_2年度目'!AS8),"")) ->  | NM12: 1 | NN12: 補修期間→ | NO12: =IF($C$3="様式34-1_1年度目",IF('様式34-1_1年度目'!AT8="","",VALUE(TEXT('様式34-1_1年度目'!AT8,"yyyymmdd"))),IF($C$3="様式34-1_2年度目",IF('様式34-1_2年度目'!AT8="","",VALUE(TEXT('様式34-1_2年度目'!AT8,"yyyymmdd"))),"")) ->  | NP12: =IF($C$3="様式34-1_1年度目",IF('様式34-1_1年度目'!AU8="","",VALUE(TEXT('様式34-1_1年度目'!AU8,"yyyymmdd"))),IF($C$3="様式34-1_2年度目",IF('様式34-1_2年度目'!AU8="","",VALUE(TEXT('様式34-1_2年度目'!AU8,"yyyymmdd"))),"")) ->  | NQ12: =IF($C$3="様式34-1_1年度目",IF('様式34-1_1年度目'!AW8="","",VALUE(TEXT('様式34-1_1年度目'!AW8,"yyyymmdd"))),IF($C$3="様式34-1_2年度目",IF('様式34-1_2年度目'!AW8="","",VALUE(TEXT('様式34-1_2年度目'!AW8,"yyyymmdd"))),"")) ->  | NR12: =IF($C$3="様式34-1_1年度目",IF('様式34-1_1年度目'!AX8="","",VALUE(TEXT('様式34-1_1年度目'!AX8,"yyyymmdd"))),IF($C$3="様式34-1_2年度目",IF('様式34-1_2年度目'!AX8="","",VALUE(TEXT('様式34-1_2年度目'!AX8,"yyyymmdd"))),"")) ->  | NS12: =IF($C$3="様式34-1_1年度目",IF('様式34-1_1年度目'!AZ8="","",VALUE(TEXT('様式34-1_1年度目'!AZ8,"yyyymmdd"))),IF($C$3="様式34-1_2年度目",IF('様式34-1_2年度目'!AZ8="","",VALUE(TEXT('様式34-1_2年度目'!AZ8,"yyyymmdd"))),"")) ->  | NT12: =IF($C$3="様式34-1_1年度目",IF('様式34-1_1年度目'!BA8="","",VALUE(TEXT('様式34-1_1年度目'!BA8,"yyyymmdd"))),IF($C$3="様式34-1_2年度目",IF('様式34-1_2年度目'!BA8="","",VALUE(TEXT('様式34-1_2年度目'!BA8,"yyyymmdd"))),"")) ->  | NU12: =IF($C$3="様式34-1_1年度目",IF('様式34-1_1年度目'!BC8="","",VALUE(TEXT('様式34-1_1年度目'!BC8,"yyyymmdd"))),IF($C$3="様式34-1_2年度目",IF('様式34-1_2年度目'!BC8="","",VALUE(TEXT('様式34-1_2年度目'!BC8,"yyyymmdd"))),"")) ->  | NV12: =IF($C$3="様式34-1_1年度目",IF('様式34-1_1年度目'!BD8="","",VALUE(TEXT('様式34-1_1年度目'!BD8,"yyyymmdd"))),IF($C$3="様式34-1_2年度目",IF('様式34-1_2年度目'!BD8="","",VALUE(TEXT('様式34-1_2年度目'!BD8,"yyyymmdd"))),"")) ->  | NW12: =IF($C$3="様式34-1_1年度目",IF('様式34-1_1年度目'!BF8="","",VALUE(TEXT('様式34-1_1年度目'!BF8,"yyyymmdd"))),IF($C$3="様式34-1_2年度目",IF('様式34-1_2年度目'!BF8="","",VALUE(TEXT('様式34-1_2年度目'!BF8,"yyyymmdd"))),"")) ->  | NX12: =IF($C$3="様式34-1_1年度目",IF('様式34-1_1年度目'!BG8="","",VALUE(TEXT('様式34-1_1年度目'!BG8,"yyyymmdd"))),IF($C$3="様式34-1_2年度目",IF('様式34-1_2年度目'!BG8="","",VALUE(TEXT('様式34-1_2年度目'!BG8,"yyyymmdd"))),"")) ->  | NY12: =IF($C$3="様式34-1_1年度目",IF('様式34-1_1年度目'!BI8="","",VALUE(TEXT('様式34-1_1年度目'!BI8,"yyyymmdd"))),IF($C$3="様式34-1_2年度目",IF('様式34-1_2年度目'!BI8="","",VALUE(TEXT('様式34-1_2年度目'!BI8,"yyyymmdd"))),"")) ->  | NZ12: =IF($C$3="様式34-1_1年度目",IF('様式34-1_1年度目'!BJ8="","",VALUE(TEXT('様式34-1_1年度目'!BJ8,"yyyymmdd"))),IF($C$3="様式34-1_2年度目",IF('様式34-1_2年度目'!BJ8="","",VALUE(TEXT('様式34-1_2年度目'!BJ8,"yyyymmdd"))),"")) -> 
H13: =+IF(OR(H$5=$NO12,H$5=$NQ12,H$5=$NS12,H$5=$NU12,H$5=$NW12,H$5=$NY12),1,IF(OR(AND($NO12<H$5,H$5<$NP12),AND($NQ12<H$5,H$5<$NR12),AND($NS12<H$5,H$5<$NT12),AND($NU12<H$5,H$5<$NV12),AND($NW12<H$5,H$5<$NX12),AND($NY12<H$5,H$5<$NZ12)),2,IF(OR(H$5=$NP12,H$5=$NR12,H$5=$NT12,H$5=$NV12,H$5=$NX12,H$5=$NZ12),3,""))) ->  | BT13: =+IF(OR(BT$5=$NO12,BT$5=$NQ12,BT$5=$NS12,BT$5=$NU12,BT$5=$NW12,BT$5=$NY12),1,IF(OR(AND($NO12<BT$5,BT$5<$NP12),AND($NQ12<BT$5,BT$5<$NR12),AND($NS12<BT$5,BT$5<$NT12),AND($NU12<BT$5,BT$5<$NV12),AND($NW12<BT$5,BT$5<$NX12),AND($NY12<BT$5,BT$5<$NZ12)),2,IF(OR(BT$5=$NP12,BT$5=$NR12,BT$5=$NT12,BT$5=$NV12,BT$5=$NX12,BT$5=$NZ12),3,""))) ->  | EF13: =+IF(OR(EF$5=$NO12,EF$5=$NQ12,EF$5=$NS12,EF$5=$NU12,EF$5=$NW12,EF$5=$NY12),1,IF(OR(AND($NO12<EF$5,EF$5<$NP12),AND($NQ12<EF$5,EF$5<$NR12),AND($NS12<EF$5,EF$5<$NT12),AND($NU12<EF$5,EF$5<$NV12),AND($NW12<EF$5,EF$5<$NX12),AND($NY12<EF$5,EF$5<$NZ12)),2,IF(OR(EF$5=$NP12,EF$5=$NR12,EF$5=$NT12,EF$5=$NV12,EF$5=$NX12,EF$5=$NZ12),3,""))) ->  | GR13: =+IF(OR(GR$5=$NO12,GR$5=$NQ12,GR$5=$NS12,GR$5=$NU12,GR$5=$NW12,GR$5=$NY12),1,IF(OR(AND($NO12<GR$5,GR$5<$NP12),AND($NQ12<GR$5,GR$5<$NR12),AND($NS12<GR$5,GR$5<$NT12),AND($NU12<GR$5,GR$5<$NV12),AND($NW12<GR$5,GR$5<$NX12),AND($NY12<GR$5,GR$5<$NZ12)),2,IF(OR(GR$5=$NP12,GR$5=$NR12,GR$5=$NT12,GR$5=$NV12,GR$5=$NX12,GR$5=$NZ12),3,""))) ->  | JD13: =+IF(OR(JD$5=$NO12,JD$5=$NQ12,JD$5=$NS12,JD$5=$NU12,JD$5=$NW12,JD$5=$NY12),1,IF(OR(AND($NO12<JD$5,JD$5<$NP12),AND($NQ12<JD$5,JD$5<$NR12),AND($NS12<JD$5,JD$5<$NT12),AND($NU12<JD$5,JD$5<$NV12),AND($NW12<JD$5,JD$5<$NX12),AND($NY12<JD$5,JD$5<$NZ12)),2,IF(OR(JD$5=$NP12,JD$5=$NR12,JD$5=$NT12,JD$5=$NV12,JD$5=$NX12,JD$5=$NZ12),3,""))) ->  | LP13: =+IF(OR(LP$5=$NO12,LP$5=$NQ12,LP$5=$NS12,LP$5=$NU12,LP$5=$NW12,LP$5=$NY12),1,IF(OR(AND($NO12<LP$5,LP$5<$NP12),AND($NQ12<LP$5,LP$5<$NR12),AND($NS12<LP$5,LP$5<$NT12),AND($NU12<LP$5,LP$5<$NV12),AND($NW12<LP$5,LP$5<$NX12),AND($NY12<LP$5,LP$5<$NZ12)),2,IF(OR(LP$5=$NP12,LP$5=$NR12,LP$5=$NT12,LP$5=$NV12,LP$5=$NX12,LP$5=$NZ12),3,""))) -> 
H14: =IF(AND($NO12<>"",$NO12<$H$5),MID($NO12,5,2)&"/"&RIGHT($NO12,2)&"～"&MID($NP12,5,2)&"/"&RIGHT($NP12,2),IF(LEFT($NO12,6)=LEFT(H$5,6),MID($NO12,5,2)&"/"&RIGHT($NO12,2)&"～"&MID($NP12,5,2)&"/"&RIGHT($NP12,2),IF(LEFT($NQ12,6)=LEFT(H$5,6),MID($NQ12,5,2)&"/"&RIGHT($NQ12,2)&"～"&MID($NR12,5,2)&"/"&RIGHT($NR12,2),IF(LEFT($NS12,6)=LEFT(H$5,6),MID($NS12,5,2)&"/"&RIGHT($NS12,2)&"～"&MID($NT12,5,2)&"/"&RIGHT($NT12,2),IF(LEFT($NU12,6)=LEFT(H$5,6),MID($NU12,5,2)&"/"&RIGHT($NU12,2)&"～"&MID($NV12,5,2)&"/"&RIGHT($NV12,2),IF(LEFT($NW12,6)=LEFT(H$5,6),MID($NW12,5,2)&"/"&RIGHT($NW12,2)&"～"&MID($NX12,5,2)&"/"&RIGHT($NX12,2),IF(LEFT($NY12,6)=LEFT(H$5,6),MID($NY12,5,2)&"/"&RIGHT($NY12,2)&"～"&MID($NZ12,5,2)&"/"&RIGHT($NZ12,2),""))))))) ->  | AL14: =IF(LEFT($NO12,6)=LEFT(AL$5,6),MID($NO12,5,2)&"/"&RIGHT($NO12,2)&"～"&MID($NP12,5,2)&"/"&RIGHT($NP12,2),IF(LEFT($NQ12,6)=LEFT(AL$5,6),MID($NQ12,5,2)&"/"&RIGHT($NQ12,2)&"～"&MID($NR12,5,2)&"/"&RIGHT($NR12,2),IF(LEFT($NS12,6)=LEFT(AL$5,6),MID($NS12,5,2)&"/"&RIGHT($NS12,2)&"～"&MID($NT12,5,2)&"/"&RIGHT($NT12,2),IF(LEFT($NU12,6)=LEFT(AL$5,6),MID($NU12,5,2)&"/"&RIGHT($NU12,2)&"～"&MID($NV12,5,2)&"/"&RIGHT($NV12,2),IF(LEFT($NW12,6)=LEFT(AL$5,6),MID($NW12,5,2)&"/"&RIGHT($NW12,2)&"～"&MID($NX12,5,2)&"/"&RIGHT($NX12,2),IF(LEFT($NY12,6)=LEFT(AL$5,6),MID($NY12,5,2)&"/"&RIGHT($NY12,2)&"～"&MID($NZ12,5,2)&"/"&RIGHT($NZ12,2),"")))))) ->  | BQ14: =IF(LEFT($NO12,6)=LEFT(BQ$5,6),MID($NO12,5,2)&"/"&RIGHT($NO12,2)&"～"&MID($NP12,5,2)&"/"&RIGHT($NP12,2),IF(LEFT($NQ12,6)=LEFT(BQ$5,6),MID($NQ12,5,2)&"/"&RIGHT($NQ12,2)&"～"&MID($NR12,5,2)&"/"&RIGHT($NR12,2),IF(LEFT($NS12,6)=LEFT(BQ$5,6),MID($NS12,5,2)&"/"&RIGHT($NS12,2)&"～"&MID($NT12,5,2)&"/"&RIGHT($NT12,2),IF(LEFT($NU12,6)=LEFT(BQ$5,6),MID($NU12,5,2)&"/"&RIGHT($NU12,2)&"～"&MID($NV12,5,2)&"/"&RIGHT($NV12,2),IF(LEFT($NW12,6)=LEFT(BQ$5,6),MID($NW12,5,2)&"/"&RIGHT($NW12,2)&"～"&MID($NX12,5,2)&"/"&RIGHT($NX12,2),IF(LEFT($NY12,6)=LEFT(BQ$5,6),MID($NY12,5,2)&"/"&RIGHT($NY12,2)&"～"&MID($NZ12,5,2)&"/"&RIGHT($NZ12,2),"")))))) ->  | CU14: =IF(LEFT($NO12,6)=LEFT(CU$5,6),MID($NO12,5,2)&"/"&RIGHT($NO12,2)&"～"&MID($NP12,5,2)&"/"&RIGHT($NP12,2),IF(LEFT($NQ12,6)=LEFT(CU$5,6),MID($NQ12,5,2)&"/"&RIGHT($NQ12,2)&"～"&MID($NR12,5,2)&"/"&RIGHT($NR12,2),IF(LEFT($NS12,6)=LEFT(CU$5,6),MID($NS12,5,2)&"/"&RIGHT($NS12,2)&"～"&MID($NT12,5,2)&"/"&RIGHT($NT12,2),IF(LEFT($NU12,6)=LEFT(CU$5,6),MID($NU12,5,2)&"/"&RIGHT($NU12,2)&"～"&MID($NV12,5,2)&"/"&RIGHT($NV12,2),IF(LEFT($NW12,6)=LEFT(CU$5,6),MID($NW12,5,2)&"/"&RIGHT($NW12,2)&"～"&MID($NX12,5,2)&"/"&RIGHT($NX12,2),IF(LEFT($NY12,6)=LEFT(CU$5,6),MID($NY12,5,2)&"/"&RIGHT($NY12,2)&"～"&MID($NZ12,5,2)&"/"&RIGHT($NZ12,2),"")))))) ->  | DZ14: =IF(LEFT($NO12,6)=LEFT(DZ$5,6),MID($NO12,5,2)&"/"&RIGHT($NO12,2)&"～"&MID($NP12,5,2)&"/"&RIGHT($NP12,2),IF(LEFT($NQ12,6)=LEFT(DZ$5,6),MID($NQ12,5,2)&"/"&RIGHT($NQ12,2)&"～"&MID($NR12,5,2)&"/"&RIGHT($NR12,2),IF(LEFT($NS12,6)=LEFT(DZ$5,6),MID($NS12,5,2)&"/"&RIGHT($NS12,2)&"～"&MID($NT12,5,2)&"/"&RIGHT($NT12,2),IF(LEFT($NU12,6)=LEFT(DZ$5,6),MID($NU12,5,2)&"/"&RIGHT($NU12,2)&"～"&MID($NV12,5,2)&"/"&RIGHT($NV12,2),IF(LEFT($NW12,6)=LEFT(DZ$5,6),MID($NW12,5,2)&"/"&RIGHT($NW12,2)&"～"&MID($NX12,5,2)&"/"&RIGHT($NX12,2),IF(LEFT($NY12,6)=LEFT(DZ$5,6),MID($NY12,5,2)&"/"&RIGHT($NY12,2)&"～"&MID($NZ12,5,2)&"/"&RIGHT($NZ12,2),"")))))) ->  | FE14: =IF(LEFT($NO12,6)=LEFT(FE$5,6),MID($NO12,5,2)&"/"&RIGHT($NO12,2)&"～"&MID($NP12,5,2)&"/"&RIGHT($NP12,2),IF(LEFT($NQ12,6)=LEFT(FE$5,6),MID($NQ12,5,2)&"/"&RIGHT($NQ12,2)&"～"&MID($NR12,5,2)&"/"&RIGHT($NR12,2),IF(LEFT($NS12,6)=LEFT(FE$5,6),MID($NS12,5,2)&"/"&RIGHT($NS12,2)&"～"&MID($NT12,5,2)&"/"&RIGHT($NT12,2),IF(LEFT($NU12,6)=LEFT(FE$5,6),MID($NU12,5,2)&"/"&RIGHT($NU12,2)&"～"&MID($NV12,5,2)&"/"&RIGHT($NV12,2),IF(LEFT($NW12,6)=LEFT(FE$5,6),MID($NW12,5,2)&"/"&RIGHT($NW12,2)&"～"&MID($NX12,5,2)&"/"&RIGHT($NX12,2),IF(LEFT($NY12,6)=LEFT(FE$5,6),MID($NY12,5,2)&"/"&RIGHT($NY12,2)&"～"&MID($NZ12,5,2)&"/"&RIGHT($NZ12,2),"")))))) ->  | GI14: =IF(LEFT($NO12,6)=LEFT(GI$5,6),MID($NO12,5,2)&"/"&RIGHT($NO12,2)&"～"&MID($NP12,5,2)&"/"&RIGHT($NP12,2),IF(LEFT($NQ12,6)=LEFT(GI$5,6),MID($NQ12,5,2)&"/"&RIGHT($NQ12,2)&"～"&MID($NR12,5,2)&"/"&RIGHT($NR12,2),IF(LEFT($NS12,6)=LEFT(GI$5,6),MID($NS12,5,2)&"/"&RIGHT($NS12,2)&"～"&MID($NT12,5,2)&"/"&RIGHT($NT12,2),IF(LEFT($NU12,6)=LEFT(GI$5,6),MID($NU12,5,2)&"/"&RIGHT($NU12,2)&"～"&MID($NV12,5,2)&"/"&RIGHT($NV12,2),IF(LEFT($NW12,6)=LEFT(GI$5,6),MID($NW12,5,2)&"/"&RIGHT($NW12,2)&"～"&MID($NX12,5,2)&"/"&RIGHT($NX12,2),IF(LEFT($NY12,6)=LEFT(GI$5,6),MID($NY12,5,2)&"/"&RIGHT($NY12,2)&"～"&MID($NZ12,5,2)&"/"&RIGHT($NZ12,2),"")))))) ->  | HN14: =IF(LEFT($NO12,6)=LEFT(HN$5,6),MID($NO12,5,2)&"/"&RIGHT($NO12,2)&"～"&MID($NP12,5,2)&"/"&RIGHT($NP12,2),IF(LEFT($NQ12,6)=LEFT(HN$5,6),MID($NQ12,5,2)&"/"&RIGHT($NQ12,2)&"～"&MID($NR12,5,2)&"/"&RIGHT($NR12,2),IF(LEFT($NS12,6)=LEFT(HN$5,6),MID($NS12,5,2)&"/"&RIGHT($NS12,2)&"～"&MID($NT12,5,2)&"/"&RIGHT($NT12,2),IF(LEFT($NU12,6)=LEFT(HN$5,6),MID($NU12,5,2)&"/"&RIGHT($NU12,2)&"～"&MID($NV12,5,2)&"/"&RIGHT($NV12,2),IF(LEFT($NW12,6)=LEFT(HN$5,6),MID($NW12,5,2)&"/"&RIGHT($NW12,2)&"～"&MID($NX12,5,2)&"/"&RIGHT($NX12,2),IF(LEFT($NY12,6)=LEFT(HN$5,6),MID($NY12,5,2)&"/"&RIGHT($NY12,2)&"～"&MID($NZ12,5,2)&"/"&RIGHT($NZ12,2),"")))))) ->  | IR14: =IF(LEFT($NO12,6)=LEFT(IR$5,6),MID($NO12,5,2)&"/"&RIGHT($NO12,2)&"～"&MID($NP12,5,2)&"/"&RIGHT($NP12,2),IF(LEFT($NQ12,6)=LEFT(IR$5,6),MID($NQ12,5,2)&"/"&RIGHT($NQ12,2)&"～"&MID($NR12,5,2)&"/"&RIGHT($NR12,2),IF(LEFT($NS12,6)=LEFT(IR$5,6),MID($NS12,5,2)&"/"&RIGHT($NS12,2)&"～"&MID($NT12,5,2)&"/"&RIGHT($NT12,2),IF(LEFT($NU12,6)=LEFT(IR$5,6),MID($NU12,5,2)&"/"&RIGHT($NU12,2)&"～"&MID($NV12,5,2)&"/"&RIGHT($NV12,2),IF(LEFT($NW12,6)=LEFT(IR$5,6),MID($NW12,5,2)&"/"&RIGHT($NW12,2)&"～"&MID($NX12,5,2)&"/"&RIGHT($NX12,2),IF(LEFT($NY12,6)=LEFT(IR$5,6),MID($NY12,5,2)&"/"&RIGHT($NY12,2)&"～"&MID($NZ12,5,2)&"/"&RIGHT($NZ12,2),"")))))) ->  | JW14: =IF(LEFT($NO12,6)=LEFT(JW$5,6),MID($NO12,5,2)&"/"&RIGHT($NO12,2)&"～"&MID($NP12,5,2)&"/"&RIGHT($NP12,2),IF(LEFT($NQ12,6)=LEFT(JW$5,6),MID($NQ12,5,2)&"/"&RIGHT($NQ12,2)&"～"&MID($NR12,5,2)&"/"&RIGHT($NR12,2),IF(LEFT($NS12,6)=LEFT(JW$5,6),MID($NS12,5,2)&"/"&RIGHT($NS12,2)&"～"&MID($NT12,5,2)&"/"&RIGHT($NT12,2),IF(LEFT($NU12,6)=LEFT(JW$5,6),MID($NU12,5,2)&"/"&RIGHT($NU12,2)&"～"&MID($NV12,5,2)&"/"&RIGHT($NV12,2),IF(LEFT($NW12,6)=LEFT(JW$5,6),MID($NW12,5,2)&"/"&RIGHT($NW12,2)&"～"&MID($NX12,5,2)&"/"&RIGHT($NX12,2),IF(LEFT($NY12,6)=LEFT(JW$5,6),MID($NY12,5,2)&"/"&RIGHT($NY12,2)&"～"&MID($NZ12,5,2)&"/"&RIGHT($NZ12,2),"")))))) ->  | LB14: =IF(LEFT($NO12,6)=LEFT(LB$5,6),MID($NO12,5,2)&"/"&RIGHT($NO12,2)&"～"&MID($NP12,5,2)&"/"&RIGHT($NP12,2),IF(LEFT($NQ12,6)=LEFT(LB$5,6),MID($NQ12,5,2)&"/"&RIGHT($NQ12,2)&"～"&MID($NR12,5,2)&"/"&RIGHT($NR12,2),IF(LEFT($NS12,6)=LEFT(LB$5,6),MID($NS12,5,2)&"/"&RIGHT($NS12,2)&"～"&MID($NT12,5,2)&"/"&RIGHT($NT12,2),IF(LEFT($NU12,6)=LEFT(LB$5,6),MID($NU12,5,2)&"/"&RIGHT($NU12,2)&"～"&MID($NV12,5,2)&"/"&RIGHT($NV12,2),IF(LEFT($NW12,6)=LEFT(LB$5,6),MID($NW12,5,2)&"/"&RIGHT($NW12,2)&"～"&MID($NX12,5,2)&"/"&RIGHT($NX12,2),IF(LEFT($NY12,6)=LEFT(LB$5,6),MID($NY12,5,2)&"/"&RIGHT($NY12,2)&"～"&MID($NZ12,5,2)&"/"&RIGHT($NZ12,2),"")))))) ->  | ME14: =IF(LEFT($NO12,6)=LEFT(ME$5,6),MID($NO12,5,2)&"/"&RIGHT($NO12,2)&"～"&MID($NP12,5,2)&"/"&RIGHT($NP12,2),IF(LEFT($NQ12,6)=LEFT(ME$5,6),MID($NQ12,5,2)&"/"&RIGHT($NQ12,2)&"～"&MID($NR12,5,2)&"/"&RIGHT($NR12,2),IF(LEFT($NS12,6)=LEFT(ME$5,6),MID($NS12,5,2)&"/"&RIGHT($NS12,2)&"～"&MID($NT12,5,2)&"/"&RIGHT($NT12,2),IF(LEFT($NU12,6)=LEFT(ME$5,6),MID($NU12,5,2)&"/"&RIGHT($NU12,2)&"～"&MID($NV12,5,2)&"/"&RIGHT($NV12,2),IF(LEFT($NW12,6)=LEFT(ME$5,6),MID($NW12,5,2)&"/"&RIGHT($NW12,2)&"～"&MID($NX12,5,2)&"/"&RIGHT($NX12,2),IF(LEFT($NY12,6)=LEFT(ME$5,6),MID($NY12,5,2)&"/"&RIGHT($NY12,2)&"～"&MID($NZ12,5,2)&"/"&RIGHT($NZ12,2),"")))))) -> 
C15: =IF($C$3="様式34-1_1年度目",IF('様式34-1_1年度目'!AC9="","",'様式34-1_1年度目'!AC9),IF($C$3="様式34-1_2年度目",IF('様式34-1_2年度目'!AC9="","",'様式34-1_2年度目'!AC9),"")) ->  | F15: =IF($C$3="様式34-1_1年度目",IF('様式34-1_1年度目'!AD9="","",'様式34-1_1年度目'!AD9&" "&'様式34-1_1年度目'!AE9),IF($C$3="様式34-1_2年度目",IF('様式34-1_2年度目'!AD9="","",'様式34-1_2年度目'!AD9&" "&'様式34-1_2年度目'!AE9),"")) ->  | G15: =IF($C$3="様式34-1_1年度目",IF('様式34-1_1年度目'!AF9="","",'様式34-1_1年度目'!AF9),IF($C$3="様式34-1_2年度目",IF('様式34-1_2年度目'!AF9="","",'様式34-1_2年度目'!AF9),"")) ->  | H15: =IF(AND($NO15<>"",$NO15<$H$5),"("&1+DATE(LEFT($NP15,4),MID($NP15,5,2),RIGHT($NP15,2))-DATE(LEFT($NO15,4),MID($NO15,5,2),RIGHT($NO15,2))&")",IF(LEFT($NO15,6)=LEFT(H$5,6),"("&1+DATE(LEFT($NP15,4),MID($NP15,5,2),RIGHT($NP15,2))-DATE(LEFT($NO15,4),MID($NO15,5,2),RIGHT($NO15,2))&")",IF(LEFT($NQ15,6)=LEFT(H$5,6),"("&1+DATE(LEFT($NR15,4),MID($NR15,5,2),RIGHT($NR15,2))-DATE(LEFT($NQ15,4),MID($NQ15,5,2),RIGHT($NQ15,2))&")",IF(LEFT($NS15,6)=LEFT(H$5,6),"("&1+DATE(LEFT($NT15,4),MID($NT15,5,2),RIGHT($NT15,2))-DATE(LEFT($NS15,4),MID($NS15,5,2),RIGHT($NS15,2))&")",IF(LEFT($NU15,6)=LEFT(H$5,6),"("&1+DATE(LEFT($NV15,4),MID($NV15,5,2),RIGHT($NV15,2))-DATE(LEFT($NU15,4),MID($NU15,5,2),RIGHT($NU15,2))&")",IF(LEFT($NW15,6)=LEFT(H$5,6),"("&1+DATE(LEFT($NX15,4),MID($NX15,5,2),RIGHT($NX15,2))-DATE(LEFT($NW15,4),MID($NW15,5,2),RIGHT($NW15,2))&")",IF(LEFT($NY15,6)=LEFT(H$5,6),"("&1+DATE(LEFT($NZ15,4),MID($NZ15,5,2),RIGHT($NZ15,2))-DATE(LEFT($NY15,4),MID($NY15,5,2),RIGHT($NY15,2))&")",""))))))) ->  | AL15: =IF(LEFT($NO15,6)=LEFT(AL$5,6),"("&1+DATE(LEFT($NP15,4),MID($NP15,5,2),RIGHT($NP15,2))-DATE(LEFT($NO15,4),MID($NO15,5,2),RIGHT($NO15,2))&")",IF(LEFT($NQ15,6)=LEFT(AL$5,6),"("&1+DATE(LEFT($NR15,4),MID($NR15,5,2),RIGHT($NR15,2))-DATE(LEFT($NQ15,4),MID($NQ15,5,2),RIGHT($NQ15,2))&")",IF(LEFT($NS15,6)=LEFT(AL$5,6),"("&1+DATE(LEFT($NT15,4),MID($NT15,5,2),RIGHT($NT15,2))-DATE(LEFT($NS15,4),MID($NS15,5,2),RIGHT($NS15,2))&")",IF(LEFT($NU15,6)=LEFT(AL$5,6),"("&1+DATE(LEFT($NV15,4),MID($NV15,5,2),RIGHT($NV15,2))-DATE(LEFT($NU15,4),MID($NU15,5,2),RIGHT($NU15,2))&")",IF(LEFT($NW15,6)=LEFT(AL$5,6),"("&1+DATE(LEFT($NX15,4),MID($NX15,5,2),RIGHT($NX15,2))-DATE(LEFT($NW15,4),MID($NW15,5,2),RIGHT($NW15,2))&")",IF(LEFT($NY15,6)=LEFT(AL$5,6),"("&1+DATE(LEFT($NZ15,4),MID($NZ15,5,2),RIGHT($NZ15,2))-DATE(LEFT($NY15,4),MID($NY15,5,2),RIGHT($NY15,2))&")","")))))) ->  | BQ15: =IF(LEFT($NO15,6)=LEFT(BQ$5,6),"("&1+DATE(LEFT($NP15,4),MID($NP15,5,2),RIGHT($NP15,2))-DATE(LEFT($NO15,4),MID($NO15,5,2),RIGHT($NO15,2))&")",IF(LEFT($NQ15,6)=LEFT(BQ$5,6),"("&1+DATE(LEFT($NR15,4),MID($NR15,5,2),RIGHT($NR15,2))-DATE(LEFT($NQ15,4),MID($NQ15,5,2),RIGHT($NQ15,2))&")",IF(LEFT($NS15,6)=LEFT(BQ$5,6),"("&1+DATE(LEFT($NT15,4),MID($NT15,5,2),RIGHT($NT15,2))-DATE(LEFT($NS15,4),MID($NS15,5,2),RIGHT($NS15,2))&")",IF(LEFT($NU15,6)=LEFT(BQ$5,6),"("&1+DATE(LEFT($NV15,4),MID($NV15,5,2),RIGHT($NV15,2))-DATE(LEFT($NU15,4),MID($NU15,5,2),RIGHT($NU15,2))&")",IF(LEFT($NW15,6)=LEFT(BQ$5,6),"("&1+DATE(LEFT($NX15,4),MID($NX15,5,2),RIGHT($NX15,2))-DATE(LEFT($NW15,4),MID($NW15,5,2),RIGHT($NW15,2))&")",IF(LEFT($NY15,6)=LEFT(BQ$5,6),"("&1+DATE(LEFT($NZ15,4),MID($NZ15,5,2),RIGHT($NZ15,2))-DATE(LEFT($NY15,4),MID($NY15,5,2),RIGHT($NY15,2))&")","")))))) ->  | CU15: =IF(LEFT($NO15,6)=LEFT(CU$5,6),"("&1+DATE(LEFT($NP15,4),MID($NP15,5,2),RIGHT($NP15,2))-DATE(LEFT($NO15,4),MID($NO15,5,2),RIGHT($NO15,2))&")",IF(LEFT($NQ15,6)=LEFT(CU$5,6),"("&1+DATE(LEFT($NR15,4),MID($NR15,5,2),RIGHT($NR15,2))-DATE(LEFT($NQ15,4),MID($NQ15,5,2),RIGHT($NQ15,2))&")",IF(LEFT($NS15,6)=LEFT(CU$5,6),"("&1+DATE(LEFT($NT15,4),MID($NT15,5,2),RIGHT($NT15,2))-DATE(LEFT($NS15,4),MID($NS15,5,2),RIGHT($NS15,2))&")",IF(LEFT($NU15,6)=LEFT(CU$5,6),"("&1+DATE(LEFT($NV15,4),MID($NV15,5,2),RIGHT($NV15,2))-DATE(LEFT($NU15,4),MID($NU15,5,2),RIGHT($NU15,2))&")",IF(LEFT($NW15,6)=LEFT(CU$5,6),"("&1+DATE(LEFT($NX15,4),MID($NX15,5,2),RIGHT($NX15,2))-DATE(LEFT($NW15,4),MID($NW15,5,2),RIGHT($NW15,2))&")",IF(LEFT($NY15,6)=LEFT(CU$5,6),"("&1+DATE(LEFT($NZ15,4),MID($NZ15,5,2),RIGHT($NZ15,2))-DATE(LEFT($NY15,4),MID($NY15,5,2),RIGHT($NY15,2))&")","")))))) ->  | DZ15: =IF(LEFT($NO15,6)=LEFT(DZ$5,6),"("&1+DATE(LEFT($NP15,4),MID($NP15,5,2),RIGHT($NP15,2))-DATE(LEFT($NO15,4),MID($NO15,5,2),RIGHT($NO15,2))&")",IF(LEFT($NQ15,6)=LEFT(DZ$5,6),"("&1+DATE(LEFT($NR15,4),MID($NR15,5,2),RIGHT($NR15,2))-DATE(LEFT($NQ15,4),MID($NQ15,5,2),RIGHT($NQ15,2))&")",IF(LEFT($NS15,6)=LEFT(DZ$5,6),"("&1+DATE(LEFT($NT15,4),MID($NT15,5,2),RIGHT($NT15,2))-DATE(LEFT($NS15,4),MID($NS15,5,2),RIGHT($NS15,2))&")",IF(LEFT($NU15,6)=LEFT(DZ$5,6),"("&1+DATE(LEFT($NV15,4),MID($NV15,5,2),RIGHT($NV15,2))-DATE(LEFT($NU15,4),MID($NU15,5,2),RIGHT($NU15,2))&")",IF(LEFT($NW15,6)=LEFT(DZ$5,6),"("&1+DATE(LEFT($NX15,4),MID($NX15,5,2),RIGHT($NX15,2))-DATE(LEFT($NW15,4),MID($NW15,5,2),RIGHT($NW15,2))&")",IF(LEFT($NY15,6)=LEFT(DZ$5,6),"("&1+DATE(LEFT($NZ15,4),MID($NZ15,5,2),RIGHT($NZ15,2))-DATE(LEFT($NY15,4),MID($NY15,5,2),RIGHT($NY15,2))&")","")))))) ->  | FE15: =IF(LEFT($NO15,6)=LEFT(FE$5,6),"("&1+DATE(LEFT($NP15,4),MID($NP15,5,2),RIGHT($NP15,2))-DATE(LEFT($NO15,4),MID($NO15,5,2),RIGHT($NO15,2))&")",IF(LEFT($NQ15,6)=LEFT(FE$5,6),"("&1+DATE(LEFT($NR15,4),MID($NR15,5,2),RIGHT($NR15,2))-DATE(LEFT($NQ15,4),MID($NQ15,5,2),RIGHT($NQ15,2))&")",IF(LEFT($NS15,6)=LEFT(FE$5,6),"("&1+DATE(LEFT($NT15,4),MID($NT15,5,2),RIGHT($NT15,2))-DATE(LEFT($NS15,4),MID($NS15,5,2),RIGHT($NS15,2))&")",IF(LEFT($NU15,6)=LEFT(FE$5,6),"("&1+DATE(LEFT($NV15,4),MID($NV15,5,2),RIGHT($NV15,2))-DATE(LEFT($NU15,4),MID($NU15,5,2),RIGHT($NU15,2))&")",IF(LEFT($NW15,6)=LEFT(FE$5,6),"("&1+DATE(LEFT($NX15,4),MID($NX15,5,2),RIGHT($NX15,2))-DATE(LEFT($NW15,4),MID($NW15,5,2),RIGHT($NW15,2))&")",IF(LEFT($NY15,6)=LEFT(FE$5,6),"("&1+DATE(LEFT($NZ15,4),MID($NZ15,5,2),RIGHT($NZ15,2))-DATE(LEFT($NY15,4),MID($NY15,5,2),RIGHT($NY15,2))&")","")))))) ->  | GI15: =IF(LEFT($NO15,6)=LEFT(GI$5,6),"("&1+DATE(LEFT($NP15,4),MID($NP15,5,2),RIGHT($NP15,2))-DATE(LEFT($NO15,4),MID($NO15,5,2),RIGHT($NO15,2))&")",IF(LEFT($NQ15,6)=LEFT(GI$5,6),"("&1+DATE(LEFT($NR15,4),MID($NR15,5,2),RIGHT($NR15,2))-DATE(LEFT($NQ15,4),MID($NQ15,5,2),RIGHT($NQ15,2))&")",IF(LEFT($NS15,6)=LEFT(GI$5,6),"("&1+DATE(LEFT($NT15,4),MID($NT15,5,2),RIGHT($NT15,2))-DATE(LEFT($NS15,4),MID($NS15,5,2),RIGHT($NS15,2))&")",IF(LEFT($NU15,6)=LEFT(GI$5,6),"("&1+DATE(LEFT($NV15,4),MID($NV15,5,2),RIGHT($NV15,2))-DATE(LEFT($NU15,4),MID($NU15,5,2),RIGHT($NU15,2))&")",IF(LEFT($NW15,6)=LEFT(GI$5,6),"("&1+DATE(LEFT($NX15,4),MID($NX15,5,2),RIGHT($NX15,2))-DATE(LEFT($NW15,4),MID($NW15,5,2),RIGHT($NW15,2))&")",IF(LEFT($NY15,6)=LEFT(GI$5,6),"("&1+DATE(LEFT($NZ15,4),MID($NZ15,5,2),RIGHT($NZ15,2))-DATE(LEFT($NY15,4),MID($NY15,5,2),RIGHT($NY15,2))&")","")))))) ->  | HN15: =IF(LEFT($NO15,6)=LEFT(HN$5,6),"("&1+DATE(LEFT($NP15,4),MID($NP15,5,2),RIGHT($NP15,2))-DATE(LEFT($NO15,4),MID($NO15,5,2),RIGHT($NO15,2))&")",IF(LEFT($NQ15,6)=LEFT(HN$5,6),"("&1+DATE(LEFT($NR15,4),MID($NR15,5,2),RIGHT($NR15,2))-DATE(LEFT($NQ15,4),MID($NQ15,5,2),RIGHT($NQ15,2))&")",IF(LEFT($NS15,6)=LEFT(HN$5,6),"("&1+DATE(LEFT($NT15,4),MID($NT15,5,2),RIGHT($NT15,2))-DATE(LEFT($NS15,4),MID($NS15,5,2),RIGHT($NS15,2))&")",IF(LEFT($NU15,6)=LEFT(HN$5,6),"("&1+DATE(LEFT($NV15,4),MID($NV15,5,2),RIGHT($NV15,2))-DATE(LEFT($NU15,4),MID($NU15,5,2),RIGHT($NU15,2))&")",IF(LEFT($NW15,6)=LEFT(HN$5,6),"("&1+DATE(LEFT($NX15,4),MID($NX15,5,2),RIGHT($NX15,2))-DATE(LEFT($NW15,4),MID($NW15,5,2),RIGHT($NW15,2))&")",IF(LEFT($NY15,6)=LEFT(HN$5,6),"("&1+DATE(LEFT($NZ15,4),MID($NZ15,5,2),RIGHT($NZ15,2))-DATE(LEFT($NY15,4),MID($NY15,5,2),RIGHT($NY15,2))&")","")))))) ->  | IR15: =IF(LEFT($NO15,6)=LEFT(IR$5,6),"("&1+DATE(LEFT($NP15,4),MID($NP15,5,2),RIGHT($NP15,2))-DATE(LEFT($NO15,4),MID($NO15,5,2),RIGHT($NO15,2))&")",IF(LEFT($NQ15,6)=LEFT(IR$5,6),"("&1+DATE(LEFT($NR15,4),MID($NR15,5,2),RIGHT($NR15,2))-DATE(LEFT($NQ15,4),MID($NQ15,5,2),RIGHT($NQ15,2))&")",IF(LEFT($NS15,6)=LEFT(IR$5,6),"("&1+DATE(LEFT($NT15,4),MID($NT15,5,2),RIGHT($NT15,2))-DATE(LEFT($NS15,4),MID($NS15,5,2),RIGHT($NS15,2))&")",IF(LEFT($NU15,6)=LEFT(IR$5,6),"("&1+DATE(LEFT($NV15,4),MID($NV15,5,2),RIGHT($NV15,2))-DATE(LEFT($NU15,4),MID($NU15,5,2),RIGHT($NU15,2))&")",IF(LEFT($NW15,6)=LEFT(IR$5,6),"("&1+DATE(LEFT($NX15,4),MID($NX15,5,2),RIGHT($NX15,2))-DATE(LEFT($NW15,4),MID($NW15,5,2),RIGHT($NW15,2))&")",IF(LEFT($NY15,6)=LEFT(IR$5,6),"("&1+DATE(LEFT($NZ15,4),MID($NZ15,5,2),RIGHT($NZ15,2))-DATE(LEFT($NY15,4),MID($NY15,5,2),RIGHT($NY15,2))&")","")))))) ->  | JW15: =IF(LEFT($NO15,6)=LEFT(JW$5,6),"("&1+DATE(LEFT($NP15,4),MID($NP15,5,2),RIGHT($NP15,2))-DATE(LEFT($NO15,4),MID($NO15,5,2),RIGHT($NO15,2))&")",IF(LEFT($NQ15,6)=LEFT(JW$5,6),"("&1+DATE(LEFT($NR15,4),MID($NR15,5,2),RIGHT($NR15,2))-DATE(LEFT($NQ15,4),MID($NQ15,5,2),RIGHT($NQ15,2))&")",IF(LEFT($NS15,6)=LEFT(JW$5,6),"("&1+DATE(LEFT($NT15,4),MID($NT15,5,2),RIGHT($NT15,2))-DATE(LEFT($NS15,4),MID($NS15,5,2),RIGHT($NS15,2))&")",IF(LEFT($NU15,6)=LEFT(JW$5,6),"("&1+DATE(LEFT($NV15,4),MID($NV15,5,2),RIGHT($NV15,2))-DATE(LEFT($NU15,4),MID($NU15,5,2),RIGHT($NU15,2))&")",IF(LEFT($NW15,6)=LEFT(JW$5,6),"("&1+DATE(LEFT($NX15,4),MID($NX15,5,2),RIGHT($NX15,2))-DATE(LEFT($NW15,4),MID($NW15,5,2),RIGHT($NW15,2))&")",IF(LEFT($NY15,6)=LEFT(JW$5,6),"("&1+DATE(LEFT($NZ15,4),MID($NZ15,5,2),RIGHT($NZ15,2))-DATE(LEFT($NY15,4),MID($NY15,5,2),RIGHT($NY15,2))&")","")))))) ->  | LB15: =IF(LEFT($NO15,6)=LEFT(LB$5,6),"("&1+DATE(LEFT($NP15,4),MID($NP15,5,2),RIGHT($NP15,2))-DATE(LEFT($NO15,4),MID($NO15,5,2),RIGHT($NO15,2))&")",IF(LEFT($NQ15,6)=LEFT(LB$5,6),"("&1+DATE(LEFT($NR15,4),MID($NR15,5,2),RIGHT($NR15,2))-DATE(LEFT($NQ15,4),MID($NQ15,5,2),RIGHT($NQ15,2))&")",IF(LEFT($NS15,6)=LEFT(LB$5,6),"("&1+DATE(LEFT($NT15,4),MID($NT15,5,2),RIGHT($NT15,2))-DATE(LEFT($NS15,4),MID($NS15,5,2),RIGHT($NS15,2))&")",IF(LEFT($NU15,6)=LEFT(LB$5,6),"("&1+DATE(LEFT($NV15,4),MID($NV15,5,2),RIGHT($NV15,2))-DATE(LEFT($NU15,4),MID($NU15,5,2),RIGHT($NU15,2))&")",IF(LEFT($NW15,6)=LEFT(LB$5,6),"("&1+DATE(LEFT($NX15,4),MID($NX15,5,2),RIGHT($NX15,2))-DATE(LEFT($NW15,4),MID($NW15,5,2),RIGHT($NW15,2))&")",IF(LEFT($NY15,6)=LEFT(LB$5,6),"("&1+DATE(LEFT($NZ15,4),MID($NZ15,5,2),RIGHT($NZ15,2))-DATE(LEFT($NY15,4),MID($NY15,5,2),RIGHT($NY15,2))&")","")))))) ->  | ME15: =IF(LEFT($NO15,6)=LEFT(ME$5,6),"("&1+DATE(LEFT($NP15,4),MID($NP15,5,2),RIGHT($NP15,2))-DATE(LEFT($NO15,4),MID($NO15,5,2),RIGHT($NO15,2))&")",IF(LEFT($NQ15,6)=LEFT(ME$5,6),"("&1+DATE(LEFT($NR15,4),MID($NR15,5,2),RIGHT($NR15,2))-DATE(LEFT($NQ15,4),MID($NQ15,5,2),RIGHT($NQ15,2))&")",IF(LEFT($NS15,6)=LEFT(ME$5,6),"("&1+DATE(LEFT($NT15,4),MID($NT15,5,2),RIGHT($NT15,2))-DATE(LEFT($NS15,4),MID($NS15,5,2),RIGHT($NS15,2))&")",IF(LEFT($NU15,6)=LEFT(ME$5,6),"("&1+DATE(LEFT($NV15,4),MID($NV15,5,2),RIGHT($NV15,2))-DATE(LEFT($NU15,4),MID($NU15,5,2),RIGHT($NU15,2))&")",IF(LEFT($NW15,6)=LEFT(ME$5,6),"("&1+DATE(LEFT($NX15,4),MID($NX15,5,2),RIGHT($NX15,2))-DATE(LEFT($NW15,4),MID($NW15,5,2),RIGHT($NW15,2))&")",IF(LEFT($NY15,6)=LEFT(ME$5,6),"("&1+DATE(LEFT($NZ15,4),MID($NZ15,5,2),RIGHT($NZ15,2))-DATE(LEFT($NY15,4),MID($NY15,5,2),RIGHT($NY15,2))&")","")))))) ->  | NK15: =IF($C$3="様式34-1_1年度目",IF('様式34-1_1年度目'!AS9="","",'様式34-1_1年度目'!AS9),IF($C$3="様式34-1_2年度目",IF('様式34-1_2年度目'!AS9="","",'様式34-1_2年度目'!AS9),"")) ->  | NM15: 2 | NN15: 補修期間→ | NO15: =IF($C$3="様式34-1_1年度目",IF('様式34-1_1年度目'!AT9="","",VALUE(TEXT('様式34-1_1年度目'!AT9,"yyyymmdd"))),IF($C$3="様式34-1_2年度目",IF('様式34-1_2年度目'!AT9="","",VALUE(TEXT('様式34-1_2年度目'!AT9,"yyyymmdd"))),"")) ->  | NP15: =IF($C$3="様式34-1_1年度目",IF('様式34-1_1年度目'!AU9="","",VALUE(TEXT('様式34-1_1年度目'!AU9,"yyyymmdd"))),IF($C$3="様式34-1_2年度目",IF('様式34-1_2年度目'!AU9="","",VALUE(TEXT('様式34-1_2年度目'!AU9,"yyyymmdd"))),"")) ->  | NQ15: =IF($C$3="様式34-1_1年度目",IF('様式34-1_1年度目'!AW9="","",VALUE(TEXT('様式34-1_1年度目'!AW9,"yyyymmdd"))),IF($C$3="様式34-1_2年度目",IF('様式34-1_2年度目'!AW9="","",VALUE(TEXT('様式34-1_2年度目'!AW9,"yyyymmdd"))),"")) ->  | NR15: =IF($C$3="様式34-1_1年度目",IF('様式34-1_1年度目'!AX9="","",VALUE(TEXT('様式34-1_1年度目'!AX9,"yyyymmdd"))),IF($C$3="様式34-1_2年度目",IF('様式34-1_2年度目'!AX9="","",VALUE(TEXT('様式34-1_2年度目'!AX9,"yyyymmdd"))),"")) ->  | NS15: =IF($C$3="様式34-1_1年度目",IF('様式34-1_1年度目'!AZ9="","",VALUE(TEXT('様式34-1_1年度目'!AZ9,"yyyymmdd"))),IF($C$3="様式34-1_2年度目",IF('様式34-1_2年度目'!AZ9="","",VALUE(TEXT('様式34-1_2年度目'!AZ9,"yyyymmdd"))),"")) ->  | NT15: =IF($C$3="様式34-1_1年度目",IF('様式34-1_1年度目'!BA9="","",VALUE(TEXT('様式34-1_1年度目'!BA9,"yyyymmdd"))),IF($C$3="様式34-1_2年度目",IF('様式34-1_2年度目'!BA9="","",VALUE(TEXT('様式34-1_2年度目'!BA9,"yyyymmdd"))),"")) ->  | NU15: =IF($C$3="様式34-1_1年度目",IF('様式34-1_1年度目'!BC9="","",VALUE(TEXT('様式34-1_1年度目'!BC9,"yyyymmdd"))),IF($C$3="様式34-1_2年度目",IF('様式34-1_2年度目'!BC9="","",VALUE(TEXT('様式34-1_2年度目'!BC9,"yyyymmdd"))),"")) ->  | NV15: =IF($C$3="様式34-1_1年度目",IF('様式34-1_1年度目'!BD9="","",VALUE(TEXT('様式34-1_1年度目'!BD9,"yyyymmdd"))),IF($C$3="様式34-1_2年度目",IF('様式34-1_2年度目'!BD9="","",VALUE(TEXT('様式34-1_2年度目'!BD9,"yyyymmdd"))),"")) ->  | NW15: =IF($C$3="様式34-1_1年度目",IF('様式34-1_1年度目'!BF9="","",VALUE(TEXT('様式34-1_1年度目'!BF9,"yyyymmdd"))),IF($C$3="様式34-1_2年度目",IF('様式34-1_2年度目'!BF9="","",VALUE(TEXT('様式34-1_2年度目'!BF9,"yyyymmdd"))),"")) ->  | NX15: =IF($C$3="様式34-1_1年度目",IF('様式34-1_1年度目'!BG9="","",VALUE(TEXT('様式34-1_1年度目'!BG9,"yyyymmdd"))),IF($C$3="様式34-1_2年度目",IF('様式34-1_2年度目'!BG9="","",VALUE(TEXT('様式34-1_2年度目'!BG9,"yyyymmdd"))),"")) ->  | NY15: =IF($C$3="様式34-1_1年度目",IF('様式34-1_1年度目'!BI9="","",VALUE(TEXT('様式34-1_1年度目'!BI9,"yyyymmdd"))),IF($C$3="様式34-1_2年度目",IF('様式34-1_2年度目'!BI9="","",VALUE(TEXT('様式34-1_2年度目'!BI9,"yyyymmdd"))),"")) ->  | NZ15: =IF($C$3="様式34-1_1年度目",IF('様式34-1_1年度目'!BJ9="","",VALUE(TEXT('様式34-1_1年度目'!BJ9,"yyyymmdd"))),IF($C$3="様式34-1_2年度目",IF('様式34-1_2年度目'!BJ9="","",VALUE(TEXT('様式34-1_2年度目'!BJ9,"yyyymmdd"))),"")) -> 
H16: =+IF(OR(H$5=$NO15,H$5=$NQ15,H$5=$NS15,H$5=$NU15,H$5=$NW15,H$5=$NY15),1,IF(OR(AND($NO15<H$5,H$5<$NP15),AND($NQ15<H$5,H$5<$NR15),AND($NS15<H$5,H$5<$NT15),AND($NU15<H$5,H$5<$NV15),AND($NW15<H$5,H$5<$NX15),AND($NY15<H$5,H$5<$NZ15)),2,IF(OR(H$5=$NP15,H$5=$NR15,H$5=$NT15,H$5=$NV15,H$5=$NX15,H$5=$NZ15),3,""))) ->  | BT16: =+IF(OR(BT$5=$NO15,BT$5=$NQ15,BT$5=$NS15,BT$5=$NU15,BT$5=$NW15,BT$5=$NY15),1,IF(OR(AND($NO15<BT$5,BT$5<$NP15),AND($NQ15<BT$5,BT$5<$NR15),AND($NS15<BT$5,BT$5<$NT15),AND($NU15<BT$5,BT$5<$NV15),AND($NW15<BT$5,BT$5<$NX15),AND($NY15<BT$5,BT$5<$NZ15)),2,IF(OR(BT$5=$NP15,BT$5=$NR15,BT$5=$NT15,BT$5=$NV15,BT$5=$NX15,BT$5=$NZ15),3,""))) ->  | EF16: =+IF(OR(EF$5=$NO15,EF$5=$NQ15,EF$5=$NS15,EF$5=$NU15,EF$5=$NW15,EF$5=$NY15),1,IF(OR(AND($NO15<EF$5,EF$5<$NP15),AND($NQ15<EF$5,EF$5<$NR15),AND($NS15<EF$5,EF$5<$NT15),AND($NU15<EF$5,EF$5<$NV15),AND($NW15<EF$5,EF$5<$NX15),AND($NY15<EF$5,EF$5<$NZ15)),2,IF(OR(EF$5=$NP15,EF$5=$NR15,EF$5=$NT15,EF$5=$NV15,EF$5=$NX15,EF$5=$NZ15),3,""))) ->  | GR16: =+IF(OR(GR$5=$NO15,GR$5=$NQ15,GR$5=$NS15,GR$5=$NU15,GR$5=$NW15,GR$5=$NY15),1,IF(OR(AND($NO15<GR$5,GR$5<$NP15),AND($NQ15<GR$5,GR$5<$NR15),AND($NS15<GR$5,GR$5<$NT15),AND($NU15<GR$5,GR$5<$NV15),AND($NW15<GR$5,GR$5<$NX15),AND($NY15<GR$5,GR$5<$NZ15)),2,IF(OR(GR$5=$NP15,GR$5=$NR15,GR$5=$NT15,GR$5=$NV15,GR$5=$NX15,GR$5=$NZ15),3,""))) ->  | JD16: =+IF(OR(JD$5=$NO15,JD$5=$NQ15,JD$5=$NS15,JD$5=$NU15,JD$5=$NW15,JD$5=$NY15),1,IF(OR(AND($NO15<JD$5,JD$5<$NP15),AND($NQ15<JD$5,JD$5<$NR15),AND($NS15<JD$5,JD$5<$NT15),AND($NU15<JD$5,JD$5<$NV15),AND($NW15<JD$5,JD$5<$NX15),AND($NY15<JD$5,JD$5<$NZ15)),2,IF(OR(JD$5=$NP15,JD$5=$NR15,JD$5=$NT15,JD$5=$NV15,JD$5=$NX15,JD$5=$NZ15),3,""))) ->  | LP16: =+IF(OR(LP$5=$NO15,LP$5=$NQ15,LP$5=$NS15,LP$5=$NU15,LP$5=$NW15,LP$5=$NY15),1,IF(OR(AND($NO15<LP$5,LP$5<$NP15),AND($NQ15<LP$5,LP$5<$NR15),AND($NS15<LP$5,LP$5<$NT15),AND($NU15<LP$5,LP$5<$NV15),AND($NW15<LP$5,LP$5<$NX15),AND($NY15<LP$5,LP$5<$NZ15)),2,IF(OR(LP$5=$NP15,LP$5=$NR15,LP$5=$NT15,LP$5=$NV15,LP$5=$NX15,LP$5=$NZ15),3,""))) -> 
H17: =IF(AND($NO15<>"",$NO15<$H$5),MID($NO15,5,2)&"/"&RIGHT($NO15,2)&"～"&MID($NP15,5,2)&"/"&RIGHT($NP15,2),IF(LEFT($NO15,6)=LEFT(H$5,6),MID($NO15,5,2)&"/"&RIGHT($NO15,2)&"～"&MID($NP15,5,2)&"/"&RIGHT($NP15,2),IF(LEFT($NQ15,6)=LEFT(H$5,6),MID($NQ15,5,2)&"/"&RIGHT($NQ15,2)&"～"&MID($NR15,5,2)&"/"&RIGHT($NR15,2),IF(LEFT($NS15,6)=LEFT(H$5,6),MID($NS15,5,2)&"/"&RIGHT($NS15,2)&"～"&MID($NT15,5,2)&"/"&RIGHT($NT15,2),IF(LEFT($NU15,6)=LEFT(H$5,6),MID($NU15,5,2)&"/"&RIGHT($NU15,2)&"～"&MID($NV15,5,2)&"/"&RIGHT($NV15,2),IF(LEFT($NW15,6)=LEFT(H$5,6),MID($NW15,5,2)&"/"&RIGHT($NW15,2)&"～"&MID($NX15,5,2)&"/"&RIGHT($NX15,2),IF(LEFT($NY15,6)=LEFT(H$5,6),MID($NY15,5,2)&"/"&RIGHT($NY15,2)&"～"&MID($NZ15,5,2)&"/"&RIGHT($NZ15,2),""))))))) ->  | AL17: =IF(LEFT($NO15,6)=LEFT(AL$5,6),MID($NO15,5,2)&"/"&RIGHT($NO15,2)&"～"&MID($NP15,5,2)&"/"&RIGHT($NP15,2),IF(LEFT($NQ15,6)=LEFT(AL$5,6),MID($NQ15,5,2)&"/"&RIGHT($NQ15,2)&"～"&MID($NR15,5,2)&"/"&RIGHT($NR15,2),IF(LEFT($NS15,6)=LEFT(AL$5,6),MID($NS15,5,2)&"/"&RIGHT($NS15,2)&"～"&MID($NT15,5,2)&"/"&RIGHT($NT15,2),IF(LEFT($NU15,6)=LEFT(AL$5,6),MID($NU15,5,2)&"/"&RIGHT($NU15,2)&"～"&MID($NV15,5,2)&"/"&RIGHT($NV15,2),IF(LEFT($NW15,6)=LEFT(AL$5,6),MID($NW15,5,2)&"/"&RIGHT($NW15,2)&"～"&MID($NX15,5,2)&"/"&RIGHT($NX15,2),IF(LEFT($NY15,6)=LEFT(AL$5,6),MID($NY15,5,2)&"/"&RIGHT($NY15,2)&"～"&MID($NZ15,5,2)&"/"&RIGHT($NZ15,2),"")))))) ->  | BQ17: =IF(LEFT($NO15,6)=LEFT(BQ$5,6),MID($NO15,5,2)&"/"&RIGHT($NO15,2)&"～"&MID($NP15,5,2)&"/"&RIGHT($NP15,2),IF(LEFT($NQ15,6)=LEFT(BQ$5,6),MID($NQ15,5,2)&"/"&RIGHT($NQ15,2)&"～"&MID($NR15,5,2)&"/"&RIGHT($NR15,2),IF(LEFT($NS15,6)=LEFT(BQ$5,6),MID($NS15,5,2)&"/"&RIGHT($NS15,2)&"～"&MID($NT15,5,2)&"/"&RIGHT($NT15,2),IF(LEFT($NU15,6)=LEFT(BQ$5,6),MID($NU15,5,2)&"/"&RIGHT($NU15,2)&"～"&MID($NV15,5,2)&"/"&RIGHT($NV15,2),IF(LEFT($NW15,6)=LEFT(BQ$5,6),MID($NW15,5,2)&"/"&RIGHT($NW15,2)&"～"&MID($NX15,5,2)&"/"&RIGHT($NX15,2),IF(LEFT($NY15,6)=LEFT(BQ$5,6),MID($NY15,5,2)&"/"&RIGHT($NY15,2)&"～"&MID($NZ15,5,2)&"/"&RIGHT($NZ15,2),"")))))) ->  | CU17: =IF(LEFT($NO15,6)=LEFT(CU$5,6),MID($NO15,5,2)&"/"&RIGHT($NO15,2)&"～"&MID($NP15,5,2)&"/"&RIGHT($NP15,2),IF(LEFT($NQ15,6)=LEFT(CU$5,6),MID($NQ15,5,2)&"/"&RIGHT($NQ15,2)&"～"&MID($NR15,5,2)&"/"&RIGHT($NR15,2),IF(LEFT($NS15,6)=LEFT(CU$5,6),MID($NS15,5,2)&"/"&RIGHT($NS15,2)&"～"&MID($NT15,5,2)&"/"&RIGHT($NT15,2),IF(LEFT($NU15,6)=LEFT(CU$5,6),MID($NU15,5,2)&"/"&RIGHT($NU15,2)&"～"&MID($NV15,5,2)&"/"&RIGHT($NV15,2),IF(LEFT($NW15,6)=LEFT(CU$5,6),MID($NW15,5,2)&"/"&RIGHT($NW15,2)&"～"&MID($NX15,5,2)&"/"&RIGHT($NX15,2),IF(LEFT($NY15,6)=LEFT(CU$5,6),MID($NY15,5,2)&"/"&RIGHT($NY15,2)&"～"&MID($NZ15,5,2)&"/"&RIGHT($NZ15,2),"")))))) ->  | DZ17: =IF(LEFT($NO15,6)=LEFT(DZ$5,6),MID($NO15,5,2)&"/"&RIGHT($NO15,2)&"～"&MID($NP15,5,2)&"/"&RIGHT($NP15,2),IF(LEFT($NQ15,6)=LEFT(DZ$5,6),MID($NQ15,5,2)&"/"&RIGHT($NQ15,2)&"～"&MID($NR15,5,2)&"/"&RIGHT($NR15,2),IF(LEFT($NS15,6)=LEFT(DZ$5,6),MID($NS15,5,2)&"/"&RIGHT($NS15,2)&"～"&MID($NT15,5,2)&"/"&RIGHT($NT15,2),IF(LEFT($NU15,6)=LEFT(DZ$5,6),MID($NU15,5,2)&"/"&RIGHT($NU15,2)&"～"&MID($NV15,5,2)&"/"&RIGHT($NV15,2),IF(LEFT($NW15,6)=LEFT(DZ$5,6),MID($NW15,5,2)&"/"&RIGHT($NW15,2)&"～"&MID($NX15,5,2)&"/"&RIGHT($NX15,2),IF(LEFT($NY15,6)=LEFT(DZ$5,6),MID($NY15,5,2)&"/"&RIGHT($NY15,2)&"～"&MID($NZ15,5,2)&"/"&RIGHT($NZ15,2),"")))))) ->  | FE17: =IF(LEFT($NO15,6)=LEFT(FE$5,6),MID($NO15,5,2)&"/"&RIGHT($NO15,2)&"～"&MID($NP15,5,2)&"/"&RIGHT($NP15,2),IF(LEFT($NQ15,6)=LEFT(FE$5,6),MID($NQ15,5,2)&"/"&RIGHT($NQ15,2)&"～"&MID($NR15,5,2)&"/"&RIGHT($NR15,2),IF(LEFT($NS15,6)=LEFT(FE$5,6),MID($NS15,5,2)&"/"&RIGHT($NS15,2)&"～"&MID($NT15,5,2)&"/"&RIGHT($NT15,2),IF(LEFT($NU15,6)=LEFT(FE$5,6),MID($NU15,5,2)&"/"&RIGHT($NU15,2)&"～"&MID($NV15,5,2)&"/"&RIGHT($NV15,2),IF(LEFT($NW15,6)=LEFT(FE$5,6),MID($NW15,5,2)&"/"&RIGHT($NW15,2)&"～"&MID($NX15,5,2)&"/"&RIGHT($NX15,2),IF(LEFT($NY15,6)=LEFT(FE$5,6),MID($NY15,5,2)&"/"&RIGHT($NY15,2)&"～"&MID($NZ15,5,2)&"/"&RIGHT($NZ15,2),"")))))) ->  | GI17: =IF(LEFT($NO15,6)=LEFT(GI$5,6),MID($NO15,5,2)&"/"&RIGHT($NO15,2)&"～"&MID($NP15,5,2)&"/"&RIGHT($NP15,2),IF(LEFT($NQ15,6)=LEFT(GI$5,6),MID($NQ15,5,2)&"/"&RIGHT($NQ15,2)&"～"&MID($NR15,5,2)&"/"&RIGHT($NR15,2),IF(LEFT($NS15,6)=LEFT(GI$5,6),MID($NS15,5,2)&"/"&RIGHT($NS15,2)&"～"&MID($NT15,5,2)&"/"&RIGHT($NT15,2),IF(LEFT($NU15,6)=LEFT(GI$5,6),MID($NU15,5,2)&"/"&RIGHT($NU15,2)&"～"&MID($NV15,5,2)&"/"&RIGHT($NV15,2),IF(LEFT($NW15,6)=LEFT(GI$5,6),MID($NW15,5,2)&"/"&RIGHT($NW15,2)&"～"&MID($NX15,5,2)&"/"&RIGHT($NX15,2),IF(LEFT($NY15,6)=LEFT(GI$5,6),MID($NY15,5,2)&"/"&RIGHT($NY15,2)&"～"&MID($NZ15,5,2)&"/"&RIGHT($NZ15,2),"")))))) ->  | HN17: =IF(LEFT($NO15,6)=LEFT(HN$5,6),MID($NO15,5,2)&"/"&RIGHT($NO15,2)&"～"&MID($NP15,5,2)&"/"&RIGHT($NP15,2),IF(LEFT($NQ15,6)=LEFT(HN$5,6),MID($NQ15,5,2)&"/"&RIGHT($NQ15,2)&"～"&MID($NR15,5,2)&"/"&RIGHT($NR15,2),IF(LEFT($NS15,6)=LEFT(HN$5,6),MID($NS15,5,2)&"/"&RIGHT($NS15,2)&"～"&MID($NT15,5,2)&"/"&RIGHT($NT15,2),IF(LEFT($NU15,6)=LEFT(HN$5,6),MID($NU15,5,2)&"/"&RIGHT($NU15,2)&"～"&MID($NV15,5,2)&"/"&RIGHT($NV15,2),IF(LEFT($NW15,6)=LEFT(HN$5,6),MID($NW15,5,2)&"/"&RIGHT($NW15,2)&"～"&MID($NX15,5,2)&"/"&RIGHT($NX15,2),IF(LEFT($NY15,6)=LEFT(HN$5,6),MID($NY15,5,2)&"/"&RIGHT($NY15,2)&"～"&MID($NZ15,5,2)&"/"&RIGHT($NZ15,2),"")))))) ->  | IR17: =IF(LEFT($NO15,6)=LEFT(IR$5,6),MID($NO15,5,2)&"/"&RIGHT($NO15,2)&"～"&MID($NP15,5,2)&"/"&RIGHT($NP15,2),IF(LEFT($NQ15,6)=LEFT(IR$5,6),MID($NQ15,5,2)&"/"&RIGHT($NQ15,2)&"～"&MID($NR15,5,2)&"/"&RIGHT($NR15,2),IF(LEFT($NS15,6)=LEFT(IR$5,6),MID($NS15,5,2)&"/"&RIGHT($NS15,2)&"～"&MID($NT15,5,2)&"/"&RIGHT($NT15,2),IF(LEFT($NU15,6)=LEFT(IR$5,6),MID($NU15,5,2)&"/"&RIGHT($NU15,2)&"～"&MID($NV15,5,2)&"/"&RIGHT($NV15,2),IF(LEFT($NW15,6)=LEFT(IR$5,6),MID($NW15,5,2)&"/"&RIGHT($NW15,2)&"～"&MID($NX15,5,2)&"/"&RIGHT($NX15,2),IF(LEFT($NY15,6)=LEFT(IR$5,6),MID($NY15,5,2)&"/"&RIGHT($NY15,2)&"～"&MID($NZ15,5,2)&"/"&RIGHT($NZ15,2),"")))))) ->  | JW17: =IF(LEFT($NO15,6)=LEFT(JW$5,6),MID($NO15,5,2)&"/"&RIGHT($NO15,2)&"～"&MID($NP15,5,2)&"/"&RIGHT($NP15,2),IF(LEFT($NQ15,6)=LEFT(JW$5,6),MID($NQ15,5,2)&"/"&RIGHT($NQ15,2)&"～"&MID($NR15,5,2)&"/"&RIGHT($NR15,2),IF(LEFT($NS15,6)=LEFT(JW$5,6),MID($NS15,5,2)&"/"&RIGHT($NS15,2)&"～"&MID($NT15,5,2)&"/"&RIGHT($NT15,2),IF(LEFT($NU15,6)=LEFT(JW$5,6),MID($NU15,5,2)&"/"&RIGHT($NU15,2)&"～"&MID($NV15,5,2)&"/"&RIGHT($NV15,2),IF(LEFT($NW15,6)=LEFT(JW$5,6),MID($NW15,5,2)&"/"&RIGHT($NW15,2)&"～"&MID($NX15,5,2)&"/"&RIGHT($NX15,2),IF(LEFT($NY15,6)=LEFT(JW$5,6),MID($NY15,5,2)&"/"&RIGHT($NY15,2)&"～"&MID($NZ15,5,2)&"/"&RIGHT($NZ15,2),"")))))) ->  | LB17: =IF(LEFT($NO15,6)=LEFT(LB$5,6),MID($NO15,5,2)&"/"&RIGHT($NO15,2)&"～"&MID($NP15,5,2)&"/"&RIGHT($NP15,2),IF(LEFT($NQ15,6)=LEFT(LB$5,6),MID($NQ15,5,2)&"/"&RIGHT($NQ15,2)&"～"&MID($NR15,5,2)&"/"&RIGHT($NR15,2),IF(LEFT($NS15,6)=LEFT(LB$5,6),MID($NS15,5,2)&"/"&RIGHT($NS15,2)&"～"&MID($NT15,5,2)&"/"&RIGHT($NT15,2),IF(LEFT($NU15,6)=LEFT(LB$5,6),MID($NU15,5,2)&"/"&RIGHT($NU15,2)&"～"&MID($NV15,5,2)&"/"&RIGHT($NV15,2),IF(LEFT($NW15,6)=LEFT(LB$5,6),MID($NW15,5,2)&"/"&RIGHT($NW15,2)&"～"&MID($NX15,5,2)&"/"&RIGHT($NX15,2),IF(LEFT($NY15,6)=LEFT(LB$5,6),MID($NY15,5,2)&"/"&RIGHT($NY15,2)&"～"&MID($NZ15,5,2)&"/"&RIGHT($NZ15,2),"")))))) ->  | ME17: =IF(LEFT($NO15,6)=LEFT(ME$5,6),MID($NO15,5,2)&"/"&RIGHT($NO15,2)&"～"&MID($NP15,5,2)&"/"&RIGHT($NP15,2),IF(LEFT($NQ15,6)=LEFT(ME$5,6),MID($NQ15,5,2)&"/"&RIGHT($NQ15,2)&"～"&MID($NR15,5,2)&"/"&RIGHT($NR15,2),IF(LEFT($NS15,6)=LEFT(ME$5,6),MID($NS15,5,2)&"/"&RIGHT($NS15,2)&"～"&MID($NT15,5,2)&"/"&RIGHT($NT15,2),IF(LEFT($NU15,6)=LEFT(ME$5,6),MID($NU15,5,2)&"/"&RIGHT($NU15,2)&"～"&MID($NV15,5,2)&"/"&RIGHT($NV15,2),IF(LEFT($NW15,6)=LEFT(ME$5,6),MID($NW15,5,2)&"/"&RIGHT($NW15,2)&"～"&MID($NX15,5,2)&"/"&RIGHT($NX15,2),IF(LEFT($NY15,6)=LEFT(ME$5,6),MID($NY15,5,2)&"/"&RIGHT($NY15,2)&"～"&MID($NZ15,5,2)&"/"&RIGHT($NZ15,2),"")))))) -> 
C18: =IF($C$3="様式34-1_1年度目",IF('様式34-1_1年度目'!AC10="","",'様式34-1_1年度目'!AC10),IF($C$3="様式34-1_2年度目",IF('様式34-1_2年度目'!AC10="","",'様式34-1_2年度目'!AC10),"")) ->  | F18: =IF($C$3="様式34-1_1年度目",IF('様式34-1_1年度目'!AD10="","",'様式34-1_1年度目'!AD10&" "&'様式34-1_1年度目'!AE10),IF($C$3="様式34-1_2年度目",IF('様式34-1_2年度目'!AD10="","",'様式34-1_2年度目'!AD10&" "&'様式34-1_2年度目'!AE10),"")) ->  | G18: =IF($C$3="様式34-1_1年度目",IF('様式34-1_1年度目'!AF10="","",'様式34-1_1年度目'!AF10),IF($C$3="様式34-1_2年度目",IF('様式34-1_2年度目'!AF10="","",'様式34-1_2年度目'!AF10),"")) ->  | H18: =IF(AND($NO18<>"",$NO18<$H$5),"("&1+DATE(LEFT($NP18,4),MID($NP18,5,2),RIGHT($NP18,2))-DATE(LEFT($NO18,4),MID($NO18,5,2),RIGHT($NO18,2))&")",IF(LEFT($NO18,6)=LEFT(H$5,6),"("&1+DATE(LEFT($NP18,4),MID($NP18,5,2),RIGHT($NP18,2))-DATE(LEFT($NO18,4),MID($NO18,5,2),RIGHT($NO18,2))&")",IF(LEFT($NQ18,6)=LEFT(H$5,6),"("&1+DATE(LEFT($NR18,4),MID($NR18,5,2),RIGHT($NR18,2))-DATE(LEFT($NQ18,4),MID($NQ18,5,2),RIGHT($NQ18,2))&")",IF(LEFT($NS18,6)=LEFT(H$5,6),"("&1+DATE(LEFT($NT18,4),MID($NT18,5,2),RIGHT($NT18,2))-DATE(LEFT($NS18,4),MID($NS18,5,2),RIGHT($NS18,2))&")",IF(LEFT($NU18,6)=LEFT(H$5,6),"("&1+DATE(LEFT($NV18,4),MID($NV18,5,2),RIGHT($NV18,2))-DATE(LEFT($NU18,4),MID($NU18,5,2),RIGHT($NU18,2))&")",IF(LEFT($NW18,6)=LEFT(H$5,6),"("&1+DATE(LEFT($NX18,4),MID($NX18,5,2),RIGHT($NX18,2))-DATE(LEFT($NW18,4),MID($NW18,5,2),RIGHT($NW18,2))&")",IF(LEFT($NY18,6)=LEFT(H$5,6),"("&1+DATE(LEFT($NZ18,4),MID($NZ18,5,2),RIGHT($NZ18,2))-DATE(LEFT($NY18,4),MID($NY18,5,2),RIGHT($NY18,2))&")",""))))))) ->  | AL18: =IF(LEFT($NO18,6)=LEFT(AL$5,6),"("&1+DATE(LEFT($NP18,4),MID($NP18,5,2),RIGHT($NP18,2))-DATE(LEFT($NO18,4),MID($NO18,5,2),RIGHT($NO18,2))&")",IF(LEFT($NQ18,6)=LEFT(AL$5,6),"("&1+DATE(LEFT($NR18,4),MID($NR18,5,2),RIGHT($NR18,2))-DATE(LEFT($NQ18,4),MID($NQ18,5,2),RIGHT($NQ18,2))&")",IF(LEFT($NS18,6)=LEFT(AL$5,6),"("&1+DATE(LEFT($NT18,4),MID($NT18,5,2),RIGHT($NT18,2))-DATE(LEFT($NS18,4),MID($NS18,5,2),RIGHT($NS18,2))&")",IF(LEFT($NU18,6)=LEFT(AL$5,6),"("&1+DATE(LEFT($NV18,4),MID($NV18,5,2),RIGHT($NV18,2))-DATE(LEFT($NU18,4),MID($NU18,5,2),RIGHT($NU18,2))&")",IF(LEFT($NW18,6)=LEFT(AL$5,6),"("&1+DATE(LEFT($NX18,4),MID($NX18,5,2),RIGHT($NX18,2))-DATE(LEFT($NW18,4),MID($NW18,5,2),RIGHT($NW18,2))&")",IF(LEFT($NY18,6)=LEFT(AL$5,6),"("&1+DATE(LEFT($NZ18,4),MID($NZ18,5,2),RIGHT($NZ18,2))-DATE(LEFT($NY18,4),MID($NY18,5,2),RIGHT($NY18,2))&")","")))))) ->  | BQ18: =IF(LEFT($NO18,6)=LEFT(BQ$5,6),"("&1+DATE(LEFT($NP18,4),MID($NP18,5,2),RIGHT($NP18,2))-DATE(LEFT($NO18,4),MID($NO18,5,2),RIGHT($NO18,2))&")",IF(LEFT($NQ18,6)=LEFT(BQ$5,6),"("&1+DATE(LEFT($NR18,4),MID($NR18,5,2),RIGHT($NR18,2))-DATE(LEFT($NQ18,4),MID($NQ18,5,2),RIGHT($NQ18,2))&")",IF(LEFT($NS18,6)=LEFT(BQ$5,6),"("&1+DATE(LEFT($NT18,4),MID($NT18,5,2),RIGHT($NT18,2))-DATE(LEFT($NS18,4),MID($NS18,5,2),RIGHT($NS18,2))&")",IF(LEFT($NU18,6)=LEFT(BQ$5,6),"("&1+DATE(LEFT($NV18,4),MID($NV18,5,2),RIGHT($NV18,2))-DATE(LEFT($NU18,4),MID($NU18,5,2),RIGHT($NU18,2))&")",IF(LEFT($NW18,6)=LEFT(BQ$5,6),"("&1+DATE(LEFT($NX18,4),MID($NX18,5,2),RIGHT($NX18,2))-DATE(LEFT($NW18,4),MID($NW18,5,2),RIGHT($NW18,2))&")",IF(LEFT($NY18,6)=LEFT(BQ$5,6),"("&1+DATE(LEFT($NZ18,4),MID($NZ18,5,2),RIGHT($NZ18,2))-DATE(LEFT($NY18,4),MID($NY18,5,2),RIGHT($NY18,2))&")","")))))) ->  | CU18: =IF(LEFT($NO18,6)=LEFT(CU$5,6),"("&1+DATE(LEFT($NP18,4),MID($NP18,5,2),RIGHT($NP18,2))-DATE(LEFT($NO18,4),MID($NO18,5,2),RIGHT($NO18,2))&")",IF(LEFT($NQ18,6)=LEFT(CU$5,6),"("&1+DATE(LEFT($NR18,4),MID($NR18,5,2),RIGHT($NR18,2))-DATE(LEFT($NQ18,4),MID($NQ18,5,2),RIGHT($NQ18,2))&")",IF(LEFT($NS18,6)=LEFT(CU$5,6),"("&1+DATE(LEFT($NT18,4),MID($NT18,5,2),RIGHT($NT18,2))-DATE(LEFT($NS18,4),MID($NS18,5,2),RIGHT($NS18,2))&")",IF(LEFT($NU18,6)=LEFT(CU$5,6),"("&1+DATE(LEFT($NV18,4),MID($NV18,5,2),RIGHT($NV18,2))-DATE(LEFT($NU18,4),MID($NU18,5,2),RIGHT($NU18,2))&")",IF(LEFT($NW18,6)=LEFT(CU$5,6),"("&1+DATE(LEFT($NX18,4),MID($NX18,5,2),RIGHT($NX18,2))-DATE(LEFT($NW18,4),MID($NW18,5,2),RIGHT($NW18,2))&")",IF(LEFT($NY18,6)=LEFT(CU$5,6),"("&1+DATE(LEFT($NZ18,4),MID($NZ18,5,2),RIGHT($NZ18,2))-DATE(LEFT($NY18,4),MID($NY18,5,2),RIGHT($NY18,2))&")","")))))) ->  | DZ18: =IF(LEFT($NO18,6)=LEFT(DZ$5,6),"("&1+DATE(LEFT($NP18,4),MID($NP18,5,2),RIGHT($NP18,2))-DATE(LEFT($NO18,4),MID($NO18,5,2),RIGHT($NO18,2))&")",IF(LEFT($NQ18,6)=LEFT(DZ$5,6),"("&1+DATE(LEFT($NR18,4),MID($NR18,5,2),RIGHT($NR18,2))-DATE(LEFT($NQ18,4),MID($NQ18,5,2),RIGHT($NQ18,2))&")",IF(LEFT($NS18,6)=LEFT(DZ$5,6),"("&1+DATE(LEFT($NT18,4),MID($NT18,5,2),RIGHT($NT18,2))-DATE(LEFT($NS18,4),MID($NS18,5,2),RIGHT($NS18,2))&")",IF(LEFT($NU18,6)=LEFT(DZ$5,6),"("&1+DATE(LEFT($NV18,4),MID($NV18,5,2),RIGHT($NV18,2))-DATE(LEFT($NU18,4),MID($NU18,5,2),RIGHT($NU18,2))&")",IF(LEFT($NW18,6)=LEFT(DZ$5,6),"("&1+DATE(LEFT($NX18,4),MID($NX18,5,2),RIGHT($NX18,2))-DATE(LEFT($NW18,4),MID($NW18,5,2),RIGHT($NW18,2))&")",IF(LEFT($NY18,6)=LEFT(DZ$5,6),"("&1+DATE(LEFT($NZ18,4),MID($NZ18,5,2),RIGHT($NZ18,2))-DATE(LEFT($NY18,4),MID($NY18,5,2),RIGHT($NY18,2))&")","")))))) ->  | FE18: =IF(LEFT($NO18,6)=LEFT(FE$5,6),"("&1+DATE(LEFT($NP18,4),MID($NP18,5,2),RIGHT($NP18,2))-DATE(LEFT($NO18,4),MID($NO18,5,2),RIGHT($NO18,2))&")",IF(LEFT($NQ18,6)=LEFT(FE$5,6),"("&1+DATE(LEFT($NR18,4),MID($NR18,5,2),RIGHT($NR18,2))-DATE(LEFT($NQ18,4),MID($NQ18,5,2),RIGHT($NQ18,2))&")",IF(LEFT($NS18,6)=LEFT(FE$5,6),"("&1+DATE(LEFT($NT18,4),MID($NT18,5,2),RIGHT($NT18,2))-DATE(LEFT($NS18,4),MID($NS18,5,2),RIGHT($NS18,2))&")",IF(LEFT($NU18,6)=LEFT(FE$5,6),"("&1+DATE(LEFT($NV18,4),MID($NV18,5,2),RIGHT($NV18,2))-DATE(LEFT($NU18,4),MID($NU18,5,2),RIGHT($NU18,2))&")",IF(LEFT($NW18,6)=LEFT(FE$5,6),"("&1+DATE(LEFT($NX18,4),MID($NX18,5,2),RIGHT($NX18,2))-DATE(LEFT($NW18,4),MID($NW18,5,2),RIGHT($NW18,2))&")",IF(LEFT($NY18,6)=LEFT(FE$5,6),"("&1+DATE(LEFT($NZ18,4),MID($NZ18,5,2),RIGHT($NZ18,2))-DATE(LEFT($NY18,4),MID($NY18,5,2),RIGHT($NY18,2))&")","")))))) ->  | GI18: =IF(LEFT($NO18,6)=LEFT(GI$5,6),"("&1+DATE(LEFT($NP18,4),MID($NP18,5,2),RIGHT($NP18,2))-DATE(LEFT($NO18,4),MID($NO18,5,2),RIGHT($NO18,2))&")",IF(LEFT($NQ18,6)=LEFT(GI$5,6),"("&1+DATE(LEFT($NR18,4),MID($NR18,5,2),RIGHT($NR18,2))-DATE(LEFT($NQ18,4),MID($NQ18,5,2),RIGHT($NQ18,2))&")",IF(LEFT($NS18,6)=LEFT(GI$5,6),"("&1+DATE(LEFT($NT18,4),MID($NT18,5,2),RIGHT($NT18,2))-DATE(LEFT($NS18,4),MID($NS18,5,2),RIGHT($NS18,2))&")",IF(LEFT($NU18,6)=LEFT(GI$5,6),"("&1+DATE(LEFT($NV18,4),MID($NV18,5,2),RIGHT($NV18,2))-DATE(LEFT($NU18,4),MID($NU18,5,2),RIGHT($NU18,2))&")",IF(LEFT($NW18,6)=LEFT(GI$5,6),"("&1+DATE(LEFT($NX18,4),MID($NX18,5,2),RIGHT($NX18,2))-DATE(LEFT($NW18,4),MID($NW18,5,2),RIGHT($NW18,2))&")",IF(LEFT($NY18,6)=LEFT(GI$5,6),"("&1+DATE(LEFT($NZ18,4),MID($NZ18,5,2),RIGHT($NZ18,2))-DATE(LEFT($NY18,4),MID($NY18,5,2),RIGHT($NY18,2))&")","")))))) ->  | HN18: =IF(LEFT($NO18,6)=LEFT(HN$5,6),"("&1+DATE(LEFT($NP18,4),MID($NP18,5,2),RIGHT($NP18,2))-DATE(LEFT($NO18,4),MID($NO18,5,2),RIGHT($NO18,2))&")",IF(LEFT($NQ18,6)=LEFT(HN$5,6),"("&1+DATE(LEFT($NR18,4),MID($NR18,5,2),RIGHT($NR18,2))-DATE(LEFT($NQ18,4),MID($NQ18,5,2),RIGHT($NQ18,2))&")",IF(LEFT($NS18,6)=LEFT(HN$5,6),"("&1+DATE(LEFT($NT18,4),MID($NT18,5,2),RIGHT($NT18,2))-DATE(LEFT($NS18,4),MID($NS18,5,2),RIGHT($NS18,2))&")",IF(LEFT($NU18,6)=LEFT(HN$5,6),"("&1+DATE(LEFT($NV18,4),MID($NV18,5,2),RIGHT($NV18,2))-DATE(LEFT($NU18,4),MID($NU18,5,2),RIGHT($NU18,2))&")",IF(LEFT($NW18,6)=LEFT(HN$5,6),"("&1+DATE(LEFT($NX18,4),MID($NX18,5,2),RIGHT($NX18,2))-DATE(LEFT($NW18,4),MID($NW18,5,2),RIGHT($NW18,2))&")",IF(LEFT($NY18,6)=LEFT(HN$5,6),"("&1+DATE(LEFT($NZ18,4),MID($NZ18,5,2),RIGHT($NZ18,2))-DATE(LEFT($NY18,4),MID($NY18,5,2),RIGHT($NY18,2))&")","")))))) ->  | IR18: =IF(LEFT($NO18,6)=LEFT(IR$5,6),"("&1+DATE(LEFT($NP18,4),MID($NP18,5,2),RIGHT($NP18,2))-DATE(LEFT($NO18,4),MID($NO18,5,2),RIGHT($NO18,2))&")",IF(LEFT($NQ18,6)=LEFT(IR$5,6),"("&1+DATE(LEFT($NR18,4),MID($NR18,5,2),RIGHT($NR18,2))-DATE(LEFT($NQ18,4),MID($NQ18,5,2),RIGHT($NQ18,2))&")",IF(LEFT($NS18,6)=LEFT(IR$5,6),"("&1+DATE(LEFT($NT18,4),MID($NT18,5,2),RIGHT($NT18,2))-DATE(LEFT($NS18,4),MID($NS18,5,2),RIGHT($NS18,2))&")",IF(LEFT($NU18,6)=LEFT(IR$5,6),"("&1+DATE(LEFT($NV18,4),MID($NV18,5,2),RIGHT($NV18,2))-DATE(LEFT($NU18,4),MID($NU18,5,2),RIGHT($NU18,2))&")",IF(LEFT($NW18,6)=LEFT(IR$5,6),"("&1+DATE(LEFT($NX18,4),MID($NX18,5,2),RIGHT($NX18,2))-DATE(LEFT($NW18,4),MID($NW18,5,2),RIGHT($NW18,2))&")",IF(LEFT($NY18,6)=LEFT(IR$5,6),"("&1+DATE(LEFT($NZ18,4),MID($NZ18,5,2),RIGHT($NZ18,2))-DATE(LEFT($NY18,4),MID($NY18,5,2),RIGHT($NY18,2))&")","")))))) ->  | JW18: =IF(LEFT($NO18,6)=LEFT(JW$5,6),"("&1+DATE(LEFT($NP18,4),MID($NP18,5,2),RIGHT($NP18,2))-DATE(LEFT($NO18,4),MID($NO18,5,2),RIGHT($NO18,2))&")",IF(LEFT($NQ18,6)=LEFT(JW$5,6),"("&1+DATE(LEFT($NR18,4),MID($NR18,5,2),RIGHT($NR18,2))-DATE(LEFT($NQ18,4),MID($NQ18,5,2),RIGHT($NQ18,2))&")",IF(LEFT($NS18,6)=LEFT(JW$5,6),"("&1+DATE(LEFT($NT18,4),MID($NT18,5,2),RIGHT($NT18,2))-DATE(LEFT($NS18,4),MID($NS18,5,2),RIGHT($NS18,2))&")",IF(LEFT($NU18,6)=LEFT(JW$5,6),"("&1+DATE(LEFT($NV18,4),MID($NV18,5,2),RIGHT($NV18,2))-DATE(LEFT($NU18,4),MID($NU18,5,2),RIGHT($NU18,2))&")",IF(LEFT($NW18,6)=LEFT(JW$5,6),"("&1+DATE(LEFT($NX18,4),MID($NX18,5,2),RIGHT($NX18,2))-DATE(LEFT($NW18,4),MID($NW18,5,2),RIGHT($NW18,2))&")",IF(LEFT($NY18,6)=LEFT(JW$5,6),"("&1+DATE(LEFT($NZ18,4),MID($NZ18,5,2),RIGHT($NZ18,2))-DATE(LEFT($NY18,4),MID($NY18,5,2),RIGHT($NY18,2))&")","")))))) ->  | LB18: =IF(LEFT($NO18,6)=LEFT(LB$5,6),"("&1+DATE(LEFT($NP18,4),MID($NP18,5,2),RIGHT($NP18,2))-DATE(LEFT($NO18,4),MID($NO18,5,2),RIGHT($NO18,2))&")",IF(LEFT($NQ18,6)=LEFT(LB$5,6),"("&1+DATE(LEFT($NR18,4),MID($NR18,5,2),RIGHT($NR18,2))-DATE(LEFT($NQ18,4),MID($NQ18,5,2),RIGHT($NQ18,2))&")",IF(LEFT($NS18,6)=LEFT(LB$5,6),"("&1+DATE(LEFT($NT18,4),MID($NT18,5,2),RIGHT($NT18,2))-DATE(LEFT($NS18,4),MID($NS18,5,2),RIGHT($NS18,2))&")",IF(LEFT($NU18,6)=LEFT(LB$5,6),"("&1+DATE(LEFT($NV18,4),MID($NV18,5,2),RIGHT($NV18,2))-DATE(LEFT($NU18,4),MID($NU18,5,2),RIGHT($NU18,2))&")",IF(LEFT($NW18,6)=LEFT(LB$5,6),"("&1+DATE(LEFT($NX18,4),MID($NX18,5,2),RIGHT($NX18,2))-DATE(LEFT($NW18,4),MID($NW18,5,2),RIGHT($NW18,2))&")",IF(LEFT($NY18,6)=LEFT(LB$5,6),"("&1+DATE(LEFT($NZ18,4),MID($NZ18,5,2),RIGHT($NZ18,2))-DATE(LEFT($NY18,4),MID($NY18,5,2),RIGHT($NY18,2))&")","")))))) ->  | ME18: =IF(LEFT($NO18,6)=LEFT(ME$5,6),"("&1+DATE(LEFT($NP18,4),MID($NP18,5,2),RIGHT($NP18,2))-DATE(LEFT($NO18,4),MID($NO18,5,2),RIGHT($NO18,2))&")",IF(LEFT($NQ18,6)=LEFT(ME$5,6),"("&1+DATE(LEFT($NR18,4),MID($NR18,5,2),RIGHT($NR18,2))-DATE(LEFT($NQ18,4),MID($NQ18,5,2),RIGHT($NQ18,2))&")",IF(LEFT($NS18,6)=LEFT(ME$5,6),"("&1+DATE(LEFT($NT18,4),MID($NT18,5,2),RIGHT($NT18,2))-DATE(LEFT($NS18,4),MID($NS18,5,2),RIGHT($NS18,2))&")",IF(LEFT($NU18,6)=LEFT(ME$5,6),"("&1+DATE(LEFT($NV18,4),MID($NV18,5,2),RIGHT($NV18,2))-DATE(LEFT($NU18,4),MID($NU18,5,2),RIGHT($NU18,2))&")",IF(LEFT($NW18,6)=LEFT(ME$5,6),"("&1+DATE(LEFT($NX18,4),MID($NX18,5,2),RIGHT($NX18,2))-DATE(LEFT($NW18,4),MID($NW18,5,2),RIGHT($NW18,2))&")",IF(LEFT($NY18,6)=LEFT(ME$5,6),"("&1+DATE(LEFT($NZ18,4),MID($NZ18,5,2),RIGHT($NZ18,2))-DATE(LEFT($NY18,4),MID($NY18,5,2),RIGHT($NY18,2))&")","")))))) ->  | NK18: =IF($C$3="様式34-1_1年度目",IF('様式34-1_1年度目'!AS10="","",'様式34-1_1年度目'!AS10),IF($C$3="様式34-1_2年度目",IF('様式34-1_2年度目'!AS10="","",'様式34-1_2年度目'!AS10),"")) ->  | NM18: 3 | NN18: 補修期間→ | NO18: =IF($C$3="様式34-1_1年度目",IF('様式34-1_1年度目'!AT10="","",VALUE(TEXT('様式34-1_1年度目'!AT10,"yyyymmdd"))),IF($C$3="様式34-1_2年度目",IF('様式34-1_2年度目'!AT10="","",VALUE(TEXT('様式34-1_2年度目'!AT10,"yyyymmdd"))),"")) ->  | NP18: =IF($C$3="様式34-1_1年度目",IF('様式34-1_1年度目'!AU10="","",VALUE(TEXT('様式34-1_1年度目'!AU10,"yyyymmdd"))),IF($C$3="様式34-1_2年度目",IF('様式34-1_2年度目'!AU10="","",VALUE(TEXT('様式34-1_2年度目'!AU10,"yyyymmdd"))),"")) ->  | NQ18: =IF($C$3="様式34-1_1年度目",IF('様式34-1_1年度目'!AW10="","",VALUE(TEXT('様式34-1_1年度目'!AW10,"yyyymmdd"))),IF($C$3="様式34-1_2年度目",IF('様式34-1_2年度目'!AW10="","",VALUE(TEXT('様式34-1_2年度目'!AW10,"yyyymmdd"))),"")) ->  | NR18: =IF($C$3="様式34-1_1年度目",IF('様式34-1_1年度目'!AX10="","",VALUE(TEXT('様式34-1_1年度目'!AX10,"yyyymmdd"))),IF($C$3="様式34-1_2年度目",IF('様式34-1_2年度目'!AX10="","",VALUE(TEXT('様式34-1_2年度目'!AX10,"yyyymmdd"))),"")) ->  | NS18: =IF($C$3="様式34-1_1年度目",IF('様式34-1_1年度目'!AZ10="","",VALUE(TEXT('様式34-1_1年度目'!AZ10,"yyyymmdd"))),IF($C$3="様式34-1_2年度目",IF('様式34-1_2年度目'!AZ10="","",VALUE(TEXT('様式34-1_2年度目'!AZ10,"yyyymmdd"))),"")) ->  | NT18: =IF($C$3="様式34-1_1年度目",IF('様式34-1_1年度目'!BA10="","",VALUE(TEXT('様式34-1_1年度目'!BA10,"yyyymmdd"))),IF($C$3="様式34-1_2年度目",IF('様式34-1_2年度目'!BA10="","",VALUE(TEXT('様式34-1_2年度目'!BA10,"yyyymmdd"))),"")) ->  | NU18: =IF($C$3="様式34-1_1年度目",IF('様式34-1_1年度目'!BC10="","",VALUE(TEXT('様式34-1_1年度目'!BC10,"yyyymmdd"))),IF($C$3="様式34-1_2年度目",IF('様式34-1_2年度目'!BC10="","",VALUE(TEXT('様式34-1_2年度目'!BC10,"yyyymmdd"))),"")) ->  | NV18: =IF($C$3="様式34-1_1年度目",IF('様式34-1_1年度目'!BD10="","",VALUE(TEXT('様式34-1_1年度目'!BD10,"yyyymmdd"))),IF($C$3="様式34-1_2年度目",IF('様式34-1_2年度目'!BD10="","",VALUE(TEXT('様式34-1_2年度目'!BD10,"yyyymmdd"))),"")) ->  | NW18: =IF($C$3="様式34-1_1年度目",IF('様式34-1_1年度目'!BF10="","",VALUE(TEXT('様式34-1_1年度目'!BF10,"yyyymmdd"))),IF($C$3="様式34-1_2年度目",IF('様式34-1_2年度目'!BF10="","",VALUE(TEXT('様式34-1_2年度目'!BF10,"yyyymmdd"))),"")) ->  | NX18: =IF($C$3="様式34-1_1年度目",IF('様式34-1_1年度目'!BG10="","",VALUE(TEXT('様式34-1_1年度目'!BG10,"yyyymmdd"))),IF($C$3="様式34-1_2年度目",IF('様式34-1_2年度目'!BG10="","",VALUE(TEXT('様式34-1_2年度目'!BG10,"yyyymmdd"))),"")) ->  | NY18: =IF($C$3="様式34-1_1年度目",IF('様式34-1_1年度目'!BI10="","",VALUE(TEXT('様式34-1_1年度目'!BI10,"yyyymmdd"))),IF($C$3="様式34-1_2年度目",IF('様式34-1_2年度目'!BI10="","",VALUE(TEXT('様式34-1_2年度目'!BI10,"yyyymmdd"))),"")) ->  | NZ18: =IF($C$3="様式34-1_1年度目",IF('様式34-1_1年度目'!BJ10="","",VALUE(TEXT('様式34-1_1年度目'!BJ10,"yyyymmdd"))),IF($C$3="様式34-1_2年度目",IF('様式34-1_2年度目'!BJ10="","",VALUE(TEXT('様式34-1_2年度目'!BJ10,"yyyymmdd"))),"")) -> 
H19: =+IF(OR(H$5=$NO18,H$5=$NQ18,H$5=$NS18,H$5=$NU18,H$5=$NW18,H$5=$NY18),1,IF(OR(AND($NO18<H$5,H$5<$NP18),AND($NQ18<H$5,H$5<$NR18),AND($NS18<H$5,H$5<$NT18),AND($NU18<H$5,H$5<$NV18),AND($NW18<H$5,H$5<$NX18),AND($NY18<H$5,H$5<$NZ18)),2,IF(OR(H$5=$NP18,H$5=$NR18,H$5=$NT18,H$5=$NV18,H$5=$NX18,H$5=$NZ18),3,""))) ->  | BT19: =+IF(OR(BT$5=$NO18,BT$5=$NQ18,BT$5=$NS18,BT$5=$NU18,BT$5=$NW18,BT$5=$NY18),1,IF(OR(AND($NO18<BT$5,BT$5<$NP18),AND($NQ18<BT$5,BT$5<$NR18),AND($NS18<BT$5,BT$5<$NT18),AND($NU18<BT$5,BT$5<$NV18),AND($NW18<BT$5,BT$5<$NX18),AND($NY18<BT$5,BT$5<$NZ18)),2,IF(OR(BT$5=$NP18,BT$5=$NR18,BT$5=$NT18,BT$5=$NV18,BT$5=$NX18,BT$5=$NZ18),3,""))) ->  | EF19: =+IF(OR(EF$5=$NO18,EF$5=$NQ18,EF$5=$NS18,EF$5=$NU18,EF$5=$NW18,EF$5=$NY18),1,IF(OR(AND($NO18<EF$5,EF$5<$NP18),AND($NQ18<EF$5,EF$5<$NR18),AND($NS18<EF$5,EF$5<$NT18),AND($NU18<EF$5,EF$5<$NV18),AND($NW18<EF$5,EF$5<$NX18),AND($NY18<EF$5,EF$5<$NZ18)),2,IF(OR(EF$5=$NP18,EF$5=$NR18,EF$5=$NT18,EF$5=$NV18,EF$5=$NX18,EF$5=$NZ18),3,""))) ->  | GR19: =+IF(OR(GR$5=$NO18,GR$5=$NQ18,GR$5=$NS18,GR$5=$NU18,GR$5=$NW18,GR$5=$NY18),1,IF(OR(AND($NO18<GR$5,GR$5<$NP18),AND($NQ18<GR$5,GR$5<$NR18),AND($NS18<GR$5,GR$5<$NT18),AND($NU18<GR$5,GR$5<$NV18),AND($NW18<GR$5,GR$5<$NX18),AND($NY18<GR$5,GR$5<$NZ18)),2,IF(OR(GR$5=$NP18,GR$5=$NR18,GR$5=$NT18,GR$5=$NV18,GR$5=$NX18,GR$5=$NZ18),3,""))) ->  | JD19: =+IF(OR(JD$5=$NO18,JD$5=$NQ18,JD$5=$NS18,JD$5=$NU18,JD$5=$NW18,JD$5=$NY18),1,IF(OR(AND($NO18<JD$5,JD$5<$NP18),AND($NQ18<JD$5,JD$5<$NR18),AND($NS18<JD$5,JD$5<$NT18),AND($NU18<JD$5,JD$5<$NV18),AND($NW18<JD$5,JD$5<$NX18),AND($NY18<JD$5,JD$5<$NZ18)),2,IF(OR(JD$5=$NP18,JD$5=$NR18,JD$5=$NT18,JD$5=$NV18,JD$5=$NX18,JD$5=$NZ18),3,""))) ->  | LP19: =+IF(OR(LP$5=$NO18,LP$5=$NQ18,LP$5=$NS18,LP$5=$NU18,LP$5=$NW18,LP$5=$NY18),1,IF(OR(AND($NO18<LP$5,LP$5<$NP18),AND($NQ18<LP$5,LP$5<$NR18),AND($NS18<LP$5,LP$5<$NT18),AND($NU18<LP$5,LP$5<$NV18),AND($NW18<LP$5,LP$5<$NX18),AND($NY18<LP$5,LP$5<$NZ18)),2,IF(OR(LP$5=$NP18,LP$5=$NR18,LP$5=$NT18,LP$5=$NV18,LP$5=$NX18,LP$5=$NZ18),3,""))) -> 
H20: =IF(AND($NO18<>"",$NO18<$H$5),MID($NO18,5,2)&"/"&RIGHT($NO18,2)&"～"&MID($NP18,5,2)&"/"&RIGHT($NP18,2),IF(LEFT($NO18,6)=LEFT(H$5,6),MID($NO18,5,2)&"/"&RIGHT($NO18,2)&"～"&MID($NP18,5,2)&"/"&RIGHT($NP18,2),IF(LEFT($NQ18,6)=LEFT(H$5,6),MID($NQ18,5,2)&"/"&RIGHT($NQ18,2)&"～"&MID($NR18,5,2)&"/"&RIGHT($NR18,2),IF(LEFT($NS18,6)=LEFT(H$5,6),MID($NS18,5,2)&"/"&RIGHT($NS18,2)&"～"&MID($NT18,5,2)&"/"&RIGHT($NT18,2),IF(LEFT($NU18,6)=LEFT(H$5,6),MID($NU18,5,2)&"/"&RIGHT($NU18,2)&"～"&MID($NV18,5,2)&"/"&RIGHT($NV18,2),IF(LEFT($NW18,6)=LEFT(H$5,6),MID($NW18,5,2)&"/"&RIGHT($NW18,2)&"～"&MID($NX18,5,2)&"/"&RIGHT($NX18,2),IF(LEFT($NY18,6)=LEFT(H$5,6),MID($NY18,5,2)&"/"&RIGHT($NY18,2)&"～"&MID($NZ18,5,2)&"/"&RIGHT($NZ18,2),""))))))) ->  | AL20: =IF(LEFT($NO18,6)=LEFT(AL$5,6),MID($NO18,5,2)&"/"&RIGHT($NO18,2)&"～"&MID($NP18,5,2)&"/"&RIGHT($NP18,2),IF(LEFT($NQ18,6)=LEFT(AL$5,6),MID($NQ18,5,2)&"/"&RIGHT($NQ18,2)&"～"&MID($NR18,5,2)&"/"&RIGHT($NR18,2),IF(LEFT($NS18,6)=LEFT(AL$5,6),MID($NS18,5,2)&"/"&RIGHT($NS18,2)&"～"&MID($NT18,5,2)&"/"&RIGHT($NT18,2),IF(LEFT($NU18,6)=LEFT(AL$5,6),MID($NU18,5,2)&"/"&RIGHT($NU18,2)&"～"&MID($NV18,5,2)&"/"&RIGHT($NV18,2),IF(LEFT($NW18,6)=LEFT(AL$5,6),MID($NW18,5,2)&"/"&RIGHT($NW18,2)&"～"&MID($NX18,5,2)&"/"&RIGHT($NX18,2),IF(LEFT($NY18,6)=LEFT(AL$5,6),MID($NY18,5,2)&"/"&RIGHT($NY18,2)&"～"&MID($NZ18,5,2)&"/"&RIGHT($NZ18,2),"")))))) ->  | BQ20: =IF(LEFT($NO18,6)=LEFT(BQ$5,6),MID($NO18,5,2)&"/"&RIGHT($NO18,2)&"～"&MID($NP18,5,2)&"/"&RIGHT($NP18,2),IF(LEFT($NQ18,6)=LEFT(BQ$5,6),MID($NQ18,5,2)&"/"&RIGHT($NQ18,2)&"～"&MID($NR18,5,2)&"/"&RIGHT($NR18,2),IF(LEFT($NS18,6)=LEFT(BQ$5,6),MID($NS18,5,2)&"/"&RIGHT($NS18,2)&"～"&MID($NT18,5,2)&"/"&RIGHT($NT18,2),IF(LEFT($NU18,6)=LEFT(BQ$5,6),MID($NU18,5,2)&"/"&RIGHT($NU18,2)&"～"&MID($NV18,5,2)&"/"&RIGHT($NV18,2),IF(LEFT($NW18,6)=LEFT(BQ$5,6),MID($NW18,5,2)&"/"&RIGHT($NW18,2)&"～"&MID($NX18,5,2)&"/"&RIGHT($NX18,2),IF(LEFT($NY18,6)=LEFT(BQ$5,6),MID($NY18,5,2)&"/"&RIGHT($NY18,2)&"～"&MID($NZ18,5,2)&"/"&RIGHT($NZ18,2),"")))))) ->  | CU20: =IF(LEFT($NO18,6)=LEFT(CU$5,6),MID($NO18,5,2)&"/"&RIGHT($NO18,2)&"～"&MID($NP18,5,2)&"/"&RIGHT($NP18,2),IF(LEFT($NQ18,6)=LEFT(CU$5,6),MID($NQ18,5,2)&"/"&RIGHT($NQ18,2)&"～"&MID($NR18,5,2)&"/"&RIGHT($NR18,2),IF(LEFT($NS18,6)=LEFT(CU$5,6),MID($NS18,5,2)&"/"&RIGHT($NS18,2)&"～"&MID($NT18,5,2)&"/"&RIGHT($NT18,2),IF(LEFT($NU18,6)=LEFT(CU$5,6),MID($NU18,5,2)&"/"&RIGHT($NU18,2)&"～"&MID($NV18,5,2)&"/"&RIGHT($NV18,2),IF(LEFT($NW18,6)=LEFT(CU$5,6),MID($NW18,5,2)&"/"&RIGHT($NW18,2)&"～"&MID($NX18,5,2)&"/"&RIGHT($NX18,2),IF(LEFT($NY18,6)=LEFT(CU$5,6),MID($NY18,5,2)&"/"&RIGHT($NY18,2)&"～"&MID($NZ18,5,2)&"/"&RIGHT($NZ18,2),"")))))) ->  | DZ20: =IF(LEFT($NO18,6)=LEFT(DZ$5,6),MID($NO18,5,2)&"/"&RIGHT($NO18,2)&"～"&MID($NP18,5,2)&"/"&RIGHT($NP18,2),IF(LEFT($NQ18,6)=LEFT(DZ$5,6),MID($NQ18,5,2)&"/"&RIGHT($NQ18,2)&"～"&MID($NR18,5,2)&"/"&RIGHT($NR18,2),IF(LEFT($NS18,6)=LEFT(DZ$5,6),MID($NS18,5,2)&"/"&RIGHT($NS18,2)&"～"&MID($NT18,5,2)&"/"&RIGHT($NT18,2),IF(LEFT($NU18,6)=LEFT(DZ$5,6),MID($NU18,5,2)&"/"&RIGHT($NU18,2)&"～"&MID($NV18,5,2)&"/"&RIGHT($NV18,2),IF(LEFT($NW18,6)=LEFT(DZ$5,6),MID($NW18,5,2)&"/"&RIGHT($NW18,2)&"～"&MID($NX18,5,2)&"/"&RIGHT($NX18,2),IF(LEFT($NY18,6)=LEFT(DZ$5,6),MID($NY18,5,2)&"/"&RIGHT($NY18,2)&"～"&MID($NZ18,5,2)&"/"&RIGHT($NZ18,2),"")))))) ->  | FE20: =IF(LEFT($NO18,6)=LEFT(FE$5,6),MID($NO18,5,2)&"/"&RIGHT($NO18,2)&"～"&MID($NP18,5,2)&"/"&RIGHT($NP18,2),IF(LEFT($NQ18,6)=LEFT(FE$5,6),MID($NQ18,5,2)&"/"&RIGHT($NQ18,2)&"～"&MID($NR18,5,2)&"/"&RIGHT($NR18,2),IF(LEFT($NS18,6)=LEFT(FE$5,6),MID($NS18,5,2)&"/"&RIGHT($NS18,2)&"～"&MID($NT18,5,2)&"/"&RIGHT($NT18,2),IF(LEFT($NU18,6)=LEFT(FE$5,6),MID($NU18,5,2)&"/"&RIGHT($NU18,2)&"～"&MID($NV18,5,2)&"/"&RIGHT($NV18,2),IF(LEFT($NW18,6)=LEFT(FE$5,6),MID($NW18,5,2)&"/"&RIGHT($NW18,2)&"～"&MID($NX18,5,2)&"/"&RIGHT($NX18,2),IF(LEFT($NY18,6)=LEFT(FE$5,6),MID($NY18,5,2)&"/"&RIGHT($NY18,2)&"～"&MID($NZ18,5,2)&"/"&RIGHT($NZ18,2),"")))))) ->  | GI20: =IF(LEFT($NO18,6)=LEFT(GI$5,6),MID($NO18,5,2)&"/"&RIGHT($NO18,2)&"～"&MID($NP18,5,2)&"/"&RIGHT($NP18,2),IF(LEFT($NQ18,6)=LEFT(GI$5,6),MID($NQ18,5,2)&"/"&RIGHT($NQ18,2)&"～"&MID($NR18,5,2)&"/"&RIGHT($NR18,2),IF(LEFT($NS18,6)=LEFT(GI$5,6),MID($NS18,5,2)&"/"&RIGHT($NS18,2)&"～"&MID($NT18,5,2)&"/"&RIGHT($NT18,2),IF(LEFT($NU18,6)=LEFT(GI$5,6),MID($NU18,5,2)&"/"&RIGHT($NU18,2)&"～"&MID($NV18,5,2)&"/"&RIGHT($NV18,2),IF(LEFT($NW18,6)=LEFT(GI$5,6),MID($NW18,5,2)&"/"&RIGHT($NW18,2)&"～"&MID($NX18,5,2)&"/"&RIGHT($NX18,2),IF(LEFT($NY18,6)=LEFT(GI$5,6),MID($NY18,5,2)&"/"&RIGHT($NY18,2)&"～"&MID($NZ18,5,2)&"/"&RIGHT($NZ18,2),"")))))) ->  | HN20: =IF(LEFT($NO18,6)=LEFT(HN$5,6),MID($NO18,5,2)&"/"&RIGHT($NO18,2)&"～"&MID($NP18,5,2)&"/"&RIGHT($NP18,2),IF(LEFT($NQ18,6)=LEFT(HN$5,6),MID($NQ18,5,2)&"/"&RIGHT($NQ18,2)&"～"&MID($NR18,5,2)&"/"&RIGHT($NR18,2),IF(LEFT($NS18,6)=LEFT(HN$5,6),MID($NS18,5,2)&"/"&RIGHT($NS18,2)&"～"&MID($NT18,5,2)&"/"&RIGHT($NT18,2),IF(LEFT($NU18,6)=LEFT(HN$5,6),MID($NU18,5,2)&"/"&RIGHT($NU18,2)&"～"&MID($NV18,5,2)&"/"&RIGHT($NV18,2),IF(LEFT($NW18,6)=LEFT(HN$5,6),MID($NW18,5,2)&"/"&RIGHT($NW18,2)&"～"&MID($NX18,5,2)&"/"&RIGHT($NX18,2),IF(LEFT($NY18,6)=LEFT(HN$5,6),MID($NY18,5,2)&"/"&RIGHT($NY18,2)&"～"&MID($NZ18,5,2)&"/"&RIGHT($NZ18,2),"")))))) ->  | IR20: =IF(LEFT($NO18,6)=LEFT(IR$5,6),MID($NO18,5,2)&"/"&RIGHT($NO18,2)&"～"&MID($NP18,5,2)&"/"&RIGHT($NP18,2),IF(LEFT($NQ18,6)=LEFT(IR$5,6),MID($NQ18,5,2)&"/"&RIGHT($NQ18,2)&"～"&MID($NR18,5,2)&"/"&RIGHT($NR18,2),IF(LEFT($NS18,6)=LEFT(IR$5,6),MID($NS18,5,2)&"/"&RIGHT($NS18,2)&"～"&MID($NT18,5,2)&"/"&RIGHT($NT18,2),IF(LEFT($NU18,6)=LEFT(IR$5,6),MID($NU18,5,2)&"/"&RIGHT($NU18,2)&"～"&MID($NV18,5,2)&"/"&RIGHT($NV18,2),IF(LEFT($NW18,6)=LEFT(IR$5,6),MID($NW18,5,2)&"/"&RIGHT($NW18,2)&"～"&MID($NX18,5,2)&"/"&RIGHT($NX18,2),IF(LEFT($NY18,6)=LEFT(IR$5,6),MID($NY18,5,2)&"/"&RIGHT($NY18,2)&"～"&MID($NZ18,5,2)&"/"&RIGHT($NZ18,2),"")))))) ->  | JW20: =IF(LEFT($NO18,6)=LEFT(JW$5,6),MID($NO18,5,2)&"/"&RIGHT($NO18,2)&"～"&MID($NP18,5,2)&"/"&RIGHT($NP18,2),IF(LEFT($NQ18,6)=LEFT(JW$5,6),MID($NQ18,5,2)&"/"&RIGHT($NQ18,2)&"～"&MID($NR18,5,2)&"/"&RIGHT($NR18,2),IF(LEFT($NS18,6)=LEFT(JW$5,6),MID($NS18,5,2)&"/"&RIGHT($NS18,2)&"～"&MID($NT18,5,2)&"/"&RIGHT($NT18,2),IF(LEFT($NU18,6)=LEFT(JW$5,6),MID($NU18,5,2)&"/"&RIGHT($NU18,2)&"～"&MID($NV18,5,2)&"/"&RIGHT($NV18,2),IF(LEFT($NW18,6)=LEFT(JW$5,6),MID($NW18,5,2)&"/"&RIGHT($NW18,2)&"～"&MID($NX18,5,2)&"/"&RIGHT($NX18,2),IF(LEFT($NY18,6)=LEFT(JW$5,6),MID($NY18,5,2)&"/"&RIGHT($NY18,2)&"～"&MID($NZ18,5,2)&"/"&RIGHT($NZ18,2),"")))))) ->  | LB20: =IF(LEFT($NO18,6)=LEFT(LB$5,6),MID($NO18,5,2)&"/"&RIGHT($NO18,2)&"～"&MID($NP18,5,2)&"/"&RIGHT($NP18,2),IF(LEFT($NQ18,6)=LEFT(LB$5,6),MID($NQ18,5,2)&"/"&RIGHT($NQ18,2)&"～"&MID($NR18,5,2)&"/"&RIGHT($NR18,2),IF(LEFT($NS18,6)=LEFT(LB$5,6),MID($NS18,5,2)&"/"&RIGHT($NS18,2)&"～"&MID($NT18,5,2)&"/"&RIGHT($NT18,2),IF(LEFT($NU18,6)=LEFT(LB$5,6),MID($NU18,5,2)&"/"&RIGHT($NU18,2)&"～"&MID($NV18,5,2)&"/"&RIGHT($NV18,2),IF(LEFT($NW18,6)=LEFT(LB$5,6),MID($NW18,5,2)&"/"&RIGHT($NW18,2)&"～"&MID($NX18,5,2)&"/"&RIGHT($NX18,2),IF(LEFT($NY18,6)=LEFT(LB$5,6),MID($NY18,5,2)&"/"&RIGHT($NY18,2)&"～"&MID($NZ18,5,2)&"/"&RIGHT($NZ18,2),"")))))) ->  | ME20: =IF(LEFT($NO18,6)=LEFT(ME$5,6),MID($NO18,5,2)&"/"&RIGHT($NO18,2)&"～"&MID($NP18,5,2)&"/"&RIGHT($NP18,2),IF(LEFT($NQ18,6)=LEFT(ME$5,6),MID($NQ18,5,2)&"/"&RIGHT($NQ18,2)&"～"&MID($NR18,5,2)&"/"&RIGHT($NR18,2),IF(LEFT($NS18,6)=LEFT(ME$5,6),MID($NS18,5,2)&"/"&RIGHT($NS18,2)&"～"&MID($NT18,5,2)&"/"&RIGHT($NT18,2),IF(LEFT($NU18,6)=LEFT(ME$5,6),MID($NU18,5,2)&"/"&RIGHT($NU18,2)&"～"&MID($NV18,5,2)&"/"&RIGHT($NV18,2),IF(LEFT($NW18,6)=LEFT(ME$5,6),MID($NW18,5,2)&"/"&RIGHT($NW18,2)&"～"&MID($NX18,5,2)&"/"&RIGHT($NX18,2),IF(LEFT($NY18,6)=LEFT(ME$5,6),MID($NY18,5,2)&"/"&RIGHT($NY18,2)&"～"&MID($NZ18,5,2)&"/"&RIGHT($NZ18,2),"")))))) -> 
C21: =IF($C$3="様式34-1_1年度目",IF('様式34-1_1年度目'!AC11="","",'様式34-1_1年度目'!AC11),IF($C$3="様式34-1_2年度目",IF('様式34-1_2年度目'!AC11="","",'様式34-1_2年度目'!AC11),"")) ->  | F21: =IF($C$3="様式34-1_1年度目",IF('様式34-1_1年度目'!AD11="","",'様式34-1_1年度目'!AD11&" "&'様式34-1_1年度目'!AE11),IF($C$3="様式34-1_2年度目",IF('様式34-1_2年度目'!AD11="","",'様式34-1_2年度目'!AD11&" "&'様式34-1_2年度目'!AE11),"")) ->  | G21: =IF($C$3="様式34-1_1年度目",IF('様式34-1_1年度目'!AF11="","",'様式34-1_1年度目'!AF11),IF($C$3="様式34-1_2年度目",IF('様式34-1_2年度目'!AF11="","",'様式34-1_2年度目'!AF11),"")) ->  | H21: =IF(AND($NO21<>"",$NO21<$H$5),"("&1+DATE(LEFT($NP21,4),MID($NP21,5,2),RIGHT($NP21,2))-DATE(LEFT($NO21,4),MID($NO21,5,2),RIGHT($NO21,2))&")",IF(LEFT($NO21,6)=LEFT(H$5,6),"("&1+DATE(LEFT($NP21,4),MID($NP21,5,2),RIGHT($NP21,2))-DATE(LEFT($NO21,4),MID($NO21,5,2),RIGHT($NO21,2))&")",IF(LEFT($NQ21,6)=LEFT(H$5,6),"("&1+DATE(LEFT($NR21,4),MID($NR21,5,2),RIGHT($NR21,2))-DATE(LEFT($NQ21,4),MID($NQ21,5,2),RIGHT($NQ21,2))&")",IF(LEFT($NS21,6)=LEFT(H$5,6),"("&1+DATE(LEFT($NT21,4),MID($NT21,5,2),RIGHT($NT21,2))-DATE(LEFT($NS21,4),MID($NS21,5,2),RIGHT($NS21,2))&")",IF(LEFT($NU21,6)=LEFT(H$5,6),"("&1+DATE(LEFT($NV21,4),MID($NV21,5,2),RIGHT($NV21,2))-DATE(LEFT($NU21,4),MID($NU21,5,2),RIGHT($NU21,2))&")",IF(LEFT($NW21,6)=LEFT(H$5,6),"("&1+DATE(LEFT($NX21,4),MID($NX21,5,2),RIGHT($NX21,2))-DATE(LEFT($NW21,4),MID($NW21,5,2),RIGHT($NW21,2))&")",IF(LEFT($NY21,6)=LEFT(H$5,6),"("&1+DATE(LEFT($NZ21,4),MID($NZ21,5,2),RIGHT($NZ21,2))-DATE(LEFT($NY21,4),MID($NY21,5,2),RIGHT($NY21,2))&")",""))))))) ->  | AL21: =IF(LEFT($NO21,6)=LEFT(AL$5,6),"("&1+DATE(LEFT($NP21,4),MID($NP21,5,2),RIGHT($NP21,2))-DATE(LEFT($NO21,4),MID($NO21,5,2),RIGHT($NO21,2))&")",IF(LEFT($NQ21,6)=LEFT(AL$5,6),"("&1+DATE(LEFT($NR21,4),MID($NR21,5,2),RIGHT($NR21,2))-DATE(LEFT($NQ21,4),MID($NQ21,5,2),RIGHT($NQ21,2))&")",IF(LEFT($NS21,6)=LEFT(AL$5,6),"("&1+DATE(LEFT($NT21,4),MID($NT21,5,2),RIGHT($NT21,2))-DATE(LEFT($NS21,4),MID($NS21,5,2),RIGHT($NS21,2))&")",IF(LEFT($NU21,6)=LEFT(AL$5,6),"("&1+DATE(LEFT($NV21,4),MID($NV21,5,2),RIGHT($NV21,2))-DATE(LEFT($NU21,4),MID($NU21,5,2),RIGHT($NU21,2))&")",IF(LEFT($NW21,6)=LEFT(AL$5,6),"("&1+DATE(LEFT($NX21,4),MID($NX21,5,2),RIGHT($NX21,2))-DATE(LEFT($NW21,4),MID($NW21,5,2),RIGHT($NW21,2))&")",IF(LEFT($NY21,6)=LEFT(AL$5,6),"("&1+DATE(LEFT($NZ21,4),MID($NZ21,5,2),RIGHT($NZ21,2))-DATE(LEFT($NY21,4),MID($NY21,5,2),RIGHT($NY21,2))&")","")))))) ->  | BQ21: =IF(LEFT($NO21,6)=LEFT(BQ$5,6),"("&1+DATE(LEFT($NP21,4),MID($NP21,5,2),RIGHT($NP21,2))-DATE(LEFT($NO21,4),MID($NO21,5,2),RIGHT($NO21,2))&")",IF(LEFT($NQ21,6)=LEFT(BQ$5,6),"("&1+DATE(LEFT($NR21,4),MID($NR21,5,2),RIGHT($NR21,2))-DATE(LEFT($NQ21,4),MID($NQ21,5,2),RIGHT($NQ21,2))&")",IF(LEFT($NS21,6)=LEFT(BQ$5,6),"("&1+DATE(LEFT($NT21,4),MID($NT21,5,2),RIGHT($NT21,2))-DATE(LEFT($NS21,4),MID($NS21,5,2),RIGHT($NS21,2))&")",IF(LEFT($NU21,6)=LEFT(BQ$5,6),"("&1+DATE(LEFT($NV21,4),MID($NV21,5,2),RIGHT($NV21,2))-DATE(LEFT($NU21,4),MID($NU21,5,2),RIGHT($NU21,2))&")",IF(LEFT($NW21,6)=LEFT(BQ$5,6),"("&1+DATE(LEFT($NX21,4),MID($NX21,5,2),RIGHT($NX21,2))-DATE(LEFT($NW21,4),MID($NW21,5,2),RIGHT($NW21,2))&")",IF(LEFT($NY21,6)=LEFT(BQ$5,6),"("&1+DATE(LEFT($NZ21,4),MID($NZ21,5,2),RIGHT($NZ21,2))-DATE(LEFT($NY21,4),MID($NY21,5,2),RIGHT($NY21,2))&")","")))))) ->  | CU21: =IF(LEFT($NO21,6)=LEFT(CU$5,6),"("&1+DATE(LEFT($NP21,4),MID($NP21,5,2),RIGHT($NP21,2))-DATE(LEFT($NO21,4),MID($NO21,5,2),RIGHT($NO21,2))&")",IF(LEFT($NQ21,6)=LEFT(CU$5,6),"("&1+DATE(LEFT($NR21,4),MID($NR21,5,2),RIGHT($NR21,2))-DATE(LEFT($NQ21,4),MID($NQ21,5,2),RIGHT($NQ21,2))&")",IF(LEFT($NS21,6)=LEFT(CU$5,6),"("&1+DATE(LEFT($NT21,4),MID($NT21,5,2),RIGHT($NT21,2))-DATE(LEFT($NS21,4),MID($NS21,5,2),RIGHT($NS21,2))&")",IF(LEFT($NU21,6)=LEFT(CU$5,6),"("&1+DATE(LEFT($NV21,4),MID($NV21,5,2),RIGHT($NV21,2))-DATE(LEFT($NU21,4),MID($NU21,5,2),RIGHT($NU21,2))&")",IF(LEFT($NW21,6)=LEFT(CU$5,6),"("&1+DATE(LEFT($NX21,4),MID($NX21,5,2),RIGHT($NX21,2))-DATE(LEFT($NW21,4),MID($NW21,5,2),RIGHT($NW21,2))&")",IF(LEFT($NY21,6)=LEFT(CU$5,6),"("&1+DATE(LEFT($NZ21,4),MID($NZ21,5,2),RIGHT($NZ21,2))-DATE(LEFT($NY21,4),MID($NY21,5,2),RIGHT($NY21,2))&")","")))))) ->  | DZ21: =IF(LEFT($NO21,6)=LEFT(DZ$5,6),"("&1+DATE(LEFT($NP21,4),MID($NP21,5,2),RIGHT($NP21,2))-DATE(LEFT($NO21,4),MID($NO21,5,2),RIGHT($NO21,2))&")",IF(LEFT($NQ21,6)=LEFT(DZ$5,6),"("&1+DATE(LEFT($NR21,4),MID($NR21,5,2),RIGHT($NR21,2))-DATE(LEFT($NQ21,4),MID($NQ21,5,2),RIGHT($NQ21,2))&")",IF(LEFT($NS21,6)=LEFT(DZ$5,6),"("&1+DATE(LEFT($NT21,4),MID($NT21,5,2),RIGHT($NT21,2))-DATE(LEFT($NS21,4),MID($NS21,5,2),RIGHT($NS21,2))&")",IF(LEFT($NU21,6)=LEFT(DZ$5,6),"("&1+DATE(LEFT($NV21,4),MID($NV21,5,2),RIGHT($NV21,2))-DATE(LEFT($NU21,4),MID($NU21,5,2),RIGHT($NU21,2))&")",IF(LEFT($NW21,6)=LEFT(DZ$5,6),"("&1+DATE(LEFT($NX21,4),MID($NX21,5,2),RIGHT($NX21,2))-DATE(LEFT($NW21,4),MID($NW21,5,2),RIGHT($NW21,2))&")",IF(LEFT($NY21,6)=LEFT(DZ$5,6),"("&1+DATE(LEFT($NZ21,4),MID($NZ21,5,2),RIGHT($NZ21,2))-DATE(LEFT($NY21,4),MID($NY21,5,2),RIGHT($NY21,2))&")","")))))) ->  | FE21: =IF(LEFT($NO21,6)=LEFT(FE$5,6),"("&1+DATE(LEFT($NP21,4),MID($NP21,5,2),RIGHT($NP21,2))-DATE(LEFT($NO21,4),MID($NO21,5,2),RIGHT($NO21,2))&")",IF(LEFT($NQ21,6)=LEFT(FE$5,6),"("&1+DATE(LEFT($NR21,4),MID($NR21,5,2),RIGHT($NR21,2))-DATE(LEFT($NQ21,4),MID($NQ21,5,2),RIGHT($NQ21,2))&")",IF(LEFT($NS21,6)=LEFT(FE$5,6),"("&1+DATE(LEFT($NT21,4),MID($NT21,5,2),RIGHT($NT21,2))-DATE(LEFT($NS21,4),MID($NS21,5,2),RIGHT($NS21,2))&")",IF(LEFT($NU21,6)=LEFT(FE$5,6),"("&1+DATE(LEFT($NV21,4),MID($NV21,5,2),RIGHT($NV21,2))-DATE(LEFT($NU21,4),MID($NU21,5,2),RIGHT($NU21,2))&")",IF(LEFT($NW21,6)=LEFT(FE$5,6),"("&1+DATE(LEFT($NX21,4),MID($NX21,5,2),RIGHT($NX21,2))-DATE(LEFT($NW21,4),MID($NW21,5,2),RIGHT($NW21,2))&")",IF(LEFT($NY21,6)=LEFT(FE$5,6),"("&1+DATE(LEFT($NZ21,4),MID($NZ21,5,2),RIGHT($NZ21,2))-DATE(LEFT($NY21,4),MID($NY21,5,2),RIGHT($NY21,2))&")","")))))) ->  | GI21: =IF(LEFT($NO21,6)=LEFT(GI$5,6),"("&1+DATE(LEFT($NP21,4),MID($NP21,5,2),RIGHT($NP21,2))-DATE(LEFT($NO21,4),MID($NO21,5,2),RIGHT($NO21,2))&")",IF(LEFT($NQ21,6)=LEFT(GI$5,6),"("&1+DATE(LEFT($NR21,4),MID($NR21,5,2),RIGHT($NR21,2))-DATE(LEFT($NQ21,4),MID($NQ21,5,2),RIGHT($NQ21,2))&")",IF(LEFT($NS21,6)=LEFT(GI$5,6),"("&1+DATE(LEFT($NT21,4),MID($NT21,5,2),RIGHT($NT21,2))-DATE(LEFT($NS21,4),MID($NS21,5,2),RIGHT($NS21,2))&")",IF(LEFT($NU21,6)=LEFT(GI$5,6),"("&1+DATE(LEFT($NV21,4),MID($NV21,5,2),RIGHT($NV21,2))-DATE(LEFT($NU21,4),MID($NU21,5,2),RIGHT($NU21,2))&")",IF(LEFT($NW21,6)=LEFT(GI$5,6),"("&1+DATE(LEFT($NX21,4),MID($NX21,5,2),RIGHT($NX21,2))-DATE(LEFT($NW21,4),MID($NW21,5,2),RIGHT($NW21,2))&")",IF(LEFT($NY21,6)=LEFT(GI$5,6),"("&1+DATE(LEFT($NZ21,4),MID($NZ21,5,2),RIGHT($NZ21,2))-DATE(LEFT($NY21,4),MID($NY21,5,2),RIGHT($NY21,2))&")","")))))) ->  | HN21: =IF(LEFT($NO21,6)=LEFT(HN$5,6),"("&1+DATE(LEFT($NP21,4),MID($NP21,5,2),RIGHT($NP21,2))-DATE(LEFT($NO21,4),MID($NO21,5,2),RIGHT($NO21,2))&")",IF(LEFT($NQ21,6)=LEFT(HN$5,6),"("&1+DATE(LEFT($NR21,4),MID($NR21,5,2),RIGHT($NR21,2))-DATE(LEFT($NQ21,4),MID($NQ21,5,2),RIGHT($NQ21,2))&")",IF(LEFT($NS21,6)=LEFT(HN$5,6),"("&1+DATE(LEFT($NT21,4),MID($NT21,5,2),RIGHT($NT21,2))-DATE(LEFT($NS21,4),MID($NS21,5,2),RIGHT($NS21,2))&")",IF(LEFT($NU21,6)=LEFT(HN$5,6),"("&1+DATE(LEFT($NV21,4),MID($NV21,5,2),RIGHT($NV21,2))-DATE(LEFT($NU21,4),MID($NU21,5,2),RIGHT($NU21,2))&")",IF(LEFT($NW21,6)=LEFT(HN$5,6),"("&1+DATE(LEFT($NX21,4),MID($NX21,5,2),RIGHT($NX21,2))-DATE(LEFT($NW21,4),MID($NW21,5,2),RIGHT($NW21,2))&")",IF(LEFT($NY21,6)=LEFT(HN$5,6),"("&1+DATE(LEFT($NZ21,4),MID($NZ21,5,2),RIGHT($NZ21,2))-DATE(LEFT($NY21,4),MID($NY21,5,2),RIGHT($NY21,2))&")","")))))) ->  | IR21: =IF(LEFT($NO21,6)=LEFT(IR$5,6),"("&1+DATE(LEFT($NP21,4),MID($NP21,5,2),RIGHT($NP21,2))-DATE(LEFT($NO21,4),MID($NO21,5,2),RIGHT($NO21,2))&")",IF(LEFT($NQ21,6)=LEFT(IR$5,6),"("&1+DATE(LEFT($NR21,4),MID($NR21,5,2),RIGHT($NR21,2))-DATE(LEFT($NQ21,4),MID($NQ21,5,2),RIGHT($NQ21,2))&")",IF(LEFT($NS21,6)=LEFT(IR$5,6),"("&1+DATE(LEFT($NT21,4),MID($NT21,5,2),RIGHT($NT21,2))-DATE(LEFT($NS21,4),MID($NS21,5,2),RIGHT($NS21,2))&")",IF(LEFT($NU21,6)=LEFT(IR$5,6),"("&1+DATE(LEFT($NV21,4),MID($NV21,5,2),RIGHT($NV21,2))-DATE(LEFT($NU21,4),MID($NU21,5,2),RIGHT($NU21,2))&")",IF(LEFT($NW21,6)=LEFT(IR$5,6),"("&1+DATE(LEFT($NX21,4),MID($NX21,5,2),RIGHT($NX21,2))-DATE(LEFT($NW21,4),MID($NW21,5,2),RIGHT($NW21,2))&")",IF(LEFT($NY21,6)=LEFT(IR$5,6),"("&1+DATE(LEFT($NZ21,4),MID($NZ21,5,2),RIGHT($NZ21,2))-DATE(LEFT($NY21,4),MID($NY21,5,2),RIGHT($NY21,2))&")","")))))) ->  | JW21: =IF(LEFT($NO21,6)=LEFT(JW$5,6),"("&1+DATE(LEFT($NP21,4),MID($NP21,5,2),RIGHT($NP21,2))-DATE(LEFT($NO21,4),MID($NO21,5,2),RIGHT($NO21,2))&")",IF(LEFT($NQ21,6)=LEFT(JW$5,6),"("&1+DATE(LEFT($NR21,4),MID($NR21,5,2),RIGHT($NR21,2))-DATE(LEFT($NQ21,4),MID($NQ21,5,2),RIGHT($NQ21,2))&")",IF(LEFT($NS21,6)=LEFT(JW$5,6),"("&1+DATE(LEFT($NT21,4),MID($NT21,5,2),RIGHT($NT21,2))-DATE(LEFT($NS21,4),MID($NS21,5,2),RIGHT($NS21,2))&")",IF(LEFT($NU21,6)=LEFT(JW$5,6),"("&1+DATE(LEFT($NV21,4),MID($NV21,5,2),RIGHT($NV21,2))-DATE(LEFT($NU21,4),MID($NU21,5,2),RIGHT($NU21,2))&")",IF(LEFT($NW21,6)=LEFT(JW$5,6),"("&1+DATE(LEFT($NX21,4),MID($NX21,5,2),RIGHT($NX21,2))-DATE(LEFT($NW21,4),MID($NW21,5,2),RIGHT($NW21,2))&")",IF(LEFT($NY21,6)=LEFT(JW$5,6),"("&1+DATE(LEFT($NZ21,4),MID($NZ21,5,2),RIGHT($NZ21,2))-DATE(LEFT($NY21,4),MID($NY21,5,2),RIGHT($NY21,2))&")","")))))) ->  | LB21: =IF(LEFT($NO21,6)=LEFT(LB$5,6),"("&1+DATE(LEFT($NP21,4),MID($NP21,5,2),RIGHT($NP21,2))-DATE(LEFT($NO21,4),MID($NO21,5,2),RIGHT($NO21,2))&")",IF(LEFT($NQ21,6)=LEFT(LB$5,6),"("&1+DATE(LEFT($NR21,4),MID($NR21,5,2),RIGHT($NR21,2))-DATE(LEFT($NQ21,4),MID($NQ21,5,2),RIGHT($NQ21,2))&")",IF(LEFT($NS21,6)=LEFT(LB$5,6),"("&1+DATE(LEFT($NT21,4),MID($NT21,5,2),RIGHT($NT21,2))-DATE(LEFT($NS21,4),MID($NS21,5,2),RIGHT($NS21,2))&")",IF(LEFT($NU21,6)=LEFT(LB$5,6),"("&1+DATE(LEFT($NV21,4),MID($NV21,5,2),RIGHT($NV21,2))-DATE(LEFT($NU21,4),MID($NU21,5,2),RIGHT($NU21,2))&")",IF(LEFT($NW21,6)=LEFT(LB$5,6),"("&1+DATE(LEFT($NX21,4),MID($NX21,5,2),RIGHT($NX21,2))-DATE(LEFT($NW21,4),MID($NW21,5,2),RIGHT($NW21,2))&")",IF(LEFT($NY21,6)=LEFT(LB$5,6),"("&1+DATE(LEFT($NZ21,4),MID($NZ21,5,2),RIGHT($NZ21,2))-DATE(LEFT($NY21,4),MID($NY21,5,2),RIGHT($NY21,2))&")","")))))) ->  | ME21: =IF(LEFT($NO21,6)=LEFT(ME$5,6),"("&1+DATE(LEFT($NP21,4),MID($NP21,5,2),RIGHT($NP21,2))-DATE(LEFT($NO21,4),MID($NO21,5,2),RIGHT($NO21,2))&")",IF(LEFT($NQ21,6)=LEFT(ME$5,6),"("&1+DATE(LEFT($NR21,4),MID($NR21,5,2),RIGHT($NR21,2))-DATE(LEFT($NQ21,4),MID($NQ21,5,2),RIGHT($NQ21,2))&")",IF(LEFT($NS21,6)=LEFT(ME$5,6),"("&1+DATE(LEFT($NT21,4),MID($NT21,5,2),RIGHT($NT21,2))-DATE(LEFT($NS21,4),MID($NS21,5,2),RIGHT($NS21,2))&")",IF(LEFT($NU21,6)=LEFT(ME$5,6),"("&1+DATE(LEFT($NV21,4),MID($NV21,5,2),RIGHT($NV21,2))-DATE(LEFT($NU21,4),MID($NU21,5,2),RIGHT($NU21,2))&")",IF(LEFT($NW21,6)=LEFT(ME$5,6),"("&1+DATE(LEFT($NX21,4),MID($NX21,5,2),RIGHT($NX21,2))-DATE(LEFT($NW21,4),MID($NW21,5,2),RIGHT($NW21,2))&")",IF(LEFT($NY21,6)=LEFT(ME$5,6),"("&1+DATE(LEFT($NZ21,4),MID($NZ21,5,2),RIGHT($NZ21,2))-DATE(LEFT($NY21,4),MID($NY21,5,2),RIGHT($NY21,2))&")","")))))) ->  | NK21: =IF($C$3="様式34-1_1年度目",IF('様式34-1_1年度目'!AS11="","",'様式34-1_1年度目'!AS11),IF($C$3="様式34-1_2年度目",IF('様式34-1_2年度目'!AS11="","",'様式34-1_2年度目'!AS11),"")) ->  | NM21: 4 | NN21: 補修期間→ | NO21: =IF($C$3="様式34-1_1年度目",IF('様式34-1_1年度目'!AT11="","",VALUE(TEXT('様式34-1_1年度目'!AT11,"yyyymmdd"))),IF($C$3="様式34-1_2年度目",IF('様式34-1_2年度目'!AT11="","",VALUE(TEXT('様式34-1_2年度目'!AT11,"yyyymmdd"))),"")) ->  | NP21: =IF($C$3="様式34-1_1年度目",IF('様式34-1_1年度目'!AU11="","",VALUE(TEXT('様式34-1_1年度目'!AU11,"yyyymmdd"))),IF($C$3="様式34-1_2年度目",IF('様式34-1_2年度目'!AU11="","",VALUE(TEXT('様式34-1_2年度目'!AU11,"yyyymmdd"))),"")) ->  | NQ21: =IF($C$3="様式34-1_1年度目",IF('様式34-1_1年度目'!AW11="","",VALUE(TEXT('様式34-1_1年度目'!AW11,"yyyymmdd"))),IF($C$3="様式34-1_2年度目",IF('様式34-1_2年度目'!AW11="","",VALUE(TEXT('様式34-1_2年度目'!AW11,"yyyymmdd"))),"")) ->  | NR21: =IF($C$3="様式34-1_1年度目",IF('様式34-1_1年度目'!AX11="","",VALUE(TEXT('様式34-1_1年度目'!AX11,"yyyymmdd"))),IF($C$3="様式34-1_2年度目",IF('様式34-1_2年度目'!AX11="","",VALUE(TEXT('様式34-1_2年度目'!AX11,"yyyymmdd"))),"")) ->  | NS21: =IF($C$3="様式34-1_1年度目",IF('様式34-1_1年度目'!AZ11="","",VALUE(TEXT('様式34-1_1年度目'!AZ11,"yyyymmdd"))),IF($C$3="様式34-1_2年度目",IF('様式34-1_2年度目'!AZ11="","",VALUE(TEXT('様式34-1_2年度目'!AZ11,"yyyymmdd"))),"")) ->  | NT21: =IF($C$3="様式34-1_1年度目",IF('様式34-1_1年度目'!BA11="","",VALUE(TEXT('様式34-1_1年度目'!BA11,"yyyymmdd"))),IF($C$3="様式34-1_2年度目",IF('様式34-1_2年度目'!BA11="","",VALUE(TEXT('様式34-1_2年度目'!BA11,"yyyymmdd"))),"")) ->  | NU21: =IF($C$3="様式34-1_1年度目",IF('様式34-1_1年度目'!BC11="","",VALUE(TEXT('様式34-1_1年度目'!BC11,"yyyymmdd"))),IF($C$3="様式34-1_2年度目",IF('様式34-1_2年度目'!BC11="","",VALUE(TEXT('様式34-1_2年度目'!BC11,"yyyymmdd"))),"")) ->  | NV21: =IF($C$3="様式34-1_1年度目",IF('様式34-1_1年度目'!BD11="","",VALUE(TEXT('様式34-1_1年度目'!BD11,"yyyymmdd"))),IF($C$3="様式34-1_2年度目",IF('様式34-1_2年度目'!BD11="","",VALUE(TEXT('様式34-1_2年度目'!BD11,"yyyymmdd"))),"")) ->  | NW21: =IF($C$3="様式34-1_1年度目",IF('様式34-1_1年度目'!BF11="","",VALUE(TEXT('様式34-1_1年度目'!BF11,"yyyymmdd"))),IF($C$3="様式34-1_2年度目",IF('様式34-1_2年度目'!BF11="","",VALUE(TEXT('様式34-1_2年度目'!BF11,"yyyymmdd"))),"")) ->  | NX21: =IF($C$3="様式34-1_1年度目",IF('様式34-1_1年度目'!BG11="","",VALUE(TEXT('様式34-1_1年度目'!BG11,"yyyymmdd"))),IF($C$3="様式34-1_2年度目",IF('様式34-1_2年度目'!BG11="","",VALUE(TEXT('様式34-1_2年度目'!BG11,"yyyymmdd"))),"")) ->  | NY21: =IF($C$3="様式34-1_1年度目",IF('様式34-1_1年度目'!BI11="","",VALUE(TEXT('様式34-1_1年度目'!BI11,"yyyymmdd"))),IF($C$3="様式34-1_2年度目",IF('様式34-1_2年度目'!BI11="","",VALUE(TEXT('様式34-1_2年度目'!BI11,"yyyymmdd"))),"")) ->  | NZ21: =IF($C$3="様式34-1_1年度目",IF('様式34-1_1年度目'!BJ11="","",VALUE(TEXT('様式34-1_1年度目'!BJ11,"yyyymmdd"))),IF($C$3="様式34-1_2年度目",IF('様式34-1_2年度目'!BJ11="","",VALUE(TEXT('様式34-1_2年度目'!BJ11,"yyyymmdd"))),"")) -> 
H22: =+IF(OR(H$5=$NO21,H$5=$NQ21,H$5=$NS21,H$5=$NU21,H$5=$NW21,H$5=$NY21),1,IF(OR(AND($NO21<H$5,H$5<$NP21),AND($NQ21<H$5,H$5<$NR21),AND($NS21<H$5,H$5<$NT21),AND($NU21<H$5,H$5<$NV21),AND($NW21<H$5,H$5<$NX21),AND($NY21<H$5,H$5<$NZ21)),2,IF(OR(H$5=$NP21,H$5=$NR21,H$5=$NT21,H$5=$NV21,H$5=$NX21,H$5=$NZ21),3,""))) ->  | BT22: =+IF(OR(BT$5=$NO21,BT$5=$NQ21,BT$5=$NS21,BT$5=$NU21,BT$5=$NW21,BT$5=$NY21),1,IF(OR(AND($NO21<BT$5,BT$5<$NP21),AND($NQ21<BT$5,BT$5<$NR21),AND($NS21<BT$5,BT$5<$NT21),AND($NU21<BT$5,BT$5<$NV21),AND($NW21<BT$5,BT$5<$NX21),AND($NY21<BT$5,BT$5<$NZ21)),2,IF(OR(BT$5=$NP21,BT$5=$NR21,BT$5=$NT21,BT$5=$NV21,BT$5=$NX21,BT$5=$NZ21),3,""))) ->  | EF22: =+IF(OR(EF$5=$NO21,EF$5=$NQ21,EF$5=$NS21,EF$5=$NU21,EF$5=$NW21,EF$5=$NY21),1,IF(OR(AND($NO21<EF$5,EF$5<$NP21),AND($NQ21<EF$5,EF$5<$NR21),AND($NS21<EF$5,EF$5<$NT21),AND($NU21<EF$5,EF$5<$NV21),AND($NW21<EF$5,EF$5<$NX21),AND($NY21<EF$5,EF$5<$NZ21)),2,IF(OR(EF$5=$NP21,EF$5=$NR21,EF$5=$NT21,EF$5=$NV21,EF$5=$NX21,EF$5=$NZ21),3,""))) ->  | GR22: =+IF(OR(GR$5=$NO21,GR$5=$NQ21,GR$5=$NS21,GR$5=$NU21,GR$5=$NW21,GR$5=$NY21),1,IF(OR(AND($NO21<GR$5,GR$5<$NP21),AND($NQ21<GR$5,GR$5<$NR21),AND($NS21<GR$5,GR$5<$NT21),AND($NU21<GR$5,GR$5<$NV21),AND($NW21<GR$5,GR$5<$NX21),AND($NY21<GR$5,GR$5<$NZ21)),2,IF(OR(GR$5=$NP21,GR$5=$NR21,GR$5=$NT21,GR$5=$NV21,GR$5=$NX21,GR$5=$NZ21),3,""))) ->  | JD22: =+IF(OR(JD$5=$NO21,JD$5=$NQ21,JD$5=$NS21,JD$5=$NU21,JD$5=$NW21,JD$5=$NY21),1,IF(OR(AND($NO21<JD$5,JD$5<$NP21),AND($NQ21<JD$5,JD$5<$NR21),AND($NS21<JD$5,JD$5<$NT21),AND($NU21<JD$5,JD$5<$NV21),AND($NW21<JD$5,JD$5<$NX21),AND($NY21<JD$5,JD$5<$NZ21)),2,IF(OR(JD$5=$NP21,JD$5=$NR21,JD$5=$NT21,JD$5=$NV21,JD$5=$NX21,JD$5=$NZ21),3,""))) ->  | LP22: =+IF(OR(LP$5=$NO21,LP$5=$NQ21,LP$5=$NS21,LP$5=$NU21,LP$5=$NW21,LP$5=$NY21),1,IF(OR(AND($NO21<LP$5,LP$5<$NP21),AND($NQ21<LP$5,LP$5<$NR21),AND($NS21<LP$5,LP$5<$NT21),AND($NU21<LP$5,LP$5<$NV21),AND($NW21<LP$5,LP$5<$NX21),AND($NY21<LP$5,LP$5<$NZ21)),2,IF(OR(LP$5=$NP21,LP$5=$NR21,LP$5=$NT21,LP$5=$NV21,LP$5=$NX21,LP$5=$NZ21),3,""))) -> 
H23: =IF(AND($NO21<>"",$NO21<$H$5),MID($NO21,5,2)&"/"&RIGHT($NO21,2)&"～"&MID($NP21,5,2)&"/"&RIGHT($NP21,2),IF(LEFT($NO21,6)=LEFT(H$5,6),MID($NO21,5,2)&"/"&RIGHT($NO21,2)&"～"&MID($NP21,5,2)&"/"&RIGHT($NP21,2),IF(LEFT($NQ21,6)=LEFT(H$5,6),MID($NQ21,5,2)&"/"&RIGHT($NQ21,2)&"～"&MID($NR21,5,2)&"/"&RIGHT($NR21,2),IF(LEFT($NS21,6)=LEFT(H$5,6),MID($NS21,5,2)&"/"&RIGHT($NS21,2)&"～"&MID($NT21,5,2)&"/"&RIGHT($NT21,2),IF(LEFT($NU21,6)=LEFT(H$5,6),MID($NU21,5,2)&"/"&RIGHT($NU21,2)&"～"&MID($NV21,5,2)&"/"&RIGHT($NV21,2),IF(LEFT($NW21,6)=LEFT(H$5,6),MID($NW21,5,2)&"/"&RIGHT($NW21,2)&"～"&MID($NX21,5,2)&"/"&RIGHT($NX21,2),IF(LEFT($NY21,6)=LEFT(H$5,6),MID($NY21,5,2)&"/"&RIGHT($NY21,2)&"～"&MID($NZ21,5,2)&"/"&RIGHT($NZ21,2),""))))))) ->  | AL23: =IF(LEFT($NO21,6)=LEFT(AL$5,6),MID($NO21,5,2)&"/"&RIGHT($NO21,2)&"～"&MID($NP21,5,2)&"/"&RIGHT($NP21,2),IF(LEFT($NQ21,6)=LEFT(AL$5,6),MID($NQ21,5,2)&"/"&RIGHT($NQ21,2)&"～"&MID($NR21,5,2)&"/"&RIGHT($NR21,2),IF(LEFT($NS21,6)=LEFT(AL$5,6),MID($NS21,5,2)&"/"&RIGHT($NS21,2)&"～"&MID($NT21,5,2)&"/"&RIGHT($NT21,2),IF(LEFT($NU21,6)=LEFT(AL$5,6),MID($NU21,5,2)&"/"&RIGHT($NU21,2)&"～"&MID($NV21,5,2)&"/"&RIGHT($NV21,2),IF(LEFT($NW21,6)=LEFT(AL$5,6),MID($NW21,5,2)&"/"&RIGHT($NW21,2)&"～"&MID($NX21,5,2)&"/"&RIGHT($NX21,2),IF(LEFT($NY21,6)=LEFT(AL$5,6),MID($NY21,5,2)&"/"&RIGHT($NY21,2)&"～"&MID($NZ21,5,2)&"/"&RIGHT($NZ21,2),"")))))) ->  | BQ23: =IF(LEFT($NO21,6)=LEFT(BQ$5,6),MID($NO21,5,2)&"/"&RIGHT($NO21,2)&"～"&MID($NP21,5,2)&"/"&RIGHT($NP21,2),IF(LEFT($NQ21,6)=LEFT(BQ$5,6),MID($NQ21,5,2)&"/"&RIGHT($NQ21,2)&"～"&MID($NR21,5,2)&"/"&RIGHT($NR21,2),IF(LEFT($NS21,6)=LEFT(BQ$5,6),MID($NS21,5,2)&"/"&RIGHT($NS21,2)&"～"&MID($NT21,5,2)&"/"&RIGHT($NT21,2),IF(LEFT($NU21,6)=LEFT(BQ$5,6),MID($NU21,5,2)&"/"&RIGHT($NU21,2)&"～"&MID($NV21,5,2)&"/"&RIGHT($NV21,2),IF(LEFT($NW21,6)=LEFT(BQ$5,6),MID($NW21,5,2)&"/"&RIGHT($NW21,2)&"～"&MID($NX21,5,2)&"/"&RIGHT($NX21,2),IF(LEFT($NY21,6)=LEFT(BQ$5,6),MID($NY21,5,2)&"/"&RIGHT($NY21,2)&"～"&MID($NZ21,5,2)&"/"&RIGHT($NZ21,2),"")))))) ->  | CU23: =IF(LEFT($NO21,6)=LEFT(CU$5,6),MID($NO21,5,2)&"/"&RIGHT($NO21,2)&"～"&MID($NP21,5,2)&"/"&RIGHT($NP21,2),IF(LEFT($NQ21,6)=LEFT(CU$5,6),MID($NQ21,5,2)&"/"&RIGHT($NQ21,2)&"～"&MID($NR21,5,2)&"/"&RIGHT($NR21,2),IF(LEFT($NS21,6)=LEFT(CU$5,6),MID($NS21,5,2)&"/"&RIGHT($NS21,2)&"～"&MID($NT21,5,2)&"/"&RIGHT($NT21,2),IF(LEFT($NU21,6)=LEFT(CU$5,6),MID($NU21,5,2)&"/"&RIGHT($NU21,2)&"～"&MID($NV21,5,2)&"/"&RIGHT($NV21,2),IF(LEFT($NW21,6)=LEFT(CU$5,6),MID($NW21,5,2)&"/"&RIGHT($NW21,2)&"～"&MID($NX21,5,2)&"/"&RIGHT($NX21,2),IF(LEFT($NY21,6)=LEFT(CU$5,6),MID($NY21,5,2)&"/"&RIGHT($NY21,2)&"～"&MID($NZ21,5,2)&"/"&RIGHT($NZ21,2),"")))))) ->  | DZ23: =IF(LEFT($NO21,6)=LEFT(DZ$5,6),MID($NO21,5,2)&"/"&RIGHT($NO21,2)&"～"&MID($NP21,5,2)&"/"&RIGHT($NP21,2),IF(LEFT($NQ21,6)=LEFT(DZ$5,6),MID($NQ21,5,2)&"/"&RIGHT($NQ21,2)&"～"&MID($NR21,5,2)&"/"&RIGHT($NR21,2),IF(LEFT($NS21,6)=LEFT(DZ$5,6),MID($NS21,5,2)&"/"&RIGHT($NS21,2)&"～"&MID($NT21,5,2)&"/"&RIGHT($NT21,2),IF(LEFT($NU21,6)=LEFT(DZ$5,6),MID($NU21,5,2)&"/"&RIGHT($NU21,2)&"～"&MID($NV21,5,2)&"/"&RIGHT($NV21,2),IF(LEFT($NW21,6)=LEFT(DZ$5,6),MID($NW21,5,2)&"/"&RIGHT($NW21,2)&"～"&MID($NX21,5,2)&"/"&RIGHT($NX21,2),IF(LEFT($NY21,6)=LEFT(DZ$5,6),MID($NY21,5,2)&"/"&RIGHT($NY21,2)&"～"&MID($NZ21,5,2)&"/"&RIGHT($NZ21,2),"")))))) ->  | FE23: =IF(LEFT($NO21,6)=LEFT(FE$5,6),MID($NO21,5,2)&"/"&RIGHT($NO21,2)&"～"&MID($NP21,5,2)&"/"&RIGHT($NP21,2),IF(LEFT($NQ21,6)=LEFT(FE$5,6),MID($NQ21,5,2)&"/"&RIGHT($NQ21,2)&"～"&MID($NR21,5,2)&"/"&RIGHT($NR21,2),IF(LEFT($NS21,6)=LEFT(FE$5,6),MID($NS21,5,2)&"/"&RIGHT($NS21,2)&"～"&MID($NT21,5,2)&"/"&RIGHT($NT21,2),IF(LEFT($NU21,6)=LEFT(FE$5,6),MID($NU21,5,2)&"/"&RIGHT($NU21,2)&"～"&MID($NV21,5,2)&"/"&RIGHT($NV21,2),IF(LEFT($NW21,6)=LEFT(FE$5,6),MID($NW21,5,2)&"/"&RIGHT($NW21,2)&"～"&MID($NX21,5,2)&"/"&RIGHT($NX21,2),IF(LEFT($NY21,6)=LEFT(FE$5,6),MID($NY21,5,2)&"/"&RIGHT($NY21,2)&"～"&MID($NZ21,5,2)&"/"&RIGHT($NZ21,2),"")))))) ->  | GI23: =IF(LEFT($NO21,6)=LEFT(GI$5,6),MID($NO21,5,2)&"/"&RIGHT($NO21,2)&"～"&MID($NP21,5,2)&"/"&RIGHT($NP21,2),IF(LEFT($NQ21,6)=LEFT(GI$5,6),MID($NQ21,5,2)&"/"&RIGHT($NQ21,2)&"～"&MID($NR21,5,2)&"/"&RIGHT($NR21,2),IF(LEFT($NS21,6)=LEFT(GI$5,6),MID($NS21,5,2)&"/"&RIGHT($NS21,2)&"～"&MID($NT21,5,2)&"/"&RIGHT($NT21,2),IF(LEFT($NU21,6)=LEFT(GI$5,6),MID($NU21,5,2)&"/"&RIGHT($NU21,2)&"～"&MID($NV21,5,2)&"/"&RIGHT($NV21,2),IF(LEFT($NW21,6)=LEFT(GI$5,6),MID($NW21,5,2)&"/"&RIGHT($NW21,2)&"～"&MID($NX21,5,2)&"/"&RIGHT($NX21,2),IF(LEFT($NY21,6)=LEFT(GI$5,6),MID($NY21,5,2)&"/"&RIGHT($NY21,2)&"～"&MID($NZ21,5,2)&"/"&RIGHT($NZ21,2),"")))))) ->  | HN23: =IF(LEFT($NO21,6)=LEFT(HN$5,6),MID($NO21,5,2)&"/"&RIGHT($NO21,2)&"～"&MID($NP21,5,2)&"/"&RIGHT($NP21,2),IF(LEFT($NQ21,6)=LEFT(HN$5,6),MID($NQ21,5,2)&"/"&RIGHT($NQ21,2)&"～"&MID($NR21,5,2)&"/"&RIGHT($NR21,2),IF(LEFT($NS21,6)=LEFT(HN$5,6),MID($NS21,5,2)&"/"&RIGHT($NS21,2)&"～"&MID($NT21,5,2)&"/"&RIGHT($NT21,2),IF(LEFT($NU21,6)=LEFT(HN$5,6),MID($NU21,5,2)&"/"&RIGHT($NU21,2)&"～"&MID($NV21,5,2)&"/"&RIGHT($NV21,2),IF(LEFT($NW21,6)=LEFT(HN$5,6),MID($NW21,5,2)&"/"&RIGHT($NW21,2)&"～"&MID($NX21,5,2)&"/"&RIGHT($NX21,2),IF(LEFT($NY21,6)=LEFT(HN$5,6),MID($NY21,5,2)&"/"&RIGHT($NY21,2)&"～"&MID($NZ21,5,2)&"/"&RIGHT($NZ21,2),"")))))) ->  | IR23: =IF(LEFT($NO21,6)=LEFT(IR$5,6),MID($NO21,5,2)&"/"&RIGHT($NO21,2)&"～"&MID($NP21,5,2)&"/"&RIGHT($NP21,2),IF(LEFT($NQ21,6)=LEFT(IR$5,6),MID($NQ21,5,2)&"/"&RIGHT($NQ21,2)&"～"&MID($NR21,5,2)&"/"&RIGHT($NR21,2),IF(LEFT($NS21,6)=LEFT(IR$5,6),MID($NS21,5,2)&"/"&RIGHT($NS21,2)&"～"&MID($NT21,5,2)&"/"&RIGHT($NT21,2),IF(LEFT($NU21,6)=LEFT(IR$5,6),MID($NU21,5,2)&"/"&RIGHT($NU21,2)&"～"&MID($NV21,5,2)&"/"&RIGHT($NV21,2),IF(LEFT($NW21,6)=LEFT(IR$5,6),MID($NW21,5,2)&"/"&RIGHT($NW21,2)&"～"&MID($NX21,5,2)&"/"&RIGHT($NX21,2),IF(LEFT($NY21,6)=LEFT(IR$5,6),MID($NY21,5,2)&"/"&RIGHT($NY21,2)&"～"&MID($NZ21,5,2)&"/"&RIGHT($NZ21,2),"")))))) ->  | JW23: =IF(LEFT($NO21,6)=LEFT(JW$5,6),MID($NO21,5,2)&"/"&RIGHT($NO21,2)&"～"&MID($NP21,5,2)&"/"&RIGHT($NP21,2),IF(LEFT($NQ21,6)=LEFT(JW$5,6),MID($NQ21,5,2)&"/"&RIGHT($NQ21,2)&"～"&MID($NR21,5,2)&"/"&RIGHT($NR21,2),IF(LEFT($NS21,6)=LEFT(JW$5,6),MID($NS21,5,2)&"/"&RIGHT($NS21,2)&"～"&MID($NT21,5,2)&"/"&RIGHT($NT21,2),IF(LEFT($NU21,6)=LEFT(JW$5,6),MID($NU21,5,2)&"/"&RIGHT($NU21,2)&"～"&MID($NV21,5,2)&"/"&RIGHT($NV21,2),IF(LEFT($NW21,6)=LEFT(JW$5,6),MID($NW21,5,2)&"/"&RIGHT($NW21,2)&"～"&MID($NX21,5,2)&"/"&RIGHT($NX21,2),IF(LEFT($NY21,6)=LEFT(JW$5,6),MID($NY21,5,2)&"/"&RIGHT($NY21,2)&"～"&MID($NZ21,5,2)&"/"&RIGHT($NZ21,2),"")))))) ->  | LB23: =IF(LEFT($NO21,6)=LEFT(LB$5,6),MID($NO21,5,2)&"/"&RIGHT($NO21,2)&"～"&MID($NP21,5,2)&"/"&RIGHT($NP21,2),IF(LEFT($NQ21,6)=LEFT(LB$5,6),MID($NQ21,5,2)&"/"&RIGHT($NQ21,2)&"～"&MID($NR21,5,2)&"/"&RIGHT($NR21,2),IF(LEFT($NS21,6)=LEFT(LB$5,6),MID($NS21,5,2)&"/"&RIGHT($NS21,2)&"～"&MID($NT21,5,2)&"/"&RIGHT($NT21,2),IF(LEFT($NU21,6)=LEFT(LB$5,6),MID($NU21,5,2)&"/"&RIGHT($NU21,2)&"～"&MID($NV21,5,2)&"/"&RIGHT($NV21,2),IF(LEFT($NW21,6)=LEFT(LB$5,6),MID($NW21,5,2)&"/"&RIGHT($NW21,2)&"～"&MID($NX21,5,2)&"/"&RIGHT($NX21,2),IF(LEFT($NY21,6)=LEFT(LB$5,6),MID($NY21,5,2)&"/"&RIGHT($NY21,2)&"～"&MID($NZ21,5,2)&"/"&RIGHT($NZ21,2),"")))))) ->  | ME23: =IF(LEFT($NO21,6)=LEFT(ME$5,6),MID($NO21,5,2)&"/"&RIGHT($NO21,2)&"～"&MID($NP21,5,2)&"/"&RIGHT($NP21,2),IF(LEFT($NQ21,6)=LEFT(ME$5,6),MID($NQ21,5,2)&"/"&RIGHT($NQ21,2)&"～"&MID($NR21,5,2)&"/"&RIGHT($NR21,2),IF(LEFT($NS21,6)=LEFT(ME$5,6),MID($NS21,5,2)&"/"&RIGHT($NS21,2)&"～"&MID($NT21,5,2)&"/"&RIGHT($NT21,2),IF(LEFT($NU21,6)=LEFT(ME$5,6),MID($NU21,5,2)&"/"&RIGHT($NU21,2)&"～"&MID($NV21,5,2)&"/"&RIGHT($NV21,2),IF(LEFT($NW21,6)=LEFT(ME$5,6),MID($NW21,5,2)&"/"&RIGHT($NW21,2)&"～"&MID($NX21,5,2)&"/"&RIGHT($NX21,2),IF(LEFT($NY21,6)=LEFT(ME$5,6),MID($NY21,5,2)&"/"&RIGHT($NY21,2)&"～"&MID($NZ21,5,2)&"/"&RIGHT($NZ21,2),"")))))) -> 
C24: =IF($C$3="様式34-1_1年度目",IF('様式34-1_1年度目'!AC12="","",'様式34-1_1年度目'!AC12),IF($C$3="様式34-1_2年度目",IF('様式34-1_2年度目'!AC12="","",'様式34-1_2年度目'!AC12),"")) ->  | F24: =IF($C$3="様式34-1_1年度目",IF('様式34-1_1年度目'!AD12="","",'様式34-1_1年度目'!AD12&" "&'様式34-1_1年度目'!AE12),IF($C$3="様式34-1_2年度目",IF('様式34-1_2年度目'!AD12="","",'様式34-1_2年度目'!AD12&" "&'様式34-1_2年度目'!AE12),"")) ->  | G24: =IF($C$3="様式34-1_1年度目",IF('様式34-1_1年度目'!AF12="","",'様式34-1_1年度目'!AF12),IF($C$3="様式34-1_2年度目",IF('様式34-1_2年度目'!AF12="","",'様式34-1_2年度目'!AF12),"")) ->  | H24: =IF(AND($NO24<>"",$NO24<$H$5),"("&1+DATE(LEFT($NP24,4),MID($NP24,5,2),RIGHT($NP24,2))-DATE(LEFT($NO24,4),MID($NO24,5,2),RIGHT($NO24,2))&")",IF(LEFT($NO24,6)=LEFT(H$5,6),"("&1+DATE(LEFT($NP24,4),MID($NP24,5,2),RIGHT($NP24,2))-DATE(LEFT($NO24,4),MID($NO24,5,2),RIGHT($NO24,2))&")",IF(LEFT($NQ24,6)=LEFT(H$5,6),"("&1+DATE(LEFT($NR24,4),MID($NR24,5,2),RIGHT($NR24,2))-DATE(LEFT($NQ24,4),MID($NQ24,5,2),RIGHT($NQ24,2))&")",IF(LEFT($NS24,6)=LEFT(H$5,6),"("&1+DATE(LEFT($NT24,4),MID($NT24,5,2),RIGHT($NT24,2))-DATE(LEFT($NS24,4),MID($NS24,5,2),RIGHT($NS24,2))&")",IF(LEFT($NU24,6)=LEFT(H$5,6),"("&1+DATE(LEFT($NV24,4),MID($NV24,5,2),RIGHT($NV24,2))-DATE(LEFT($NU24,4),MID($NU24,5,2),RIGHT($NU24,2))&")",IF(LEFT($NW24,6)=LEFT(H$5,6),"("&1+DATE(LEFT($NX24,4),MID($NX24,5,2),RIGHT($NX24,2))-DATE(LEFT($NW24,4),MID($NW24,5,2),RIGHT($NW24,2))&")",IF(LEFT($NY24,6)=LEFT(H$5,6),"("&1+DATE(LEFT($NZ24,4),MID($NZ24,5,2),RIGHT($NZ24,2))-DATE(LEFT($NY24,4),MID($NY24,5,2),RIGHT($NY24,2))&")",""))))))) ->  | AL24: =IF(LEFT($NO24,6)=LEFT(AL$5,6),"("&1+DATE(LEFT($NP24,4),MID($NP24,5,2),RIGHT($NP24,2))-DATE(LEFT($NO24,4),MID($NO24,5,2),RIGHT($NO24,2))&")",IF(LEFT($NQ24,6)=LEFT(AL$5,6),"("&1+DATE(LEFT($NR24,4),MID($NR24,5,2),RIGHT($NR24,2))-DATE(LEFT($NQ24,4),MID($NQ24,5,2),RIGHT($NQ24,2))&")",IF(LEFT($NS24,6)=LEFT(AL$5,6),"("&1+DATE(LEFT($NT24,4),MID($NT24,5,2),RIGHT($NT24,2))-DATE(LEFT($NS24,4),MID($NS24,5,2),RIGHT($NS24,2))&")",IF(LEFT($NU24,6)=LEFT(AL$5,6),"("&1+DATE(LEFT($NV24,4),MID($NV24,5,2),RIGHT($NV24,2))-DATE(LEFT($NU24,4),MID($NU24,5,2),RIGHT($NU24,2))&")",IF(LEFT($NW24,6)=LEFT(AL$5,6),"("&1+DATE(LEFT($NX24,4),MID($NX24,5,2),RIGHT($NX24,2))-DATE(LEFT($NW24,4),MID($NW24,5,2),RIGHT($NW24,2))&")",IF(LEFT($NY24,6)=LEFT(AL$5,6),"("&1+DATE(LEFT($NZ24,4),MID($NZ24,5,2),RIGHT($NZ24,2))-DATE(LEFT($NY24,4),MID($NY24,5,2),RIGHT($NY24,2))&")","")))))) ->  | BQ24: =IF(LEFT($NO24,6)=LEFT(BQ$5,6),"("&1+DATE(LEFT($NP24,4),MID($NP24,5,2),RIGHT($NP24,2))-DATE(LEFT($NO24,4),MID($NO24,5,2),RIGHT($NO24,2))&")",IF(LEFT($NQ24,6)=LEFT(BQ$5,6),"("&1+DATE(LEFT($NR24,4),MID($NR24,5,2),RIGHT($NR24,2))-DATE(LEFT($NQ24,4),MID($NQ24,5,2),RIGHT($NQ24,2))&")",IF(LEFT($NS24,6)=LEFT(BQ$5,6),"("&1+DATE(LEFT($NT24,4),MID($NT24,5,2),RIGHT($NT24,2))-DATE(LEFT($NS24,4),MID($NS24,5,2),RIGHT($NS24,2))&")",IF(LEFT($NU24,6)=LEFT(BQ$5,6),"("&1+DATE(LEFT($NV24,4),MID($NV24,5,2),RIGHT($NV24,2))-DATE(LEFT($NU24,4),MID($NU24,5,2),RIGHT($NU24,2))&")",IF(LEFT($NW24,6)=LEFT(BQ$5,6),"("&1+DATE(LEFT($NX24,4),MID($NX24,5,2),RIGHT($NX24,2))-DATE(LEFT($NW24,4),MID($NW24,5,2),RIGHT($NW24,2))&")",IF(LEFT($NY24,6)=LEFT(BQ$5,6),"("&1+DATE(LEFT($NZ24,4),MID($NZ24,5,2),RIGHT($NZ24,2))-DATE(LEFT($NY24,4),MID($NY24,5,2),RIGHT($NY24,2))&")","")))))) ->  | CU24: =IF(LEFT($NO24,6)=LEFT(CU$5,6),"("&1+DATE(LEFT($NP24,4),MID($NP24,5,2),RIGHT($NP24,2))-DATE(LEFT($NO24,4),MID($NO24,5,2),RIGHT($NO24,2))&")",IF(LEFT($NQ24,6)=LEFT(CU$5,6),"("&1+DATE(LEFT($NR24,4),MID($NR24,5,2),RIGHT($NR24,2))-DATE(LEFT($NQ24,4),MID($NQ24,5,2),RIGHT($NQ24,2))&")",IF(LEFT($NS24,6)=LEFT(CU$5,6),"("&1+DATE(LEFT($NT24,4),MID($NT24,5,2),RIGHT($NT24,2))-DATE(LEFT($NS24,4),MID($NS24,5,2),RIGHT($NS24,2))&")",IF(LEFT($NU24,6)=LEFT(CU$5,6),"("&1+DATE(LEFT($NV24,4),MID($NV24,5,2),RIGHT($NV24,2))-DATE(LEFT($NU24,4),MID($NU24,5,2),RIGHT($NU24,2))&")",IF(LEFT($NW24,6)=LEFT(CU$5,6),"("&1+DATE(LEFT($NX24,4),MID($NX24,5,2),RIGHT($NX24,2))-DATE(LEFT($NW24,4),MID($NW24,5,2),RIGHT($NW24,2))&")",IF(LEFT($NY24,6)=LEFT(CU$5,6),"("&1+DATE(LEFT($NZ24,4),MID($NZ24,5,2),RIGHT($NZ24,2))-DATE(LEFT($NY24,4),MID($NY24,5,2),RIGHT($NY24,2))&")","")))))) ->  | DZ24: =IF(LEFT($NO24,6)=LEFT(DZ$5,6),"("&1+DATE(LEFT($NP24,4),MID($NP24,5,2),RIGHT($NP24,2))-DATE(LEFT($NO24,4),MID($NO24,5,2),RIGHT($NO24,2))&")",IF(LEFT($NQ24,6)=LEFT(DZ$5,6),"("&1+DATE(LEFT($NR24,4),MID($NR24,5,2),RIGHT($NR24,2))-DATE(LEFT($NQ24,4),MID($NQ24,5,2),RIGHT($NQ24,2))&")",IF(LEFT($NS24,6)=LEFT(DZ$5,6),"("&1+DATE(LEFT($NT24,4),MID($NT24,5,2),RIGHT($NT24,2))-DATE(LEFT($NS24,4),MID($NS24,5,2),RIGHT($NS24,2))&")",IF(LEFT($NU24,6)=LEFT(DZ$5,6),"("&1+DATE(LEFT($NV24,4),MID($NV24,5,2),RIGHT($NV24,2))-DATE(LEFT($NU24,4),MID($NU24,5,2),RIGHT($NU24,2))&")",IF(LEFT($NW24,6)=LEFT(DZ$5,6),"("&1+DATE(LEFT($NX24,4),MID($NX24,5,2),RIGHT($NX24,2))-DATE(LEFT($NW24,4),MID($NW24,5,2),RIGHT($NW24,2))&")",IF(LEFT($NY24,6)=LEFT(DZ$5,6),"("&1+DATE(LEFT($NZ24,4),MID($NZ24,5,2),RIGHT($NZ24,2))-DATE(LEFT($NY24,4),MID($NY24,5,2),RIGHT($NY24,2))&")","")))))) ->  | FE24: =IF(LEFT($NO24,6)=LEFT(FE$5,6),"("&1+DATE(LEFT($NP24,4),MID($NP24,5,2),RIGHT($NP24,2))-DATE(LEFT($NO24,4),MID($NO24,5,2),RIGHT($NO24,2))&")",IF(LEFT($NQ24,6)=LEFT(FE$5,6),"("&1+DATE(LEFT($NR24,4),MID($NR24,5,2),RIGHT($NR24,2))-DATE(LEFT($NQ24,4),MID($NQ24,5,2),RIGHT($NQ24,2))&")",IF(LEFT($NS24,6)=LEFT(FE$5,6),"("&1+DATE(LEFT($NT24,4),MID($NT24,5,2),RIGHT($NT24,2))-DATE(LEFT($NS24,4),MID($NS24,5,2),RIGHT($NS24,2))&")",IF(LEFT($NU24,6)=LEFT(FE$5,6),"("&1+DATE(LEFT($NV24,4),MID($NV24,5,2),RIGHT($NV24,2))-DATE(LEFT($NU24,4),MID($NU24,5,2),RIGHT($NU24,2))&")",IF(LEFT($NW24,6)=LEFT(FE$5,6),"("&1+DATE(LEFT($NX24,4),MID($NX24,5,2),RIGHT($NX24,2))-DATE(LEFT($NW24,4),MID($NW24,5,2),RIGHT($NW24,2))&")",IF(LEFT($NY24,6)=LEFT(FE$5,6),"("&1+DATE(LEFT($NZ24,4),MID($NZ24,5,2),RIGHT($NZ24,2))-DATE(LEFT($NY24,4),MID($NY24,5,2),RIGHT($NY24,2))&")","")))))) ->  | GI24: =IF(LEFT($NO24,6)=LEFT(GI$5,6),"("&1+DATE(LEFT($NP24,4),MID($NP24,5,2),RIGHT($NP24,2))-DATE(LEFT($NO24,4),MID($NO24,5,2),RIGHT($NO24,2))&")",IF(LEFT($NQ24,6)=LEFT(GI$5,6),"("&1+DATE(LEFT($NR24,4),MID($NR24,5,2),RIGHT($NR24,2))-DATE(LEFT($NQ24,4),MID($NQ24,5,2),RIGHT($NQ24,2))&")",IF(LEFT($NS24,6)=LEFT(GI$5,6),"("&1+DATE(LEFT($NT24,4),MID($NT24,5,2),RIGHT($NT24,2))-DATE(LEFT($NS24,4),MID($NS24,5,2),RIGHT($NS24,2))&")",IF(LEFT($NU24,6)=LEFT(GI$5,6),"("&1+DATE(LEFT($NV24,4),MID($NV24,5,2),RIGHT($NV24,2))-DATE(LEFT($NU24,4),MID($NU24,5,2),RIGHT($NU24,2))&")",IF(LEFT($NW24,6)=LEFT(GI$5,6),"("&1+DATE(LEFT($NX24,4),MID($NX24,5,2),RIGHT($NX24,2))-DATE(LEFT($NW24,4),MID($NW24,5,2),RIGHT($NW24,2))&")",IF(LEFT($NY24,6)=LEFT(GI$5,6),"("&1+DATE(LEFT($NZ24,4),MID($NZ24,5,2),RIGHT($NZ24,2))-DATE(LEFT($NY24,4),MID($NY24,5,2),RIGHT($NY24,2))&")","")))))) ->  | HN24: =IF(LEFT($NO24,6)=LEFT(HN$5,6),"("&1+DATE(LEFT($NP24,4),MID($NP24,5,2),RIGHT($NP24,2))-DATE(LEFT($NO24,4),MID($NO24,5,2),RIGHT($NO24,2))&")",IF(LEFT($NQ24,6)=LEFT(HN$5,6),"("&1+DATE(LEFT($NR24,4),MID($NR24,5,2),RIGHT($NR24,2))-DATE(LEFT($NQ24,4),MID($NQ24,5,2),RIGHT($NQ24,2))&")",IF(LEFT($NS24,6)=LEFT(HN$5,6),"("&1+DATE(LEFT($NT24,4),MID($NT24,5,2),RIGHT($NT24,2))-DATE(LEFT($NS24,4),MID($NS24,5,2),RIGHT($NS24,2))&")",IF(LEFT($NU24,6)=LEFT(HN$5,6),"("&1+DATE(LEFT($NV24,4),MID($NV24,5,2),RIGHT($NV24,2))-DATE(LEFT($NU24,4),MID($NU24,5,2),RIGHT($NU24,2))&")",IF(LEFT($NW24,6)=LEFT(HN$5,6),"("&1+DATE(LEFT($NX24,4),MID($NX24,5,2),RIGHT($NX24,2))-DATE(LEFT($NW24,4),MID($NW24,5,2),RIGHT($NW24,2))&")",IF(LEFT($NY24,6)=LEFT(HN$5,6),"("&1+DATE(LEFT($NZ24,4),MID($NZ24,5,2),RIGHT($NZ24,2))-DATE(LEFT($NY24,4),MID($NY24,5,2),RIGHT($NY24,2))&")","")))))) ->  | IR24: =IF(LEFT($NO24,6)=LEFT(IR$5,6),"("&1+DATE(LEFT($NP24,4),MID($NP24,5,2),RIGHT($NP24,2))-DATE(LEFT($NO24,4),MID($NO24,5,2),RIGHT($NO24,2))&")",IF(LEFT($NQ24,6)=LEFT(IR$5,6),"("&1+DATE(LEFT($NR24,4),MID($NR24,5,2),RIGHT($NR24,2))-DATE(LEFT($NQ24,4),MID($NQ24,5,2),RIGHT($NQ24,2))&")",IF(LEFT($NS24,6)=LEFT(IR$5,6),"("&1+DATE(LEFT($NT24,4),MID($NT24,5,2),RIGHT($NT24,2))-DATE(LEFT($NS24,4),MID($NS24,5,2),RIGHT($NS24,2))&")",IF(LEFT($NU24,6)=LEFT(IR$5,6),"("&1+DATE(LEFT($NV24,4),MID($NV24,5,2),RIGHT($NV24,2))-DATE(LEFT($NU24,4),MID($NU24,5,2),RIGHT($NU24,2))&")",IF(LEFT($NW24,6)=LEFT(IR$5,6),"("&1+DATE(LEFT($NX24,4),MID($NX24,5,2),RIGHT($NX24,2))-DATE(LEFT($NW24,4),MID($NW24,5,2),RIGHT($NW24,2))&")",IF(LEFT($NY24,6)=LEFT(IR$5,6),"("&1+DATE(LEFT($NZ24,4),MID($NZ24,5,2),RIGHT($NZ24,2))-DATE(LEFT($NY24,4),MID($NY24,5,2),RIGHT($NY24,2))&")","")))))) ->  | JW24: =IF(LEFT($NO24,6)=LEFT(JW$5,6),"("&1+DATE(LEFT($NP24,4),MID($NP24,5,2),RIGHT($NP24,2))-DATE(LEFT($NO24,4),MID($NO24,5,2),RIGHT($NO24,2))&")",IF(LEFT($NQ24,6)=LEFT(JW$5,6),"("&1+DATE(LEFT($NR24,4),MID($NR24,5,2),RIGHT($NR24,2))-DATE(LEFT($NQ24,4),MID($NQ24,5,2),RIGHT($NQ24,2))&")",IF(LEFT($NS24,6)=LEFT(JW$5,6),"("&1+DATE(LEFT($NT24,4),MID($NT24,5,2),RIGHT($NT24,2))-DATE(LEFT($NS24,4),MID($NS24,5,2),RIGHT($NS24,2))&")",IF(LEFT($NU24,6)=LEFT(JW$5,6),"("&1+DATE(LEFT($NV24,4),MID($NV24,5,2),RIGHT($NV24,2))-DATE(LEFT($NU24,4),MID($NU24,5,2),RIGHT($NU24,2))&")",IF(LEFT($NW24,6)=LEFT(JW$5,6),"("&1+DATE(LEFT($NX24,4),MID($NX24,5,2),RIGHT($NX24,2))-DATE(LEFT($NW24,4),MID($NW24,5,2),RIGHT($NW24,2))&")",IF(LEFT($NY24,6)=LEFT(JW$5,6),"("&1+DATE(LEFT($NZ24,4),MID($NZ24,5,2),RIGHT($NZ24,2))-DATE(LEFT($NY24,4),MID($NY24,5,2),RIGHT($NY24,2))&")","")))))) ->  | LB24: =IF(LEFT($NO24,6)=LEFT(LB$5,6),"("&1+DATE(LEFT($NP24,4),MID($NP24,5,2),RIGHT($NP24,2))-DATE(LEFT($NO24,4),MID($NO24,5,2),RIGHT($NO24,2))&")",IF(LEFT($NQ24,6)=LEFT(LB$5,6),"("&1+DATE(LEFT($NR24,4),MID($NR24,5,2),RIGHT($NR24,2))-DATE(LEFT($NQ24,4),MID($NQ24,5,2),RIGHT($NQ24,2))&")",IF(LEFT($NS24,6)=LEFT(LB$5,6),"("&1+DATE(LEFT($NT24,4),MID($NT24,5,2),RIGHT($NT24,2))-DATE(LEFT($NS24,4),MID($NS24,5,2),RIGHT($NS24,2))&")",IF(LEFT($NU24,6)=LEFT(LB$5,6),"("&1+DATE(LEFT($NV24,4),MID($NV24,5,2),RIGHT($NV24,2))-DATE(LEFT($NU24,4),MID($NU24,5,2),RIGHT($NU24,2))&")",IF(LEFT($NW24,6)=LEFT(LB$5,6),"("&1+DATE(LEFT($NX24,4),MID($NX24,5,2),RIGHT($NX24,2))-DATE(LEFT($NW24,4),MID($NW24,5,2),RIGHT($NW24,2))&")",IF(LEFT($NY24,6)=LEFT(LB$5,6),"("&1+DATE(LEFT($NZ24,4),MID($NZ24,5,2),RIGHT($NZ24,2))-DATE(LEFT($NY24,4),MID($NY24,5,2),RIGHT($NY24,2))&")","")))))) ->  | ME24: =IF(LEFT($NO24,6)=LEFT(ME$5,6),"("&1+DATE(LEFT($NP24,4),MID($NP24,5,2),RIGHT($NP24,2))-DATE(LEFT($NO24,4),MID($NO24,5,2),RIGHT($NO24,2))&")",IF(LEFT($NQ24,6)=LEFT(ME$5,6),"("&1+DATE(LEFT($NR24,4),MID($NR24,5,2),RIGHT($NR24,2))-DATE(LEFT($NQ24,4),MID($NQ24,5,2),RIGHT($NQ24,2))&")",IF(LEFT($NS24,6)=LEFT(ME$5,6),"("&1+DATE(LEFT($NT24,4),MID($NT24,5,2),RIGHT($NT24,2))-DATE(LEFT($NS24,4),MID($NS24,5,2),RIGHT($NS24,2))&")",IF(LEFT($NU24,6)=LEFT(ME$5,6),"("&1+DATE(LEFT($NV24,4),MID($NV24,5,2),RIGHT($NV24,2))-DATE(LEFT($NU24,4),MID($NU24,5,2),RIGHT($NU24,2))&")",IF(LEFT($NW24,6)=LEFT(ME$5,6),"("&1+DATE(LEFT($NX24,4),MID($NX24,5,2),RIGHT($NX24,2))-DATE(LEFT($NW24,4),MID($NW24,5,2),RIGHT($NW24,2))&")",IF(LEFT($NY24,6)=LEFT(ME$5,6),"("&1+DATE(LEFT($NZ24,4),MID($NZ24,5,2),RIGHT($NZ24,2))-DATE(LEFT($NY24,4),MID($NY24,5,2),RIGHT($NY24,2))&")","")))))) ->  | NK24: =IF($C$3="様式34-1_1年度目",IF('様式34-1_1年度目'!AS12="","",'様式34-1_1年度目'!AS12),IF($C$3="様式34-1_2年度目",IF('様式34-1_2年度目'!AS12="","",'様式34-1_2年度目'!AS12),"")) ->  | NM24: 5 | NN24: 補修期間→ | NO24: =IF($C$3="様式34-1_1年度目",IF('様式34-1_1年度目'!AT12="","",VALUE(TEXT('様式34-1_1年度目'!AT12,"yyyymmdd"))),IF($C$3="様式34-1_2年度目",IF('様式34-1_2年度目'!AT12="","",VALUE(TEXT('様式34-1_2年度目'!AT12,"yyyymmdd"))),"")) ->  | NP24: =IF($C$3="様式34-1_1年度目",IF('様式34-1_1年度目'!AU12="","",VALUE(TEXT('様式34-1_1年度目'!AU12,"yyyymmdd"))),IF($C$3="様式34-1_2年度目",IF('様式34-1_2年度目'!AU12="","",VALUE(TEXT('様式34-1_2年度目'!AU12,"yyyymmdd"))),"")) ->  | NQ24: =IF($C$3="様式34-1_1年度目",IF('様式34-1_1年度目'!AW12="","",VALUE(TEXT('様式34-1_1年度目'!AW12,"yyyymmdd"))),IF($C$3="様式34-1_2年度目",IF('様式34-1_2年度目'!AW12="","",VALUE(TEXT('様式34-1_2年度目'!AW12,"yyyymmdd"))),"")) ->  | NR24: =IF($C$3="様式34-1_1年度目",IF('様式34-1_1年度目'!AX12="","",VALUE(TEXT('様式34-1_1年度目'!AX12,"yyyymmdd"))),IF($C$3="様式34-1_2年度目",IF('様式34-1_2年度目'!AX12="","",VALUE(TEXT('様式34-1_2年度目'!AX12,"yyyymmdd"))),"")) ->  | NS24: =IF($C$3="様式34-1_1年度目",IF('様式34-1_1年度目'!AZ12="","",VALUE(TEXT('様式34-1_1年度目'!AZ12,"yyyymmdd"))),IF($C$3="様式34-1_2年度目",IF('様式34-1_2年度目'!AZ12="","",VALUE(TEXT('様式34-1_2年度目'!AZ12,"yyyymmdd"))),"")) ->  | NT24: =IF($C$3="様式34-1_1年度目",IF('様式34-1_1年度目'!BA12="","",VALUE(TEXT('様式34-1_1年度目'!BA12,"yyyymmdd"))),IF($C$3="様式34-1_2年度目",IF('様式34-1_2年度目'!BA12="","",VALUE(TEXT('様式34-1_2年度目'!BA12,"yyyymmdd"))),"")) ->  | NU24: =IF($C$3="様式34-1_1年度目",IF('様式34-1_1年度目'!BC12="","",VALUE(TEXT('様式34-1_1年度目'!BC12,"yyyymmdd"))),IF($C$3="様式34-1_2年度目",IF('様式34-1_2年度目'!BC12="","",VALUE(TEXT('様式34-1_2年度目'!BC12,"yyyymmdd"))),"")) ->  | NV24: =IF($C$3="様式34-1_1年度目",IF('様式34-1_1年度目'!BD12="","",VALUE(TEXT('様式34-1_1年度目'!BD12,"yyyymmdd"))),IF($C$3="様式34-1_2年度目",IF('様式34-1_2年度目'!BD12="","",VALUE(TEXT('様式34-1_2年度目'!BD12,"yyyymmdd"))),"")) ->  | NW24: =IF($C$3="様式34-1_1年度目",IF('様式34-1_1年度目'!BF12="","",VALUE(TEXT('様式34-1_1年度目'!BF12,"yyyymmdd"))),IF($C$3="様式34-1_2年度目",IF('様式34-1_2年度目'!BF12="","",VALUE(TEXT('様式34-1_2年度目'!BF12,"yyyymmdd"))),"")) ->  | NX24: =IF($C$3="様式34-1_1年度目",IF('様式34-1_1年度目'!BG12="","",VALUE(TEXT('様式34-1_1年度目'!BG12,"yyyymmdd"))),IF($C$3="様式34-1_2年度目",IF('様式34-1_2年度目'!BG12="","",VALUE(TEXT('様式34-1_2年度目'!BG12,"yyyymmdd"))),"")) ->  | NY24: =IF($C$3="様式34-1_1年度目",IF('様式34-1_1年度目'!BI12="","",VALUE(TEXT('様式34-1_1年度目'!BI12,"yyyymmdd"))),IF($C$3="様式34-1_2年度目",IF('様式34-1_2年度目'!BI12="","",VALUE(TEXT('様式34-1_2年度目'!BI12,"yyyymmdd"))),"")) ->  | NZ24: =IF($C$3="様式34-1_1年度目",IF('様式34-1_1年度目'!BJ12="","",VALUE(TEXT('様式34-1_1年度目'!BJ12,"yyyymmdd"))),IF($C$3="様式34-1_2年度目",IF('様式34-1_2年度目'!BJ12="","",VALUE(TEXT('様式34-1_2年度目'!BJ12,"yyyymmdd"))),"")) -> 
H25: =+IF(OR(H$5=$NO24,H$5=$NQ24,H$5=$NS24,H$5=$NU24,H$5=$NW24,H$5=$NY24),1,IF(OR(AND($NO24<H$5,H$5<$NP24),AND($NQ24<H$5,H$5<$NR24),AND($NS24<H$5,H$5<$NT24),AND($NU24<H$5,H$5<$NV24),AND($NW24<H$5,H$5<$NX24),AND($NY24<H$5,H$5<$NZ24)),2,IF(OR(H$5=$NP24,H$5=$NR24,H$5=$NT24,H$5=$NV24,H$5=$NX24,H$5=$NZ24),3,""))) ->  | BT25: =+IF(OR(BT$5=$NO24,BT$5=$NQ24,BT$5=$NS24,BT$5=$NU24,BT$5=$NW24,BT$5=$NY24),1,IF(OR(AND($NO24<BT$5,BT$5<$NP24),AND($NQ24<BT$5,BT$5<$NR24),AND($NS24<BT$5,BT$5<$NT24),AND($NU24<BT$5,BT$5<$NV24),AND($NW24<BT$5,BT$5<$NX24),AND($NY24<BT$5,BT$5<$NZ24)),2,IF(OR(BT$5=$NP24,BT$5=$NR24,BT$5=$NT24,BT$5=$NV24,BT$5=$NX24,BT$5=$NZ24),3,""))) ->  | EF25: =+IF(OR(EF$5=$NO24,EF$5=$NQ24,EF$5=$NS24,EF$5=$NU24,EF$5=$NW24,EF$5=$NY24),1,IF(OR(AND($NO24<EF$5,EF$5<$NP24),AND($NQ24<EF$5,EF$5<$NR24),AND($NS24<EF$5,EF$5<$NT24),AND($NU24<EF$5,EF$5<$NV24),AND($NW24<EF$5,EF$5<$NX24),AND($NY24<EF$5,EF$5<$NZ24)),2,IF(OR(EF$5=$NP24,EF$5=$NR24,EF$5=$NT24,EF$5=$NV24,EF$5=$NX24,EF$5=$NZ24),3,""))) ->  | GR25: =+IF(OR(GR$5=$NO24,GR$5=$NQ24,GR$5=$NS24,GR$5=$NU24,GR$5=$NW24,GR$5=$NY24),1,IF(OR(AND($NO24<GR$5,GR$5<$NP24),AND($NQ24<GR$5,GR$5<$NR24),AND($NS24<GR$5,GR$5<$NT24),AND($NU24<GR$5,GR$5<$NV24),AND($NW24<GR$5,GR$5<$NX24),AND($NY24<GR$5,GR$5<$NZ24)),2,IF(OR(GR$5=$NP24,GR$5=$NR24,GR$5=$NT24,GR$5=$NV24,GR$5=$NX24,GR$5=$NZ24),3,""))) ->  | JD25: =+IF(OR(JD$5=$NO24,JD$5=$NQ24,JD$5=$NS24,JD$5=$NU24,JD$5=$NW24,JD$5=$NY24),1,IF(OR(AND($NO24<JD$5,JD$5<$NP24),AND($NQ24<JD$5,JD$5<$NR24),AND($NS24<JD$5,JD$5<$NT24),AND($NU24<JD$5,JD$5<$NV24),AND($NW24<JD$5,JD$5<$NX24),AND($NY24<JD$5,JD$5<$NZ24)),2,IF(OR(JD$5=$NP24,JD$5=$NR24,JD$5=$NT24,JD$5=$NV24,JD$5=$NX24,JD$5=$NZ24),3,""))) ->  | LP25: =+IF(OR(LP$5=$NO24,LP$5=$NQ24,LP$5=$NS24,LP$5=$NU24,LP$5=$NW24,LP$5=$NY24),1,IF(OR(AND($NO24<LP$5,LP$5<$NP24),AND($NQ24<LP$5,LP$5<$NR24),AND($NS24<LP$5,LP$5<$NT24),AND($NU24<LP$5,LP$5<$NV24),AND($NW24<LP$5,LP$5<$NX24),AND($NY24<LP$5,LP$5<$NZ24)),2,IF(OR(LP$5=$NP24,LP$5=$NR24,LP$5=$NT24,LP$5=$NV24,LP$5=$NX24,LP$5=$NZ24),3,""))) -> 
H26: =IF(AND($NO24<>"",$NO24<$H$5),MID($NO24,5,2)&"/"&RIGHT($NO24,2)&"～"&MID($NP24,5,2)&"/"&RIGHT($NP24,2),IF(LEFT($NO24,6)=LEFT(H$5,6),MID($NO24,5,2)&"/"&RIGHT($NO24,2)&"～"&MID($NP24,5,2)&"/"&RIGHT($NP24,2),IF(LEFT($NQ24,6)=LEFT(H$5,6),MID($NQ24,5,2)&"/"&RIGHT($NQ24,2)&"～"&MID($NR24,5,2)&"/"&RIGHT($NR24,2),IF(LEFT($NS24,6)=LEFT(H$5,6),MID($NS24,5,2)&"/"&RIGHT($NS24,2)&"～"&MID($NT24,5,2)&"/"&RIGHT($NT24,2),IF(LEFT($NU24,6)=LEFT(H$5,6),MID($NU24,5,2)&"/"&RIGHT($NU24,2)&"～"&MID($NV24,5,2)&"/"&RIGHT($NV24,2),IF(LEFT($NW24,6)=LEFT(H$5,6),MID($NW24,5,2)&"/"&RIGHT($NW24,2)&"～"&MID($NX24,5,2)&"/"&RIGHT($NX24,2),IF(LEFT($NY24,6)=LEFT(H$5,6),MID($NY24,5,2)&"/"&RIGHT($NY24,2)&"～"&MID($NZ24,5,2)&"/"&RIGHT($NZ24,2),""))))))) ->  | AL26: =IF(LEFT($NO24,6)=LEFT(AL$5,6),MID($NO24,5,2)&"/"&RIGHT($NO24,2)&"～"&MID($NP24,5,2)&"/"&RIGHT($NP24,2),IF(LEFT($NQ24,6)=LEFT(AL$5,6),MID($NQ24,5,2)&"/"&RIGHT($NQ24,2)&"～"&MID($NR24,5,2)&"/"&RIGHT($NR24,2),IF(LEFT($NS24,6)=LEFT(AL$5,6),MID($NS24,5,2)&"/"&RIGHT($NS24,2)&"～"&MID($NT24,5,2)&"/"&RIGHT($NT24,2),IF(LEFT($NU24,6)=LEFT(AL$5,6),MID($NU24,5,2)&"/"&RIGHT($NU24,2)&"～"&MID($NV24,5,2)&"/"&RIGHT($NV24,2),IF(LEFT($NW24,6)=LEFT(AL$5,6),MID($NW24,5,2)&"/"&RIGHT($NW24,2)&"～"&MID($NX24,5,2)&"/"&RIGHT($NX24,2),IF(LEFT($NY24,6)=LEFT(AL$5,6),MID($NY24,5,2)&"/"&RIGHT($NY24,2)&"～"&MID($NZ24,5,2)&"/"&RIGHT($NZ24,2),"")))))) ->  | BQ26: =IF(LEFT($NO24,6)=LEFT(BQ$5,6),MID($NO24,5,2)&"/"&RIGHT($NO24,2)&"～"&MID($NP24,5,2)&"/"&RIGHT($NP24,2),IF(LEFT($NQ24,6)=LEFT(BQ$5,6),MID($NQ24,5,2)&"/"&RIGHT($NQ24,2)&"～"&MID($NR24,5,2)&"/"&RIGHT($NR24,2),IF(LEFT($NS24,6)=LEFT(BQ$5,6),MID($NS24,5,2)&"/"&RIGHT($NS24,2)&"～"&MID($NT24,5,2)&"/"&RIGHT($NT24,2),IF(LEFT($NU24,6)=LEFT(BQ$5,6),MID($NU24,5,2)&"/"&RIGHT($NU24,2)&"～"&MID($NV24,5,2)&"/"&RIGHT($NV24,2),IF(LEFT($NW24,6)=LEFT(BQ$5,6),MID($NW24,5,2)&"/"&RIGHT($NW24,2)&"～"&MID($NX24,5,2)&"/"&RIGHT($NX24,2),IF(LEFT($NY24,6)=LEFT(BQ$5,6),MID($NY24,5,2)&"/"&RIGHT($NY24,2)&"～"&MID($NZ24,5,2)&"/"&RIGHT($NZ24,2),"")))))) ->  | CU26: =IF(LEFT($NO24,6)=LEFT(CU$5,6),MID($NO24,5,2)&"/"&RIGHT($NO24,2)&"～"&MID($NP24,5,2)&"/"&RIGHT($NP24,2),IF(LEFT($NQ24,6)=LEFT(CU$5,6),MID($NQ24,5,2)&"/"&RIGHT($NQ24,2)&"～"&MID($NR24,5,2)&"/"&RIGHT($NR24,2),IF(LEFT($NS24,6)=LEFT(CU$5,6),MID($NS24,5,2)&"/"&RIGHT($NS24,2)&"～"&MID($NT24,5,2)&"/"&RIGHT($NT24,2),IF(LEFT($NU24,6)=LEFT(CU$5,6),MID($NU24,5,2)&"/"&RIGHT($NU24,2)&"～"&MID($NV24,5,2)&"/"&RIGHT($NV24,2),IF(LEFT($NW24,6)=LEFT(CU$5,6),MID($NW24,5,2)&"/"&RIGHT($NW24,2)&"～"&MID($NX24,5,2)&"/"&RIGHT($NX24,2),IF(LEFT($NY24,6)=LEFT(CU$5,6),MID($NY24,5,2)&"/"&RIGHT($NY24,2)&"～"&MID($NZ24,5,2)&"/"&RIGHT($NZ24,2),"")))))) ->  | DZ26: =IF(LEFT($NO24,6)=LEFT(DZ$5,6),MID($NO24,5,2)&"/"&RIGHT($NO24,2)&"～"&MID($NP24,5,2)&"/"&RIGHT($NP24,2),IF(LEFT($NQ24,6)=LEFT(DZ$5,6),MID($NQ24,5,2)&"/"&RIGHT($NQ24,2)&"～"&MID($NR24,5,2)&"/"&RIGHT($NR24,2),IF(LEFT($NS24,6)=LEFT(DZ$5,6),MID($NS24,5,2)&"/"&RIGHT($NS24,2)&"～"&MID($NT24,5,2)&"/"&RIGHT($NT24,2),IF(LEFT($NU24,6)=LEFT(DZ$5,6),MID($NU24,5,2)&"/"&RIGHT($NU24,2)&"～"&MID($NV24,5,2)&"/"&RIGHT($NV24,2),IF(LEFT($NW24,6)=LEFT(DZ$5,6),MID($NW24,5,2)&"/"&RIGHT($NW24,2)&"～"&MID($NX24,5,2)&"/"&RIGHT($NX24,2),IF(LEFT($NY24,6)=LEFT(DZ$5,6),MID($NY24,5,2)&"/"&RIGHT($NY24,2)&"～"&MID($NZ24,5,2)&"/"&RIGHT($NZ24,2),"")))))) ->  | FE26: =IF(LEFT($NO24,6)=LEFT(FE$5,6),MID($NO24,5,2)&"/"&RIGHT($NO24,2)&"～"&MID($NP24,5,2)&"/"&RIGHT($NP24,2),IF(LEFT($NQ24,6)=LEFT(FE$5,6),MID($NQ24,5,2)&"/"&RIGHT($NQ24,2)&"～"&MID($NR24,5,2)&"/"&RIGHT($NR24,2),IF(LEFT($NS24,6)=LEFT(FE$5,6),MID($NS24,5,2)&"/"&RIGHT($NS24,2)&"～"&MID($NT24,5,2)&"/"&RIGHT($NT24,2),IF(LEFT($NU24,6)=LEFT(FE$5,6),MID($NU24,5,2)&"/"&RIGHT($NU24,2)&"～"&MID($NV24,5,2)&"/"&RIGHT($NV24,2),IF(LEFT($NW24,6)=LEFT(FE$5,6),MID($NW24,5,2)&"/"&RIGHT($NW24,2)&"～"&MID($NX24,5,2)&"/"&RIGHT($NX24,2),IF(LEFT($NY24,6)=LEFT(FE$5,6),MID($NY24,5,2)&"/"&RIGHT($NY24,2)&"～"&MID($NZ24,5,2)&"/"&RIGHT($NZ24,2),"")))))) ->  | GI26: =IF(LEFT($NO24,6)=LEFT(GI$5,6),MID($NO24,5,2)&"/"&RIGHT($NO24,2)&"～"&MID($NP24,5,2)&"/"&RIGHT($NP24,2),IF(LEFT($NQ24,6)=LEFT(GI$5,6),MID($NQ24,5,2)&"/"&RIGHT($NQ24,2)&"～"&MID($NR24,5,2)&"/"&RIGHT($NR24,2),IF(LEFT($NS24,6)=LEFT(GI$5,6),MID($NS24,5,2)&"/"&RIGHT($NS24,2)&"～"&MID($NT24,5,2)&"/"&RIGHT($NT24,2),IF(LEFT($NU24,6)=LEFT(GI$5,6),MID($NU24,5,2)&"/"&RIGHT($NU24,2)&"～"&MID($NV24,5,2)&"/"&RIGHT($NV24,2),IF(LEFT($NW24,6)=LEFT(GI$5,6),MID($NW24,5,2)&"/"&RIGHT($NW24,2)&"～"&MID($NX24,5,2)&"/"&RIGHT($NX24,2),IF(LEFT($NY24,6)=LEFT(GI$5,6),MID($NY24,5,2)&"/"&RIGHT($NY24,2)&"～"&MID($NZ24,5,2)&"/"&RIGHT($NZ24,2),"")))))) ->  | HN26: =IF(LEFT($NO24,6)=LEFT(HN$5,6),MID($NO24,5,2)&"/"&RIGHT($NO24,2)&"～"&MID($NP24,5,2)&"/"&RIGHT($NP24,2),IF(LEFT($NQ24,6)=LEFT(HN$5,6),MID($NQ24,5,2)&"/"&RIGHT($NQ24,2)&"～"&MID($NR24,5,2)&"/"&RIGHT($NR24,2),IF(LEFT($NS24,6)=LEFT(HN$5,6),MID($NS24,5,2)&"/"&RIGHT($NS24,2)&"～"&MID($NT24,5,2)&"/"&RIGHT($NT24,2),IF(LEFT($NU24,6)=LEFT(HN$5,6),MID($NU24,5,2)&"/"&RIGHT($NU24,2)&"～"&MID($NV24,5,2)&"/"&RIGHT($NV24,2),IF(LEFT($NW24,6)=LEFT(HN$5,6),MID($NW24,5,2)&"/"&RIGHT($NW24,2)&"～"&MID($NX24,5,2)&"/"&RIGHT($NX24,2),IF(LEFT($NY24,6)=LEFT(HN$5,6),MID($NY24,5,2)&"/"&RIGHT($NY24,2)&"～"&MID($NZ24,5,2)&"/"&RIGHT($NZ24,2),"")))))) ->  | IR26: =IF(LEFT($NO24,6)=LEFT(IR$5,6),MID($NO24,5,2)&"/"&RIGHT($NO24,2)&"～"&MID($NP24,5,2)&"/"&RIGHT($NP24,2),IF(LEFT($NQ24,6)=LEFT(IR$5,6),MID($NQ24,5,2)&"/"&RIGHT($NQ24,2)&"～"&MID($NR24,5,2)&"/"&RIGHT($NR24,2),IF(LEFT($NS24,6)=LEFT(IR$5,6),MID($NS24,5,2)&"/"&RIGHT($NS24,2)&"～"&MID($NT24,5,2)&"/"&RIGHT($NT24,2),IF(LEFT($NU24,6)=LEFT(IR$5,6),MID($NU24,5,2)&"/"&RIGHT($NU24,2)&"～"&MID($NV24,5,2)&"/"&RIGHT($NV24,2),IF(LEFT($NW24,6)=LEFT(IR$5,6),MID($NW24,5,2)&"/"&RIGHT($NW24,2)&"～"&MID($NX24,5,2)&"/"&RIGHT($NX24,2),IF(LEFT($NY24,6)=LEFT(IR$5,6),MID($NY24,5,2)&"/"&RIGHT($NY24,2)&"～"&MID($NZ24,5,2)&"/"&RIGHT($NZ24,2),"")))))) ->  | JW26: =IF(LEFT($NO24,6)=LEFT(JW$5,6),MID($NO24,5,2)&"/"&RIGHT($NO24,2)&"～"&MID($NP24,5,2)&"/"&RIGHT($NP24,2),IF(LEFT($NQ24,6)=LEFT(JW$5,6),MID($NQ24,5,2)&"/"&RIGHT($NQ24,2)&"～"&MID($NR24,5,2)&"/"&RIGHT($NR24,2),IF(LEFT($NS24,6)=LEFT(JW$5,6),MID($NS24,5,2)&"/"&RIGHT($NS24,2)&"～"&MID($NT24,5,2)&"/"&RIGHT($NT24,2),IF(LEFT($NU24,6)=LEFT(JW$5,6),MID($NU24,5,2)&"/"&RIGHT($NU24,2)&"～"&MID($NV24,5,2)&"/"&RIGHT($NV24,2),IF(LEFT($NW24,6)=LEFT(JW$5,6),MID($NW24,5,2)&"/"&RIGHT($NW24,2)&"～"&MID($NX24,5,2)&"/"&RIGHT($NX24,2),IF(LEFT($NY24,6)=LEFT(JW$5,6),MID($NY24,5,2)&"/"&RIGHT($NY24,2)&"～"&MID($NZ24,5,2)&"/"&RIGHT($NZ24,2),"")))))) ->  | LB26: =IF(LEFT($NO24,6)=LEFT(LB$5,6),MID($NO24,5,2)&"/"&RIGHT($NO24,2)&"～"&MID($NP24,5,2)&"/"&RIGHT($NP24,2),IF(LEFT($NQ24,6)=LEFT(LB$5,6),MID($NQ24,5,2)&"/"&RIGHT($NQ24,2)&"～"&MID($NR24,5,2)&"/"&RIGHT($NR24,2),IF(LEFT($NS24,6)=LEFT(LB$5,6),MID($NS24,5,2)&"/"&RIGHT($NS24,2)&"～"&MID($NT24,5,2)&"/"&RIGHT($NT24,2),IF(LEFT($NU24,6)=LEFT(LB$5,6),MID($NU24,5,2)&"/"&RIGHT($NU24,2)&"～"&MID($NV24,5,2)&"/"&RIGHT($NV24,2),IF(LEFT($NW24,6)=LEFT(LB$5,6),MID($NW24,5,2)&"/"&RIGHT($NW24,2)&"～"&MID($NX24,5,2)&"/"&RIGHT($NX24,2),IF(LEFT($NY24,6)=LEFT(LB$5,6),MID($NY24,5,2)&"/"&RIGHT($NY24,2)&"～"&MID($NZ24,5,2)&"/"&RIGHT($NZ24,2),"")))))) ->  | ME26: =IF(LEFT($NO24,6)=LEFT(ME$5,6),MID($NO24,5,2)&"/"&RIGHT($NO24,2)&"～"&MID($NP24,5,2)&"/"&RIGHT($NP24,2),IF(LEFT($NQ24,6)=LEFT(ME$5,6),MID($NQ24,5,2)&"/"&RIGHT($NQ24,2)&"～"&MID($NR24,5,2)&"/"&RIGHT($NR24,2),IF(LEFT($NS24,6)=LEFT(ME$5,6),MID($NS24,5,2)&"/"&RIGHT($NS24,2)&"～"&MID($NT24,5,2)&"/"&RIGHT($NT24,2),IF(LEFT($NU24,6)=LEFT(ME$5,6),MID($NU24,5,2)&"/"&RIGHT($NU24,2)&"～"&MID($NV24,5,2)&"/"&RIGHT($NV24,2),IF(LEFT($NW24,6)=LEFT(ME$5,6),MID($NW24,5,2)&"/"&RIGHT($NW24,2)&"～"&MID($NX24,5,2)&"/"&RIGHT($NX24,2),IF(LEFT($NY24,6)=LEFT(ME$5,6),MID($NY24,5,2)&"/"&RIGHT($NY24,2)&"～"&MID($NZ24,5,2)&"/"&RIGHT($NZ24,2),"")))))) -> 
C27: =IF($C$3="様式34-1_1年度目",IF('様式34-1_1年度目'!AC13="","",'様式34-1_1年度目'!AC13),IF($C$3="様式34-1_2年度目",IF('様式34-1_2年度目'!AC13="","",'様式34-1_2年度目'!AC13),"")) ->  | F27: =IF($C$3="様式34-1_1年度目",IF('様式34-1_1年度目'!AD13="","",'様式34-1_1年度目'!AD13&" "&'様式34-1_1年度目'!AE13),IF($C$3="様式34-1_2年度目",IF('様式34-1_2年度目'!AD13="","",'様式34-1_2年度目'!AD13&" "&'様式34-1_2年度目'!AE13),"")) ->  | G27: =IF($C$3="様式34-1_1年度目",IF('様式34-1_1年度目'!AF13="","",'様式34-1_1年度目'!AF13),IF($C$3="様式34-1_2年度目",IF('様式34-1_2年度目'!AF13="","",'様式34-1_2年度目'!AF13),"")) ->  | H27: =IF(AND($NO27<>"",$NO27<$H$5),"("&1+DATE(LEFT($NP27,4),MID($NP27,5,2),RIGHT($NP27,2))-DATE(LEFT($NO27,4),MID($NO27,5,2),RIGHT($NO27,2))&")",IF(LEFT($NO27,6)=LEFT(H$5,6),"("&1+DATE(LEFT($NP27,4),MID($NP27,5,2),RIGHT($NP27,2))-DATE(LEFT($NO27,4),MID($NO27,5,2),RIGHT($NO27,2))&")",IF(LEFT($NQ27,6)=LEFT(H$5,6),"("&1+DATE(LEFT($NR27,4),MID($NR27,5,2),RIGHT($NR27,2))-DATE(LEFT($NQ27,4),MID($NQ27,5,2),RIGHT($NQ27,2))&")",IF(LEFT($NS27,6)=LEFT(H$5,6),"("&1+DATE(LEFT($NT27,4),MID($NT27,5,2),RIGHT($NT27,2))-DATE(LEFT($NS27,4),MID($NS27,5,2),RIGHT($NS27,2))&")",IF(LEFT($NU27,6)=LEFT(H$5,6),"("&1+DATE(LEFT($NV27,4),MID($NV27,5,2),RIGHT($NV27,2))-DATE(LEFT($NU27,4),MID($NU27,5,2),RIGHT($NU27,2))&")",IF(LEFT($NW27,6)=LEFT(H$5,6),"("&1+DATE(LEFT($NX27,4),MID($NX27,5,2),RIGHT($NX27,2))-DATE(LEFT($NW27,4),MID($NW27,5,2),RIGHT($NW27,2))&")",IF(LEFT($NY27,6)=LEFT(H$5,6),"("&1+DATE(LEFT($NZ27,4),MID($NZ27,5,2),RIGHT($NZ27,2))-DATE(LEFT($NY27,4),MID($NY27,5,2),RIGHT($NY27,2))&")",""))))))) ->  | AL27: =IF(LEFT($NO27,6)=LEFT(AL$5,6),"("&1+DATE(LEFT($NP27,4),MID($NP27,5,2),RIGHT($NP27,2))-DATE(LEFT($NO27,4),MID($NO27,5,2),RIGHT($NO27,2))&")",IF(LEFT($NQ27,6)=LEFT(AL$5,6),"("&1+DATE(LEFT($NR27,4),MID($NR27,5,2),RIGHT($NR27,2))-DATE(LEFT($NQ27,4),MID($NQ27,5,2),RIGHT($NQ27,2))&")",IF(LEFT($NS27,6)=LEFT(AL$5,6),"("&1+DATE(LEFT($NT27,4),MID($NT27,5,2),RIGHT($NT27,2))-DATE(LEFT($NS27,4),MID($NS27,5,2),RIGHT($NS27,2))&")",IF(LEFT($NU27,6)=LEFT(AL$5,6),"("&1+DATE(LEFT($NV27,4),MID($NV27,5,2),RIGHT($NV27,2))-DATE(LEFT($NU27,4),MID($NU27,5,2),RIGHT($NU27,2))&")",IF(LEFT($NW27,6)=LEFT(AL$5,6),"("&1+DATE(LEFT($NX27,4),MID($NX27,5,2),RIGHT($NX27,2))-DATE(LEFT($NW27,4),MID($NW27,5,2),RIGHT($NW27,2))&")",IF(LEFT($NY27,6)=LEFT(AL$5,6),"("&1+DATE(LEFT($NZ27,4),MID($NZ27,5,2),RIGHT($NZ27,2))-DATE(LEFT($NY27,4),MID($NY27,5,2),RIGHT($NY27,2))&")","")))))) ->  | BQ27: =IF(LEFT($NO27,6)=LEFT(BQ$5,6),"("&1+DATE(LEFT($NP27,4),MID($NP27,5,2),RIGHT($NP27,2))-DATE(LEFT($NO27,4),MID($NO27,5,2),RIGHT($NO27,2))&")",IF(LEFT($NQ27,6)=LEFT(BQ$5,6),"("&1+DATE(LEFT($NR27,4),MID($NR27,5,2),RIGHT($NR27,2))-DATE(LEFT($NQ27,4),MID($NQ27,5,2),RIGHT($NQ27,2))&")",IF(LEFT($NS27,6)=LEFT(BQ$5,6),"("&1+DATE(LEFT($NT27,4),MID($NT27,5,2),RIGHT($NT27,2))-DATE(LEFT($NS27,4),MID($NS27,5,2),RIGHT($NS27,2))&")",IF(LEFT($NU27,6)=LEFT(BQ$5,6),"("&1+DATE(LEFT($NV27,4),MID($NV27,5,2),RIGHT($NV27,2))-DATE(LEFT($NU27,4),MID($NU27,5,2),RIGHT($NU27,2))&")",IF(LEFT($NW27,6)=LEFT(BQ$5,6),"("&1+DATE(LEFT($NX27,4),MID($NX27,5,2),RIGHT($NX27,2))-DATE(LEFT($NW27,4),MID($NW27,5,2),RIGHT($NW27,2))&")",IF(LEFT($NY27,6)=LEFT(BQ$5,6),"("&1+DATE(LEFT($NZ27,4),MID($NZ27,5,2),RIGHT($NZ27,2))-DATE(LEFT($NY27,4),MID($NY27,5,2),RIGHT($NY27,2))&")","")))))) ->  | CU27: =IF(LEFT($NO27,6)=LEFT(CU$5,6),"("&1+DATE(LEFT($NP27,4),MID($NP27,5,2),RIGHT($NP27,2))-DATE(LEFT($NO27,4),MID($NO27,5,2),RIGHT($NO27,2))&")",IF(LEFT($NQ27,6)=LEFT(CU$5,6),"("&1+DATE(LEFT($NR27,4),MID($NR27,5,2),RIGHT($NR27,2))-DATE(LEFT($NQ27,4),MID($NQ27,5,2),RIGHT($NQ27,2))&")",IF(LEFT($NS27,6)=LEFT(CU$5,6),"("&1+DATE(LEFT($NT27,4),MID($NT27,5,2),RIGHT($NT27,2))-DATE(LEFT($NS27,4),MID($NS27,5,2),RIGHT($NS27,2))&")",IF(LEFT($NU27,6)=LEFT(CU$5,6),"("&1+DATE(LEFT($NV27,4),MID($NV27,5,2),RIGHT($NV27,2))-DATE(LEFT($NU27,4),MID($NU27,5,2),RIGHT($NU27,2))&")",IF(LEFT($NW27,6)=LEFT(CU$5,6),"("&1+DATE(LEFT($NX27,4),MID($NX27,5,2),RIGHT($NX27,2))-DATE(LEFT($NW27,4),MID($NW27,5,2),RIGHT($NW27,2))&")",IF(LEFT($NY27,6)=LEFT(CU$5,6),"("&1+DATE(LEFT($NZ27,4),MID($NZ27,5,2),RIGHT($NZ27,2))-DATE(LEFT($NY27,4),MID($NY27,5,2),RIGHT($NY27,2))&")","")))))) ->  | DZ27: =IF(LEFT($NO27,6)=LEFT(DZ$5,6),"("&1+DATE(LEFT($NP27,4),MID($NP27,5,2),RIGHT($NP27,2))-DATE(LEFT($NO27,4),MID($NO27,5,2),RIGHT($NO27,2))&")",IF(LEFT($NQ27,6)=LEFT(DZ$5,6),"("&1+DATE(LEFT($NR27,4),MID($NR27,5,2),RIGHT($NR27,2))-DATE(LEFT($NQ27,4),MID($NQ27,5,2),RIGHT($NQ27,2))&")",IF(LEFT($NS27,6)=LEFT(DZ$5,6),"("&1+DATE(LEFT($NT27,4),MID($NT27,5,2),RIGHT($NT27,2))-DATE(LEFT($NS27,4),MID($NS27,5,2),RIGHT($NS27,2))&")",IF(LEFT($NU27,6)=LEFT(DZ$5,6),"("&1+DATE(LEFT($NV27,4),MID($NV27,5,2),RIGHT($NV27,2))-DATE(LEFT($NU27,4),MID($NU27,5,2),RIGHT($NU27,2))&")",IF(LEFT($NW27,6)=LEFT(DZ$5,6),"("&1+DATE(LEFT($NX27,4),MID($NX27,5,2),RIGHT($NX27,2))-DATE(LEFT($NW27,4),MID($NW27,5,2),RIGHT($NW27,2))&")",IF(LEFT($NY27,6)=LEFT(DZ$5,6),"("&1+DATE(LEFT($NZ27,4),MID($NZ27,5,2),RIGHT($NZ27,2))-DATE(LEFT($NY27,4),MID($NY27,5,2),RIGHT($NY27,2))&")","")))))) ->  | FE27: =IF(LEFT($NO27,6)=LEFT(FE$5,6),"("&1+DATE(LEFT($NP27,4),MID($NP27,5,2),RIGHT($NP27,2))-DATE(LEFT($NO27,4),MID($NO27,5,2),RIGHT($NO27,2))&")",IF(LEFT($NQ27,6)=LEFT(FE$5,6),"("&1+DATE(LEFT($NR27,4),MID($NR27,5,2),RIGHT($NR27,2))-DATE(LEFT($NQ27,4),MID($NQ27,5,2),RIGHT($NQ27,2))&")",IF(LEFT($NS27,6)=LEFT(FE$5,6),"("&1+DATE(LEFT($NT27,4),MID($NT27,5,2),RIGHT($NT27,2))-DATE(LEFT($NS27,4),MID($NS27,5,2),RIGHT($NS27,2))&")",IF(LEFT($NU27,6)=LEFT(FE$5,6),"("&1+DATE(LEFT($NV27,4),MID($NV27,5,2),RIGHT($NV27,2))-DATE(LEFT($NU27,4),MID($NU27,5,2),RIGHT($NU27,2))&")",IF(LEFT($NW27,6)=LEFT(FE$5,6),"("&1+DATE(LEFT($NX27,4),MID($NX27,5,2),RIGHT($NX27,2))-DATE(LEFT($NW27,4),MID($NW27,5,2),RIGHT($NW27,2))&")",IF(LEFT($NY27,6)=LEFT(FE$5,6),"("&1+DATE(LEFT($NZ27,4),MID($NZ27,5,2),RIGHT($NZ27,2))-DATE(LEFT($NY27,4),MID($NY27,5,2),RIGHT($NY27,2))&")","")))))) ->  | GI27: =IF(LEFT($NO27,6)=LEFT(GI$5,6),"("&1+DATE(LEFT($NP27,4),MID($NP27,5,2),RIGHT($NP27,2))-DATE(LEFT($NO27,4),MID($NO27,5,2),RIGHT($NO27,2))&")",IF(LEFT($NQ27,6)=LEFT(GI$5,6),"("&1+DATE(LEFT($NR27,4),MID($NR27,5,2),RIGHT($NR27,2))-DATE(LEFT($NQ27,4),MID($NQ27,5,2),RIGHT($NQ27,2))&")",IF(LEFT($NS27,6)=LEFT(GI$5,6),"("&1+DATE(LEFT($NT27,4),MID($NT27,5,2),RIGHT($NT27,2))-DATE(LEFT($NS27,4),MID($NS27,5,2),RIGHT($NS27,2))&")",IF(LEFT($NU27,6)=LEFT(GI$5,6),"("&1+DATE(LEFT($NV27,4),MID($NV27,5,2),RIGHT($NV27,2))-DATE(LEFT($NU27,4),MID($NU27,5,2),RIGHT($NU27,2))&")",IF(LEFT($NW27,6)=LEFT(GI$5,6),"("&1+DATE(LEFT($NX27,4),MID($NX27,5,2),RIGHT($NX27,2))-DATE(LEFT($NW27,4),MID($NW27,5,2),RIGHT($NW27,2))&")",IF(LEFT($NY27,6)=LEFT(GI$5,6),"("&1+DATE(LEFT($NZ27,4),MID($NZ27,5,2),RIGHT($NZ27,2))-DATE(LEFT($NY27,4),MID($NY27,5,2),RIGHT($NY27,2))&")","")))))) ->  | HN27: =IF(LEFT($NO27,6)=LEFT(HN$5,6),"("&1+DATE(LEFT($NP27,4),MID($NP27,5,2),RIGHT($NP27,2))-DATE(LEFT($NO27,4),MID($NO27,5,2),RIGHT($NO27,2))&")",IF(LEFT($NQ27,6)=LEFT(HN$5,6),"("&1+DATE(LEFT($NR27,4),MID($NR27,5,2),RIGHT($NR27,2))-DATE(LEFT($NQ27,4),MID($NQ27,5,2),RIGHT($NQ27,2))&")",IF(LEFT($NS27,6)=LEFT(HN$5,6),"("&1+DATE(LEFT($NT27,4),MID($NT27,5,2),RIGHT($NT27,2))-DATE(LEFT($NS27,4),MID($NS27,5,2),RIGHT($NS27,2))&")",IF(LEFT($NU27,6)=LEFT(HN$5,6),"("&1+DATE(LEFT($NV27,4),MID($NV27,5,2),RIGHT($NV27,2))-DATE(LEFT($NU27,4),MID($NU27,5,2),RIGHT($NU27,2))&")",IF(LEFT($NW27,6)=LEFT(HN$5,6),"("&1+DATE(LEFT($NX27,4),MID($NX27,5,2),RIGHT($NX27,2))-DATE(LEFT($NW27,4),MID($NW27,5,2),RIGHT($NW27,2))&")",IF(LEFT($NY27,6)=LEFT(HN$5,6),"("&1+DATE(LEFT($NZ27,4),MID($NZ27,5,2),RIGHT($NZ27,2))-DATE(LEFT($NY27,4),MID($NY27,5,2),RIGHT($NY27,2))&")","")))))) ->  | IR27: =IF(LEFT($NO27,6)=LEFT(IR$5,6),"("&1+DATE(LEFT($NP27,4),MID($NP27,5,2),RIGHT($NP27,2))-DATE(LEFT($NO27,4),MID($NO27,5,2),RIGHT($NO27,2))&")",IF(LEFT($NQ27,6)=LEFT(IR$5,6),"("&1+DATE(LEFT($NR27,4),MID($NR27,5,2),RIGHT($NR27,2))-DATE(LEFT($NQ27,4),MID($NQ27,5,2),RIGHT($NQ27,2))&")",IF(LEFT($NS27,6)=LEFT(IR$5,6),"("&1+DATE(LEFT($NT27,4),MID($NT27,5,2),RIGHT($NT27,2))-DATE(LEFT($NS27,4),MID($NS27,5,2),RIGHT($NS27,2))&")",IF(LEFT($NU27,6)=LEFT(IR$5,6),"("&1+DATE(LEFT($NV27,4),MID($NV27,5,2),RIGHT($NV27,2))-DATE(LEFT($NU27,4),MID($NU27,5,2),RIGHT($NU27,2))&")",IF(LEFT($NW27,6)=LEFT(IR$5,6),"("&1+DATE(LEFT($NX27,4),MID($NX27,5,2),RIGHT($NX27,2))-DATE(LEFT($NW27,4),MID($NW27,5,2),RIGHT($NW27,2))&")",IF(LEFT($NY27,6)=LEFT(IR$5,6),"("&1+DATE(LEFT($NZ27,4),MID($NZ27,5,2),RIGHT($NZ27,2))-DATE(LEFT($NY27,4),MID($NY27,5,2),RIGHT($NY27,2))&")","")))))) ->  | JW27: =IF(LEFT($NO27,6)=LEFT(JW$5,6),"("&1+DATE(LEFT($NP27,4),MID($NP27,5,2),RIGHT($NP27,2))-DATE(LEFT($NO27,4),MID($NO27,5,2),RIGHT($NO27,2))&")",IF(LEFT($NQ27,6)=LEFT(JW$5,6),"("&1+DATE(LEFT($NR27,4),MID($NR27,5,2),RIGHT($NR27,2))-DATE(LEFT($NQ27,4),MID($NQ27,5,2),RIGHT($NQ27,2))&")",IF(LEFT($NS27,6)=LEFT(JW$5,6),"("&1+DATE(LEFT($NT27,4),MID($NT27,5,2),RIGHT($NT27,2))-DATE(LEFT($NS27,4),MID($NS27,5,2),RIGHT($NS27,2))&")",IF(LEFT($NU27,6)=LEFT(JW$5,6),"("&1+DATE(LEFT($NV27,4),MID($NV27,5,2),RIGHT($NV27,2))-DATE(LEFT($NU27,4),MID($NU27,5,2),RIGHT($NU27,2))&")",IF(LEFT($NW27,6)=LEFT(JW$5,6),"("&1+DATE(LEFT($NX27,4),MID($NX27,5,2),RIGHT($NX27,2))-DATE(LEFT($NW27,4),MID($NW27,5,2),RIGHT($NW27,2))&")",IF(LEFT($NY27,6)=LEFT(JW$5,6),"("&1+DATE(LEFT($NZ27,4),MID($NZ27,5,2),RIGHT($NZ27,2))-DATE(LEFT($NY27,4),MID($NY27,5,2),RIGHT($NY27,2))&")","")))))) ->  | LB27: =IF(LEFT($NO27,6)=LEFT(LB$5,6),"("&1+DATE(LEFT($NP27,4),MID($NP27,5,2),RIGHT($NP27,2))-DATE(LEFT($NO27,4),MID($NO27,5,2),RIGHT($NO27,2))&")",IF(LEFT($NQ27,6)=LEFT(LB$5,6),"("&1+DATE(LEFT($NR27,4),MID($NR27,5,2),RIGHT($NR27,2))-DATE(LEFT($NQ27,4),MID($NQ27,5,2),RIGHT($NQ27,2))&")",IF(LEFT($NS27,6)=LEFT(LB$5,6),"("&1+DATE(LEFT($NT27,4),MID($NT27,5,2),RIGHT($NT27,2))-DATE(LEFT($NS27,4),MID($NS27,5,2),RIGHT($NS27,2))&")",IF(LEFT($NU27,6)=LEFT(LB$5,6),"("&1+DATE(LEFT($NV27,4),MID($NV27,5,2),RIGHT($NV27,2))-DATE(LEFT($NU27,4),MID($NU27,5,2),RIGHT($NU27,2))&")",IF(LEFT($NW27,6)=LEFT(LB$5,6),"("&1+DATE(LEFT($NX27,4),MID($NX27,5,2),RIGHT($NX27,2))-DATE(LEFT($NW27,4),MID($NW27,5,2),RIGHT($NW27,2))&")",IF(LEFT($NY27,6)=LEFT(LB$5,6),"("&1+DATE(LEFT($NZ27,4),MID($NZ27,5,2),RIGHT($NZ27,2))-DATE(LEFT($NY27,4),MID($NY27,5,2),RIGHT($NY27,2))&")","")))))) ->  | ME27: =IF(LEFT($NO27,6)=LEFT(ME$5,6),"("&1+DATE(LEFT($NP27,4),MID($NP27,5,2),RIGHT($NP27,2))-DATE(LEFT($NO27,4),MID($NO27,5,2),RIGHT($NO27,2))&")",IF(LEFT($NQ27,6)=LEFT(ME$5,6),"("&1+DATE(LEFT($NR27,4),MID($NR27,5,2),RIGHT($NR27,2))-DATE(LEFT($NQ27,4),MID($NQ27,5,2),RIGHT($NQ27,2))&")",IF(LEFT($NS27,6)=LEFT(ME$5,6),"("&1+DATE(LEFT($NT27,4),MID($NT27,5,2),RIGHT($NT27,2))-DATE(LEFT($NS27,4),MID($NS27,5,2),RIGHT($NS27,2))&")",IF(LEFT($NU27,6)=LEFT(ME$5,6),"("&1+DATE(LEFT($NV27,4),MID($NV27,5,2),RIGHT($NV27,2))-DATE(LEFT($NU27,4),MID($NU27,5,2),RIGHT($NU27,2))&")",IF(LEFT($NW27,6)=LEFT(ME$5,6),"("&1+DATE(LEFT($NX27,4),MID($NX27,5,2),RIGHT($NX27,2))-DATE(LEFT($NW27,4),MID($NW27,5,2),RIGHT($NW27,2))&")",IF(LEFT($NY27,6)=LEFT(ME$5,6),"("&1+DATE(LEFT($NZ27,4),MID($NZ27,5,2),RIGHT($NZ27,2))-DATE(LEFT($NY27,4),MID($NY27,5,2),RIGHT($NY27,2))&")","")))))) ->  | NK27: =IF($C$3="様式34-1_1年度目",IF('様式34-1_1年度目'!AS13="","",'様式34-1_1年度目'!AS13),IF($C$3="様式34-1_2年度目",IF('様式34-1_2年度目'!AS13="","",'様式34-1_2年度目'!AS13),"")) ->  | NM27: 6 | NN27: 補修期間→ | NO27: =IF($C$3="様式34-1_1年度目",IF('様式34-1_1年度目'!AT13="","",VALUE(TEXT('様式34-1_1年度目'!AT13,"yyyymmdd"))),IF($C$3="様式34-1_2年度目",IF('様式34-1_2年度目'!AT13="","",VALUE(TEXT('様式34-1_2年度目'!AT13,"yyyymmdd"))),"")) ->  | NP27: =IF($C$3="様式34-1_1年度目",IF('様式34-1_1年度目'!AU13="","",VALUE(TEXT('様式34-1_1年度目'!AU13,"yyyymmdd"))),IF($C$3="様式34-1_2年度目",IF('様式34-1_2年度目'!AU13="","",VALUE(TEXT('様式34-1_2年度目'!AU13,"yyyymmdd"))),"")) ->  | NQ27: =IF($C$3="様式34-1_1年度目",IF('様式34-1_1年度目'!AW13="","",VALUE(TEXT('様式34-1_1年度目'!AW13,"yyyymmdd"))),IF($C$3="様式34-1_2年度目",IF('様式34-1_2年度目'!AW13="","",VALUE(TEXT('様式34-1_2年度目'!AW13,"yyyymmdd"))),"")) ->  | NR27: =IF($C$3="様式34-1_1年度目",IF('様式34-1_1年度目'!AX13="","",VALUE(TEXT('様式34-1_1年度目'!AX13,"yyyymmdd"))),IF($C$3="様式34-1_2年度目",IF('様式34-1_2年度目'!AX13="","",VALUE(TEXT('様式34-1_2年度目'!AX13,"yyyymmdd"))),"")) ->  | NS27: =IF($C$3="様式34-1_1年度目",IF('様式34-1_1年度目'!AZ13="","",VALUE(TEXT('様式34-1_1年度目'!AZ13,"yyyymmdd"))),IF($C$3="様式34-1_2年度目",IF('様式34-1_2年度目'!AZ13="","",VALUE(TEXT('様式34-1_2年度目'!AZ13,"yyyymmdd"))),"")) ->  | NT27: =IF($C$3="様式34-1_1年度目",IF('様式34-1_1年度目'!BA13="","",VALUE(TEXT('様式34-1_1年度目'!BA13,"yyyymmdd"))),IF($C$3="様式34-1_2年度目",IF('様式34-1_2年度目'!BA13="","",VALUE(TEXT('様式34-1_2年度目'!BA13,"yyyymmdd"))),"")) ->  | NU27: =IF($C$3="様式34-1_1年度目",IF('様式34-1_1年度目'!BC13="","",VALUE(TEXT('様式34-1_1年度目'!BC13,"yyyymmdd"))),IF($C$3="様式34-1_2年度目",IF('様式34-1_2年度目'!BC13="","",VALUE(TEXT('様式34-1_2年度目'!BC13,"yyyymmdd"))),"")) ->  | NV27: =IF($C$3="様式34-1_1年度目",IF('様式34-1_1年度目'!BD13="","",VALUE(TEXT('様式34-1_1年度目'!BD13,"yyyymmdd"))),IF($C$3="様式34-1_2年度目",IF('様式34-1_2年度目'!BD13="","",VALUE(TEXT('様式34-1_2年度目'!BD13,"yyyymmdd"))),"")) ->  | NW27: =IF($C$3="様式34-1_1年度目",IF('様式34-1_1年度目'!BF13="","",VALUE(TEXT('様式34-1_1年度目'!BF13,"yyyymmdd"))),IF($C$3="様式34-1_2年度目",IF('様式34-1_2年度目'!BF13="","",VALUE(TEXT('様式34-1_2年度目'!BF13,"yyyymmdd"))),"")) ->  | NX27: =IF($C$3="様式34-1_1年度目",IF('様式34-1_1年度目'!BG13="","",VALUE(TEXT('様式34-1_1年度目'!BG13,"yyyymmdd"))),IF($C$3="様式34-1_2年度目",IF('様式34-1_2年度目'!BG13="","",VALUE(TEXT('様式34-1_2年度目'!BG13,"yyyymmdd"))),"")) ->  | NY27: =IF($C$3="様式34-1_1年度目",IF('様式34-1_1年度目'!BI13="","",VALUE(TEXT('様式34-1_1年度目'!BI13,"yyyymmdd"))),IF($C$3="様式34-1_2年度目",IF('様式34-1_2年度目'!BI13="","",VALUE(TEXT('様式34-1_2年度目'!BI13,"yyyymmdd"))),"")) ->  | NZ27: =IF($C$3="様式34-1_1年度目",IF('様式34-1_1年度目'!BJ13="","",VALUE(TEXT('様式34-1_1年度目'!BJ13,"yyyymmdd"))),IF($C$3="様式34-1_2年度目",IF('様式34-1_2年度目'!BJ13="","",VALUE(TEXT('様式34-1_2年度目'!BJ13,"yyyymmdd"))),"")) -> 
H28: =+IF(OR(H$5=$NO27,H$5=$NQ27,H$5=$NS27,H$5=$NU27,H$5=$NW27,H$5=$NY27),1,IF(OR(AND($NO27<H$5,H$5<$NP27),AND($NQ27<H$5,H$5<$NR27),AND($NS27<H$5,H$5<$NT27),AND($NU27<H$5,H$5<$NV27),AND($NW27<H$5,H$5<$NX27),AND($NY27<H$5,H$5<$NZ27)),2,IF(OR(H$5=$NP27,H$5=$NR27,H$5=$NT27,H$5=$NV27,H$5=$NX27,H$5=$NZ27),3,""))) ->  | BT28: =+IF(OR(BT$5=$NO27,BT$5=$NQ27,BT$5=$NS27,BT$5=$NU27,BT$5=$NW27,BT$5=$NY27),1,IF(OR(AND($NO27<BT$5,BT$5<$NP27),AND($NQ27<BT$5,BT$5<$NR27),AND($NS27<BT$5,BT$5<$NT27),AND($NU27<BT$5,BT$5<$NV27),AND($NW27<BT$5,BT$5<$NX27),AND($NY27<BT$5,BT$5<$NZ27)),2,IF(OR(BT$5=$NP27,BT$5=$NR27,BT$5=$NT27,BT$5=$NV27,BT$5=$NX27,BT$5=$NZ27),3,""))) ->  | EF28: =+IF(OR(EF$5=$NO27,EF$5=$NQ27,EF$5=$NS27,EF$5=$NU27,EF$5=$NW27,EF$5=$NY27),1,IF(OR(AND($NO27<EF$5,EF$5<$NP27),AND($NQ27<EF$5,EF$5<$NR27),AND($NS27<EF$5,EF$5<$NT27),AND($NU27<EF$5,EF$5<$NV27),AND($NW27<EF$5,EF$5<$NX27),AND($NY27<EF$5,EF$5<$NZ27)),2,IF(OR(EF$5=$NP27,EF$5=$NR27,EF$5=$NT27,EF$5=$NV27,EF$5=$NX27,EF$5=$NZ27),3,""))) ->  | GR28: =+IF(OR(GR$5=$NO27,GR$5=$NQ27,GR$5=$NS27,GR$5=$NU27,GR$5=$NW27,GR$5=$NY27),1,IF(OR(AND($NO27<GR$5,GR$5<$NP27),AND($NQ27<GR$5,GR$5<$NR27),AND($NS27<GR$5,GR$5<$NT27),AND($NU27<GR$5,GR$5<$NV27),AND($NW27<GR$5,GR$5<$NX27),AND($NY27<GR$5,GR$5<$NZ27)),2,IF(OR(GR$5=$NP27,GR$5=$NR27,GR$5=$NT27,GR$5=$NV27,GR$5=$NX27,GR$5=$NZ27),3,""))) ->  | JD28: =+IF(OR(JD$5=$NO27,JD$5=$NQ27,JD$5=$NS27,JD$5=$NU27,JD$5=$NW27,JD$5=$NY27),1,IF(OR(AND($NO27<JD$5,JD$5<$NP27),AND($NQ27<JD$5,JD$5<$NR27),AND($NS27<JD$5,JD$5<$NT27),AND($NU27<JD$5,JD$5<$NV27),AND($NW27<JD$5,JD$5<$NX27),AND($NY27<JD$5,JD$5<$NZ27)),2,IF(OR(JD$5=$NP27,JD$5=$NR27,JD$5=$NT27,JD$5=$NV27,JD$5=$NX27,JD$5=$NZ27),3,""))) ->  | LP28: =+IF(OR(LP$5=$NO27,LP$5=$NQ27,LP$5=$NS27,LP$5=$NU27,LP$5=$NW27,LP$5=$NY27),1,IF(OR(AND($NO27<LP$5,LP$5<$NP27),AND($NQ27<LP$5,LP$5<$NR27),AND($NS27<LP$5,LP$5<$NT27),AND($NU27<LP$5,LP$5<$NV27),AND($NW27<LP$5,LP$5<$NX27),AND($NY27<LP$5,LP$5<$NZ27)),2,IF(OR(LP$5=$NP27,LP$5=$NR27,LP$5=$NT27,LP$5=$NV27,LP$5=$NX27,LP$5=$NZ27),3,""))) -> 
H29: =IF(AND($NO27<>"",$NO27<$H$5),MID($NO27,5,2)&"/"&RIGHT($NO27,2)&"～"&MID($NP27,5,2)&"/"&RIGHT($NP27,2),IF(LEFT($NO27,6)=LEFT(H$5,6),MID($NO27,5,2)&"/"&RIGHT($NO27,2)&"～"&MID($NP27,5,2)&"/"&RIGHT($NP27,2),IF(LEFT($NQ27,6)=LEFT(H$5,6),MID($NQ27,5,2)&"/"&RIGHT($NQ27,2)&"～"&MID($NR27,5,2)&"/"&RIGHT($NR27,2),IF(LEFT($NS27,6)=LEFT(H$5,6),MID($NS27,5,2)&"/"&RIGHT($NS27,2)&"～"&MID($NT27,5,2)&"/"&RIGHT($NT27,2),IF(LEFT($NU27,6)=LEFT(H$5,6),MID($NU27,5,2)&"/"&RIGHT($NU27,2)&"～"&MID($NV27,5,2)&"/"&RIGHT($NV27,2),IF(LEFT($NW27,6)=LEFT(H$5,6),MID($NW27,5,2)&"/"&RIGHT($NW27,2)&"～"&MID($NX27,5,2)&"/"&RIGHT($NX27,2),IF(LEFT($NY27,6)=LEFT(H$5,6),MID($NY27,5,2)&"/"&RIGHT($NY27,2)&"～"&MID($NZ27,5,2)&"/"&RIGHT($NZ27,2),""))))))) ->  | AL29: =IF(LEFT($NO27,6)=LEFT(AL$5,6),MID($NO27,5,2)&"/"&RIGHT($NO27,2)&"～"&MID($NP27,5,2)&"/"&RIGHT($NP27,2),IF(LEFT($NQ27,6)=LEFT(AL$5,6),MID($NQ27,5,2)&"/"&RIGHT($NQ27,2)&"～"&MID($NR27,5,2)&"/"&RIGHT($NR27,2),IF(LEFT($NS27,6)=LEFT(AL$5,6),MID($NS27,5,2)&"/"&RIGHT($NS27,2)&"～"&MID($NT27,5,2)&"/"&RIGHT($NT27,2),IF(LEFT($NU27,6)=LEFT(AL$5,6),MID($NU27,5,2)&"/"&RIGHT($NU27,2)&"～"&MID($NV27,5,2)&"/"&RIGHT($NV27,2),IF(LEFT($NW27,6)=LEFT(AL$5,6),MID($NW27,5,2)&"/"&RIGHT($NW27,2)&"～"&MID($NX27,5,2)&"/"&RIGHT($NX27,2),IF(LEFT($NY27,6)=LEFT(AL$5,6),MID($NY27,5,2)&"/"&RIGHT($NY27,2)&"～"&MID($NZ27,5,2)&"/"&RIGHT($NZ27,2),"")))))) ->  | BQ29: =IF(LEFT($NO27,6)=LEFT(BQ$5,6),MID($NO27,5,2)&"/"&RIGHT($NO27,2)&"～"&MID($NP27,5,2)&"/"&RIGHT($NP27,2),IF(LEFT($NQ27,6)=LEFT(BQ$5,6),MID($NQ27,5,2)&"/"&RIGHT($NQ27,2)&"～"&MID($NR27,5,2)&"/"&RIGHT($NR27,2),IF(LEFT($NS27,6)=LEFT(BQ$5,6),MID($NS27,5,2)&"/"&RIGHT($NS27,2)&"～"&MID($NT27,5,2)&"/"&RIGHT($NT27,2),IF(LEFT($NU27,6)=LEFT(BQ$5,6),MID($NU27,5,2)&"/"&RIGHT($NU27,2)&"～"&MID($NV27,5,2)&"/"&RIGHT($NV27,2),IF(LEFT($NW27,6)=LEFT(BQ$5,6),MID($NW27,5,2)&"/"&RIGHT($NW27,2)&"～"&MID($NX27,5,2)&"/"&RIGHT($NX27,2),IF(LEFT($NY27,6)=LEFT(BQ$5,6),MID($NY27,5,2)&"/"&RIGHT($NY27,2)&"～"&MID($NZ27,5,2)&"/"&RIGHT($NZ27,2),"")))))) ->  | CU29: =IF(LEFT($NO27,6)=LEFT(CU$5,6),MID($NO27,5,2)&"/"&RIGHT($NO27,2)&"～"&MID($NP27,5,2)&"/"&RIGHT($NP27,2),IF(LEFT($NQ27,6)=LEFT(CU$5,6),MID($NQ27,5,2)&"/"&RIGHT($NQ27,2)&"～"&MID($NR27,5,2)&"/"&RIGHT($NR27,2),IF(LEFT($NS27,6)=LEFT(CU$5,6),MID($NS27,5,2)&"/"&RIGHT($NS27,2)&"～"&MID($NT27,5,2)&"/"&RIGHT($NT27,2),IF(LEFT($NU27,6)=LEFT(CU$5,6),MID($NU27,5,2)&"/"&RIGHT($NU27,2)&"～"&MID($NV27,5,2)&"/"&RIGHT($NV27,2),IF(LEFT($NW27,6)=LEFT(CU$5,6),MID($NW27,5,2)&"/"&RIGHT($NW27,2)&"～"&MID($NX27,5,2)&"/"&RIGHT($NX27,2),IF(LEFT($NY27,6)=LEFT(CU$5,6),MID($NY27,5,2)&"/"&RIGHT($NY27,2)&"～"&MID($NZ27,5,2)&"/"&RIGHT($NZ27,2),"")))))) ->  | DZ29: =IF(LEFT($NO27,6)=LEFT(DZ$5,6),MID($NO27,5,2)&"/"&RIGHT($NO27,2)&"～"&MID($NP27,5,2)&"/"&RIGHT($NP27,2),IF(LEFT($NQ27,6)=LEFT(DZ$5,6),MID($NQ27,5,2)&"/"&RIGHT($NQ27,2)&"～"&MID($NR27,5,2)&"/"&RIGHT($NR27,2),IF(LEFT($NS27,6)=LEFT(DZ$5,6),MID($NS27,5,2)&"/"&RIGHT($NS27,2)&"～"&MID($NT27,5,2)&"/"&RIGHT($NT27,2),IF(LEFT($NU27,6)=LEFT(DZ$5,6),MID($NU27,5,2)&"/"&RIGHT($NU27,2)&"～"&MID($NV27,5,2)&"/"&RIGHT($NV27,2),IF(LEFT($NW27,6)=LEFT(DZ$5,6),MID($NW27,5,2)&"/"&RIGHT($NW27,2)&"～"&MID($NX27,5,2)&"/"&RIGHT($NX27,2),IF(LEFT($NY27,6)=LEFT(DZ$5,6),MID($NY27,5,2)&"/"&RIGHT($NY27,2)&"～"&MID($NZ27,5,2)&"/"&RIGHT($NZ27,2),"")))))) ->  | FE29: =IF(LEFT($NO27,6)=LEFT(FE$5,6),MID($NO27,5,2)&"/"&RIGHT($NO27,2)&"～"&MID($NP27,5,2)&"/"&RIGHT($NP27,2),IF(LEFT($NQ27,6)=LEFT(FE$5,6),MID($NQ27,5,2)&"/"&RIGHT($NQ27,2)&"～"&MID($NR27,5,2)&"/"&RIGHT($NR27,2),IF(LEFT($NS27,6)=LEFT(FE$5,6),MID($NS27,5,2)&"/"&RIGHT($NS27,2)&"～"&MID($NT27,5,2)&"/"&RIGHT($NT27,2),IF(LEFT($NU27,6)=LEFT(FE$5,6),MID($NU27,5,2)&"/"&RIGHT($NU27,2)&"～"&MID($NV27,5,2)&"/"&RIGHT($NV27,2),IF(LEFT($NW27,6)=LEFT(FE$5,6),MID($NW27,5,2)&"/"&RIGHT($NW27,2)&"～"&MID($NX27,5,2)&"/"&RIGHT($NX27,2),IF(LEFT($NY27,6)=LEFT(FE$5,6),MID($NY27,5,2)&"/"&RIGHT($NY27,2)&"～"&MID($NZ27,5,2)&"/"&RIGHT($NZ27,2),"")))))) ->  | GI29: =IF(LEFT($NO27,6)=LEFT(GI$5,6),MID($NO27,5,2)&"/"&RIGHT($NO27,2)&"～"&MID($NP27,5,2)&"/"&RIGHT($NP27,2),IF(LEFT($NQ27,6)=LEFT(GI$5,6),MID($NQ27,5,2)&"/"&RIGHT($NQ27,2)&"～"&MID($NR27,5,2)&"/"&RIGHT($NR27,2),IF(LEFT($NS27,6)=LEFT(GI$5,6),MID($NS27,5,2)&"/"&RIGHT($NS27,2)&"～"&MID($NT27,5,2)&"/"&RIGHT($NT27,2),IF(LEFT($NU27,6)=LEFT(GI$5,6),MID($NU27,5,2)&"/"&RIGHT($NU27,2)&"～"&MID($NV27,5,2)&"/"&RIGHT($NV27,2),IF(LEFT($NW27,6)=LEFT(GI$5,6),MID($NW27,5,2)&"/"&RIGHT($NW27,2)&"～"&MID($NX27,5,2)&"/"&RIGHT($NX27,2),IF(LEFT($NY27,6)=LEFT(GI$5,6),MID($NY27,5,2)&"/"&RIGHT($NY27,2)&"～"&MID($NZ27,5,2)&"/"&RIGHT($NZ27,2),"")))))) ->  | HN29: =IF(LEFT($NO27,6)=LEFT(HN$5,6),MID($NO27,5,2)&"/"&RIGHT($NO27,2)&"～"&MID($NP27,5,2)&"/"&RIGHT($NP27,2),IF(LEFT($NQ27,6)=LEFT(HN$5,6),MID($NQ27,5,2)&"/"&RIGHT($NQ27,2)&"～"&MID($NR27,5,2)&"/"&RIGHT($NR27,2),IF(LEFT($NS27,6)=LEFT(HN$5,6),MID($NS27,5,2)&"/"&RIGHT($NS27,2)&"～"&MID($NT27,5,2)&"/"&RIGHT($NT27,2),IF(LEFT($NU27,6)=LEFT(HN$5,6),MID($NU27,5,2)&"/"&RIGHT($NU27,2)&"～"&MID($NV27,5,2)&"/"&RIGHT($NV27,2),IF(LEFT($NW27,6)=LEFT(HN$5,6),MID($NW27,5,2)&"/"&RIGHT($NW27,2)&"～"&MID($NX27,5,2)&"/"&RIGHT($NX27,2),IF(LEFT($NY27,6)=LEFT(HN$5,6),MID($NY27,5,2)&"/"&RIGHT($NY27,2)&"～"&MID($NZ27,5,2)&"/"&RIGHT($NZ27,2),"")))))) ->  | IR29: =IF(LEFT($NO27,6)=LEFT(IR$5,6),MID($NO27,5,2)&"/"&RIGHT($NO27,2)&"～"&MID($NP27,5,2)&"/"&RIGHT($NP27,2),IF(LEFT($NQ27,6)=LEFT(IR$5,6),MID($NQ27,5,2)&"/"&RIGHT($NQ27,2)&"～"&MID($NR27,5,2)&"/"&RIGHT($NR27,2),IF(LEFT($NS27,6)=LEFT(IR$5,6),MID($NS27,5,2)&"/"&RIGHT($NS27,2)&"～"&MID($NT27,5,2)&"/"&RIGHT($NT27,2),IF(LEFT($NU27,6)=LEFT(IR$5,6),MID($NU27,5,2)&"/"&RIGHT($NU27,2)&"～"&MID($NV27,5,2)&"/"&RIGHT($NV27,2),IF(LEFT($NW27,6)=LEFT(IR$5,6),MID($NW27,5,2)&"/"&RIGHT($NW27,2)&"～"&MID($NX27,5,2)&"/"&RIGHT($NX27,2),IF(LEFT($NY27,6)=LEFT(IR$5,6),MID($NY27,5,2)&"/"&RIGHT($NY27,2)&"～"&MID($NZ27,5,2)&"/"&RIGHT($NZ27,2),"")))))) ->  | JW29: =IF(LEFT($NO27,6)=LEFT(JW$5,6),MID($NO27,5,2)&"/"&RIGHT($NO27,2)&"～"&MID($NP27,5,2)&"/"&RIGHT($NP27,2),IF(LEFT($NQ27,6)=LEFT(JW$5,6),MID($NQ27,5,2)&"/"&RIGHT($NQ27,2)&"～"&MID($NR27,5,2)&"/"&RIGHT($NR27,2),IF(LEFT($NS27,6)=LEFT(JW$5,6),MID($NS27,5,2)&"/"&RIGHT($NS27,2)&"～"&MID($NT27,5,2)&"/"&RIGHT($NT27,2),IF(LEFT($NU27,6)=LEFT(JW$5,6),MID($NU27,5,2)&"/"&RIGHT($NU27,2)&"～"&MID($NV27,5,2)&"/"&RIGHT($NV27,2),IF(LEFT($NW27,6)=LEFT(JW$5,6),MID($NW27,5,2)&"/"&RIGHT($NW27,2)&"～"&MID($NX27,5,2)&"/"&RIGHT($NX27,2),IF(LEFT($NY27,6)=LEFT(JW$5,6),MID($NY27,5,2)&"/"&RIGHT($NY27,2)&"～"&MID($NZ27,5,2)&"/"&RIGHT($NZ27,2),"")))))) ->  | LB29: =IF(LEFT($NO27,6)=LEFT(LB$5,6),MID($NO27,5,2)&"/"&RIGHT($NO27,2)&"～"&MID($NP27,5,2)&"/"&RIGHT($NP27,2),IF(LEFT($NQ27,6)=LEFT(LB$5,6),MID($NQ27,5,2)&"/"&RIGHT($NQ27,2)&"～"&MID($NR27,5,2)&"/"&RIGHT($NR27,2),IF(LEFT($NS27,6)=LEFT(LB$5,6),MID($NS27,5,2)&"/"&RIGHT($NS27,2)&"～"&MID($NT27,5,2)&"/"&RIGHT($NT27,2),IF(LEFT($NU27,6)=LEFT(LB$5,6),MID($NU27,5,2)&"/"&RIGHT($NU27,2)&"～"&MID($NV27,5,2)&"/"&RIGHT($NV27,2),IF(LEFT($NW27,6)=LEFT(LB$5,6),MID($NW27,5,2)&"/"&RIGHT($NW27,2)&"～"&MID($NX27,5,2)&"/"&RIGHT($NX27,2),IF(LEFT($NY27,6)=LEFT(LB$5,6),MID($NY27,5,2)&"/"&RIGHT($NY27,2)&"～"&MID($NZ27,5,2)&"/"&RIGHT($NZ27,2),"")))))) ->  | ME29: =IF(LEFT($NO27,6)=LEFT(ME$5,6),MID($NO27,5,2)&"/"&RIGHT($NO27,2)&"～"&MID($NP27,5,2)&"/"&RIGHT($NP27,2),IF(LEFT($NQ27,6)=LEFT(ME$5,6),MID($NQ27,5,2)&"/"&RIGHT($NQ27,2)&"～"&MID($NR27,5,2)&"/"&RIGHT($NR27,2),IF(LEFT($NS27,6)=LEFT(ME$5,6),MID($NS27,5,2)&"/"&RIGHT($NS27,2)&"～"&MID($NT27,5,2)&"/"&RIGHT($NT27,2),IF(LEFT($NU27,6)=LEFT(ME$5,6),MID($NU27,5,2)&"/"&RIGHT($NU27,2)&"～"&MID($NV27,5,2)&"/"&RIGHT($NV27,2),IF(LEFT($NW27,6)=LEFT(ME$5,6),MID($NW27,5,2)&"/"&RIGHT($NW27,2)&"～"&MID($NX27,5,2)&"/"&RIGHT($NX27,2),IF(LEFT($NY27,6)=LEFT(ME$5,6),MID($NY27,5,2)&"/"&RIGHT($NY27,2)&"～"&MID($NZ27,5,2)&"/"&RIGHT($NZ27,2),"")))))) -> 
C30: =IF($C$3="様式34-1_1年度目",IF('様式34-1_1年度目'!AC14="","",'様式34-1_1年度目'!AC14),IF($C$3="様式34-1_2年度目",IF('様式34-1_2年度目'!AC14="","",'様式34-1_2年度目'!AC14),"")) ->  | F30: =IF($C$3="様式34-1_1年度目",IF('様式34-1_1年度目'!AD14="","",'様式34-1_1年度目'!AD14&" "&'様式34-1_1年度目'!AE14),IF($C$3="様式34-1_2年度目",IF('様式34-1_2年度目'!AD14="","",'様式34-1_2年度目'!AD14&" "&'様式34-1_2年度目'!AE14),"")) ->  | G30: =IF($C$3="様式34-1_1年度目",IF('様式34-1_1年度目'!AF14="","",'様式34-1_1年度目'!AF14),IF($C$3="様式34-1_2年度目",IF('様式34-1_2年度目'!AF14="","",'様式34-1_2年度目'!AF14),"")) ->  | H30: =IF(AND($NO30<>"",$NO30<$H$5),"("&1+DATE(LEFT($NP30,4),MID($NP30,5,2),RIGHT($NP30,2))-DATE(LEFT($NO30,4),MID($NO30,5,2),RIGHT($NO30,2))&")",IF(LEFT($NO30,6)=LEFT(H$5,6),"("&1+DATE(LEFT($NP30,4),MID($NP30,5,2),RIGHT($NP30,2))-DATE(LEFT($NO30,4),MID($NO30,5,2),RIGHT($NO30,2))&")",IF(LEFT($NQ30,6)=LEFT(H$5,6),"("&1+DATE(LEFT($NR30,4),MID($NR30,5,2),RIGHT($NR30,2))-DATE(LEFT($NQ30,4),MID($NQ30,5,2),RIGHT($NQ30,2))&")",IF(LEFT($NS30,6)=LEFT(H$5,6),"("&1+DATE(LEFT($NT30,4),MID($NT30,5,2),RIGHT($NT30,2))-DATE(LEFT($NS30,4),MID($NS30,5,2),RIGHT($NS30,2))&")",IF(LEFT($NU30,6)=LEFT(H$5,6),"("&1+DATE(LEFT($NV30,4),MID($NV30,5,2),RIGHT($NV30,2))-DATE(LEFT($NU30,4),MID($NU30,5,2),RIGHT($NU30,2))&")",IF(LEFT($NW30,6)=LEFT(H$5,6),"("&1+DATE(LEFT($NX30,4),MID($NX30,5,2),RIGHT($NX30,2))-DATE(LEFT($NW30,4),MID($NW30,5,2),RIGHT($NW30,2))&")",IF(LEFT($NY30,6)=LEFT(H$5,6),"("&1+DATE(LEFT($NZ30,4),MID($NZ30,5,2),RIGHT($NZ30,2))-DATE(LEFT($NY30,4),MID($NY30,5,2),RIGHT($NY30,2))&")",""))))))) ->  | AL30: =IF(LEFT($NO30,6)=LEFT(AL$5,6),"("&1+DATE(LEFT($NP30,4),MID($NP30,5,2),RIGHT($NP30,2))-DATE(LEFT($NO30,4),MID($NO30,5,2),RIGHT($NO30,2))&")",IF(LEFT($NQ30,6)=LEFT(AL$5,6),"("&1+DATE(LEFT($NR30,4),MID($NR30,5,2),RIGHT($NR30,2))-DATE(LEFT($NQ30,4),MID($NQ30,5,2),RIGHT($NQ30,2))&")",IF(LEFT($NS30,6)=LEFT(AL$5,6),"("&1+DATE(LEFT($NT30,4),MID($NT30,5,2),RIGHT($NT30,2))-DATE(LEFT($NS30,4),MID($NS30,5,2),RIGHT($NS30,2))&")",IF(LEFT($NU30,6)=LEFT(AL$5,6),"("&1+DATE(LEFT($NV30,4),MID($NV30,5,2),RIGHT($NV30,2))-DATE(LEFT($NU30,4),MID($NU30,5,2),RIGHT($NU30,2))&")",IF(LEFT($NW30,6)=LEFT(AL$5,6),"("&1+DATE(LEFT($NX30,4),MID($NX30,5,2),RIGHT($NX30,2))-DATE(LEFT($NW30,4),MID($NW30,5,2),RIGHT($NW30,2))&")",IF(LEFT($NY30,6)=LEFT(AL$5,6),"("&1+DATE(LEFT($NZ30,4),MID($NZ30,5,2),RIGHT($NZ30,2))-DATE(LEFT($NY30,4),MID($NY30,5,2),RIGHT($NY30,2))&")","")))))) ->  | BQ30: =IF(LEFT($NO30,6)=LEFT(BQ$5,6),"("&1+DATE(LEFT($NP30,4),MID($NP30,5,2),RIGHT($NP30,2))-DATE(LEFT($NO30,4),MID($NO30,5,2),RIGHT($NO30,2))&")",IF(LEFT($NQ30,6)=LEFT(BQ$5,6),"("&1+DATE(LEFT($NR30,4),MID($NR30,5,2),RIGHT($NR30,2))-DATE(LEFT($NQ30,4),MID($NQ30,5,2),RIGHT($NQ30,2))&")",IF(LEFT($NS30,6)=LEFT(BQ$5,6),"("&1+DATE(LEFT($NT30,4),MID($NT30,5,2),RIGHT($NT30,2))-DATE(LEFT($NS30,4),MID($NS30,5,2),RIGHT($NS30,2))&")",IF(LEFT($NU30,6)=LEFT(BQ$5,6),"("&1+DATE(LEFT($NV30,4),MID($NV30,5,2),RIGHT($NV30,2))-DATE(LEFT($NU30,4),MID($NU30,5,2),RIGHT($NU30,2))&")",IF(LEFT($NW30,6)=LEFT(BQ$5,6),"("&1+DATE(LEFT($NX30,4),MID($NX30,5,2),RIGHT($NX30,2))-DATE(LEFT($NW30,4),MID($NW30,5,2),RIGHT($NW30,2))&")",IF(LEFT($NY30,6)=LEFT(BQ$5,6),"("&1+DATE(LEFT($NZ30,4),MID($NZ30,5,2),RIGHT($NZ30,2))-DATE(LEFT($NY30,4),MID($NY30,5,2),RIGHT($NY30,2))&")","")))))) ->  | CU30: =IF(LEFT($NO30,6)=LEFT(CU$5,6),"("&1+DATE(LEFT($NP30,4),MID($NP30,5,2),RIGHT($NP30,2))-DATE(LEFT($NO30,4),MID($NO30,5,2),RIGHT($NO30,2))&")",IF(LEFT($NQ30,6)=LEFT(CU$5,6),"("&1+DATE(LEFT($NR30,4),MID($NR30,5,2),RIGHT($NR30,2))-DATE(LEFT($NQ30,4),MID($NQ30,5,2),RIGHT($NQ30,2))&")",IF(LEFT($NS30,6)=LEFT(CU$5,6),"("&1+DATE(LEFT($NT30,4),MID($NT30,5,2),RIGHT($NT30,2))-DATE(LEFT($NS30,4),MID($NS30,5,2),RIGHT($NS30,2))&")",IF(LEFT($NU30,6)=LEFT(CU$5,6),"("&1+DATE(LEFT($NV30,4),MID($NV30,5,2),RIGHT($NV30,2))-DATE(LEFT($NU30,4),MID($NU30,5,2),RIGHT($NU30,2))&")",IF(LEFT($NW30,6)=LEFT(CU$5,6),"("&1+DATE(LEFT($NX30,4),MID($NX30,5,2),RIGHT($NX30,2))-DATE(LEFT($NW30,4),MID($NW30,5,2),RIGHT($NW30,2))&")",IF(LEFT($NY30,6)=LEFT(CU$5,6),"("&1+DATE(LEFT($NZ30,4),MID($NZ30,5,2),RIGHT($NZ30,2))-DATE(LEFT($NY30,4),MID($NY30,5,2),RIGHT($NY30,2))&")","")))))) ->  | DZ30: =IF(LEFT($NO30,6)=LEFT(DZ$5,6),"("&1+DATE(LEFT($NP30,4),MID($NP30,5,2),RIGHT($NP30,2))-DATE(LEFT($NO30,4),MID($NO30,5,2),RIGHT($NO30,2))&")",IF(LEFT($NQ30,6)=LEFT(DZ$5,6),"("&1+DATE(LEFT($NR30,4),MID($NR30,5,2),RIGHT($NR30,2))-DATE(LEFT($NQ30,4),MID($NQ30,5,2),RIGHT($NQ30,2))&")",IF(LEFT($NS30,6)=LEFT(DZ$5,6),"("&1+DATE(LEFT($NT30,4),MID($NT30,5,2),RIGHT($NT30,2))-DATE(LEFT($NS30,4),MID($NS30,5,2),RIGHT($NS30,2))&")",IF(LEFT($NU30,6)=LEFT(DZ$5,6),"("&1+DATE(LEFT($NV30,4),MID($NV30,5,2),RIGHT($NV30,2))-DATE(LEFT($NU30,4),MID($NU30,5,2),RIGHT($NU30,2))&")",IF(LEFT($NW30,6)=LEFT(DZ$5,6),"("&1+DATE(LEFT($NX30,4),MID($NX30,5,2),RIGHT($NX30,2))-DATE(LEFT($NW30,4),MID($NW30,5,2),RIGHT($NW30,2))&")",IF(LEFT($NY30,6)=LEFT(DZ$5,6),"("&1+DATE(LEFT($NZ30,4),MID($NZ30,5,2),RIGHT($NZ30,2))-DATE(LEFT($NY30,4),MID($NY30,5,2),RIGHT($NY30,2))&")","")))))) ->  | FE30: =IF(LEFT($NO30,6)=LEFT(FE$5,6),"("&1+DATE(LEFT($NP30,4),MID($NP30,5,2),RIGHT($NP30,2))-DATE(LEFT($NO30,4),MID($NO30,5,2),RIGHT($NO30,2))&")",IF(LEFT($NQ30,6)=LEFT(FE$5,6),"("&1+DATE(LEFT($NR30,4),MID($NR30,5,2),RIGHT($NR30,2))-DATE(LEFT($NQ30,4),MID($NQ30,5,2),RIGHT($NQ30,2))&")",IF(LEFT($NS30,6)=LEFT(FE$5,6),"("&1+DATE(LEFT($NT30,4),MID($NT30,5,2),RIGHT($NT30,2))-DATE(LEFT($NS30,4),MID($NS30,5,2),RIGHT($NS30,2))&")",IF(LEFT($NU30,6)=LEFT(FE$5,6),"("&1+DATE(LEFT($NV30,4),MID($NV30,5,2),RIGHT($NV30,2))-DATE(LEFT($NU30,4),MID($NU30,5,2),RIGHT($NU30,2))&")",IF(LEFT($NW30,6)=LEFT(FE$5,6),"("&1+DATE(LEFT($NX30,4),MID($NX30,5,2),RIGHT($NX30,2))-DATE(LEFT($NW30,4),MID($NW30,5,2),RIGHT($NW30,2))&")",IF(LEFT($NY30,6)=LEFT(FE$5,6),"("&1+DATE(LEFT($NZ30,4),MID($NZ30,5,2),RIGHT($NZ30,2))-DATE(LEFT($NY30,4),MID($NY30,5,2),RIGHT($NY30,2))&")","")))))) ->  | GI30: =IF(LEFT($NO30,6)=LEFT(GI$5,6),"("&1+DATE(LEFT($NP30,4),MID($NP30,5,2),RIGHT($NP30,2))-DATE(LEFT($NO30,4),MID($NO30,5,2),RIGHT($NO30,2))&")",IF(LEFT($NQ30,6)=LEFT(GI$5,6),"("&1+DATE(LEFT($NR30,4),MID($NR30,5,2),RIGHT($NR30,2))-DATE(LEFT($NQ30,4),MID($NQ30,5,2),RIGHT($NQ30,2))&")",IF(LEFT($NS30,6)=LEFT(GI$5,6),"("&1+DATE(LEFT($NT30,4),MID($NT30,5,2),RIGHT($NT30,2))-DATE(LEFT($NS30,4),MID($NS30,5,2),RIGHT($NS30,2))&")",IF(LEFT($NU30,6)=LEFT(GI$5,6),"("&1+DATE(LEFT($NV30,4),MID($NV30,5,2),RIGHT($NV30,2))-DATE(LEFT($NU30,4),MID($NU30,5,2),RIGHT($NU30,2))&")",IF(LEFT($NW30,6)=LEFT(GI$5,6),"("&1+DATE(LEFT($NX30,4),MID($NX30,5,2),RIGHT($NX30,2))-DATE(LEFT($NW30,4),MID($NW30,5,2),RIGHT($NW30,2))&")",IF(LEFT($NY30,6)=LEFT(GI$5,6),"("&1+DATE(LEFT($NZ30,4),MID($NZ30,5,2),RIGHT($NZ30,2))-DATE(LEFT($NY30,4),MID($NY30,5,2),RIGHT($NY30,2))&")","")))))) ->  | HN30: =IF(LEFT($NO30,6)=LEFT(HN$5,6),"("&1+DATE(LEFT($NP30,4),MID($NP30,5,2),RIGHT($NP30,2))-DATE(LEFT($NO30,4),MID($NO30,5,2),RIGHT($NO30,2))&")",IF(LEFT($NQ30,6)=LEFT(HN$5,6),"("&1+DATE(LEFT($NR30,4),MID($NR30,5,2),RIGHT($NR30,2))-DATE(LEFT($NQ30,4),MID($NQ30,5,2),RIGHT($NQ30,2))&")",IF(LEFT($NS30,6)=LEFT(HN$5,6),"("&1+DATE(LEFT($NT30,4),MID($NT30,5,2),RIGHT($NT30,2))-DATE(LEFT($NS30,4),MID($NS30,5,2),RIGHT($NS30,2))&")",IF(LEFT($NU30,6)=LEFT(HN$5,6),"("&1+DATE(LEFT($NV30,4),MID($NV30,5,2),RIGHT($NV30,2))-DATE(LEFT($NU30,4),MID($NU30,5,2),RIGHT($NU30,2))&")",IF(LEFT($NW30,6)=LEFT(HN$5,6),"("&1+DATE(LEFT($NX30,4),MID($NX30,5,2),RIGHT($NX30,2))-DATE(LEFT($NW30,4),MID($NW30,5,2),RIGHT($NW30,2))&")",IF(LEFT($NY30,6)=LEFT(HN$5,6),"("&1+DATE(LEFT($NZ30,4),MID($NZ30,5,2),RIGHT($NZ30,2))-DATE(LEFT($NY30,4),MID($NY30,5,2),RIGHT($NY30,2))&")","")))))) ->  | IR30: =IF(LEFT($NO30,6)=LEFT(IR$5,6),"("&1+DATE(LEFT($NP30,4),MID($NP30,5,2),RIGHT($NP30,2))-DATE(LEFT($NO30,4),MID($NO30,5,2),RIGHT($NO30,2))&")",IF(LEFT($NQ30,6)=LEFT(IR$5,6),"("&1+DATE(LEFT($NR30,4),MID($NR30,5,2),RIGHT($NR30,2))-DATE(LEFT($NQ30,4),MID($NQ30,5,2),RIGHT($NQ30,2))&")",IF(LEFT($NS30,6)=LEFT(IR$5,6),"("&1+DATE(LEFT($NT30,4),MID($NT30,5,2),RIGHT($NT30,2))-DATE(LEFT($NS30,4),MID($NS30,5,2),RIGHT($NS30,2))&")",IF(LEFT($NU30,6)=LEFT(IR$5,6),"("&1+DATE(LEFT($NV30,4),MID($NV30,5,2),RIGHT($NV30,2))-DATE(LEFT($NU30,4),MID($NU30,5,2),RIGHT($NU30,2))&")",IF(LEFT($NW30,6)=LEFT(IR$5,6),"("&1+DATE(LEFT($NX30,4),MID($NX30,5,2),RIGHT($NX30,2))-DATE(LEFT($NW30,4),MID($NW30,5,2),RIGHT($NW30,2))&")",IF(LEFT($NY30,6)=LEFT(IR$5,6),"("&1+DATE(LEFT($NZ30,4),MID($NZ30,5,2),RIGHT($NZ30,2))-DATE(LEFT($NY30,4),MID($NY30,5,2),RIGHT($NY30,2))&")","")))))) ->  | JW30: =IF(LEFT($NO30,6)=LEFT(JW$5,6),"("&1+DATE(LEFT($NP30,4),MID($NP30,5,2),RIGHT($NP30,2))-DATE(LEFT($NO30,4),MID($NO30,5,2),RIGHT($NO30,2))&")",IF(LEFT($NQ30,6)=LEFT(JW$5,6),"("&1+DATE(LEFT($NR30,4),MID($NR30,5,2),RIGHT($NR30,2))-DATE(LEFT($NQ30,4),MID($NQ30,5,2),RIGHT($NQ30,2))&")",IF(LEFT($NS30,6)=LEFT(JW$5,6),"("&1+DATE(LEFT($NT30,4),MID($NT30,5,2),RIGHT($NT30,2))-DATE(LEFT($NS30,4),MID($NS30,5,2),RIGHT($NS30,2))&")",IF(LEFT($NU30,6)=LEFT(JW$5,6),"("&1+DATE(LEFT($NV30,4),MID($NV30,5,2),RIGHT($NV30,2))-DATE(LEFT($NU30,4),MID($NU30,5,2),RIGHT($NU30,2))&")",IF(LEFT($NW30,6)=LEFT(JW$5,6),"("&1+DATE(LEFT($NX30,4),MID($NX30,5,2),RIGHT($NX30,2))-DATE(LEFT($NW30,4),MID($NW30,5,2),RIGHT($NW30,2))&")",IF(LEFT($NY30,6)=LEFT(JW$5,6),"("&1+DATE(LEFT($NZ30,4),MID($NZ30,5,2),RIGHT($NZ30,2))-DATE(LEFT($NY30,4),MID($NY30,5,2),RIGHT($NY30,2))&")","")))))) ->  | LB30: =IF(LEFT($NO30,6)=LEFT(LB$5,6),"("&1+DATE(LEFT($NP30,4),MID($NP30,5,2),RIGHT($NP30,2))-DATE(LEFT($NO30,4),MID($NO30,5,2),RIGHT($NO30,2))&")",IF(LEFT($NQ30,6)=LEFT(LB$5,6),"("&1+DATE(LEFT($NR30,4),MID($NR30,5,2),RIGHT($NR30,2))-DATE(LEFT($NQ30,4),MID($NQ30,5,2),RIGHT($NQ30,2))&")",IF(LEFT($NS30,6)=LEFT(LB$5,6),"("&1+DATE(LEFT($NT30,4),MID($NT30,5,2),RIGHT($NT30,2))-DATE(LEFT($NS30,4),MID($NS30,5,2),RIGHT($NS30,2))&")",IF(LEFT($NU30,6)=LEFT(LB$5,6),"("&1+DATE(LEFT($NV30,4),MID($NV30,5,2),RIGHT($NV30,2))-DATE(LEFT($NU30,4),MID($NU30,5,2),RIGHT($NU30,2))&")",IF(LEFT($NW30,6)=LEFT(LB$5,6),"("&1+DATE(LEFT($NX30,4),MID($NX30,5,2),RIGHT($NX30,2))-DATE(LEFT($NW30,4),MID($NW30,5,2),RIGHT($NW30,2))&")",IF(LEFT($NY30,6)=LEFT(LB$5,6),"("&1+DATE(LEFT($NZ30,4),MID($NZ30,5,2),RIGHT($NZ30,2))-DATE(LEFT($NY30,4),MID($NY30,5,2),RIGHT($NY30,2))&")","")))))) ->  | ME30: =IF(LEFT($NO30,6)=LEFT(ME$5,6),"("&1+DATE(LEFT($NP30,4),MID($NP30,5,2),RIGHT($NP30,2))-DATE(LEFT($NO30,4),MID($NO30,5,2),RIGHT($NO30,2))&")",IF(LEFT($NQ30,6)=LEFT(ME$5,6),"("&1+DATE(LEFT($NR30,4),MID($NR30,5,2),RIGHT($NR30,2))-DATE(LEFT($NQ30,4),MID($NQ30,5,2),RIGHT($NQ30,2))&")",IF(LEFT($NS30,6)=LEFT(ME$5,6),"("&1+DATE(LEFT($NT30,4),MID($NT30,5,2),RIGHT($NT30,2))-DATE(LEFT($NS30,4),MID($NS30,5,2),RIGHT($NS30,2))&")",IF(LEFT($NU30,6)=LEFT(ME$5,6),"("&1+DATE(LEFT($NV30,4),MID($NV30,5,2),RIGHT($NV30,2))-DATE(LEFT($NU30,4),MID($NU30,5,2),RIGHT($NU30,2))&")",IF(LEFT($NW30,6)=LEFT(ME$5,6),"("&1+DATE(LEFT($NX30,4),MID($NX30,5,2),RIGHT($NX30,2))-DATE(LEFT($NW30,4),MID($NW30,5,2),RIGHT($NW30,2))&")",IF(LEFT($NY30,6)=LEFT(ME$5,6),"("&1+DATE(LEFT($NZ30,4),MID($NZ30,5,2),RIGHT($NZ30,2))-DATE(LEFT($NY30,4),MID($NY30,5,2),RIGHT($NY30,2))&")","")))))) ->  | NK30: =IF($C$3="様式34-1_1年度目",IF('様式34-1_1年度目'!AS14="","",'様式34-1_1年度目'!AS14),IF($C$3="様式34-1_2年度目",IF('様式34-1_2年度目'!AS14="","",'様式34-1_2年度目'!AS14),"")) ->  | NM30: 7 | NN30: 補修期間→ | NO30: =IF($C$3="様式34-1_1年度目",IF('様式34-1_1年度目'!AT14="","",VALUE(TEXT('様式34-1_1年度目'!AT14,"yyyymmdd"))),IF($C$3="様式34-1_2年度目",IF('様式34-1_2年度目'!AT14="","",VALUE(TEXT('様式34-1_2年度目'!AT14,"yyyymmdd"))),"")) ->  | NP30: =IF($C$3="様式34-1_1年度目",IF('様式34-1_1年度目'!AU14="","",VALUE(TEXT('様式34-1_1年度目'!AU14,"yyyymmdd"))),IF($C$3="様式34-1_2年度目",IF('様式34-1_2年度目'!AU14="","",VALUE(TEXT('様式34-1_2年度目'!AU14,"yyyymmdd"))),"")) ->  | NQ30: =IF($C$3="様式34-1_1年度目",IF('様式34-1_1年度目'!AW14="","",VALUE(TEXT('様式34-1_1年度目'!AW14,"yyyymmdd"))),IF($C$3="様式34-1_2年度目",IF('様式34-1_2年度目'!AW14="","",VALUE(TEXT('様式34-1_2年度目'!AW14,"yyyymmdd"))),"")) ->  | NR30: =IF($C$3="様式34-1_1年度目",IF('様式34-1_1年度目'!AX14="","",VALUE(TEXT('様式34-1_1年度目'!AX14,"yyyymmdd"))),IF($C$3="様式34-1_2年度目",IF('様式34-1_2年度目'!AX14="","",VALUE(TEXT('様式34-1_2年度目'!AX14,"yyyymmdd"))),"")) ->  | NS30: =IF($C$3="様式34-1_1年度目",IF('様式34-1_1年度目'!AZ14="","",VALUE(TEXT('様式34-1_1年度目'!AZ14,"yyyymmdd"))),IF($C$3="様式34-1_2年度目",IF('様式34-1_2年度目'!AZ14="","",VALUE(TEXT('様式34-1_2年度目'!AZ14,"yyyymmdd"))),"")) ->  | NT30: =IF($C$3="様式34-1_1年度目",IF('様式34-1_1年度目'!BA14="","",VALUE(TEXT('様式34-1_1年度目'!BA14,"yyyymmdd"))),IF($C$3="様式34-1_2年度目",IF('様式34-1_2年度目'!BA14="","",VALUE(TEXT('様式34-1_2年度目'!BA14,"yyyymmdd"))),"")) ->  | NU30: =IF($C$3="様式34-1_1年度目",IF('様式34-1_1年度目'!BC14="","",VALUE(TEXT('様式34-1_1年度目'!BC14,"yyyymmdd"))),IF($C$3="様式34-1_2年度目",IF('様式34-1_2年度目'!BC14="","",VALUE(TEXT('様式34-1_2年度目'!BC14,"yyyymmdd"))),"")) ->  | NV30: =IF($C$3="様式34-1_1年度目",IF('様式34-1_1年度目'!BD14="","",VALUE(TEXT('様式34-1_1年度目'!BD14,"yyyymmdd"))),IF($C$3="様式34-1_2年度目",IF('様式34-1_2年度目'!BD14="","",VALUE(TEXT('様式34-1_2年度目'!BD14,"yyyymmdd"))),"")) ->  | NW30: =IF($C$3="様式34-1_1年度目",IF('様式34-1_1年度目'!BF14="","",VALUE(TEXT('様式34-1_1年度目'!BF14,"yyyymmdd"))),IF($C$3="様式34-1_2年度目",IF('様式34-1_2年度目'!BF14="","",VALUE(TEXT('様式34-1_2年度目'!BF14,"yyyymmdd"))),"")) ->  | NX30: =IF($C$3="様式34-1_1年度目",IF('様式34-1_1年度目'!BG14="","",VALUE(TEXT('様式34-1_1年度目'!BG14,"yyyymmdd"))),IF($C$3="様式34-1_2年度目",IF('様式34-1_2年度目'!BG14="","",VALUE(TEXT('様式34-1_2年度目'!BG14,"yyyymmdd"))),"")) ->  | NY30: =IF($C$3="様式34-1_1年度目",IF('様式34-1_1年度目'!BI14="","",VALUE(TEXT('様式34-1_1年度目'!BI14,"yyyymmdd"))),IF($C$3="様式34-1_2年度目",IF('様式34-1_2年度目'!BI14="","",VALUE(TEXT('様式34-1_2年度目'!BI14,"yyyymmdd"))),"")) ->  | NZ30: =IF($C$3="様式34-1_1年度目",IF('様式34-1_1年度目'!BJ14="","",VALUE(TEXT('様式34-1_1年度目'!BJ14,"yyyymmdd"))),IF($C$3="様式34-1_2年度目",IF('様式34-1_2年度目'!BJ14="","",VALUE(TEXT('様式34-1_2年度目'!BJ14,"yyyymmdd"))),"")) -> 
H31: =+IF(OR(H$5=$NO30,H$5=$NQ30,H$5=$NS30,H$5=$NU30,H$5=$NW30,H$5=$NY30),1,IF(OR(AND($NO30<H$5,H$5<$NP30),AND($NQ30<H$5,H$5<$NR30),AND($NS30<H$5,H$5<$NT30),AND($NU30<H$5,H$5<$NV30),AND($NW30<H$5,H$5<$NX30),AND($NY30<H$5,H$5<$NZ30)),2,IF(OR(H$5=$NP30,H$5=$NR30,H$5=$NT30,H$5=$NV30,H$5=$NX30,H$5=$NZ30),3,""))) ->  | BT31: =+IF(OR(BT$5=$NO30,BT$5=$NQ30,BT$5=$NS30,BT$5=$NU30,BT$5=$NW30,BT$5=$NY30),1,IF(OR(AND($NO30<BT$5,BT$5<$NP30),AND($NQ30<BT$5,BT$5<$NR30),AND($NS30<BT$5,BT$5<$NT30),AND($NU30<BT$5,BT$5<$NV30),AND($NW30<BT$5,BT$5<$NX30),AND($NY30<BT$5,BT$5<$NZ30)),2,IF(OR(BT$5=$NP30,BT$5=$NR30,BT$5=$NT30,BT$5=$NV30,BT$5=$NX30,BT$5=$NZ30),3,""))) ->  | EF31: =+IF(OR(EF$5=$NO30,EF$5=$NQ30,EF$5=$NS30,EF$5=$NU30,EF$5=$NW30,EF$5=$NY30),1,IF(OR(AND($NO30<EF$5,EF$5<$NP30),AND($NQ30<EF$5,EF$5<$NR30),AND($NS30<EF$5,EF$5<$NT30),AND($NU30<EF$5,EF$5<$NV30),AND($NW30<EF$5,EF$5<$NX30),AND($NY30<EF$5,EF$5<$NZ30)),2,IF(OR(EF$5=$NP30,EF$5=$NR30,EF$5=$NT30,EF$5=$NV30,EF$5=$NX30,EF$5=$NZ30),3,""))) ->  | GR31: =+IF(OR(GR$5=$NO30,GR$5=$NQ30,GR$5=$NS30,GR$5=$NU30,GR$5=$NW30,GR$5=$NY30),1,IF(OR(AND($NO30<GR$5,GR$5<$NP30),AND($NQ30<GR$5,GR$5<$NR30),AND($NS30<GR$5,GR$5<$NT30),AND($NU30<GR$5,GR$5<$NV30),AND($NW30<GR$5,GR$5<$NX30),AND($NY30<GR$5,GR$5<$NZ30)),2,IF(OR(GR$5=$NP30,GR$5=$NR30,GR$5=$NT30,GR$5=$NV30,GR$5=$NX30,GR$5=$NZ30),3,""))) ->  | JD31: =+IF(OR(JD$5=$NO30,JD$5=$NQ30,JD$5=$NS30,JD$5=$NU30,JD$5=$NW30,JD$5=$NY30),1,IF(OR(AND($NO30<JD$5,JD$5<$NP30),AND($NQ30<JD$5,JD$5<$NR30),AND($NS30<JD$5,JD$5<$NT30),AND($NU30<JD$5,JD$5<$NV30),AND($NW30<JD$5,JD$5<$NX30),AND($NY30<JD$5,JD$5<$NZ30)),2,IF(OR(JD$5=$NP30,JD$5=$NR30,JD$5=$NT30,JD$5=$NV30,JD$5=$NX30,JD$5=$NZ30),3,""))) ->  | LP31: =+IF(OR(LP$5=$NO30,LP$5=$NQ30,LP$5=$NS30,LP$5=$NU30,LP$5=$NW30,LP$5=$NY30),1,IF(OR(AND($NO30<LP$5,LP$5<$NP30),AND($NQ30<LP$5,LP$5<$NR30),AND($NS30<LP$5,LP$5<$NT30),AND($NU30<LP$5,LP$5<$NV30),AND($NW30<LP$5,LP$5<$NX30),AND($NY30<LP$5,LP$5<$NZ30)),2,IF(OR(LP$5=$NP30,LP$5=$NR30,LP$5=$NT30,LP$5=$NV30,LP$5=$NX30,LP$5=$NZ30),3,""))) -> 
H32: =IF(AND($NO30<>"",$NO30<$H$5),MID($NO30,5,2)&"/"&RIGHT($NO30,2)&"～"&MID($NP30,5,2)&"/"&RIGHT($NP30,2),IF(LEFT($NO30,6)=LEFT(H$5,6),MID($NO30,5,2)&"/"&RIGHT($NO30,2)&"～"&MID($NP30,5,2)&"/"&RIGHT($NP30,2),IF(LEFT($NQ30,6)=LEFT(H$5,6),MID($NQ30,5,2)&"/"&RIGHT($NQ30,2)&"～"&MID($NR30,5,2)&"/"&RIGHT($NR30,2),IF(LEFT($NS30,6)=LEFT(H$5,6),MID($NS30,5,2)&"/"&RIGHT($NS30,2)&"～"&MID($NT30,5,2)&"/"&RIGHT($NT30,2),IF(LEFT($NU30,6)=LEFT(H$5,6),MID($NU30,5,2)&"/"&RIGHT($NU30,2)&"～"&MID($NV30,5,2)&"/"&RIGHT($NV30,2),IF(LEFT($NW30,6)=LEFT(H$5,6),MID($NW30,5,2)&"/"&RIGHT($NW30,2)&"～"&MID($NX30,5,2)&"/"&RIGHT($NX30,2),IF(LEFT($NY30,6)=LEFT(H$5,6),MID($NY30,5,2)&"/"&RIGHT($NY30,2)&"～"&MID($NZ30,5,2)&"/"&RIGHT($NZ30,2),""))))))) ->  | AL32: =IF(LEFT($NO30,6)=LEFT(AL$5,6),MID($NO30,5,2)&"/"&RIGHT($NO30,2)&"～"&MID($NP30,5,2)&"/"&RIGHT($NP30,2),IF(LEFT($NQ30,6)=LEFT(AL$5,6),MID($NQ30,5,2)&"/"&RIGHT($NQ30,2)&"～"&MID($NR30,5,2)&"/"&RIGHT($NR30,2),IF(LEFT($NS30,6)=LEFT(AL$5,6),MID($NS30,5,2)&"/"&RIGHT($NS30,2)&"～"&MID($NT30,5,2)&"/"&RIGHT($NT30,2),IF(LEFT($NU30,6)=LEFT(AL$5,6),MID($NU30,5,2)&"/"&RIGHT($NU30,2)&"～"&MID($NV30,5,2)&"/"&RIGHT($NV30,2),IF(LEFT($NW30,6)=LEFT(AL$5,6),MID($NW30,5,2)&"/"&RIGHT($NW30,2)&"～"&MID($NX30,5,2)&"/"&RIGHT($NX30,2),IF(LEFT($NY30,6)=LEFT(AL$5,6),MID($NY30,5,2)&"/"&RIGHT($NY30,2)&"～"&MID($NZ30,5,2)&"/"&RIGHT($NZ30,2),"")))))) ->  | BQ32: =IF(LEFT($NO30,6)=LEFT(BQ$5,6),MID($NO30,5,2)&"/"&RIGHT($NO30,2)&"～"&MID($NP30,5,2)&"/"&RIGHT($NP30,2),IF(LEFT($NQ30,6)=LEFT(BQ$5,6),MID($NQ30,5,2)&"/"&RIGHT($NQ30,2)&"～"&MID($NR30,5,2)&"/"&RIGHT($NR30,2),IF(LEFT($NS30,6)=LEFT(BQ$5,6),MID($NS30,5,2)&"/"&RIGHT($NS30,2)&"～"&MID($NT30,5,2)&"/"&RIGHT($NT30,2),IF(LEFT($NU30,6)=LEFT(BQ$5,6),MID($NU30,5,2)&"/"&RIGHT($NU30,2)&"～"&MID($NV30,5,2)&"/"&RIGHT($NV30,2),IF(LEFT($NW30,6)=LEFT(BQ$5,6),MID($NW30,5,2)&"/"&RIGHT($NW30,2)&"～"&MID($NX30,5,2)&"/"&RIGHT($NX30,2),IF(LEFT($NY30,6)=LEFT(BQ$5,6),MID($NY30,5,2)&"/"&RIGHT($NY30,2)&"～"&MID($NZ30,5,2)&"/"&RIGHT($NZ30,2),"")))))) ->  | CU32: =IF(LEFT($NO30,6)=LEFT(CU$5,6),MID($NO30,5,2)&"/"&RIGHT($NO30,2)&"～"&MID($NP30,5,2)&"/"&RIGHT($NP30,2),IF(LEFT($NQ30,6)=LEFT(CU$5,6),MID($NQ30,5,2)&"/"&RIGHT($NQ30,2)&"～"&MID($NR30,5,2)&"/"&RIGHT($NR30,2),IF(LEFT($NS30,6)=LEFT(CU$5,6),MID($NS30,5,2)&"/"&RIGHT($NS30,2)&"～"&MID($NT30,5,2)&"/"&RIGHT($NT30,2),IF(LEFT($NU30,6)=LEFT(CU$5,6),MID($NU30,5,2)&"/"&RIGHT($NU30,2)&"～"&MID($NV30,5,2)&"/"&RIGHT($NV30,2),IF(LEFT($NW30,6)=LEFT(CU$5,6),MID($NW30,5,2)&"/"&RIGHT($NW30,2)&"～"&MID($NX30,5,2)&"/"&RIGHT($NX30,2),IF(LEFT($NY30,6)=LEFT(CU$5,6),MID($NY30,5,2)&"/"&RIGHT($NY30,2)&"～"&MID($NZ30,5,2)&"/"&RIGHT($NZ30,2),"")))))) ->  | DZ32: =IF(LEFT($NO30,6)=LEFT(DZ$5,6),MID($NO30,5,2)&"/"&RIGHT($NO30,2)&"～"&MID($NP30,5,2)&"/"&RIGHT($NP30,2),IF(LEFT($NQ30,6)=LEFT(DZ$5,6),MID($NQ30,5,2)&"/"&RIGHT($NQ30,2)&"～"&MID($NR30,5,2)&"/"&RIGHT($NR30,2),IF(LEFT($NS30,6)=LEFT(DZ$5,6),MID($NS30,5,2)&"/"&RIGHT($NS30,2)&"～"&MID($NT30,5,2)&"/"&RIGHT($NT30,2),IF(LEFT($NU30,6)=LEFT(DZ$5,6),MID($NU30,5,2)&"/"&RIGHT($NU30,2)&"～"&MID($NV30,5,2)&"/"&RIGHT($NV30,2),IF(LEFT($NW30,6)=LEFT(DZ$5,6),MID($NW30,5,2)&"/"&RIGHT($NW30,2)&"～"&MID($NX30,5,2)&"/"&RIGHT($NX30,2),IF(LEFT($NY30,6)=LEFT(DZ$5,6),MID($NY30,5,2)&"/"&RIGHT($NY30,2)&"～"&MID($NZ30,5,2)&"/"&RIGHT($NZ30,2),"")))))) ->  | FE32: =IF(LEFT($NO30,6)=LEFT(FE$5,6),MID($NO30,5,2)&"/"&RIGHT($NO30,2)&"～"&MID($NP30,5,2)&"/"&RIGHT($NP30,2),IF(LEFT($NQ30,6)=LEFT(FE$5,6),MID($NQ30,5,2)&"/"&RIGHT($NQ30,2)&"～"&MID($NR30,5,2)&"/"&RIGHT($NR30,2),IF(LEFT($NS30,6)=LEFT(FE$5,6),MID($NS30,5,2)&"/"&RIGHT($NS30,2)&"～"&MID($NT30,5,2)&"/"&RIGHT($NT30,2),IF(LEFT($NU30,6)=LEFT(FE$5,6),MID($NU30,5,2)&"/"&RIGHT($NU30,2)&"～"&MID($NV30,5,2)&"/"&RIGHT($NV30,2),IF(LEFT($NW30,6)=LEFT(FE$5,6),MID($NW30,5,2)&"/"&RIGHT($NW30,2)&"～"&MID($NX30,5,2)&"/"&RIGHT($NX30,2),IF(LEFT($NY30,6)=LEFT(FE$5,6),MID($NY30,5,2)&"/"&RIGHT($NY30,2)&"～"&MID($NZ30,5,2)&"/"&RIGHT($NZ30,2),"")))))) ->  | GI32: =IF(LEFT($NO30,6)=LEFT(GI$5,6),MID($NO30,5,2)&"/"&RIGHT($NO30,2)&"～"&MID($NP30,5,2)&"/"&RIGHT($NP30,2),IF(LEFT($NQ30,6)=LEFT(GI$5,6),MID($NQ30,5,2)&"/"&RIGHT($NQ30,2)&"～"&MID($NR30,5,2)&"/"&RIGHT($NR30,2),IF(LEFT($NS30,6)=LEFT(GI$5,6),MID($NS30,5,2)&"/"&RIGHT($NS30,2)&"～"&MID($NT30,5,2)&"/"&RIGHT($NT30,2),IF(LEFT($NU30,6)=LEFT(GI$5,6),MID($NU30,5,2)&"/"&RIGHT($NU30,2)&"～"&MID($NV30,5,2)&"/"&RIGHT($NV30,2),IF(LEFT($NW30,6)=LEFT(GI$5,6),MID($NW30,5,2)&"/"&RIGHT($NW30,2)&"～"&MID($NX30,5,2)&"/"&RIGHT($NX30,2),IF(LEFT($NY30,6)=LEFT(GI$5,6),MID($NY30,5,2)&"/"&RIGHT($NY30,2)&"～"&MID($NZ30,5,2)&"/"&RIGHT($NZ30,2),"")))))) ->  | HN32: =IF(LEFT($NO30,6)=LEFT(HN$5,6),MID($NO30,5,2)&"/"&RIGHT($NO30,2)&"～"&MID($NP30,5,2)&"/"&RIGHT($NP30,2),IF(LEFT($NQ30,6)=LEFT(HN$5,6),MID($NQ30,5,2)&"/"&RIGHT($NQ30,2)&"～"&MID($NR30,5,2)&"/"&RIGHT($NR30,2),IF(LEFT($NS30,6)=LEFT(HN$5,6),MID($NS30,5,2)&"/"&RIGHT($NS30,2)&"～"&MID($NT30,5,2)&"/"&RIGHT($NT30,2),IF(LEFT($NU30,6)=LEFT(HN$5,6),MID($NU30,5,2)&"/"&RIGHT($NU30,2)&"～"&MID($NV30,5,2)&"/"&RIGHT($NV30,2),IF(LEFT($NW30,6)=LEFT(HN$5,6),MID($NW30,5,2)&"/"&RIGHT($NW30,2)&"～"&MID($NX30,5,2)&"/"&RIGHT($NX30,2),IF(LEFT($NY30,6)=LEFT(HN$5,6),MID($NY30,5,2)&"/"&RIGHT($NY30,2)&"～"&MID($NZ30,5,2)&"/"&RIGHT($NZ30,2),"")))))) ->  | IR32: =IF(LEFT($NO30,6)=LEFT(IR$5,6),MID($NO30,5,2)&"/"&RIGHT($NO30,2)&"～"&MID($NP30,5,2)&"/"&RIGHT($NP30,2),IF(LEFT($NQ30,6)=LEFT(IR$5,6),MID($NQ30,5,2)&"/"&RIGHT($NQ30,2)&"～"&MID($NR30,5,2)&"/"&RIGHT($NR30,2),IF(LEFT($NS30,6)=LEFT(IR$5,6),MID($NS30,5,2)&"/"&RIGHT($NS30,2)&"～"&MID($NT30,5,2)&"/"&RIGHT($NT30,2),IF(LEFT($NU30,6)=LEFT(IR$5,6),MID($NU30,5,2)&"/"&RIGHT($NU30,2)&"～"&MID($NV30,5,2)&"/"&RIGHT($NV30,2),IF(LEFT($NW30,6)=LEFT(IR$5,6),MID($NW30,5,2)&"/"&RIGHT($NW30,2)&"～"&MID($NX30,5,2)&"/"&RIGHT($NX30,2),IF(LEFT($NY30,6)=LEFT(IR$5,6),MID($NY30,5,2)&"/"&RIGHT($NY30,2)&"～"&MID($NZ30,5,2)&"/"&RIGHT($NZ30,2),"")))))) ->  | JW32: =IF(LEFT($NO30,6)=LEFT(JW$5,6),MID($NO30,5,2)&"/"&RIGHT($NO30,2)&"～"&MID($NP30,5,2)&"/"&RIGHT($NP30,2),IF(LEFT($NQ30,6)=LEFT(JW$5,6),MID($NQ30,5,2)&"/"&RIGHT($NQ30,2)&"～"&MID($NR30,5,2)&"/"&RIGHT($NR30,2),IF(LEFT($NS30,6)=LEFT(JW$5,6),MID($NS30,5,2)&"/"&RIGHT($NS30,2)&"～"&MID($NT30,5,2)&"/"&RIGHT($NT30,2),IF(LEFT($NU30,6)=LEFT(JW$5,6),MID($NU30,5,2)&"/"&RIGHT($NU30,2)&"～"&MID($NV30,5,2)&"/"&RIGHT($NV30,2),IF(LEFT($NW30,6)=LEFT(JW$5,6),MID($NW30,5,2)&"/"&RIGHT($NW30,2)&"～"&MID($NX30,5,2)&"/"&RIGHT($NX30,2),IF(LEFT($NY30,6)=LEFT(JW$5,6),MID($NY30,5,2)&"/"&RIGHT($NY30,2)&"～"&MID($NZ30,5,2)&"/"&RIGHT($NZ30,2),"")))))) ->  | LB32: =IF(LEFT($NO30,6)=LEFT(LB$5,6),MID($NO30,5,2)&"/"&RIGHT($NO30,2)&"～"&MID($NP30,5,2)&"/"&RIGHT($NP30,2),IF(LEFT($NQ30,6)=LEFT(LB$5,6),MID($NQ30,5,2)&"/"&RIGHT($NQ30,2)&"～"&MID($NR30,5,2)&"/"&RIGHT($NR30,2),IF(LEFT($NS30,6)=LEFT(LB$5,6),MID($NS30,5,2)&"/"&RIGHT($NS30,2)&"～"&MID($NT30,5,2)&"/"&RIGHT($NT30,2),IF(LEFT($NU30,6)=LEFT(LB$5,6),MID($NU30,5,2)&"/"&RIGHT($NU30,2)&"～"&MID($NV30,5,2)&"/"&RIGHT($NV30,2),IF(LEFT($NW30,6)=LEFT(LB$5,6),MID($NW30,5,2)&"/"&RIGHT($NW30,2)&"～"&MID($NX30,5,2)&"/"&RIGHT($NX30,2),IF(LEFT($NY30,6)=LEFT(LB$5,6),MID($NY30,5,2)&"/"&RIGHT($NY30,2)&"～"&MID($NZ30,5,2)&"/"&RIGHT($NZ30,2),"")))))) ->  | ME32: =IF(LEFT($NO30,6)=LEFT(ME$5,6),MID($NO30,5,2)&"/"&RIGHT($NO30,2)&"～"&MID($NP30,5,2)&"/"&RIGHT($NP30,2),IF(LEFT($NQ30,6)=LEFT(ME$5,6),MID($NQ30,5,2)&"/"&RIGHT($NQ30,2)&"～"&MID($NR30,5,2)&"/"&RIGHT($NR30,2),IF(LEFT($NS30,6)=LEFT(ME$5,6),MID($NS30,5,2)&"/"&RIGHT($NS30,2)&"～"&MID($NT30,5,2)&"/"&RIGHT($NT30,2),IF(LEFT($NU30,6)=LEFT(ME$5,6),MID($NU30,5,2)&"/"&RIGHT($NU30,2)&"～"&MID($NV30,5,2)&"/"&RIGHT($NV30,2),IF(LEFT($NW30,6)=LEFT(ME$5,6),MID($NW30,5,2)&"/"&RIGHT($NW30,2)&"～"&MID($NX30,5,2)&"/"&RIGHT($NX30,2),IF(LEFT($NY30,6)=LEFT(ME$5,6),MID($NY30,5,2)&"/"&RIGHT($NY30,2)&"～"&MID($NZ30,5,2)&"/"&RIGHT($NZ30,2),"")))))) -> 
C33: =IF($C$3="様式34-1_1年度目",IF('様式34-1_1年度目'!AC15="","",'様式34-1_1年度目'!AC15),IF($C$3="様式34-1_2年度目",IF('様式34-1_2年度目'!AC15="","",'様式34-1_2年度目'!AC15),"")) ->  | F33: =IF($C$3="様式34-1_1年度目",IF('様式34-1_1年度目'!AD15="","",'様式34-1_1年度目'!AD15&" "&'様式34-1_1年度目'!AE15),IF($C$3="様式34-1_2年度目",IF('様式34-1_2年度目'!AD15="","",'様式34-1_2年度目'!AD15&" "&'様式34-1_2年度目'!AE15),"")) ->  | G33: =IF($C$3="様式34-1_1年度目",IF('様式34-1_1年度目'!AF15="","",'様式34-1_1年度目'!AF15),IF($C$3="様式34-1_2年度目",IF('様式34-1_2年度目'!AF15="","",'様式34-1_2年度目'!AF15),"")) ->  | H33: =IF(AND($NO33<>"",$NO33<$H$5),"("&1+DATE(LEFT($NP33,4),MID($NP33,5,2),RIGHT($NP33,2))-DATE(LEFT($NO33,4),MID($NO33,5,2),RIGHT($NO33,2))&")",IF(LEFT($NO33,6)=LEFT(H$5,6),"("&1+DATE(LEFT($NP33,4),MID($NP33,5,2),RIGHT($NP33,2))-DATE(LEFT($NO33,4),MID($NO33,5,2),RIGHT($NO33,2))&")",IF(LEFT($NQ33,6)=LEFT(H$5,6),"("&1+DATE(LEFT($NR33,4),MID($NR33,5,2),RIGHT($NR33,2))-DATE(LEFT($NQ33,4),MID($NQ33,5,2),RIGHT($NQ33,2))&")",IF(LEFT($NS33,6)=LEFT(H$5,6),"("&1+DATE(LEFT($NT33,4),MID($NT33,5,2),RIGHT($NT33,2))-DATE(LEFT($NS33,4),MID($NS33,5,2),RIGHT($NS33,2))&")",IF(LEFT($NU33,6)=LEFT(H$5,6),"("&1+DATE(LEFT($NV33,4),MID($NV33,5,2),RIGHT($NV33,2))-DATE(LEFT($NU33,4),MID($NU33,5,2),RIGHT($NU33,2))&")",IF(LEFT($NW33,6)=LEFT(H$5,6),"("&1+DATE(LEFT($NX33,4),MID($NX33,5,2),RIGHT($NX33,2))-DATE(LEFT($NW33,4),MID($NW33,5,2),RIGHT($NW33,2))&")",IF(LEFT($NY33,6)=LEFT(H$5,6),"("&1+DATE(LEFT($NZ33,4),MID($NZ33,5,2),RIGHT($NZ33,2))-DATE(LEFT($NY33,4),MID($NY33,5,2),RIGHT($NY33,2))&")",""))))))) ->  | AL33: =IF(LEFT($NO33,6)=LEFT(AL$5,6),"("&1+DATE(LEFT($NP33,4),MID($NP33,5,2),RIGHT($NP33,2))-DATE(LEFT($NO33,4),MID($NO33,5,2),RIGHT($NO33,2))&")",IF(LEFT($NQ33,6)=LEFT(AL$5,6),"("&1+DATE(LEFT($NR33,4),MID($NR33,5,2),RIGHT($NR33,2))-DATE(LEFT($NQ33,4),MID($NQ33,5,2),RIGHT($NQ33,2))&")",IF(LEFT($NS33,6)=LEFT(AL$5,6),"("&1+DATE(LEFT($NT33,4),MID($NT33,5,2),RIGHT($NT33,2))-DATE(LEFT($NS33,4),MID($NS33,5,2),RIGHT($NS33,2))&")",IF(LEFT($NU33,6)=LEFT(AL$5,6),"("&1+DATE(LEFT($NV33,4),MID($NV33,5,2),RIGHT($NV33,2))-DATE(LEFT($NU33,4),MID($NU33,5,2),RIGHT($NU33,2))&")",IF(LEFT($NW33,6)=LEFT(AL$5,6),"("&1+DATE(LEFT($NX33,4),MID($NX33,5,2),RIGHT($NX33,2))-DATE(LEFT($NW33,4),MID($NW33,5,2),RIGHT($NW33,2))&")",IF(LEFT($NY33,6)=LEFT(AL$5,6),"("&1+DATE(LEFT($NZ33,4),MID($NZ33,5,2),RIGHT($NZ33,2))-DATE(LEFT($NY33,4),MID($NY33,5,2),RIGHT($NY33,2))&")","")))))) ->  | BQ33: =IF(LEFT($NO33,6)=LEFT(BQ$5,6),"("&1+DATE(LEFT($NP33,4),MID($NP33,5,2),RIGHT($NP33,2))-DATE(LEFT($NO33,4),MID($NO33,5,2),RIGHT($NO33,2))&")",IF(LEFT($NQ33,6)=LEFT(BQ$5,6),"("&1+DATE(LEFT($NR33,4),MID($NR33,5,2),RIGHT($NR33,2))-DATE(LEFT($NQ33,4),MID($NQ33,5,2),RIGHT($NQ33,2))&")",IF(LEFT($NS33,6)=LEFT(BQ$5,6),"("&1+DATE(LEFT($NT33,4),MID($NT33,5,2),RIGHT($NT33,2))-DATE(LEFT($NS33,4),MID($NS33,5,2),RIGHT($NS33,2))&")",IF(LEFT($NU33,6)=LEFT(BQ$5,6),"("&1+DATE(LEFT($NV33,4),MID($NV33,5,2),RIGHT($NV33,2))-DATE(LEFT($NU33,4),MID($NU33,5,2),RIGHT($NU33,2))&")",IF(LEFT($NW33,6)=LEFT(BQ$5,6),"("&1+DATE(LEFT($NX33,4),MID($NX33,5,2),RIGHT($NX33,2))-DATE(LEFT($NW33,4),MID($NW33,5,2),RIGHT($NW33,2))&")",IF(LEFT($NY33,6)=LEFT(BQ$5,6),"("&1+DATE(LEFT($NZ33,4),MID($NZ33,5,2),RIGHT($NZ33,2))-DATE(LEFT($NY33,4),MID($NY33,5,2),RIGHT($NY33,2))&")","")))))) ->  | CU33: =IF(LEFT($NO33,6)=LEFT(CU$5,6),"("&1+DATE(LEFT($NP33,4),MID($NP33,5,2),RIGHT($NP33,2))-DATE(LEFT($NO33,4),MID($NO33,5,2),RIGHT($NO33,2))&")",IF(LEFT($NQ33,6)=LEFT(CU$5,6),"("&1+DATE(LEFT($NR33,4),MID($NR33,5,2),RIGHT($NR33,2))-DATE(LEFT($NQ33,4),MID($NQ33,5,2),RIGHT($NQ33,2))&")",IF(LEFT($NS33,6)=LEFT(CU$5,6),"("&1+DATE(LEFT($NT33,4),MID($NT33,5,2),RIGHT($NT33,2))-DATE(LEFT($NS33,4),MID($NS33,5,2),RIGHT($NS33,2))&")",IF(LEFT($NU33,6)=LEFT(CU$5,6),"("&1+DATE(LEFT($NV33,4),MID($NV33,5,2),RIGHT($NV33,2))-DATE(LEFT($NU33,4),MID($NU33,5,2),RIGHT($NU33,2))&")",IF(LEFT($NW33,6)=LEFT(CU$5,6),"("&1+DATE(LEFT($NX33,4),MID($NX33,5,2),RIGHT($NX33,2))-DATE(LEFT($NW33,4),MID($NW33,5,2),RIGHT($NW33,2))&")",IF(LEFT($NY33,6)=LEFT(CU$5,6),"("&1+DATE(LEFT($NZ33,4),MID($NZ33,5,2),RIGHT($NZ33,2))-DATE(LEFT($NY33,4),MID($NY33,5,2),RIGHT($NY33,2))&")","")))))) ->  | DZ33: =IF(LEFT($NO33,6)=LEFT(DZ$5,6),"("&1+DATE(LEFT($NP33,4),MID($NP33,5,2),RIGHT($NP33,2))-DATE(LEFT($NO33,4),MID($NO33,5,2),RIGHT($NO33,2))&")",IF(LEFT($NQ33,6)=LEFT(DZ$5,6),"("&1+DATE(LEFT($NR33,4),MID($NR33,5,2),RIGHT($NR33,2))-DATE(LEFT($NQ33,4),MID($NQ33,5,2),RIGHT($NQ33,2))&")",IF(LEFT($NS33,6)=LEFT(DZ$5,6),"("&1+DATE(LEFT($NT33,4),MID($NT33,5,2),RIGHT($NT33,2))-DATE(LEFT($NS33,4),MID($NS33,5,2),RIGHT($NS33,2))&")",IF(LEFT($NU33,6)=LEFT(DZ$5,6),"("&1+DATE(LEFT($NV33,4),MID($NV33,5,2),RIGHT($NV33,2))-DATE(LEFT($NU33,4),MID($NU33,5,2),RIGHT($NU33,2))&")",IF(LEFT($NW33,6)=LEFT(DZ$5,6),"("&1+DATE(LEFT($NX33,4),MID($NX33,5,2),RIGHT($NX33,2))-DATE(LEFT($NW33,4),MID($NW33,5,2),RIGHT($NW33,2))&")",IF(LEFT($NY33,6)=LEFT(DZ$5,6),"("&1+DATE(LEFT($NZ33,4),MID($NZ33,5,2),RIGHT($NZ33,2))-DATE(LEFT($NY33,4),MID($NY33,5,2),RIGHT($NY33,2))&")","")))))) ->  | FE33: =IF(LEFT($NO33,6)=LEFT(FE$5,6),"("&1+DATE(LEFT($NP33,4),MID($NP33,5,2),RIGHT($NP33,2))-DATE(LEFT($NO33,4),MID($NO33,5,2),RIGHT($NO33,2))&")",IF(LEFT($NQ33,6)=LEFT(FE$5,6),"("&1+DATE(LEFT($NR33,4),MID($NR33,5,2),RIGHT($NR33,2))-DATE(LEFT($NQ33,4),MID($NQ33,5,2),RIGHT($NQ33,2))&")",IF(LEFT($NS33,6)=LEFT(FE$5,6),"("&1+DATE(LEFT($NT33,4),MID($NT33,5,2),RIGHT($NT33,2))-DATE(LEFT($NS33,4),MID($NS33,5,2),RIGHT($NS33,2))&")",IF(LEFT($NU33,6)=LEFT(FE$5,6),"("&1+DATE(LEFT($NV33,4),MID($NV33,5,2),RIGHT($NV33,2))-DATE(LEFT($NU33,4),MID($NU33,5,2),RIGHT($NU33,2))&")",IF(LEFT($NW33,6)=LEFT(FE$5,6),"("&1+DATE(LEFT($NX33,4),MID($NX33,5,2),RIGHT($NX33,2))-DATE(LEFT($NW33,4),MID($NW33,5,2),RIGHT($NW33,2))&")",IF(LEFT($NY33,6)=LEFT(FE$5,6),"("&1+DATE(LEFT($NZ33,4),MID($NZ33,5,2),RIGHT($NZ33,2))-DATE(LEFT($NY33,4),MID($NY33,5,2),RIGHT($NY33,2))&")","")))))) ->  | GI33: =IF(LEFT($NO33,6)=LEFT(GI$5,6),"("&1+DATE(LEFT($NP33,4),MID($NP33,5,2),RIGHT($NP33,2))-DATE(LEFT($NO33,4),MID($NO33,5,2),RIGHT($NO33,2))&")",IF(LEFT($NQ33,6)=LEFT(GI$5,6),"("&1+DATE(LEFT($NR33,4),MID($NR33,5,2),RIGHT($NR33,2))-DATE(LEFT($NQ33,4),MID($NQ33,5,2),RIGHT($NQ33,2))&")",IF(LEFT($NS33,6)=LEFT(GI$5,6),"("&1+DATE(LEFT($NT33,4),MID($NT33,5,2),RIGHT($NT33,2))-DATE(LEFT($NS33,4),MID($NS33,5,2),RIGHT($NS33,2))&")",IF(LEFT($NU33,6)=LEFT(GI$5,6),"("&1+DATE(LEFT($NV33,4),MID($NV33,5,2),RIGHT($NV33,2))-DATE(LEFT($NU33,4),MID($NU33,5,2),RIGHT($NU33,2))&")",IF(LEFT($NW33,6)=LEFT(GI$5,6),"("&1+DATE(LEFT($NX33,4),MID($NX33,5,2),RIGHT($NX33,2))-DATE(LEFT($NW33,4),MID($NW33,5,2),RIGHT($NW33,2))&")",IF(LEFT($NY33,6)=LEFT(GI$5,6),"("&1+DATE(LEFT($NZ33,4),MID($NZ33,5,2),RIGHT($NZ33,2))-DATE(LEFT($NY33,4),MID($NY33,5,2),RIGHT($NY33,2))&")","")))))) ->  | HN33: =IF(LEFT($NO33,6)=LEFT(HN$5,6),"("&1+DATE(LEFT($NP33,4),MID($NP33,5,2),RIGHT($NP33,2))-DATE(LEFT($NO33,4),MID($NO33,5,2),RIGHT($NO33,2))&")",IF(LEFT($NQ33,6)=LEFT(HN$5,6),"("&1+DATE(LEFT($NR33,4),MID($NR33,5,2),RIGHT($NR33,2))-DATE(LEFT($NQ33,4),MID($NQ33,5,2),RIGHT($NQ33,2))&")",IF(LEFT($NS33,6)=LEFT(HN$5,6),"("&1+DATE(LEFT($NT33,4),MID($NT33,5,2),RIGHT($NT33,2))-DATE(LEFT($NS33,4),MID($NS33,5,2),RIGHT($NS33,2))&")",IF(LEFT($NU33,6)=LEFT(HN$5,6),"("&1+DATE(LEFT($NV33,4),MID($NV33,5,2),RIGHT($NV33,2))-DATE(LEFT($NU33,4),MID($NU33,5,2),RIGHT($NU33,2))&")",IF(LEFT($NW33,6)=LEFT(HN$5,6),"("&1+DATE(LEFT($NX33,4),MID($NX33,5,2),RIGHT($NX33,2))-DATE(LEFT($NW33,4),MID($NW33,5,2),RIGHT($NW33,2))&")",IF(LEFT($NY33,6)=LEFT(HN$5,6),"("&1+DATE(LEFT($NZ33,4),MID($NZ33,5,2),RIGHT($NZ33,2))-DATE(LEFT($NY33,4),MID($NY33,5,2),RIGHT($NY33,2))&")","")))))) ->  | IR33: =IF(LEFT($NO33,6)=LEFT(IR$5,6),"("&1+DATE(LEFT($NP33,4),MID($NP33,5,2),RIGHT($NP33,2))-DATE(LEFT($NO33,4),MID($NO33,5,2),RIGHT($NO33,2))&")",IF(LEFT($NQ33,6)=LEFT(IR$5,6),"("&1+DATE(LEFT($NR33,4),MID($NR33,5,2),RIGHT($NR33,2))-DATE(LEFT($NQ33,4),MID($NQ33,5,2),RIGHT($NQ33,2))&")",IF(LEFT($NS33,6)=LEFT(IR$5,6),"("&1+DATE(LEFT($NT33,4),MID($NT33,5,2),RIGHT($NT33,2))-DATE(LEFT($NS33,4),MID($NS33,5,2),RIGHT($NS33,2))&")",IF(LEFT($NU33,6)=LEFT(IR$5,6),"("&1+DATE(LEFT($NV33,4),MID($NV33,5,2),RIGHT($NV33,2))-DATE(LEFT($NU33,4),MID($NU33,5,2),RIGHT($NU33,2))&")",IF(LEFT($NW33,6)=LEFT(IR$5,6),"("&1+DATE(LEFT($NX33,4),MID($NX33,5,2),RIGHT($NX33,2))-DATE(LEFT($NW33,4),MID($NW33,5,2),RIGHT($NW33,2))&")",IF(LEFT($NY33,6)=LEFT(IR$5,6),"("&1+DATE(LEFT($NZ33,4),MID($NZ33,5,2),RIGHT($NZ33,2))-DATE(LEFT($NY33,4),MID($NY33,5,2),RIGHT($NY33,2))&")","")))))) ->  | JW33: =IF(LEFT($NO33,6)=LEFT(JW$5,6),"("&1+DATE(LEFT($NP33,4),MID($NP33,5,2),RIGHT($NP33,2))-DATE(LEFT($NO33,4),MID($NO33,5,2),RIGHT($NO33,2))&")",IF(LEFT($NQ33,6)=LEFT(JW$5,6),"("&1+DATE(LEFT($NR33,4),MID($NR33,5,2),RIGHT($NR33,2))-DATE(LEFT($NQ33,4),MID($NQ33,5,2),RIGHT($NQ33,2))&")",IF(LEFT($NS33,6)=LEFT(JW$5,6),"("&1+DATE(LEFT($NT33,4),MID($NT33,5,2),RIGHT($NT33,2))-DATE(LEFT($NS33,4),MID($NS33,5,2),RIGHT($NS33,2))&")",IF(LEFT($NU33,6)=LEFT(JW$5,6),"("&1+DATE(LEFT($NV33,4),MID($NV33,5,2),RIGHT($NV33,2))-DATE(LEFT($NU33,4),MID($NU33,5,2),RIGHT($NU33,2))&")",IF(LEFT($NW33,6)=LEFT(JW$5,6),"("&1+DATE(LEFT($NX33,4),MID($NX33,5,2),RIGHT($NX33,2))-DATE(LEFT($NW33,4),MID($NW33,5,2),RIGHT($NW33,2))&")",IF(LEFT($NY33,6)=LEFT(JW$5,6),"("&1+DATE(LEFT($NZ33,4),MID($NZ33,5,2),RIGHT($NZ33,2))-DATE(LEFT($NY33,4),MID($NY33,5,2),RIGHT($NY33,2))&")","")))))) ->  | LB33: =IF(LEFT($NO33,6)=LEFT(LB$5,6),"("&1+DATE(LEFT($NP33,4),MID($NP33,5,2),RIGHT($NP33,2))-DATE(LEFT($NO33,4),MID($NO33,5,2),RIGHT($NO33,2))&")",IF(LEFT($NQ33,6)=LEFT(LB$5,6),"("&1+DATE(LEFT($NR33,4),MID($NR33,5,2),RIGHT($NR33,2))-DATE(LEFT($NQ33,4),MID($NQ33,5,2),RIGHT($NQ33,2))&")",IF(LEFT($NS33,6)=LEFT(LB$5,6),"("&1+DATE(LEFT($NT33,4),MID($NT33,5,2),RIGHT($NT33,2))-DATE(LEFT($NS33,4),MID($NS33,5,2),RIGHT($NS33,2))&")",IF(LEFT($NU33,6)=LEFT(LB$5,6),"("&1+DATE(LEFT($NV33,4),MID($NV33,5,2),RIGHT($NV33,2))-DATE(LEFT($NU33,4),MID($NU33,5,2),RIGHT($NU33,2))&")",IF(LEFT($NW33,6)=LEFT(LB$5,6),"("&1+DATE(LEFT($NX33,4),MID($NX33,5,2),RIGHT($NX33,2))-DATE(LEFT($NW33,4),MID($NW33,5,2),RIGHT($NW33,2))&")",IF(LEFT($NY33,6)=LEFT(LB$5,6),"("&1+DATE(LEFT($NZ33,4),MID($NZ33,5,2),RIGHT($NZ33,2))-DATE(LEFT($NY33,4),MID($NY33,5,2),RIGHT($NY33,2))&")","")))))) ->  | ME33: =IF(LEFT($NO33,6)=LEFT(ME$5,6),"("&1+DATE(LEFT($NP33,4),MID($NP33,5,2),RIGHT($NP33,2))-DATE(LEFT($NO33,4),MID($NO33,5,2),RIGHT($NO33,2))&")",IF(LEFT($NQ33,6)=LEFT(ME$5,6),"("&1+DATE(LEFT($NR33,4),MID($NR33,5,2),RIGHT($NR33,2))-DATE(LEFT($NQ33,4),MID($NQ33,5,2),RIGHT($NQ33,2))&")",IF(LEFT($NS33,6)=LEFT(ME$5,6),"("&1+DATE(LEFT($NT33,4),MID($NT33,5,2),RIGHT($NT33,2))-DATE(LEFT($NS33,4),MID($NS33,5,2),RIGHT($NS33,2))&")",IF(LEFT($NU33,6)=LEFT(ME$5,6),"("&1+DATE(LEFT($NV33,4),MID($NV33,5,2),RIGHT($NV33,2))-DATE(LEFT($NU33,4),MID($NU33,5,2),RIGHT($NU33,2))&")",IF(LEFT($NW33,6)=LEFT(ME$5,6),"("&1+DATE(LEFT($NX33,4),MID($NX33,5,2),RIGHT($NX33,2))-DATE(LEFT($NW33,4),MID($NW33,5,2),RIGHT($NW33,2))&")",IF(LEFT($NY33,6)=LEFT(ME$5,6),"("&1+DATE(LEFT($NZ33,4),MID($NZ33,5,2),RIGHT($NZ33,2))-DATE(LEFT($NY33,4),MID($NY33,5,2),RIGHT($NY33,2))&")","")))))) ->  | NK33: =IF($C$3="様式34-1_1年度目",IF('様式34-1_1年度目'!AS15="","",'様式34-1_1年度目'!AS15),IF($C$3="様式34-1_2年度目",IF('様式34-1_2年度目'!AS15="","",'様式34-1_2年度目'!AS15),"")) ->  | NM33: 8 | NN33: 補修期間→ | NO33: =IF($C$3="様式34-1_1年度目",IF('様式34-1_1年度目'!AT15="","",VALUE(TEXT('様式34-1_1年度目'!AT15,"yyyymmdd"))),IF($C$3="様式34-1_2年度目",IF('様式34-1_2年度目'!AT15="","",VALUE(TEXT('様式34-1_2年度目'!AT15,"yyyymmdd"))),"")) ->  | NP33: =IF($C$3="様式34-1_1年度目",IF('様式34-1_1年度目'!AU15="","",VALUE(TEXT('様式34-1_1年度目'!AU15,"yyyymmdd"))),IF($C$3="様式34-1_2年度目",IF('様式34-1_2年度目'!AU15="","",VALUE(TEXT('様式34-1_2年度目'!AU15,"yyyymmdd"))),"")) ->  | NQ33: =IF($C$3="様式34-1_1年度目",IF('様式34-1_1年度目'!AW15="","",VALUE(TEXT('様式34-1_1年度目'!AW15,"yyyymmdd"))),IF($C$3="様式34-1_2年度目",IF('様式34-1_2年度目'!AW15="","",VALUE(TEXT('様式34-1_2年度目'!AW15,"yyyymmdd"))),"")) ->  | NR33: =IF($C$3="様式34-1_1年度目",IF('様式34-1_1年度目'!AX15="","",VALUE(TEXT('様式34-1_1年度目'!AX15,"yyyymmdd"))),IF($C$3="様式34-1_2年度目",IF('様式34-1_2年度目'!AX15="","",VALUE(TEXT('様式34-1_2年度目'!AX15,"yyyymmdd"))),"")) ->  | NS33: =IF($C$3="様式34-1_1年度目",IF('様式34-1_1年度目'!AZ15="","",VALUE(TEXT('様式34-1_1年度目'!AZ15,"yyyymmdd"))),IF($C$3="様式34-1_2年度目",IF('様式34-1_2年度目'!AZ15="","",VALUE(TEXT('様式34-1_2年度目'!AZ15,"yyyymmdd"))),"")) ->  | NT33: =IF($C$3="様式34-1_1年度目",IF('様式34-1_1年度目'!BA15="","",VALUE(TEXT('様式34-1_1年度目'!BA15,"yyyymmdd"))),IF($C$3="様式34-1_2年度目",IF('様式34-1_2年度目'!BA15="","",VALUE(TEXT('様式34-1_2年度目'!BA15,"yyyymmdd"))),"")) ->  | NU33: =IF($C$3="様式34-1_1年度目",IF('様式34-1_1年度目'!BC15="","",VALUE(TEXT('様式34-1_1年度目'!BC15,"yyyymmdd"))),IF($C$3="様式34-1_2年度目",IF('様式34-1_2年度目'!BC15="","",VALUE(TEXT('様式34-1_2年度目'!BC15,"yyyymmdd"))),"")) ->  | NV33: =IF($C$3="様式34-1_1年度目",IF('様式34-1_1年度目'!BD15="","",VALUE(TEXT('様式34-1_1年度目'!BD15,"yyyymmdd"))),IF($C$3="様式34-1_2年度目",IF('様式34-1_2年度目'!BD15="","",VALUE(TEXT('様式34-1_2年度目'!BD15,"yyyymmdd"))),"")) ->  | NW33: =IF($C$3="様式34-1_1年度目",IF('様式34-1_1年度目'!BF15="","",VALUE(TEXT('様式34-1_1年度目'!BF15,"yyyymmdd"))),IF($C$3="様式34-1_2年度目",IF('様式34-1_2年度目'!BF15="","",VALUE(TEXT('様式34-1_2年度目'!BF15,"yyyymmdd"))),"")) ->  | NX33: =IF($C$3="様式34-1_1年度目",IF('様式34-1_1年度目'!BG15="","",VALUE(TEXT('様式34-1_1年度目'!BG15,"yyyymmdd"))),IF($C$3="様式34-1_2年度目",IF('様式34-1_2年度目'!BG15="","",VALUE(TEXT('様式34-1_2年度目'!BG15,"yyyymmdd"))),"")) ->  | NY33: =IF($C$3="様式34-1_1年度目",IF('様式34-1_1年度目'!BI15="","",VALUE(TEXT('様式34-1_1年度目'!BI15,"yyyymmdd"))),IF($C$3="様式34-1_2年度目",IF('様式34-1_2年度目'!BI15="","",VALUE(TEXT('様式34-1_2年度目'!BI15,"yyyymmdd"))),"")) ->  | NZ33: =IF($C$3="様式34-1_1年度目",IF('様式34-1_1年度目'!BJ15="","",VALUE(TEXT('様式34-1_1年度目'!BJ15,"yyyymmdd"))),IF($C$3="様式34-1_2年度目",IF('様式34-1_2年度目'!BJ15="","",VALUE(TEXT('様式34-1_2年度目'!BJ15,"yyyymmdd"))),"")) -> 
H34: =+IF(OR(H$5=$NO33,H$5=$NQ33,H$5=$NS33,H$5=$NU33,H$5=$NW33,H$5=$NY33),1,IF(OR(AND($NO33<H$5,H$5<$NP33),AND($NQ33<H$5,H$5<$NR33),AND($NS33<H$5,H$5<$NT33),AND($NU33<H$5,H$5<$NV33),AND($NW33<H$5,H$5<$NX33),AND($NY33<H$5,H$5<$NZ33)),2,IF(OR(H$5=$NP33,H$5=$NR33,H$5=$NT33,H$5=$NV33,H$5=$NX33,H$5=$NZ33),3,""))) ->  | BT34: =+IF(OR(BT$5=$NO33,BT$5=$NQ33,BT$5=$NS33,BT$5=$NU33,BT$5=$NW33,BT$5=$NY33),1,IF(OR(AND($NO33<BT$5,BT$5<$NP33),AND($NQ33<BT$5,BT$5<$NR33),AND($NS33<BT$5,BT$5<$NT33),AND($NU33<BT$5,BT$5<$NV33),AND($NW33<BT$5,BT$5<$NX33),AND($NY33<BT$5,BT$5<$NZ33)),2,IF(OR(BT$5=$NP33,BT$5=$NR33,BT$5=$NT33,BT$5=$NV33,BT$5=$NX33,BT$5=$NZ33),3,""))) ->  | EF34: =+IF(OR(EF$5=$NO33,EF$5=$NQ33,EF$5=$NS33,EF$5=$NU33,EF$5=$NW33,EF$5=$NY33),1,IF(OR(AND($NO33<EF$5,EF$5<$NP33),AND($NQ33<EF$5,EF$5<$NR33),AND($NS33<EF$5,EF$5<$NT33),AND($NU33<EF$5,EF$5<$NV33),AND($NW33<EF$5,EF$5<$NX33),AND($NY33<EF$5,EF$5<$NZ33)),2,IF(OR(EF$5=$NP33,EF$5=$NR33,EF$5=$NT33,EF$5=$NV33,EF$5=$NX33,EF$5=$NZ33),3,""))) ->  | GR34: =+IF(OR(GR$5=$NO33,GR$5=$NQ33,GR$5=$NS33,GR$5=$NU33,GR$5=$NW33,GR$5=$NY33),1,IF(OR(AND($NO33<GR$5,GR$5<$NP33),AND($NQ33<GR$5,GR$5<$NR33),AND($NS33<GR$5,GR$5<$NT33),AND($NU33<GR$5,GR$5<$NV33),AND($NW33<GR$5,GR$5<$NX33),AND($NY33<GR$5,GR$5<$NZ33)),2,IF(OR(GR$5=$NP33,GR$5=$NR33,GR$5=$NT33,GR$5=$NV33,GR$5=$NX33,GR$5=$NZ33),3,""))) ->  | JD34: =+IF(OR(JD$5=$NO33,JD$5=$NQ33,JD$5=$NS33,JD$5=$NU33,JD$5=$NW33,JD$5=$NY33),1,IF(OR(AND($NO33<JD$5,JD$5<$NP33),AND($NQ33<JD$5,JD$5<$NR33),AND($NS33<JD$5,JD$5<$NT33),AND($NU33<JD$5,JD$5<$NV33),AND($NW33<JD$5,JD$5<$NX33),AND($NY33<JD$5,JD$5<$NZ33)),2,IF(OR(JD$5=$NP33,JD$5=$NR33,JD$5=$NT33,JD$5=$NV33,JD$5=$NX33,JD$5=$NZ33),3,""))) ->  | LP34: =+IF(OR(LP$5=$NO33,LP$5=$NQ33,LP$5=$NS33,LP$5=$NU33,LP$5=$NW33,LP$5=$NY33),1,IF(OR(AND($NO33<LP$5,LP$5<$NP33),AND($NQ33<LP$5,LP$5<$NR33),AND($NS33<LP$5,LP$5<$NT33),AND($NU33<LP$5,LP$5<$NV33),AND($NW33<LP$5,LP$5<$NX33),AND($NY33<LP$5,LP$5<$NZ33)),2,IF(OR(LP$5=$NP33,LP$5=$NR33,LP$5=$NT33,LP$5=$NV33,LP$5=$NX33,LP$5=$NZ33),3,""))) -> 
H35: =IF(AND($NO33<>"",$NO33<$H$5),MID($NO33,5,2)&"/"&RIGHT($NO33,2)&"～"&MID($NP33,5,2)&"/"&RIGHT($NP33,2),IF(LEFT($NO33,6)=LEFT(H$5,6),MID($NO33,5,2)&"/"&RIGHT($NO33,2)&"～"&MID($NP33,5,2)&"/"&RIGHT($NP33,2),IF(LEFT($NQ33,6)=LEFT(H$5,6),MID($NQ33,5,2)&"/"&RIGHT($NQ33,2)&"～"&MID($NR33,5,2)&"/"&RIGHT($NR33,2),IF(LEFT($NS33,6)=LEFT(H$5,6),MID($NS33,5,2)&"/"&RIGHT($NS33,2)&"～"&MID($NT33,5,2)&"/"&RIGHT($NT33,2),IF(LEFT($NU33,6)=LEFT(H$5,6),MID($NU33,5,2)&"/"&RIGHT($NU33,2)&"～"&MID($NV33,5,2)&"/"&RIGHT($NV33,2),IF(LEFT($NW33,6)=LEFT(H$5,6),MID($NW33,5,2)&"/"&RIGHT($NW33,2)&"～"&MID($NX33,5,2)&"/"&RIGHT($NX33,2),IF(LEFT($NY33,6)=LEFT(H$5,6),MID($NY33,5,2)&"/"&RIGHT($NY33,2)&"～"&MID($NZ33,5,2)&"/"&RIGHT($NZ33,2),""))))))) ->  | AL35: =IF(LEFT($NO33,6)=LEFT(AL$5,6),MID($NO33,5,2)&"/"&RIGHT($NO33,2)&"～"&MID($NP33,5,2)&"/"&RIGHT($NP33,2),IF(LEFT($NQ33,6)=LEFT(AL$5,6),MID($NQ33,5,2)&"/"&RIGHT($NQ33,2)&"～"&MID($NR33,5,2)&"/"&RIGHT($NR33,2),IF(LEFT($NS33,6)=LEFT(AL$5,6),MID($NS33,5,2)&"/"&RIGHT($NS33,2)&"～"&MID($NT33,5,2)&"/"&RIGHT($NT33,2),IF(LEFT($NU33,6)=LEFT(AL$5,6),MID($NU33,5,2)&"/"&RIGHT($NU33,2)&"～"&MID($NV33,5,2)&"/"&RIGHT($NV33,2),IF(LEFT($NW33,6)=LEFT(AL$5,6),MID($NW33,5,2)&"/"&RIGHT($NW33,2)&"～"&MID($NX33,5,2)&"/"&RIGHT($NX33,2),IF(LEFT($NY33,6)=LEFT(AL$5,6),MID($NY33,5,2)&"/"&RIGHT($NY33,2)&"～"&MID($NZ33,5,2)&"/"&RIGHT($NZ33,2),"")))))) ->  | BQ35: =IF(LEFT($NO33,6)=LEFT(BQ$5,6),MID($NO33,5,2)&"/"&RIGHT($NO33,2)&"～"&MID($NP33,5,2)&"/"&RIGHT($NP33,2),IF(LEFT($NQ33,6)=LEFT(BQ$5,6),MID($NQ33,5,2)&"/"&RIGHT($NQ33,2)&"～"&MID($NR33,5,2)&"/"&RIGHT($NR33,2),IF(LEFT($NS33,6)=LEFT(BQ$5,6),MID($NS33,5,2)&"/"&RIGHT($NS33,2)&"～"&MID($NT33,5,2)&"/"&RIGHT($NT33,2),IF(LEFT($NU33,6)=LEFT(BQ$5,6),MID($NU33,5,2)&"/"&RIGHT($NU33,2)&"～"&MID($NV33,5,2)&"/"&RIGHT($NV33,2),IF(LEFT($NW33,6)=LEFT(BQ$5,6),MID($NW33,5,2)&"/"&RIGHT($NW33,2)&"～"&MID($NX33,5,2)&"/"&RIGHT($NX33,2),IF(LEFT($NY33,6)=LEFT(BQ$5,6),MID($NY33,5,2)&"/"&RIGHT($NY33,2)&"～"&MID($NZ33,5,2)&"/"&RIGHT($NZ33,2),"")))))) ->  | CU35: =IF(LEFT($NO33,6)=LEFT(CU$5,6),MID($NO33,5,2)&"/"&RIGHT($NO33,2)&"～"&MID($NP33,5,2)&"/"&RIGHT($NP33,2),IF(LEFT($NQ33,6)=LEFT(CU$5,6),MID($NQ33,5,2)&"/"&RIGHT($NQ33,2)&"～"&MID($NR33,5,2)&"/"&RIGHT($NR33,2),IF(LEFT($NS33,6)=LEFT(CU$5,6),MID($NS33,5,2)&"/"&RIGHT($NS33,2)&"～"&MID($NT33,5,2)&"/"&RIGHT($NT33,2),IF(LEFT($NU33,6)=LEFT(CU$5,6),MID($NU33,5,2)&"/"&RIGHT($NU33,2)&"～"&MID($NV33,5,2)&"/"&RIGHT($NV33,2),IF(LEFT($NW33,6)=LEFT(CU$5,6),MID($NW33,5,2)&"/"&RIGHT($NW33,2)&"～"&MID($NX33,5,2)&"/"&RIGHT($NX33,2),IF(LEFT($NY33,6)=LEFT(CU$5,6),MID($NY33,5,2)&"/"&RIGHT($NY33,2)&"～"&MID($NZ33,5,2)&"/"&RIGHT($NZ33,2),"")))))) ->  | DZ35: =IF(LEFT($NO33,6)=LEFT(DZ$5,6),MID($NO33,5,2)&"/"&RIGHT($NO33,2)&"～"&MID($NP33,5,2)&"/"&RIGHT($NP33,2),IF(LEFT($NQ33,6)=LEFT(DZ$5,6),MID($NQ33,5,2)&"/"&RIGHT($NQ33,2)&"～"&MID($NR33,5,2)&"/"&RIGHT($NR33,2),IF(LEFT($NS33,6)=LEFT(DZ$5,6),MID($NS33,5,2)&"/"&RIGHT($NS33,2)&"～"&MID($NT33,5,2)&"/"&RIGHT($NT33,2),IF(LEFT($NU33,6)=LEFT(DZ$5,6),MID($NU33,5,2)&"/"&RIGHT($NU33,2)&"～"&MID($NV33,5,2)&"/"&RIGHT($NV33,2),IF(LEFT($NW33,6)=LEFT(DZ$5,6),MID($NW33,5,2)&"/"&RIGHT($NW33,2)&"～"&MID($NX33,5,2)&"/"&RIGHT($NX33,2),IF(LEFT($NY33,6)=LEFT(DZ$5,6),MID($NY33,5,2)&"/"&RIGHT($NY33,2)&"～"&MID($NZ33,5,2)&"/"&RIGHT($NZ33,2),"")))))) ->  | FE35: =IF(LEFT($NO33,6)=LEFT(FE$5,6),MID($NO33,5,2)&"/"&RIGHT($NO33,2)&"～"&MID($NP33,5,2)&"/"&RIGHT($NP33,2),IF(LEFT($NQ33,6)=LEFT(FE$5,6),MID($NQ33,5,2)&"/"&RIGHT($NQ33,2)&"～"&MID($NR33,5,2)&"/"&RIGHT($NR33,2),IF(LEFT($NS33,6)=LEFT(FE$5,6),MID($NS33,5,2)&"/"&RIGHT($NS33,2)&"～"&MID($NT33,5,2)&"/"&RIGHT($NT33,2),IF(LEFT($NU33,6)=LEFT(FE$5,6),MID($NU33,5,2)&"/"&RIGHT($NU33,2)&"～"&MID($NV33,5,2)&"/"&RIGHT($NV33,2),IF(LEFT($NW33,6)=LEFT(FE$5,6),MID($NW33,5,2)&"/"&RIGHT($NW33,2)&"～"&MID($NX33,5,2)&"/"&RIGHT($NX33,2),IF(LEFT($NY33,6)=LEFT(FE$5,6),MID($NY33,5,2)&"/"&RIGHT($NY33,2)&"～"&MID($NZ33,5,2)&"/"&RIGHT($NZ33,2),"")))))) ->  | GI35: =IF(LEFT($NO33,6)=LEFT(GI$5,6),MID($NO33,5,2)&"/"&RIGHT($NO33,2)&"～"&MID($NP33,5,2)&"/"&RIGHT($NP33,2),IF(LEFT($NQ33,6)=LEFT(GI$5,6),MID($NQ33,5,2)&"/"&RIGHT($NQ33,2)&"～"&MID($NR33,5,2)&"/"&RIGHT($NR33,2),IF(LEFT($NS33,6)=LEFT(GI$5,6),MID($NS33,5,2)&"/"&RIGHT($NS33,2)&"～"&MID($NT33,5,2)&"/"&RIGHT($NT33,2),IF(LEFT($NU33,6)=LEFT(GI$5,6),MID($NU33,5,2)&"/"&RIGHT($NU33,2)&"～"&MID($NV33,5,2)&"/"&RIGHT($NV33,2),IF(LEFT($NW33,6)=LEFT(GI$5,6),MID($NW33,5,2)&"/"&RIGHT($NW33,2)&"～"&MID($NX33,5,2)&"/"&RIGHT($NX33,2),IF(LEFT($NY33,6)=LEFT(GI$5,6),MID($NY33,5,2)&"/"&RIGHT($NY33,2)&"～"&MID($NZ33,5,2)&"/"&RIGHT($NZ33,2),"")))))) ->  | HN35: =IF(LEFT($NO33,6)=LEFT(HN$5,6),MID($NO33,5,2)&"/"&RIGHT($NO33,2)&"～"&MID($NP33,5,2)&"/"&RIGHT($NP33,2),IF(LEFT($NQ33,6)=LEFT(HN$5,6),MID($NQ33,5,2)&"/"&RIGHT($NQ33,2)&"～"&MID($NR33,5,2)&"/"&RIGHT($NR33,2),IF(LEFT($NS33,6)=LEFT(HN$5,6),MID($NS33,5,2)&"/"&RIGHT($NS33,2)&"～"&MID($NT33,5,2)&"/"&RIGHT($NT33,2),IF(LEFT($NU33,6)=LEFT(HN$5,6),MID($NU33,5,2)&"/"&RIGHT($NU33,2)&"～"&MID($NV33,5,2)&"/"&RIGHT($NV33,2),IF(LEFT($NW33,6)=LEFT(HN$5,6),MID($NW33,5,2)&"/"&RIGHT($NW33,2)&"～"&MID($NX33,5,2)&"/"&RIGHT($NX33,2),IF(LEFT($NY33,6)=LEFT(HN$5,6),MID($NY33,5,2)&"/"&RIGHT($NY33,2)&"～"&MID($NZ33,5,2)&"/"&RIGHT($NZ33,2),"")))))) ->  | IR35: =IF(LEFT($NO33,6)=LEFT(IR$5,6),MID($NO33,5,2)&"/"&RIGHT($NO33,2)&"～"&MID($NP33,5,2)&"/"&RIGHT($NP33,2),IF(LEFT($NQ33,6)=LEFT(IR$5,6),MID($NQ33,5,2)&"/"&RIGHT($NQ33,2)&"～"&MID($NR33,5,2)&"/"&RIGHT($NR33,2),IF(LEFT($NS33,6)=LEFT(IR$5,6),MID($NS33,5,2)&"/"&RIGHT($NS33,2)&"～"&MID($NT33,5,2)&"/"&RIGHT($NT33,2),IF(LEFT($NU33,6)=LEFT(IR$5,6),MID($NU33,5,2)&"/"&RIGHT($NU33,2)&"～"&MID($NV33,5,2)&"/"&RIGHT($NV33,2),IF(LEFT($NW33,6)=LEFT(IR$5,6),MID($NW33,5,2)&"/"&RIGHT($NW33,2)&"～"&MID($NX33,5,2)&"/"&RIGHT($NX33,2),IF(LEFT($NY33,6)=LEFT(IR$5,6),MID($NY33,5,2)&"/"&RIGHT($NY33,2)&"～"&MID($NZ33,5,2)&"/"&RIGHT($NZ33,2),"")))))) ->  | JW35: =IF(LEFT($NO33,6)=LEFT(JW$5,6),MID($NO33,5,2)&"/"&RIGHT($NO33,2)&"～"&MID($NP33,5,2)&"/"&RIGHT($NP33,2),IF(LEFT($NQ33,6)=LEFT(JW$5,6),MID($NQ33,5,2)&"/"&RIGHT($NQ33,2)&"～"&MID($NR33,5,2)&"/"&RIGHT($NR33,2),IF(LEFT($NS33,6)=LEFT(JW$5,6),MID($NS33,5,2)&"/"&RIGHT($NS33,2)&"～"&MID($NT33,5,2)&"/"&RIGHT($NT33,2),IF(LEFT($NU33,6)=LEFT(JW$5,6),MID($NU33,5,2)&"/"&RIGHT($NU33,2)&"～"&MID($NV33,5,2)&"/"&RIGHT($NV33,2),IF(LEFT($NW33,6)=LEFT(JW$5,6),MID($NW33,5,2)&"/"&RIGHT($NW33,2)&"～"&MID($NX33,5,2)&"/"&RIGHT($NX33,2),IF(LEFT($NY33,6)=LEFT(JW$5,6),MID($NY33,5,2)&"/"&RIGHT($NY33,2)&"～"&MID($NZ33,5,2)&"/"&RIGHT($NZ33,2),"")))))) ->  | LB35: =IF(LEFT($NO33,6)=LEFT(LB$5,6),MID($NO33,5,2)&"/"&RIGHT($NO33,2)&"～"&MID($NP33,5,2)&"/"&RIGHT($NP33,2),IF(LEFT($NQ33,6)=LEFT(LB$5,6),MID($NQ33,5,2)&"/"&RIGHT($NQ33,2)&"～"&MID($NR33,5,2)&"/"&RIGHT($NR33,2),IF(LEFT($NS33,6)=LEFT(LB$5,6),MID($NS33,5,2)&"/"&RIGHT($NS33,2)&"～"&MID($NT33,5,2)&"/"&RIGHT($NT33,2),IF(LEFT($NU33,6)=LEFT(LB$5,6),MID($NU33,5,2)&"/"&RIGHT($NU33,2)&"～"&MID($NV33,5,2)&"/"&RIGHT($NV33,2),IF(LEFT($NW33,6)=LEFT(LB$5,6),MID($NW33,5,2)&"/"&RIGHT($NW33,2)&"～"&MID($NX33,5,2)&"/"&RIGHT($NX33,2),IF(LEFT($NY33,6)=LEFT(LB$5,6),MID($NY33,5,2)&"/"&RIGHT($NY33,2)&"～"&MID($NZ33,5,2)&"/"&RIGHT($NZ33,2),"")))))) ->  | ME35: =IF(LEFT($NO33,6)=LEFT(ME$5,6),MID($NO33,5,2)&"/"&RIGHT($NO33,2)&"～"&MID($NP33,5,2)&"/"&RIGHT($NP33,2),IF(LEFT($NQ33,6)=LEFT(ME$5,6),MID($NQ33,5,2)&"/"&RIGHT($NQ33,2)&"～"&MID($NR33,5,2)&"/"&RIGHT($NR33,2),IF(LEFT($NS33,6)=LEFT(ME$5,6),MID($NS33,5,2)&"/"&RIGHT($NS33,2)&"～"&MID($NT33,5,2)&"/"&RIGHT($NT33,2),IF(LEFT($NU33,6)=LEFT(ME$5,6),MID($NU33,5,2)&"/"&RIGHT($NU33,2)&"～"&MID($NV33,5,2)&"/"&RIGHT($NV33,2),IF(LEFT($NW33,6)=LEFT(ME$5,6),MID($NW33,5,2)&"/"&RIGHT($NW33,2)&"～"&MID($NX33,5,2)&"/"&RIGHT($NX33,2),IF(LEFT($NY33,6)=LEFT(ME$5,6),MID($NY33,5,2)&"/"&RIGHT($NY33,2)&"～"&MID($NZ33,5,2)&"/"&RIGHT($NZ33,2),"")))))) -> 
C36: =IF($C$3="様式34-1_1年度目",IF('様式34-1_1年度目'!AC16="","",'様式34-1_1年度目'!AC16),IF($C$3="様式34-1_2年度目",IF('様式34-1_2年度目'!AC16="","",'様式34-1_2年度目'!AC16),"")) ->  | F36: =IF($C$3="様式34-1_1年度目",IF('様式34-1_1年度目'!AD16="","",'様式34-1_1年度目'!AD16&" "&'様式34-1_1年度目'!AE16),IF($C$3="様式34-1_2年度目",IF('様式34-1_2年度目'!AD16="","",'様式34-1_2年度目'!AD16&" "&'様式34-1_2年度目'!AE16),"")) ->  | G36: =IF($C$3="様式34-1_1年度目",IF('様式34-1_1年度目'!AF16="","",'様式34-1_1年度目'!AF16),IF($C$3="様式34-1_2年度目",IF('様式34-1_2年度目'!AF16="","",'様式34-1_2年度目'!AF16),"")) ->  | H36: =IF(AND($NO36<>"",$NO36<$H$5),"("&1+DATE(LEFT($NP36,4),MID($NP36,5,2),RIGHT($NP36,2))-DATE(LEFT($NO36,4),MID($NO36,5,2),RIGHT($NO36,2))&")",IF(LEFT($NO36,6)=LEFT(H$5,6),"("&1+DATE(LEFT($NP36,4),MID($NP36,5,2),RIGHT($NP36,2))-DATE(LEFT($NO36,4),MID($NO36,5,2),RIGHT($NO36,2))&")",IF(LEFT($NQ36,6)=LEFT(H$5,6),"("&1+DATE(LEFT($NR36,4),MID($NR36,5,2),RIGHT($NR36,2))-DATE(LEFT($NQ36,4),MID($NQ36,5,2),RIGHT($NQ36,2))&")",IF(LEFT($NS36,6)=LEFT(H$5,6),"("&1+DATE(LEFT($NT36,4),MID($NT36,5,2),RIGHT($NT36,2))-DATE(LEFT($NS36,4),MID($NS36,5,2),RIGHT($NS36,2))&")",IF(LEFT($NU36,6)=LEFT(H$5,6),"("&1+DATE(LEFT($NV36,4),MID($NV36,5,2),RIGHT($NV36,2))-DATE(LEFT($NU36,4),MID($NU36,5,2),RIGHT($NU36,2))&")",IF(LEFT($NW36,6)=LEFT(H$5,6),"("&1+DATE(LEFT($NX36,4),MID($NX36,5,2),RIGHT($NX36,2))-DATE(LEFT($NW36,4),MID($NW36,5,2),RIGHT($NW36,2))&")",IF(LEFT($NY36,6)=LEFT(H$5,6),"("&1+DATE(LEFT($NZ36,4),MID($NZ36,5,2),RIGHT($NZ36,2))-DATE(LEFT($NY36,4),MID($NY36,5,2),RIGHT($NY36,2))&")",""))))))) ->  | AL36: =IF(LEFT($NO36,6)=LEFT(AL$5,6),"("&1+DATE(LEFT($NP36,4),MID($NP36,5,2),RIGHT($NP36,2))-DATE(LEFT($NO36,4),MID($NO36,5,2),RIGHT($NO36,2))&")",IF(LEFT($NQ36,6)=LEFT(AL$5,6),"("&1+DATE(LEFT($NR36,4),MID($NR36,5,2),RIGHT($NR36,2))-DATE(LEFT($NQ36,4),MID($NQ36,5,2),RIGHT($NQ36,2))&")",IF(LEFT($NS36,6)=LEFT(AL$5,6),"("&1+DATE(LEFT($NT36,4),MID($NT36,5,2),RIGHT($NT36,2))-DATE(LEFT($NS36,4),MID($NS36,5,2),RIGHT($NS36,2))&")",IF(LEFT($NU36,6)=LEFT(AL$5,6),"("&1+DATE(LEFT($NV36,4),MID($NV36,5,2),RIGHT($NV36,2))-DATE(LEFT($NU36,4),MID($NU36,5,2),RIGHT($NU36,2))&")",IF(LEFT($NW36,6)=LEFT(AL$5,6),"("&1+DATE(LEFT($NX36,4),MID($NX36,5,2),RIGHT($NX36,2))-DATE(LEFT($NW36,4),MID($NW36,5,2),RIGHT($NW36,2))&")",IF(LEFT($NY36,6)=LEFT(AL$5,6),"("&1+DATE(LEFT($NZ36,4),MID($NZ36,5,2),RIGHT($NZ36,2))-DATE(LEFT($NY36,4),MID($NY36,5,2),RIGHT($NY36,2))&")","")))))) ->  | BQ36: =IF(LEFT($NO36,6)=LEFT(BQ$5,6),"("&1+DATE(LEFT($NP36,4),MID($NP36,5,2),RIGHT($NP36,2))-DATE(LEFT($NO36,4),MID($NO36,5,2),RIGHT($NO36,2))&")",IF(LEFT($NQ36,6)=LEFT(BQ$5,6),"("&1+DATE(LEFT($NR36,4),MID($NR36,5,2),RIGHT($NR36,2))-DATE(LEFT($NQ36,4),MID($NQ36,5,2),RIGHT($NQ36,2))&")",IF(LEFT($NS36,6)=LEFT(BQ$5,6),"("&1+DATE(LEFT($NT36,4),MID($NT36,5,2),RIGHT($NT36,2))-DATE(LEFT($NS36,4),MID($NS36,5,2),RIGHT($NS36,2))&")",IF(LEFT($NU36,6)=LEFT(BQ$5,6),"("&1+DATE(LEFT($NV36,4),MID($NV36,5,2),RIGHT($NV36,2))-DATE(LEFT($NU36,4),MID($NU36,5,2),RIGHT($NU36,2))&")",IF(LEFT($NW36,6)=LEFT(BQ$5,6),"("&1+DATE(LEFT($NX36,4),MID($NX36,5,2),RIGHT($NX36,2))-DATE(LEFT($NW36,4),MID($NW36,5,2),RIGHT($NW36,2))&")",IF(LEFT($NY36,6)=LEFT(BQ$5,6),"("&1+DATE(LEFT($NZ36,4),MID($NZ36,5,2),RIGHT($NZ36,2))-DATE(LEFT($NY36,4),MID($NY36,5,2),RIGHT($NY36,2))&")","")))))) ->  | CU36: =IF(LEFT($NO36,6)=LEFT(CU$5,6),"("&1+DATE(LEFT($NP36,4),MID($NP36,5,2),RIGHT($NP36,2))-DATE(LEFT($NO36,4),MID($NO36,5,2),RIGHT($NO36,2))&")",IF(LEFT($NQ36,6)=LEFT(CU$5,6),"("&1+DATE(LEFT($NR36,4),MID($NR36,5,2),RIGHT($NR36,2))-DATE(LEFT($NQ36,4),MID($NQ36,5,2),RIGHT($NQ36,2))&")",IF(LEFT($NS36,6)=LEFT(CU$5,6),"("&1+DATE(LEFT($NT36,4),MID($NT36,5,2),RIGHT($NT36,2))-DATE(LEFT($NS36,4),MID($NS36,5,2),RIGHT($NS36,2))&")",IF(LEFT($NU36,6)=LEFT(CU$5,6),"("&1+DATE(LEFT($NV36,4),MID($NV36,5,2),RIGHT($NV36,2))-DATE(LEFT($NU36,4),MID($NU36,5,2),RIGHT($NU36,2))&")",IF(LEFT($NW36,6)=LEFT(CU$5,6),"("&1+DATE(LEFT($NX36,4),MID($NX36,5,2),RIGHT($NX36,2))-DATE(LEFT($NW36,4),MID($NW36,5,2),RIGHT($NW36,2))&")",IF(LEFT($NY36,6)=LEFT(CU$5,6),"("&1+DATE(LEFT($NZ36,4),MID($NZ36,5,2),RIGHT($NZ36,2))-DATE(LEFT($NY36,4),MID($NY36,5,2),RIGHT($NY36,2))&")","")))))) ->  | DZ36: =IF(LEFT($NO36,6)=LEFT(DZ$5,6),"("&1+DATE(LEFT($NP36,4),MID($NP36,5,2),RIGHT($NP36,2))-DATE(LEFT($NO36,4),MID($NO36,5,2),RIGHT($NO36,2))&")",IF(LEFT($NQ36,6)=LEFT(DZ$5,6),"("&1+DATE(LEFT($NR36,4),MID($NR36,5,2),RIGHT($NR36,2))-DATE(LEFT($NQ36,4),MID($NQ36,5,2),RIGHT($NQ36,2))&")",IF(LEFT($NS36,6)=LEFT(DZ$5,6),"("&1+DATE(LEFT($NT36,4),MID($NT36,5,2),RIGHT($NT36,2))-DATE(LEFT($NS36,4),MID($NS36,5,2),RIGHT($NS36,2))&")",IF(LEFT($NU36,6)=LEFT(DZ$5,6),"("&1+DATE(LEFT($NV36,4),MID($NV36,5,2),RIGHT($NV36,2))-DATE(LEFT($NU36,4),MID($NU36,5,2),RIGHT($NU36,2))&")",IF(LEFT($NW36,6)=LEFT(DZ$5,6),"("&1+DATE(LEFT($NX36,4),MID($NX36,5,2),RIGHT($NX36,2))-DATE(LEFT($NW36,4),MID($NW36,5,2),RIGHT($NW36,2))&")",IF(LEFT($NY36,6)=LEFT(DZ$5,6),"("&1+DATE(LEFT($NZ36,4),MID($NZ36,5,2),RIGHT($NZ36,2))-DATE(LEFT($NY36,4),MID($NY36,5,2),RIGHT($NY36,2))&")","")))))) ->  | FE36: =IF(LEFT($NO36,6)=LEFT(FE$5,6),"("&1+DATE(LEFT($NP36,4),MID($NP36,5,2),RIGHT($NP36,2))-DATE(LEFT($NO36,4),MID($NO36,5,2),RIGHT($NO36,2))&")",IF(LEFT($NQ36,6)=LEFT(FE$5,6),"("&1+DATE(LEFT($NR36,4),MID($NR36,5,2),RIGHT($NR36,2))-DATE(LEFT($NQ36,4),MID($NQ36,5,2),RIGHT($NQ36,2))&")",IF(LEFT($NS36,6)=LEFT(FE$5,6),"("&1+DATE(LEFT($NT36,4),MID($NT36,5,2),RIGHT($NT36,2))-DATE(LEFT($NS36,4),MID($NS36,5,2),RIGHT($NS36,2))&")",IF(LEFT($NU36,6)=LEFT(FE$5,6),"("&1+DATE(LEFT($NV36,4),MID($NV36,5,2),RIGHT($NV36,2))-DATE(LEFT($NU36,4),MID($NU36,5,2),RIGHT($NU36,2))&")",IF(LEFT($NW36,6)=LEFT(FE$5,6),"("&1+DATE(LEFT($NX36,4),MID($NX36,5,2),RIGHT($NX36,2))-DATE(LEFT($NW36,4),MID($NW36,5,2),RIGHT($NW36,2))&")",IF(LEFT($NY36,6)=LEFT(FE$5,6),"("&1+DATE(LEFT($NZ36,4),MID($NZ36,5,2),RIGHT($NZ36,2))-DATE(LEFT($NY36,4),MID($NY36,5,2),RIGHT($NY36,2))&")","")))))) ->  | GI36: =IF(LEFT($NO36,6)=LEFT(GI$5,6),"("&1+DATE(LEFT($NP36,4),MID($NP36,5,2),RIGHT($NP36,2))-DATE(LEFT($NO36,4),MID($NO36,5,2),RIGHT($NO36,2))&")",IF(LEFT($NQ36,6)=LEFT(GI$5,6),"("&1+DATE(LEFT($NR36,4),MID($NR36,5,2),RIGHT($NR36,2))-DATE(LEFT($NQ36,4),MID($NQ36,5,2),RIGHT($NQ36,2))&")",IF(LEFT($NS36,6)=LEFT(GI$5,6),"("&1+DATE(LEFT($NT36,4),MID($NT36,5,2),RIGHT($NT36,2))-DATE(LEFT($NS36,4),MID($NS36,5,2),RIGHT($NS36,2))&")",IF(LEFT($NU36,6)=LEFT(GI$5,6),"("&1+DATE(LEFT($NV36,4),MID($NV36,5,2),RIGHT($NV36,2))-DATE(LEFT($NU36,4),MID($NU36,5,2),RIGHT($NU36,2))&")",IF(LEFT($NW36,6)=LEFT(GI$5,6),"("&1+DATE(LEFT($NX36,4),MID($NX36,5,2),RIGHT($NX36,2))-DATE(LEFT($NW36,4),MID($NW36,5,2),RIGHT($NW36,2))&")",IF(LEFT($NY36,6)=LEFT(GI$5,6),"("&1+DATE(LEFT($NZ36,4),MID($NZ36,5,2),RIGHT($NZ36,2))-DATE(LEFT($NY36,4),MID($NY36,5,2),RIGHT($NY36,2))&")","")))))) ->  | HN36: =IF(LEFT($NO36,6)=LEFT(HN$5,6),"("&1+DATE(LEFT($NP36,4),MID($NP36,5,2),RIGHT($NP36,2))-DATE(LEFT($NO36,4),MID($NO36,5,2),RIGHT($NO36,2))&")",IF(LEFT($NQ36,6)=LEFT(HN$5,6),"("&1+DATE(LEFT($NR36,4),MID($NR36,5,2),RIGHT($NR36,2))-DATE(LEFT($NQ36,4),MID($NQ36,5,2),RIGHT($NQ36,2))&")",IF(LEFT($NS36,6)=LEFT(HN$5,6),"("&1+DATE(LEFT($NT36,4),MID($NT36,5,2),RIGHT($NT36,2))-DATE(LEFT($NS36,4),MID($NS36,5,2),RIGHT($NS36,2))&")",IF(LEFT($NU36,6)=LEFT(HN$5,6),"("&1+DATE(LEFT($NV36,4),MID($NV36,5,2),RIGHT($NV36,2))-DATE(LEFT($NU36,4),MID($NU36,5,2),RIGHT($NU36,2))&")",IF(LEFT($NW36,6)=LEFT(HN$5,6),"("&1+DATE(LEFT($NX36,4),MID($NX36,5,2),RIGHT($NX36,2))-DATE(LEFT($NW36,4),MID($NW36,5,2),RIGHT($NW36,2))&")",IF(LEFT($NY36,6)=LEFT(HN$5,6),"("&1+DATE(LEFT($NZ36,4),MID($NZ36,5,2),RIGHT($NZ36,2))-DATE(LEFT($NY36,4),MID($NY36,5,2),RIGHT($NY36,2))&")","")))))) ->  | IR36: =IF(LEFT($NO36,6)=LEFT(IR$5,6),"("&1+DATE(LEFT($NP36,4),MID($NP36,5,2),RIGHT($NP36,2))-DATE(LEFT($NO36,4),MID($NO36,5,2),RIGHT($NO36,2))&")",IF(LEFT($NQ36,6)=LEFT(IR$5,6),"("&1+DATE(LEFT($NR36,4),MID($NR36,5,2),RIGHT($NR36,2))-DATE(LEFT($NQ36,4),MID($NQ36,5,2),RIGHT($NQ36,2))&")",IF(LEFT($NS36,6)=LEFT(IR$5,6),"("&1+DATE(LEFT($NT36,4),MID($NT36,5,2),RIGHT($NT36,2))-DATE(LEFT($NS36,4),MID($NS36,5,2),RIGHT($NS36,2))&")",IF(LEFT($NU36,6)=LEFT(IR$5,6),"("&1+DATE(LEFT($NV36,4),MID($NV36,5,2),RIGHT($NV36,2))-DATE(LEFT($NU36,4),MID($NU36,5,2),RIGHT($NU36,2))&")",IF(LEFT($NW36,6)=LEFT(IR$5,6),"("&1+DATE(LEFT($NX36,4),MID($NX36,5,2),RIGHT($NX36,2))-DATE(LEFT($NW36,4),MID($NW36,5,2),RIGHT($NW36,2))&")",IF(LEFT($NY36,6)=LEFT(IR$5,6),"("&1+DATE(LEFT($NZ36,4),MID($NZ36,5,2),RIGHT($NZ36,2))-DATE(LEFT($NY36,4),MID($NY36,5,2),RIGHT($NY36,2))&")","")))))) ->  | JW36: =IF(LEFT($NO36,6)=LEFT(JW$5,6),"("&1+DATE(LEFT($NP36,4),MID($NP36,5,2),RIGHT($NP36,2))-DATE(LEFT($NO36,4),MID($NO36,5,2),RIGHT($NO36,2))&")",IF(LEFT($NQ36,6)=LEFT(JW$5,6),"("&1+DATE(LEFT($NR36,4),MID($NR36,5,2),RIGHT($NR36,2))-DATE(LEFT($NQ36,4),MID($NQ36,5,2),RIGHT($NQ36,2))&")",IF(LEFT($NS36,6)=LEFT(JW$5,6),"("&1+DATE(LEFT($NT36,4),MID($NT36,5,2),RIGHT($NT36,2))-DATE(LEFT($NS36,4),MID($NS36,5,2),RIGHT($NS36,2))&")",IF(LEFT($NU36,6)=LEFT(JW$5,6),"("&1+DATE(LEFT($NV36,4),MID($NV36,5,2),RIGHT($NV36,2))-DATE(LEFT($NU36,4),MID($NU36,5,2),RIGHT($NU36,2))&")",IF(LEFT($NW36,6)=LEFT(JW$5,6),"("&1+DATE(LEFT($NX36,4),MID($NX36,5,2),RIGHT($NX36,2))-DATE(LEFT($NW36,4),MID($NW36,5,2),RIGHT($NW36,2))&")",IF(LEFT($NY36,6)=LEFT(JW$5,6),"("&1+DATE(LEFT($NZ36,4),MID($NZ36,5,2),RIGHT($NZ36,2))-DATE(LEFT($NY36,4),MID($NY36,5,2),RIGHT($NY36,2))&")","")))))) ->  | LB36: =IF(LEFT($NO36,6)=LEFT(LB$5,6),"("&1+DATE(LEFT($NP36,4),MID($NP36,5,2),RIGHT($NP36,2))-DATE(LEFT($NO36,4),MID($NO36,5,2),RIGHT($NO36,2))&")",IF(LEFT($NQ36,6)=LEFT(LB$5,6),"("&1+DATE(LEFT($NR36,4),MID($NR36,5,2),RIGHT($NR36,2))-DATE(LEFT($NQ36,4),MID($NQ36,5,2),RIGHT($NQ36,2))&")",IF(LEFT($NS36,6)=LEFT(LB$5,6),"("&1+DATE(LEFT($NT36,4),MID($NT36,5,2),RIGHT($NT36,2))-DATE(LEFT($NS36,4),MID($NS36,5,2),RIGHT($NS36,2))&")",IF(LEFT($NU36,6)=LEFT(LB$5,6),"("&1+DATE(LEFT($NV36,4),MID($NV36,5,2),RIGHT($NV36,2))-DATE(LEFT($NU36,4),MID($NU36,5,2),RIGHT($NU36,2))&")",IF(LEFT($NW36,6)=LEFT(LB$5,6),"("&1+DATE(LEFT($NX36,4),MID($NX36,5,2),RIGHT($NX36,2))-DATE(LEFT($NW36,4),MID($NW36,5,2),RIGHT($NW36,2))&")",IF(LEFT($NY36,6)=LEFT(LB$5,6),"("&1+DATE(LEFT($NZ36,4),MID($NZ36,5,2),RIGHT($NZ36,2))-DATE(LEFT($NY36,4),MID($NY36,5,2),RIGHT($NY36,2))&")","")))))) ->  | ME36: =IF(LEFT($NO36,6)=LEFT(ME$5,6),"("&1+DATE(LEFT($NP36,4),MID($NP36,5,2),RIGHT($NP36,2))-DATE(LEFT($NO36,4),MID($NO36,5,2),RIGHT($NO36,2))&")",IF(LEFT($NQ36,6)=LEFT(ME$5,6),"("&1+DATE(LEFT($NR36,4),MID($NR36,5,2),RIGHT($NR36,2))-DATE(LEFT($NQ36,4),MID($NQ36,5,2),RIGHT($NQ36,2))&")",IF(LEFT($NS36,6)=LEFT(ME$5,6),"("&1+DATE(LEFT($NT36,4),MID($NT36,5,2),RIGHT($NT36,2))-DATE(LEFT($NS36,4),MID($NS36,5,2),RIGHT($NS36,2))&")",IF(LEFT($NU36,6)=LEFT(ME$5,6),"("&1+DATE(LEFT($NV36,4),MID($NV36,5,2),RIGHT($NV36,2))-DATE(LEFT($NU36,4),MID($NU36,5,2),RIGHT($NU36,2))&")",IF(LEFT($NW36,6)=LEFT(ME$5,6),"("&1+DATE(LEFT($NX36,4),MID($NX36,5,2),RIGHT($NX36,2))-DATE(LEFT($NW36,4),MID($NW36,5,2),RIGHT($NW36,2))&")",IF(LEFT($NY36,6)=LEFT(ME$5,6),"("&1+DATE(LEFT($NZ36,4),MID($NZ36,5,2),RIGHT($NZ36,2))-DATE(LEFT($NY36,4),MID($NY36,5,2),RIGHT($NY36,2))&")","")))))) ->  | NK36: =IF($C$3="様式34-1_1年度目",IF('様式34-1_1年度目'!AS16="","",'様式34-1_1年度目'!AS16),IF($C$3="様式34-1_2年度目",IF('様式34-1_2年度目'!AS16="","",'様式34-1_2年度目'!AS16),"")) ->  | NM36: 9 | NN36: 補修期間→ | NO36: =IF($C$3="様式34-1_1年度目",IF('様式34-1_1年度目'!AT16="","",VALUE(TEXT('様式34-1_1年度目'!AT16,"yyyymmdd"))),IF($C$3="様式34-1_2年度目",IF('様式34-1_2年度目'!AT16="","",VALUE(TEXT('様式34-1_2年度目'!AT16,"yyyymmdd"))),"")) ->  | NP36: =IF($C$3="様式34-1_1年度目",IF('様式34-1_1年度目'!AU16="","",VALUE(TEXT('様式34-1_1年度目'!AU16,"yyyymmdd"))),IF($C$3="様式34-1_2年度目",IF('様式34-1_2年度目'!AU16="","",VALUE(TEXT('様式34-1_2年度目'!AU16,"yyyymmdd"))),"")) ->  | NQ36: =IF($C$3="様式34-1_1年度目",IF('様式34-1_1年度目'!AW16="","",VALUE(TEXT('様式34-1_1年度目'!AW16,"yyyymmdd"))),IF($C$3="様式34-1_2年度目",IF('様式34-1_2年度目'!AW16="","",VALUE(TEXT('様式34-1_2年度目'!AW16,"yyyymmdd"))),"")) ->  | NR36: =IF($C$3="様式34-1_1年度目",IF('様式34-1_1年度目'!AX16="","",VALUE(TEXT('様式34-1_1年度目'!AX16,"yyyymmdd"))),IF($C$3="様式34-1_2年度目",IF('様式34-1_2年度目'!AX16="","",VALUE(TEXT('様式34-1_2年度目'!AX16,"yyyymmdd"))),"")) ->  | NS36: =IF($C$3="様式34-1_1年度目",IF('様式34-1_1年度目'!AZ16="","",VALUE(TEXT('様式34-1_1年度目'!AZ16,"yyyymmdd"))),IF($C$3="様式34-1_2年度目",IF('様式34-1_2年度目'!AZ16="","",VALUE(TEXT('様式34-1_2年度目'!AZ16,"yyyymmdd"))),"")) ->  | NT36: =IF($C$3="様式34-1_1年度目",IF('様式34-1_1年度目'!BA16="","",VALUE(TEXT('様式34-1_1年度目'!BA16,"yyyymmdd"))),IF($C$3="様式34-1_2年度目",IF('様式34-1_2年度目'!BA16="","",VALUE(TEXT('様式34-1_2年度目'!BA16,"yyyymmdd"))),"")) ->  | NU36: =IF($C$3="様式34-1_1年度目",IF('様式34-1_1年度目'!BC16="","",VALUE(TEXT('様式34-1_1年度目'!BC16,"yyyymmdd"))),IF($C$3="様式34-1_2年度目",IF('様式34-1_2年度目'!BC16="","",VALUE(TEXT('様式34-1_2年度目'!BC16,"yyyymmdd"))),"")) ->  | NV36: =IF($C$3="様式34-1_1年度目",IF('様式34-1_1年度目'!BD16="","",VALUE(TEXT('様式34-1_1年度目'!BD16,"yyyymmdd"))),IF($C$3="様式34-1_2年度目",IF('様式34-1_2年度目'!BD16="","",VALUE(TEXT('様式34-1_2年度目'!BD16,"yyyymmdd"))),"")) ->  | NW36: =IF($C$3="様式34-1_1年度目",IF('様式34-1_1年度目'!BF16="","",VALUE(TEXT('様式34-1_1年度目'!BF16,"yyyymmdd"))),IF($C$3="様式34-1_2年度目",IF('様式34-1_2年度目'!BF16="","",VALUE(TEXT('様式34-1_2年度目'!BF16,"yyyymmdd"))),"")) ->  | NX36: =IF($C$3="様式34-1_1年度目",IF('様式34-1_1年度目'!BG16="","",VALUE(TEXT('様式34-1_1年度目'!BG16,"yyyymmdd"))),IF($C$3="様式34-1_2年度目",IF('様式34-1_2年度目'!BG16="","",VALUE(TEXT('様式34-1_2年度目'!BG16,"yyyymmdd"))),"")) ->  | NY36: =IF($C$3="様式34-1_1年度目",IF('様式34-1_1年度目'!BI16="","",VALUE(TEXT('様式34-1_1年度目'!BI16,"yyyymmdd"))),IF($C$3="様式34-1_2年度目",IF('様式34-1_2年度目'!BI16="","",VALUE(TEXT('様式34-1_2年度目'!BI16,"yyyymmdd"))),"")) ->  | NZ36: =IF($C$3="様式34-1_1年度目",IF('様式34-1_1年度目'!BJ16="","",VALUE(TEXT('様式34-1_1年度目'!BJ16,"yyyymmdd"))),IF($C$3="様式34-1_2年度目",IF('様式34-1_2年度目'!BJ16="","",VALUE(TEXT('様式34-1_2年度目'!BJ16,"yyyymmdd"))),"")) -> 
H37: =+IF(OR(H$5=$NO36,H$5=$NQ36,H$5=$NS36,H$5=$NU36,H$5=$NW36,H$5=$NY36),1,IF(OR(AND($NO36<H$5,H$5<$NP36),AND($NQ36<H$5,H$5<$NR36),AND($NS36<H$5,H$5<$NT36),AND($NU36<H$5,H$5<$NV36),AND($NW36<H$5,H$5<$NX36),AND($NY36<H$5,H$5<$NZ36)),2,IF(OR(H$5=$NP36,H$5=$NR36,H$5=$NT36,H$5=$NV36,H$5=$NX36,H$5=$NZ36),3,""))) ->  | BT37: =+IF(OR(BT$5=$NO36,BT$5=$NQ36,BT$5=$NS36,BT$5=$NU36,BT$5=$NW36,BT$5=$NY36),1,IF(OR(AND($NO36<BT$5,BT$5<$NP36),AND($NQ36<BT$5,BT$5<$NR36),AND($NS36<BT$5,BT$5<$NT36),AND($NU36<BT$5,BT$5<$NV36),AND($NW36<BT$5,BT$5<$NX36),AND($NY36<BT$5,BT$5<$NZ36)),2,IF(OR(BT$5=$NP36,BT$5=$NR36,BT$5=$NT36,BT$5=$NV36,BT$5=$NX36,BT$5=$NZ36),3,""))) ->  | EF37: =+IF(OR(EF$5=$NO36,EF$5=$NQ36,EF$5=$NS36,EF$5=$NU36,EF$5=$NW36,EF$5=$NY36),1,IF(OR(AND($NO36<EF$5,EF$5<$NP36),AND($NQ36<EF$5,EF$5<$NR36),AND($NS36<EF$5,EF$5<$NT36),AND($NU36<EF$5,EF$5<$NV36),AND($NW36<EF$5,EF$5<$NX36),AND($NY36<EF$5,EF$5<$NZ36)),2,IF(OR(EF$5=$NP36,EF$5=$NR36,EF$5=$NT36,EF$5=$NV36,EF$5=$NX36,EF$5=$NZ36),3,""))) ->  | GR37: =+IF(OR(GR$5=$NO36,GR$5=$NQ36,GR$5=$NS36,GR$5=$NU36,GR$5=$NW36,GR$5=$NY36),1,IF(OR(AND($NO36<GR$5,GR$5<$NP36),AND($NQ36<GR$5,GR$5<$NR36),AND($NS36<GR$5,GR$5<$NT36),AND($NU36<GR$5,GR$5<$NV36),AND($NW36<GR$5,GR$5<$NX36),AND($NY36<GR$5,GR$5<$NZ36)),2,IF(OR(GR$5=$NP36,GR$5=$NR36,GR$5=$NT36,GR$5=$NV36,GR$5=$NX36,GR$5=$NZ36),3,""))) ->  | JD37: =+IF(OR(JD$5=$NO36,JD$5=$NQ36,JD$5=$NS36,JD$5=$NU36,JD$5=$NW36,JD$5=$NY36),1,IF(OR(AND($NO36<JD$5,JD$5<$NP36),AND($NQ36<JD$5,JD$5<$NR36),AND($NS36<JD$5,JD$5<$NT36),AND($NU36<JD$5,JD$5<$NV36),AND($NW36<JD$5,JD$5<$NX36),AND($NY36<JD$5,JD$5<$NZ36)),2,IF(OR(JD$5=$NP36,JD$5=$NR36,JD$5=$NT36,JD$5=$NV36,JD$5=$NX36,JD$5=$NZ36),3,""))) ->  | LP37: =+IF(OR(LP$5=$NO36,LP$5=$NQ36,LP$5=$NS36,LP$5=$NU36,LP$5=$NW36,LP$5=$NY36),1,IF(OR(AND($NO36<LP$5,LP$5<$NP36),AND($NQ36<LP$5,LP$5<$NR36),AND($NS36<LP$5,LP$5<$NT36),AND($NU36<LP$5,LP$5<$NV36),AND($NW36<LP$5,LP$5<$NX36),AND($NY36<LP$5,LP$5<$NZ36)),2,IF(OR(LP$5=$NP36,LP$5=$NR36,LP$5=$NT36,LP$5=$NV36,LP$5=$NX36,LP$5=$NZ36),3,""))) -> 
H38: =IF(AND($NO36<>"",$NO36<$H$5),MID($NO36,5,2)&"/"&RIGHT($NO36,2)&"～"&MID($NP36,5,2)&"/"&RIGHT($NP36,2),IF(LEFT($NO36,6)=LEFT(H$5,6),MID($NO36,5,2)&"/"&RIGHT($NO36,2)&"～"&MID($NP36,5,2)&"/"&RIGHT($NP36,2),IF(LEFT($NQ36,6)=LEFT(H$5,6),MID($NQ36,5,2)&"/"&RIGHT($NQ36,2)&"～"&MID($NR36,5,2)&"/"&RIGHT($NR36,2),IF(LEFT($NS36,6)=LEFT(H$5,6),MID($NS36,5,2)&"/"&RIGHT($NS36,2)&"～"&MID($NT36,5,2)&"/"&RIGHT($NT36,2),IF(LEFT($NU36,6)=LEFT(H$5,6),MID($NU36,5,2)&"/"&RIGHT($NU36,2)&"～"&MID($NV36,5,2)&"/"&RIGHT($NV36,2),IF(LEFT($NW36,6)=LEFT(H$5,6),MID($NW36,5,2)&"/"&RIGHT($NW36,2)&"～"&MID($NX36,5,2)&"/"&RIGHT($NX36,2),IF(LEFT($NY36,6)=LEFT(H$5,6),MID($NY36,5,2)&"/"&RIGHT($NY36,2)&"～"&MID($NZ36,5,2)&"/"&RIGHT($NZ36,2),""))))))) ->  | AL38: =IF(LEFT($NO36,6)=LEFT(AL$5,6),MID($NO36,5,2)&"/"&RIGHT($NO36,2)&"～"&MID($NP36,5,2)&"/"&RIGHT($NP36,2),IF(LEFT($NQ36,6)=LEFT(AL$5,6),MID($NQ36,5,2)&"/"&RIGHT($NQ36,2)&"～"&MID($NR36,5,2)&"/"&RIGHT($NR36,2),IF(LEFT($NS36,6)=LEFT(AL$5,6),MID($NS36,5,2)&"/"&RIGHT($NS36,2)&"～"&MID($NT36,5,2)&"/"&RIGHT($NT36,2),IF(LEFT($NU36,6)=LEFT(AL$5,6),MID($NU36,5,2)&"/"&RIGHT($NU36,2)&"～"&MID($NV36,5,2)&"/"&RIGHT($NV36,2),IF(LEFT($NW36,6)=LEFT(AL$5,6),MID($NW36,5,2)&"/"&RIGHT($NW36,2)&"～"&MID($NX36,5,2)&"/"&RIGHT($NX36,2),IF(LEFT($NY36,6)=LEFT(AL$5,6),MID($NY36,5,2)&"/"&RIGHT($NY36,2)&"～"&MID($NZ36,5,2)&"/"&RIGHT($NZ36,2),"")))))) ->  | BQ38: =IF(LEFT($NO36,6)=LEFT(BQ$5,6),MID($NO36,5,2)&"/"&RIGHT($NO36,2)&"～"&MID($NP36,5,2)&"/"&RIGHT($NP36,2),IF(LEFT($NQ36,6)=LEFT(BQ$5,6),MID($NQ36,5,2)&"/"&RIGHT($NQ36,2)&"～"&MID($NR36,5,2)&"/"&RIGHT($NR36,2),IF(LEFT($NS36,6)=LEFT(BQ$5,6),MID($NS36,5,2)&"/"&RIGHT($NS36,2)&"～"&MID($NT36,5,2)&"/"&RIGHT($NT36,2),IF(LEFT($NU36,6)=LEFT(BQ$5,6),MID($NU36,5,2)&"/"&RIGHT($NU36,2)&"～"&MID($NV36,5,2)&"/"&RIGHT($NV36,2),IF(LEFT($NW36,6)=LEFT(BQ$5,6),MID($NW36,5,2)&"/"&RIGHT($NW36,2)&"～"&MID($NX36,5,2)&"/"&RIGHT($NX36,2),IF(LEFT($NY36,6)=LEFT(BQ$5,6),MID($NY36,5,2)&"/"&RIGHT($NY36,2)&"～"&MID($NZ36,5,2)&"/"&RIGHT($NZ36,2),"")))))) ->  | CU38: =IF(LEFT($NO36,6)=LEFT(CU$5,6),MID($NO36,5,2)&"/"&RIGHT($NO36,2)&"～"&MID($NP36,5,2)&"/"&RIGHT($NP36,2),IF(LEFT($NQ36,6)=LEFT(CU$5,6),MID($NQ36,5,2)&"/"&RIGHT($NQ36,2)&"～"&MID($NR36,5,2)&"/"&RIGHT($NR36,2),IF(LEFT($NS36,6)=LEFT(CU$5,6),MID($NS36,5,2)&"/"&RIGHT($NS36,2)&"～"&MID($NT36,5,2)&"/"&RIGHT($NT36,2),IF(LEFT($NU36,6)=LEFT(CU$5,6),MID($NU36,5,2)&"/"&RIGHT($NU36,2)&"～"&MID($NV36,5,2)&"/"&RIGHT($NV36,2),IF(LEFT($NW36,6)=LEFT(CU$5,6),MID($NW36,5,2)&"/"&RIGHT($NW36,2)&"～"&MID($NX36,5,2)&"/"&RIGHT($NX36,2),IF(LEFT($NY36,6)=LEFT(CU$5,6),MID($NY36,5,2)&"/"&RIGHT($NY36,2)&"～"&MID($NZ36,5,2)&"/"&RIGHT($NZ36,2),"")))))) ->  | DZ38: =IF(LEFT($NO36,6)=LEFT(DZ$5,6),MID($NO36,5,2)&"/"&RIGHT($NO36,2)&"～"&MID($NP36,5,2)&"/"&RIGHT($NP36,2),IF(LEFT($NQ36,6)=LEFT(DZ$5,6),MID($NQ36,5,2)&"/"&RIGHT($NQ36,2)&"～"&MID($NR36,5,2)&"/"&RIGHT($NR36,2),IF(LEFT($NS36,6)=LEFT(DZ$5,6),MID($NS36,5,2)&"/"&RIGHT($NS36,2)&"～"&MID($NT36,5,2)&"/"&RIGHT($NT36,2),IF(LEFT($NU36,6)=LEFT(DZ$5,6),MID($NU36,5,2)&"/"&RIGHT($NU36,2)&"～"&MID($NV36,5,2)&"/"&RIGHT($NV36,2),IF(LEFT($NW36,6)=LEFT(DZ$5,6),MID($NW36,5,2)&"/"&RIGHT($NW36,2)&"～"&MID($NX36,5,2)&"/"&RIGHT($NX36,2),IF(LEFT($NY36,6)=LEFT(DZ$5,6),MID($NY36,5,2)&"/"&RIGHT($NY36,2)&"～"&MID($NZ36,5,2)&"/"&RIGHT($NZ36,2),"")))))) ->  | FE38: =IF(LEFT($NO36,6)=LEFT(FE$5,6),MID($NO36,5,2)&"/"&RIGHT($NO36,2)&"～"&MID($NP36,5,2)&"/"&RIGHT($NP36,2),IF(LEFT($NQ36,6)=LEFT(FE$5,6),MID($NQ36,5,2)&"/"&RIGHT($NQ36,2)&"～"&MID($NR36,5,2)&"/"&RIGHT($NR36,2),IF(LEFT($NS36,6)=LEFT(FE$5,6),MID($NS36,5,2)&"/"&RIGHT($NS36,2)&"～"&MID($NT36,5,2)&"/"&RIGHT($NT36,2),IF(LEFT($NU36,6)=LEFT(FE$5,6),MID($NU36,5,2)&"/"&RIGHT($NU36,2)&"～"&MID($NV36,5,2)&"/"&RIGHT($NV36,2),IF(LEFT($NW36,6)=LEFT(FE$5,6),MID($NW36,5,2)&"/"&RIGHT($NW36,2)&"～"&MID($NX36,5,2)&"/"&RIGHT($NX36,2),IF(LEFT($NY36,6)=LEFT(FE$5,6),MID($NY36,5,2)&"/"&RIGHT($NY36,2)&"～"&MID($NZ36,5,2)&"/"&RIGHT($NZ36,2),"")))))) ->  | GI38: =IF(LEFT($NO36,6)=LEFT(GI$5,6),MID($NO36,5,2)&"/"&RIGHT($NO36,2)&"～"&MID($NP36,5,2)&"/"&RIGHT($NP36,2),IF(LEFT($NQ36,6)=LEFT(GI$5,6),MID($NQ36,5,2)&"/"&RIGHT($NQ36,2)&"～"&MID($NR36,5,2)&"/"&RIGHT($NR36,2),IF(LEFT($NS36,6)=LEFT(GI$5,6),MID($NS36,5,2)&"/"&RIGHT($NS36,2)&"～"&MID($NT36,5,2)&"/"&RIGHT($NT36,2),IF(LEFT($NU36,6)=LEFT(GI$5,6),MID($NU36,5,2)&"/"&RIGHT($NU36,2)&"～"&MID($NV36,5,2)&"/"&RIGHT($NV36,2),IF(LEFT($NW36,6)=LEFT(GI$5,6),MID($NW36,5,2)&"/"&RIGHT($NW36,2)&"～"&MID($NX36,5,2)&"/"&RIGHT($NX36,2),IF(LEFT($NY36,6)=LEFT(GI$5,6),MID($NY36,5,2)&"/"&RIGHT($NY36,2)&"～"&MID($NZ36,5,2)&"/"&RIGHT($NZ36,2),"")))))) ->  | HN38: =IF(LEFT($NO36,6)=LEFT(HN$5,6),MID($NO36,5,2)&"/"&RIGHT($NO36,2)&"～"&MID($NP36,5,2)&"/"&RIGHT($NP36,2),IF(LEFT($NQ36,6)=LEFT(HN$5,6),MID($NQ36,5,2)&"/"&RIGHT($NQ36,2)&"～"&MID($NR36,5,2)&"/"&RIGHT($NR36,2),IF(LEFT($NS36,6)=LEFT(HN$5,6),MID($NS36,5,2)&"/"&RIGHT($NS36,2)&"～"&MID($NT36,5,2)&"/"&RIGHT($NT36,2),IF(LEFT($NU36,6)=LEFT(HN$5,6),MID($NU36,5,2)&"/"&RIGHT($NU36,2)&"～"&MID($NV36,5,2)&"/"&RIGHT($NV36,2),IF(LEFT($NW36,6)=LEFT(HN$5,6),MID($NW36,5,2)&"/"&RIGHT($NW36,2)&"～"&MID($NX36,5,2)&"/"&RIGHT($NX36,2),IF(LEFT($NY36,6)=LEFT(HN$5,6),MID($NY36,5,2)&"/"&RIGHT($NY36,2)&"～"&MID($NZ36,5,2)&"/"&RIGHT($NZ36,2),"")))))) ->  | IR38: =IF(LEFT($NO36,6)=LEFT(IR$5,6),MID($NO36,5,2)&"/"&RIGHT($NO36,2)&"～"&MID($NP36,5,2)&"/"&RIGHT($NP36,2),IF(LEFT($NQ36,6)=LEFT(IR$5,6),MID($NQ36,5,2)&"/"&RIGHT($NQ36,2)&"～"&MID($NR36,5,2)&"/"&RIGHT($NR36,2),IF(LEFT($NS36,6)=LEFT(IR$5,6),MID($NS36,5,2)&"/"&RIGHT($NS36,2)&"～"&MID($NT36,5,2)&"/"&RIGHT($NT36,2),IF(LEFT($NU36,6)=LEFT(IR$5,6),MID($NU36,5,2)&"/"&RIGHT($NU36,2)&"～"&MID($NV36,5,2)&"/"&RIGHT($NV36,2),IF(LEFT($NW36,6)=LEFT(IR$5,6),MID($NW36,5,2)&"/"&RIGHT($NW36,2)&"～"&MID($NX36,5,2)&"/"&RIGHT($NX36,2),IF(LEFT($NY36,6)=LEFT(IR$5,6),MID($NY36,5,2)&"/"&RIGHT($NY36,2)&"～"&MID($NZ36,5,2)&"/"&RIGHT($NZ36,2),"")))))) ->  | JW38: =IF(LEFT($NO36,6)=LEFT(JW$5,6),MID($NO36,5,2)&"/"&RIGHT($NO36,2)&"～"&MID($NP36,5,2)&"/"&RIGHT($NP36,2),IF(LEFT($NQ36,6)=LEFT(JW$5,6),MID($NQ36,5,2)&"/"&RIGHT($NQ36,2)&"～"&MID($NR36,5,2)&"/"&RIGHT($NR36,2),IF(LEFT($NS36,6)=LEFT(JW$5,6),MID($NS36,5,2)&"/"&RIGHT($NS36,2)&"～"&MID($NT36,5,2)&"/"&RIGHT($NT36,2),IF(LEFT($NU36,6)=LEFT(JW$5,6),MID($NU36,5,2)&"/"&RIGHT($NU36,2)&"～"&MID($NV36,5,2)&"/"&RIGHT($NV36,2),IF(LEFT($NW36,6)=LEFT(JW$5,6),MID($NW36,5,2)&"/"&RIGHT($NW36,2)&"～"&MID($NX36,5,2)&"/"&RIGHT($NX36,2),IF(LEFT($NY36,6)=LEFT(JW$5,6),MID($NY36,5,2)&"/"&RIGHT($NY36,2)&"～"&MID($NZ36,5,2)&"/"&RIGHT($NZ36,2),"")))))) ->  | LB38: =IF(LEFT($NO36,6)=LEFT(LB$5,6),MID($NO36,5,2)&"/"&RIGHT($NO36,2)&"～"&MID($NP36,5,2)&"/"&RIGHT($NP36,2),IF(LEFT($NQ36,6)=LEFT(LB$5,6),MID($NQ36,5,2)&"/"&RIGHT($NQ36,2)&"～"&MID($NR36,5,2)&"/"&RIGHT($NR36,2),IF(LEFT($NS36,6)=LEFT(LB$5,6),MID($NS36,5,2)&"/"&RIGHT($NS36,2)&"～"&MID($NT36,5,2)&"/"&RIGHT($NT36,2),IF(LEFT($NU36,6)=LEFT(LB$5,6),MID($NU36,5,2)&"/"&RIGHT($NU36,2)&"～"&MID($NV36,5,2)&"/"&RIGHT($NV36,2),IF(LEFT($NW36,6)=LEFT(LB$5,6),MID($NW36,5,2)&"/"&RIGHT($NW36,2)&"～"&MID($NX36,5,2)&"/"&RIGHT($NX36,2),IF(LEFT($NY36,6)=LEFT(LB$5,6),MID($NY36,5,2)&"/"&RIGHT($NY36,2)&"～"&MID($NZ36,5,2)&"/"&RIGHT($NZ36,2),"")))))) ->  | ME38: =IF(LEFT($NO36,6)=LEFT(ME$5,6),MID($NO36,5,2)&"/"&RIGHT($NO36,2)&"～"&MID($NP36,5,2)&"/"&RIGHT($NP36,2),IF(LEFT($NQ36,6)=LEFT(ME$5,6),MID($NQ36,5,2)&"/"&RIGHT($NQ36,2)&"～"&MID($NR36,5,2)&"/"&RIGHT($NR36,2),IF(LEFT($NS36,6)=LEFT(ME$5,6),MID($NS36,5,2)&"/"&RIGHT($NS36,2)&"～"&MID($NT36,5,2)&"/"&RIGHT($NT36,2),IF(LEFT($NU36,6)=LEFT(ME$5,6),MID($NU36,5,2)&"/"&RIGHT($NU36,2)&"～"&MID($NV36,5,2)&"/"&RIGHT($NV36,2),IF(LEFT($NW36,6)=LEFT(ME$5,6),MID($NW36,5,2)&"/"&RIGHT($NW36,2)&"～"&MID($NX36,5,2)&"/"&RIGHT($NX36,2),IF(LEFT($NY36,6)=LEFT(ME$5,6),MID($NY36,5,2)&"/"&RIGHT($NY36,2)&"～"&MID($NZ36,5,2)&"/"&RIGHT($NZ36,2),"")))))) -> 
C39: =IF($C$3="様式34-1_1年度目",IF('様式34-1_1年度目'!AC17="","",'様式34-1_1年度目'!AC17),IF($C$3="様式34-1_2年度目",IF('様式34-1_2年度目'!AC17="","",'様式34-1_2年度目'!AC17),"")) ->  | F39: =IF($C$3="様式34-1_1年度目",IF('様式34-1_1年度目'!AD17="","",'様式34-1_1年度目'!AD17&" "&'様式34-1_1年度目'!AE17),IF($C$3="様式34-1_2年度目",IF('様式34-1_2年度目'!AD17="","",'様式34-1_2年度目'!AD17&" "&'様式34-1_2年度目'!AE17),"")) ->  | G39: =IF($C$3="様式34-1_1年度目",IF('様式34-1_1年度目'!AF17="","",'様式34-1_1年度目'!AF17),IF($C$3="様式34-1_2年度目",IF('様式34-1_2年度目'!AF17="","",'様式34-1_2年度目'!AF17),"")) ->  | H39: =IF(AND($NO39<>"",$NO39<$H$5),"("&1+DATE(LEFT($NP39,4),MID($NP39,5,2),RIGHT($NP39,2))-DATE(LEFT($NO39,4),MID($NO39,5,2),RIGHT($NO39,2))&")",IF(LEFT($NO39,6)=LEFT(H$5,6),"("&1+DATE(LEFT($NP39,4),MID($NP39,5,2),RIGHT($NP39,2))-DATE(LEFT($NO39,4),MID($NO39,5,2),RIGHT($NO39,2))&")",IF(LEFT($NQ39,6)=LEFT(H$5,6),"("&1+DATE(LEFT($NR39,4),MID($NR39,5,2),RIGHT($NR39,2))-DATE(LEFT($NQ39,4),MID($NQ39,5,2),RIGHT($NQ39,2))&")",IF(LEFT($NS39,6)=LEFT(H$5,6),"("&1+DATE(LEFT($NT39,4),MID($NT39,5,2),RIGHT($NT39,2))-DATE(LEFT($NS39,4),MID($NS39,5,2),RIGHT($NS39,2))&")",IF(LEFT($NU39,6)=LEFT(H$5,6),"("&1+DATE(LEFT($NV39,4),MID($NV39,5,2),RIGHT($NV39,2))-DATE(LEFT($NU39,4),MID($NU39,5,2),RIGHT($NU39,2))&")",IF(LEFT($NW39,6)=LEFT(H$5,6),"("&1+DATE(LEFT($NX39,4),MID($NX39,5,2),RIGHT($NX39,2))-DATE(LEFT($NW39,4),MID($NW39,5,2),RIGHT($NW39,2))&")",IF(LEFT($NY39,6)=LEFT(H$5,6),"("&1+DATE(LEFT($NZ39,4),MID($NZ39,5,2),RIGHT($NZ39,2))-DATE(LEFT($NY39,4),MID($NY39,5,2),RIGHT($NY39,2))&")",""))))))) ->  | AL39: =IF(LEFT($NO39,6)=LEFT(AL$5,6),"("&1+DATE(LEFT($NP39,4),MID($NP39,5,2),RIGHT($NP39,2))-DATE(LEFT($NO39,4),MID($NO39,5,2),RIGHT($NO39,2))&")",IF(LEFT($NQ39,6)=LEFT(AL$5,6),"("&1+DATE(LEFT($NR39,4),MID($NR39,5,2),RIGHT($NR39,2))-DATE(LEFT($NQ39,4),MID($NQ39,5,2),RIGHT($NQ39,2))&")",IF(LEFT($NS39,6)=LEFT(AL$5,6),"("&1+DATE(LEFT($NT39,4),MID($NT39,5,2),RIGHT($NT39,2))-DATE(LEFT($NS39,4),MID($NS39,5,2),RIGHT($NS39,2))&")",IF(LEFT($NU39,6)=LEFT(AL$5,6),"("&1+DATE(LEFT($NV39,4),MID($NV39,5,2),RIGHT($NV39,2))-DATE(LEFT($NU39,4),MID($NU39,5,2),RIGHT($NU39,2))&")",IF(LEFT($NW39,6)=LEFT(AL$5,6),"("&1+DATE(LEFT($NX39,4),MID($NX39,5,2),RIGHT($NX39,2))-DATE(LEFT($NW39,4),MID($NW39,5,2),RIGHT($NW39,2))&")",IF(LEFT($NY39,6)=LEFT(AL$5,6),"("&1+DATE(LEFT($NZ39,4),MID($NZ39,5,2),RIGHT($NZ39,2))-DATE(LEFT($NY39,4),MID($NY39,5,2),RIGHT($NY39,2))&")","")))))) ->  | BQ39: =IF(LEFT($NO39,6)=LEFT(BQ$5,6),"("&1+DATE(LEFT($NP39,4),MID($NP39,5,2),RIGHT($NP39,2))-DATE(LEFT($NO39,4),MID($NO39,5,2),RIGHT($NO39,2))&")",IF(LEFT($NQ39,6)=LEFT(BQ$5,6),"("&1+DATE(LEFT($NR39,4),MID($NR39,5,2),RIGHT($NR39,2))-DATE(LEFT($NQ39,4),MID($NQ39,5,2),RIGHT($NQ39,2))&")",IF(LEFT($NS39,6)=LEFT(BQ$5,6),"("&1+DATE(LEFT($NT39,4),MID($NT39,5,2),RIGHT($NT39,2))-DATE(LEFT($NS39,4),MID($NS39,5,2),RIGHT($NS39,2))&")",IF(LEFT($NU39,6)=LEFT(BQ$5,6),"("&1+DATE(LEFT($NV39,4),MID($NV39,5,2),RIGHT($NV39,2))-DATE(LEFT($NU39,4),MID($NU39,5,2),RIGHT($NU39,2))&")",IF(LEFT($NW39,6)=LEFT(BQ$5,6),"("&1+DATE(LEFT($NX39,4),MID($NX39,5,2),RIGHT($NX39,2))-DATE(LEFT($NW39,4),MID($NW39,5,2),RIGHT($NW39,2))&")",IF(LEFT($NY39,6)=LEFT(BQ$5,6),"("&1+DATE(LEFT($NZ39,4),MID($NZ39,5,2),RIGHT($NZ39,2))-DATE(LEFT($NY39,4),MID($NY39,5,2),RIGHT($NY39,2))&")","")))))) ->  | CU39: =IF(LEFT($NO39,6)=LEFT(CU$5,6),"("&1+DATE(LEFT($NP39,4),MID($NP39,5,2),RIGHT($NP39,2))-DATE(LEFT($NO39,4),MID($NO39,5,2),RIGHT($NO39,2))&")",IF(LEFT($NQ39,6)=LEFT(CU$5,6),"("&1+DATE(LEFT($NR39,4),MID($NR39,5,2),RIGHT($NR39,2))-DATE(LEFT($NQ39,4),MID($NQ39,5,2),RIGHT($NQ39,2))&")",IF(LEFT($NS39,6)=LEFT(CU$5,6),"("&1+DATE(LEFT($NT39,4),MID($NT39,5,2),RIGHT($NT39,2))-DATE(LEFT($NS39,4),MID($NS39,5,2),RIGHT($NS39,2))&")",IF(LEFT($NU39,6)=LEFT(CU$5,6),"("&1+DATE(LEFT($NV39,4),MID($NV39,5,2),RIGHT($NV39,2))-DATE(LEFT($NU39,4),MID($NU39,5,2),RIGHT($NU39,2))&")",IF(LEFT($NW39,6)=LEFT(CU$5,6),"("&1+DATE(LEFT($NX39,4),MID($NX39,5,2),RIGHT($NX39,2))-DATE(LEFT($NW39,4),MID($NW39,5,2),RIGHT($NW39,2))&")",IF(LEFT($NY39,6)=LEFT(CU$5,6),"("&1+DATE(LEFT($NZ39,4),MID($NZ39,5,2),RIGHT($NZ39,2))-DATE(LEFT($NY39,4),MID($NY39,5,2),RIGHT($NY39,2))&")","")))))) ->  | DZ39: =IF(LEFT($NO39,6)=LEFT(DZ$5,6),"("&1+DATE(LEFT($NP39,4),MID($NP39,5,2),RIGHT($NP39,2))-DATE(LEFT($NO39,4),MID($NO39,5,2),RIGHT($NO39,2))&")",IF(LEFT($NQ39,6)=LEFT(DZ$5,6),"("&1+DATE(LEFT($NR39,4),MID($NR39,5,2),RIGHT($NR39,2))-DATE(LEFT($NQ39,4),MID($NQ39,5,2),RIGHT($NQ39,2))&")",IF(LEFT($NS39,6)=LEFT(DZ$5,6),"("&1+DATE(LEFT($NT39,4),MID($NT39,5,2),RIGHT($NT39,2))-DATE(LEFT($NS39,4),MID($NS39,5,2),RIGHT($NS39,2))&")",IF(LEFT($NU39,6)=LEFT(DZ$5,6),"("&1+DATE(LEFT($NV39,4),MID($NV39,5,2),RIGHT($NV39,2))-DATE(LEFT($NU39,4),MID($NU39,5,2),RIGHT($NU39,2))&")",IF(LEFT($NW39,6)=LEFT(DZ$5,6),"("&1+DATE(LEFT($NX39,4),MID($NX39,5,2),RIGHT($NX39,2))-DATE(LEFT($NW39,4),MID($NW39,5,2),RIGHT($NW39,2))&")",IF(LEFT($NY39,6)=LEFT(DZ$5,6),"("&1+DATE(LEFT($NZ39,4),MID($NZ39,5,2),RIGHT($NZ39,2))-DATE(LEFT($NY39,4),MID($NY39,5,2),RIGHT($NY39,2))&")","")))))) ->  | FE39: =IF(LEFT($NO39,6)=LEFT(FE$5,6),"("&1+DATE(LEFT($NP39,4),MID($NP39,5,2),RIGHT($NP39,2))-DATE(LEFT($NO39,4),MID($NO39,5,2),RIGHT($NO39,2))&")",IF(LEFT($NQ39,6)=LEFT(FE$5,6),"("&1+DATE(LEFT($NR39,4),MID($NR39,5,2),RIGHT($NR39,2))-DATE(LEFT($NQ39,4),MID($NQ39,5,2),RIGHT($NQ39,2))&")",IF(LEFT($NS39,6)=LEFT(FE$5,6),"("&1+DATE(LEFT($NT39,4),MID($NT39,5,2),RIGHT($NT39,2))-DATE(LEFT($NS39,4),MID($NS39,5,2),RIGHT($NS39,2))&")",IF(LEFT($NU39,6)=LEFT(FE$5,6),"("&1+DATE(LEFT($NV39,4),MID($NV39,5,2),RIGHT($NV39,2))-DATE(LEFT($NU39,4),MID($NU39,5,2),RIGHT($NU39,2))&")",IF(LEFT($NW39,6)=LEFT(FE$5,6),"("&1+DATE(LEFT($NX39,4),MID($NX39,5,2),RIGHT($NX39,2))-DATE(LEFT($NW39,4),MID($NW39,5,2),RIGHT($NW39,2))&")",IF(LEFT($NY39,6)=LEFT(FE$5,6),"("&1+DATE(LEFT($NZ39,4),MID($NZ39,5,2),RIGHT($NZ39,2))-DATE(LEFT($NY39,4),MID($NY39,5,2),RIGHT($NY39,2))&")","")))))) ->  | GI39: =IF(LEFT($NO39,6)=LEFT(GI$5,6),"("&1+DATE(LEFT($NP39,4),MID($NP39,5,2),RIGHT($NP39,2))-DATE(LEFT($NO39,4),MID($NO39,5,2),RIGHT($NO39,2))&")",IF(LEFT($NQ39,6)=LEFT(GI$5,6),"("&1+DATE(LEFT($NR39,4),MID($NR39,5,2),RIGHT($NR39,2))-DATE(LEFT($NQ39,4),MID($NQ39,5,2),RIGHT($NQ39,2))&")",IF(LEFT($NS39,6)=LEFT(GI$5,6),"("&1+DATE(LEFT($NT39,4),MID($NT39,5,2),RIGHT($NT39,2))-DATE(LEFT($NS39,4),MID($NS39,5,2),RIGHT($NS39,2))&")",IF(LEFT($NU39,6)=LEFT(GI$5,6),"("&1+DATE(LEFT($NV39,4),MID($NV39,5,2),RIGHT($NV39,2))-DATE(LEFT($NU39,4),MID($NU39,5,2),RIGHT($NU39,2))&")",IF(LEFT($NW39,6)=LEFT(GI$5,6),"("&1+DATE(LEFT($NX39,4),MID($NX39,5,2),RIGHT($NX39,2))-DATE(LEFT($NW39,4),MID($NW39,5,2),RIGHT($NW39,2))&")",IF(LEFT($NY39,6)=LEFT(GI$5,6),"("&1+DATE(LEFT($NZ39,4),MID($NZ39,5,2),RIGHT($NZ39,2))-DATE(LEFT($NY39,4),MID($NY39,5,2),RIGHT($NY39,2))&")","")))))) ->  | HN39: =IF(LEFT($NO39,6)=LEFT(HN$5,6),"("&1+DATE(LEFT($NP39,4),MID($NP39,5,2),RIGHT($NP39,2))-DATE(LEFT($NO39,4),MID($NO39,5,2),RIGHT($NO39,2))&")",IF(LEFT($NQ39,6)=LEFT(HN$5,6),"("&1+DATE(LEFT($NR39,4),MID($NR39,5,2),RIGHT($NR39,2))-DATE(LEFT($NQ39,4),MID($NQ39,5,2),RIGHT($NQ39,2))&")",IF(LEFT($NS39,6)=LEFT(HN$5,6),"("&1+DATE(LEFT($NT39,4),MID($NT39,5,2),RIGHT($NT39,2))-DATE(LEFT($NS39,4),MID($NS39,5,2),RIGHT($NS39,2))&")",IF(LEFT($NU39,6)=LEFT(HN$5,6),"("&1+DATE(LEFT($NV39,4),MID($NV39,5,2),RIGHT($NV39,2))-DATE(LEFT($NU39,4),MID($NU39,5,2),RIGHT($NU39,2))&")",IF(LEFT($NW39,6)=LEFT(HN$5,6),"("&1+DATE(LEFT($NX39,4),MID($NX39,5,2),RIGHT($NX39,2))-DATE(LEFT($NW39,4),MID($NW39,5,2),RIGHT($NW39,2))&")",IF(LEFT($NY39,6)=LEFT(HN$5,6),"("&1+DATE(LEFT($NZ39,4),MID($NZ39,5,2),RIGHT($NZ39,2))-DATE(LEFT($NY39,4),MID($NY39,5,2),RIGHT($NY39,2))&")","")))))) ->  | IR39: =IF(LEFT($NO39,6)=LEFT(IR$5,6),"("&1+DATE(LEFT($NP39,4),MID($NP39,5,2),RIGHT($NP39,2))-DATE(LEFT($NO39,4),MID($NO39,5,2),RIGHT($NO39,2))&")",IF(LEFT($NQ39,6)=LEFT(IR$5,6),"("&1+DATE(LEFT($NR39,4),MID($NR39,5,2),RIGHT($NR39,2))-DATE(LEFT($NQ39,4),MID($NQ39,5,2),RIGHT($NQ39,2))&")",IF(LEFT($NS39,6)=LEFT(IR$5,6),"("&1+DATE(LEFT($NT39,4),MID($NT39,5,2),RIGHT($NT39,2))-DATE(LEFT($NS39,4),MID($NS39,5,2),RIGHT($NS39,2))&")",IF(LEFT($NU39,6)=LEFT(IR$5,6),"("&1+DATE(LEFT($NV39,4),MID($NV39,5,2),RIGHT($NV39,2))-DATE(LEFT($NU39,4),MID($NU39,5,2),RIGHT($NU39,2))&")",IF(LEFT($NW39,6)=LEFT(IR$5,6),"("&1+DATE(LEFT($NX39,4),MID($NX39,5,2),RIGHT($NX39,2))-DATE(LEFT($NW39,4),MID($NW39,5,2),RIGHT($NW39,2))&")",IF(LEFT($NY39,6)=LEFT(IR$5,6),"("&1+DATE(LEFT($NZ39,4),MID($NZ39,5,2),RIGHT($NZ39,2))-DATE(LEFT($NY39,4),MID($NY39,5,2),RIGHT($NY39,2))&")","")))))) ->  | JW39: =IF(LEFT($NO39,6)=LEFT(JW$5,6),"("&1+DATE(LEFT($NP39,4),MID($NP39,5,2),RIGHT($NP39,2))-DATE(LEFT($NO39,4),MID($NO39,5,2),RIGHT($NO39,2))&")",IF(LEFT($NQ39,6)=LEFT(JW$5,6),"("&1+DATE(LEFT($NR39,4),MID($NR39,5,2),RIGHT($NR39,2))-DATE(LEFT($NQ39,4),MID($NQ39,5,2),RIGHT($NQ39,2))&")",IF(LEFT($NS39,6)=LEFT(JW$5,6),"("&1+DATE(LEFT($NT39,4),MID($NT39,5,2),RIGHT($NT39,2))-DATE(LEFT($NS39,4),MID($NS39,5,2),RIGHT($NS39,2))&")",IF(LEFT($NU39,6)=LEFT(JW$5,6),"("&1+DATE(LEFT($NV39,4),MID($NV39,5,2),RIGHT($NV39,2))-DATE(LEFT($NU39,4),MID($NU39,5,2),RIGHT($NU39,2))&")",IF(LEFT($NW39,6)=LEFT(JW$5,6),"("&1+DATE(LEFT($NX39,4),MID($NX39,5,2),RIGHT($NX39,2))-DATE(LEFT($NW39,4),MID($NW39,5,2),RIGHT($NW39,2))&")",IF(LEFT($NY39,6)=LEFT(JW$5,6),"("&1+DATE(LEFT($NZ39,4),MID($NZ39,5,2),RIGHT($NZ39,2))-DATE(LEFT($NY39,4),MID($NY39,5,2),RIGHT($NY39,2))&")","")))))) ->  | LB39: =IF(LEFT($NO39,6)=LEFT(LB$5,6),"("&1+DATE(LEFT($NP39,4),MID($NP39,5,2),RIGHT($NP39,2))-DATE(LEFT($NO39,4),MID($NO39,5,2),RIGHT($NO39,2))&")",IF(LEFT($NQ39,6)=LEFT(LB$5,6),"("&1+DATE(LEFT($NR39,4),MID($NR39,5,2),RIGHT($NR39,2))-DATE(LEFT($NQ39,4),MID($NQ39,5,2),RIGHT($NQ39,2))&")",IF(LEFT($NS39,6)=LEFT(LB$5,6),"("&1+DATE(LEFT($NT39,4),MID($NT39,5,2),RIGHT($NT39,2))-DATE(LEFT($NS39,4),MID($NS39,5,2),RIGHT($NS39,2))&")",IF(LEFT($NU39,6)=LEFT(LB$5,6),"("&1+DATE(LEFT($NV39,4),MID($NV39,5,2),RIGHT($NV39,2))-DATE(LEFT($NU39,4),MID($NU39,5,2),RIGHT($NU39,2))&")",IF(LEFT($NW39,6)=LEFT(LB$5,6),"("&1+DATE(LEFT($NX39,4),MID($NX39,5,2),RIGHT($NX39,2))-DATE(LEFT($NW39,4),MID($NW39,5,2),RIGHT($NW39,2))&")",IF(LEFT($NY39,6)=LEFT(LB$5,6),"("&1+DATE(LEFT($NZ39,4),MID($NZ39,5,2),RIGHT($NZ39,2))-DATE(LEFT($NY39,4),MID($NY39,5,2),RIGHT($NY39,2))&")","")))))) ->  | ME39: =IF(LEFT($NO39,6)=LEFT(ME$5,6),"("&1+DATE(LEFT($NP39,4),MID($NP39,5,2),RIGHT($NP39,2))-DATE(LEFT($NO39,4),MID($NO39,5,2),RIGHT($NO39,2))&")",IF(LEFT($NQ39,6)=LEFT(ME$5,6),"("&1+DATE(LEFT($NR39,4),MID($NR39,5,2),RIGHT($NR39,2))-DATE(LEFT($NQ39,4),MID($NQ39,5,2),RIGHT($NQ39,2))&")",IF(LEFT($NS39,6)=LEFT(ME$5,6),"("&1+DATE(LEFT($NT39,4),MID($NT39,5,2),RIGHT($NT39,2))-DATE(LEFT($NS39,4),MID($NS39,5,2),RIGHT($NS39,2))&")",IF(LEFT($NU39,6)=LEFT(ME$5,6),"("&1+DATE(LEFT($NV39,4),MID($NV39,5,2),RIGHT($NV39,2))-DATE(LEFT($NU39,4),MID($NU39,5,2),RIGHT($NU39,2))&")",IF(LEFT($NW39,6)=LEFT(ME$5,6),"("&1+DATE(LEFT($NX39,4),MID($NX39,5,2),RIGHT($NX39,2))-DATE(LEFT($NW39,4),MID($NW39,5,2),RIGHT($NW39,2))&")",IF(LEFT($NY39,6)=LEFT(ME$5,6),"("&1+DATE(LEFT($NZ39,4),MID($NZ39,5,2),RIGHT($NZ39,2))-DATE(LEFT($NY39,4),MID($NY39,5,2),RIGHT($NY39,2))&")","")))))) ->  | NK39: =IF($C$3="様式34-1_1年度目",IF('様式34-1_1年度目'!AS17="","",'様式34-1_1年度目'!AS17),IF($C$3="様式34-1_2年度目",IF('様式34-1_2年度目'!AS17="","",'様式34-1_2年度目'!AS17),"")) ->  | NM39: 10 | NN39: 補修期間→ | NO39: =IF($C$3="様式34-1_1年度目",IF('様式34-1_1年度目'!AT17="","",VALUE(TEXT('様式34-1_1年度目'!AT17,"yyyymmdd"))),IF($C$3="様式34-1_2年度目",IF('様式34-1_2年度目'!AT17="","",VALUE(TEXT('様式34-1_2年度目'!AT17,"yyyymmdd"))),"")) ->  | NP39: =IF($C$3="様式34-1_1年度目",IF('様式34-1_1年度目'!AU17="","",VALUE(TEXT('様式34-1_1年度目'!AU17,"yyyymmdd"))),IF($C$3="様式34-1_2年度目",IF('様式34-1_2年度目'!AU17="","",VALUE(TEXT('様式34-1_2年度目'!AU17,"yyyymmdd"))),"")) ->  | NQ39: =IF($C$3="様式34-1_1年度目",IF('様式34-1_1年度目'!AW17="","",VALUE(TEXT('様式34-1_1年度目'!AW17,"yyyymmdd"))),IF($C$3="様式34-1_2年度目",IF('様式34-1_2年度目'!AW17="","",VALUE(TEXT('様式34-1_2年度目'!AW17,"yyyymmdd"))),"")) ->  | NR39: =IF($C$3="様式34-1_1年度目",IF('様式34-1_1年度目'!AX17="","",VALUE(TEXT('様式34-1_1年度目'!AX17,"yyyymmdd"))),IF($C$3="様式34-1_2年度目",IF('様式34-1_2年度目'!AX17="","",VALUE(TEXT('様式34-1_2年度目'!AX17,"yyyymmdd"))),"")) ->  | NS39: =IF($C$3="様式34-1_1年度目",IF('様式34-1_1年度目'!AZ17="","",VALUE(TEXT('様式34-1_1年度目'!AZ17,"yyyymmdd"))),IF($C$3="様式34-1_2年度目",IF('様式34-1_2年度目'!AZ17="","",VALUE(TEXT('様式34-1_2年度目'!AZ17,"yyyymmdd"))),"")) ->  | NT39: =IF($C$3="様式34-1_1年度目",IF('様式34-1_1年度目'!BA17="","",VALUE(TEXT('様式34-1_1年度目'!BA17,"yyyymmdd"))),IF($C$3="様式34-1_2年度目",IF('様式34-1_2年度目'!BA17="","",VALUE(TEXT('様式34-1_2年度目'!BA17,"yyyymmdd"))),"")) ->  | NU39: =IF($C$3="様式34-1_1年度目",IF('様式34-1_1年度目'!BC17="","",VALUE(TEXT('様式34-1_1年度目'!BC17,"yyyymmdd"))),IF($C$3="様式34-1_2年度目",IF('様式34-1_2年度目'!BC17="","",VALUE(TEXT('様式34-1_2年度目'!BC17,"yyyymmdd"))),"")) ->  | NV39: =IF($C$3="様式34-1_1年度目",IF('様式34-1_1年度目'!BD17="","",VALUE(TEXT('様式34-1_1年度目'!BD17,"yyyymmdd"))),IF($C$3="様式34-1_2年度目",IF('様式34-1_2年度目'!BD17="","",VALUE(TEXT('様式34-1_2年度目'!BD17,"yyyymmdd"))),"")) ->  | NW39: =IF($C$3="様式34-1_1年度目",IF('様式34-1_1年度目'!BF17="","",VALUE(TEXT('様式34-1_1年度目'!BF17,"yyyymmdd"))),IF($C$3="様式34-1_2年度目",IF('様式34-1_2年度目'!BF17="","",VALUE(TEXT('様式34-1_2年度目'!BF17,"yyyymmdd"))),"")) ->  | NX39: =IF($C$3="様式34-1_1年度目",IF('様式34-1_1年度目'!BG17="","",VALUE(TEXT('様式34-1_1年度目'!BG17,"yyyymmdd"))),IF($C$3="様式34-1_2年度目",IF('様式34-1_2年度目'!BG17="","",VALUE(TEXT('様式34-1_2年度目'!BG17,"yyyymmdd"))),"")) ->  | NY39: =IF($C$3="様式34-1_1年度目",IF('様式34-1_1年度目'!BI17="","",VALUE(TEXT('様式34-1_1年度目'!BI17,"yyyymmdd"))),IF($C$3="様式34-1_2年度目",IF('様式34-1_2年度目'!BI17="","",VALUE(TEXT('様式34-1_2年度目'!BI17,"yyyymmdd"))),"")) ->  | NZ39: =IF($C$3="様式34-1_1年度目",IF('様式34-1_1年度目'!BJ17="","",VALUE(TEXT('様式34-1_1年度目'!BJ17,"yyyymmdd"))),IF($C$3="様式34-1_2年度目",IF('様式34-1_2年度目'!BJ17="","",VALUE(TEXT('様式34-1_2年度目'!BJ17,"yyyymmdd"))),"")) -> 
H40: =+IF(OR(H$5=$NO39,H$5=$NQ39,H$5=$NS39,H$5=$NU39,H$5=$NW39,H$5=$NY39),1,IF(OR(AND($NO39<H$5,H$5<$NP39),AND($NQ39<H$5,H$5<$NR39),AND($NS39<H$5,H$5<$NT39),AND($NU39<H$5,H$5<$NV39),AND($NW39<H$5,H$5<$NX39),AND($NY39<H$5,H$5<$NZ39)),2,IF(OR(H$5=$NP39,H$5=$NR39,H$5=$NT39,H$5=$NV39,H$5=$NX39,H$5=$NZ39),3,""))) ->  | BT40: =+IF(OR(BT$5=$NO39,BT$5=$NQ39,BT$5=$NS39,BT$5=$NU39,BT$5=$NW39,BT$5=$NY39),1,IF(OR(AND($NO39<BT$5,BT$5<$NP39),AND($NQ39<BT$5,BT$5<$NR39),AND($NS39<BT$5,BT$5<$NT39),AND($NU39<BT$5,BT$5<$NV39),AND($NW39<BT$5,BT$5<$NX39),AND($NY39<BT$5,BT$5<$NZ39)),2,IF(OR(BT$5=$NP39,BT$5=$NR39,BT$5=$NT39,BT$5=$NV39,BT$5=$NX39,BT$5=$NZ39),3,""))) ->  | EF40: =+IF(OR(EF$5=$NO39,EF$5=$NQ39,EF$5=$NS39,EF$5=$NU39,EF$5=$NW39,EF$5=$NY39),1,IF(OR(AND($NO39<EF$5,EF$5<$NP39),AND($NQ39<EF$5,EF$5<$NR39),AND($NS39<EF$5,EF$5<$NT39),AND($NU39<EF$5,EF$5<$NV39),AND($NW39<EF$5,EF$5<$NX39),AND($NY39<EF$5,EF$5<$NZ39)),2,IF(OR(EF$5=$NP39,EF$5=$NR39,EF$5=$NT39,EF$5=$NV39,EF$5=$NX39,EF$5=$NZ39),3,""))) ->  | GR40: =+IF(OR(GR$5=$NO39,GR$5=$NQ39,GR$5=$NS39,GR$5=$NU39,GR$5=$NW39,GR$5=$NY39),1,IF(OR(AND($NO39<GR$5,GR$5<$NP39),AND($NQ39<GR$5,GR$5<$NR39),AND($NS39<GR$5,GR$5<$NT39),AND($NU39<GR$5,GR$5<$NV39),AND($NW39<GR$5,GR$5<$NX39),AND($NY39<GR$5,GR$5<$NZ39)),2,IF(OR(GR$5=$NP39,GR$5=$NR39,GR$5=$NT39,GR$5=$NV39,GR$5=$NX39,GR$5=$NZ39),3,""))) ->  | JD40: =+IF(OR(JD$5=$NO39,JD$5=$NQ39,JD$5=$NS39,JD$5=$NU39,JD$5=$NW39,JD$5=$NY39),1,IF(OR(AND($NO39<JD$5,JD$5<$NP39),AND($NQ39<JD$5,JD$5<$NR39),AND($NS39<JD$5,JD$5<$NT39),AND($NU39<JD$5,JD$5<$NV39),AND($NW39<JD$5,JD$5<$NX39),AND($NY39<JD$5,JD$5<$NZ39)),2,IF(OR(JD$5=$NP39,JD$5=$NR39,JD$5=$NT39,JD$5=$NV39,JD$5=$NX39,JD$5=$NZ39),3,""))) ->  | LP40: =+IF(OR(LP$5=$NO39,LP$5=$NQ39,LP$5=$NS39,LP$5=$NU39,LP$5=$NW39,LP$5=$NY39),1,IF(OR(AND($NO39<LP$5,LP$5<$NP39),AND($NQ39<LP$5,LP$5<$NR39),AND($NS39<LP$5,LP$5<$NT39),AND($NU39<LP$5,LP$5<$NV39),AND($NW39<LP$5,LP$5<$NX39),AND($NY39<LP$5,LP$5<$NZ39)),2,IF(OR(LP$5=$NP39,LP$5=$NR39,LP$5=$NT39,LP$5=$NV39,LP$5=$NX39,LP$5=$NZ39),3,""))) -> 
H41: =IF(AND($NO39<>"",$NO39<$H$5),MID($NO39,5,2)&"/"&RIGHT($NO39,2)&"～"&MID($NP39,5,2)&"/"&RIGHT($NP39,2),IF(LEFT($NO39,6)=LEFT(H$5,6),MID($NO39,5,2)&"/"&RIGHT($NO39,2)&"～"&MID($NP39,5,2)&"/"&RIGHT($NP39,2),IF(LEFT($NQ39,6)=LEFT(H$5,6),MID($NQ39,5,2)&"/"&RIGHT($NQ39,2)&"～"&MID($NR39,5,2)&"/"&RIGHT($NR39,2),IF(LEFT($NS39,6)=LEFT(H$5,6),MID($NS39,5,2)&"/"&RIGHT($NS39,2)&"～"&MID($NT39,5,2)&"/"&RIGHT($NT39,2),IF(LEFT($NU39,6)=LEFT(H$5,6),MID($NU39,5,2)&"/"&RIGHT($NU39,2)&"～"&MID($NV39,5,2)&"/"&RIGHT($NV39,2),IF(LEFT($NW39,6)=LEFT(H$5,6),MID($NW39,5,2)&"/"&RIGHT($NW39,2)&"～"&MID($NX39,5,2)&"/"&RIGHT($NX39,2),IF(LEFT($NY39,6)=LEFT(H$5,6),MID($NY39,5,2)&"/"&RIGHT($NY39,2)&"～"&MID($NZ39,5,2)&"/"&RIGHT($NZ39,2),""))))))) ->  | AL41: =IF(LEFT($NO39,6)=LEFT(AL$5,6),MID($NO39,5,2)&"/"&RIGHT($NO39,2)&"～"&MID($NP39,5,2)&"/"&RIGHT($NP39,2),IF(LEFT($NQ39,6)=LEFT(AL$5,6),MID($NQ39,5,2)&"/"&RIGHT($NQ39,2)&"～"&MID($NR39,5,2)&"/"&RIGHT($NR39,2),IF(LEFT($NS39,6)=LEFT(AL$5,6),MID($NS39,5,2)&"/"&RIGHT($NS39,2)&"～"&MID($NT39,5,2)&"/"&RIGHT($NT39,2),IF(LEFT($NU39,6)=LEFT(AL$5,6),MID($NU39,5,2)&"/"&RIGHT($NU39,2)&"～"&MID($NV39,5,2)&"/"&RIGHT($NV39,2),IF(LEFT($NW39,6)=LEFT(AL$5,6),MID($NW39,5,2)&"/"&RIGHT($NW39,2)&"～"&MID($NX39,5,2)&"/"&RIGHT($NX39,2),IF(LEFT($NY39,6)=LEFT(AL$5,6),MID($NY39,5,2)&"/"&RIGHT($NY39,2)&"～"&MID($NZ39,5,2)&"/"&RIGHT($NZ39,2),"")))))) ->  | BQ41: =IF(LEFT($NO39,6)=LEFT(BQ$5,6),MID($NO39,5,2)&"/"&RIGHT($NO39,2)&"～"&MID($NP39,5,2)&"/"&RIGHT($NP39,2),IF(LEFT($NQ39,6)=LEFT(BQ$5,6),MID($NQ39,5,2)&"/"&RIGHT($NQ39,2)&"～"&MID($NR39,5,2)&"/"&RIGHT($NR39,2),IF(LEFT($NS39,6)=LEFT(BQ$5,6),MID($NS39,5,2)&"/"&RIGHT($NS39,2)&"～"&MID($NT39,5,2)&"/"&RIGHT($NT39,2),IF(LEFT($NU39,6)=LEFT(BQ$5,6),MID($NU39,5,2)&"/"&RIGHT($NU39,2)&"～"&MID($NV39,5,2)&"/"&RIGHT($NV39,2),IF(LEFT($NW39,6)=LEFT(BQ$5,6),MID($NW39,5,2)&"/"&RIGHT($NW39,2)&"～"&MID($NX39,5,2)&"/"&RIGHT($NX39,2),IF(LEFT($NY39,6)=LEFT(BQ$5,6),MID($NY39,5,2)&"/"&RIGHT($NY39,2)&"～"&MID($NZ39,5,2)&"/"&RIGHT($NZ39,2),"")))))) ->  | CU41: =IF(LEFT($NO39,6)=LEFT(CU$5,6),MID($NO39,5,2)&"/"&RIGHT($NO39,2)&"～"&MID($NP39,5,2)&"/"&RIGHT($NP39,2),IF(LEFT($NQ39,6)=LEFT(CU$5,6),MID($NQ39,5,2)&"/"&RIGHT($NQ39,2)&"～"&MID($NR39,5,2)&"/"&RIGHT($NR39,2),IF(LEFT($NS39,6)=LEFT(CU$5,6),MID($NS39,5,2)&"/"&RIGHT($NS39,2)&"～"&MID($NT39,5,2)&"/"&RIGHT($NT39,2),IF(LEFT($NU39,6)=LEFT(CU$5,6),MID($NU39,5,2)&"/"&RIGHT($NU39,2)&"～"&MID($NV39,5,2)&"/"&RIGHT($NV39,2),IF(LEFT($NW39,6)=LEFT(CU$5,6),MID($NW39,5,2)&"/"&RIGHT($NW39,2)&"～"&MID($NX39,5,2)&"/"&RIGHT($NX39,2),IF(LEFT($NY39,6)=LEFT(CU$5,6),MID($NY39,5,2)&"/"&RIGHT($NY39,2)&"～"&MID($NZ39,5,2)&"/"&RIGHT($NZ39,2),"")))))) ->  | DZ41: =IF(LEFT($NO39,6)=LEFT(DZ$5,6),MID($NO39,5,2)&"/"&RIGHT($NO39,2)&"～"&MID($NP39,5,2)&"/"&RIGHT($NP39,2),IF(LEFT($NQ39,6)=LEFT(DZ$5,6),MID($NQ39,5,2)&"/"&RIGHT($NQ39,2)&"～"&MID($NR39,5,2)&"/"&RIGHT($NR39,2),IF(LEFT($NS39,6)=LEFT(DZ$5,6),MID($NS39,5,2)&"/"&RIGHT($NS39,2)&"～"&MID($NT39,5,2)&"/"&RIGHT($NT39,2),IF(LEFT($NU39,6)=LEFT(DZ$5,6),MID($NU39,5,2)&"/"&RIGHT($NU39,2)&"～"&MID($NV39,5,2)&"/"&RIGHT($NV39,2),IF(LEFT($NW39,6)=LEFT(DZ$5,6),MID($NW39,5,2)&"/"&RIGHT($NW39,2)&"～"&MID($NX39,5,2)&"/"&RIGHT($NX39,2),IF(LEFT($NY39,6)=LEFT(DZ$5,6),MID($NY39,5,2)&"/"&RIGHT($NY39,2)&"～"&MID($NZ39,5,2)&"/"&RIGHT($NZ39,2),"")))))) ->  | FE41: =IF(LEFT($NO39,6)=LEFT(FE$5,6),MID($NO39,5,2)&"/"&RIGHT($NO39,2)&"～"&MID($NP39,5,2)&"/"&RIGHT($NP39,2),IF(LEFT($NQ39,6)=LEFT(FE$5,6),MID($NQ39,5,2)&"/"&RIGHT($NQ39,2)&"～"&MID($NR39,5,2)&"/"&RIGHT($NR39,2),IF(LEFT($NS39,6)=LEFT(FE$5,6),MID($NS39,5,2)&"/"&RIGHT($NS39,2)&"～"&MID($NT39,5,2)&"/"&RIGHT($NT39,2),IF(LEFT($NU39,6)=LEFT(FE$5,6),MID($NU39,5,2)&"/"&RIGHT($NU39,2)&"～"&MID($NV39,5,2)&"/"&RIGHT($NV39,2),IF(LEFT($NW39,6)=LEFT(FE$5,6),MID($NW39,5,2)&"/"&RIGHT($NW39,2)&"～"&MID($NX39,5,2)&"/"&RIGHT($NX39,2),IF(LEFT($NY39,6)=LEFT(FE$5,6),MID($NY39,5,2)&"/"&RIGHT($NY39,2)&"～"&MID($NZ39,5,2)&"/"&RIGHT($NZ39,2),"")))))) ->  | GI41: =IF(LEFT($NO39,6)=LEFT(GI$5,6),MID($NO39,5,2)&"/"&RIGHT($NO39,2)&"～"&MID($NP39,5,2)&"/"&RIGHT($NP39,2),IF(LEFT($NQ39,6)=LEFT(GI$5,6),MID($NQ39,5,2)&"/"&RIGHT($NQ39,2)&"～"&MID($NR39,5,2)&"/"&RIGHT($NR39,2),IF(LEFT($NS39,6)=LEFT(GI$5,6),MID($NS39,5,2)&"/"&RIGHT($NS39,2)&"～"&MID($NT39,5,2)&"/"&RIGHT($NT39,2),IF(LEFT($NU39,6)=LEFT(GI$5,6),MID($NU39,5,2)&"/"&RIGHT($NU39,2)&"～"&MID($NV39,5,2)&"/"&RIGHT($NV39,2),IF(LEFT($NW39,6)=LEFT(GI$5,6),MID($NW39,5,2)&"/"&RIGHT($NW39,2)&"～"&MID($NX39,5,2)&"/"&RIGHT($NX39,2),IF(LEFT($NY39,6)=LEFT(GI$5,6),MID($NY39,5,2)&"/"&RIGHT($NY39,2)&"～"&MID($NZ39,5,2)&"/"&RIGHT($NZ39,2),"")))))) ->  | HN41: =IF(LEFT($NO39,6)=LEFT(HN$5,6),MID($NO39,5,2)&"/"&RIGHT($NO39,2)&"～"&MID($NP39,5,2)&"/"&RIGHT($NP39,2),IF(LEFT($NQ39,6)=LEFT(HN$5,6),MID($NQ39,5,2)&"/"&RIGHT($NQ39,2)&"～"&MID($NR39,5,2)&"/"&RIGHT($NR39,2),IF(LEFT($NS39,6)=LEFT(HN$5,6),MID($NS39,5,2)&"/"&RIGHT($NS39,2)&"～"&MID($NT39,5,2)&"/"&RIGHT($NT39,2),IF(LEFT($NU39,6)=LEFT(HN$5,6),MID($NU39,5,2)&"/"&RIGHT($NU39,2)&"～"&MID($NV39,5,2)&"/"&RIGHT($NV39,2),IF(LEFT($NW39,6)=LEFT(HN$5,6),MID($NW39,5,2)&"/"&RIGHT($NW39,2)&"～"&MID($NX39,5,2)&"/"&RIGHT($NX39,2),IF(LEFT($NY39,6)=LEFT(HN$5,6),MID($NY39,5,2)&"/"&RIGHT($NY39,2)&"～"&MID($NZ39,5,2)&"/"&RIGHT($NZ39,2),"")))))) ->  | IR41: =IF(LEFT($NO39,6)=LEFT(IR$5,6),MID($NO39,5,2)&"/"&RIGHT($NO39,2)&"～"&MID($NP39,5,2)&"/"&RIGHT($NP39,2),IF(LEFT($NQ39,6)=LEFT(IR$5,6),MID($NQ39,5,2)&"/"&RIGHT($NQ39,2)&"～"&MID($NR39,5,2)&"/"&RIGHT($NR39,2),IF(LEFT($NS39,6)=LEFT(IR$5,6),MID($NS39,5,2)&"/"&RIGHT($NS39,2)&"～"&MID($NT39,5,2)&"/"&RIGHT($NT39,2),IF(LEFT($NU39,6)=LEFT(IR$5,6),MID($NU39,5,2)&"/"&RIGHT($NU39,2)&"～"&MID($NV39,5,2)&"/"&RIGHT($NV39,2),IF(LEFT($NW39,6)=LEFT(IR$5,6),MID($NW39,5,2)&"/"&RIGHT($NW39,2)&"～"&MID($NX39,5,2)&"/"&RIGHT($NX39,2),IF(LEFT($NY39,6)=LEFT(IR$5,6),MID($NY39,5,2)&"/"&RIGHT($NY39,2)&"～"&MID($NZ39,5,2)&"/"&RIGHT($NZ39,2),"")))))) ->  | JW41: =IF(LEFT($NO39,6)=LEFT(JW$5,6),MID($NO39,5,2)&"/"&RIGHT($NO39,2)&"～"&MID($NP39,5,2)&"/"&RIGHT($NP39,2),IF(LEFT($NQ39,6)=LEFT(JW$5,6),MID($NQ39,5,2)&"/"&RIGHT($NQ39,2)&"～"&MID($NR39,5,2)&"/"&RIGHT($NR39,2),IF(LEFT($NS39,6)=LEFT(JW$5,6),MID($NS39,5,2)&"/"&RIGHT($NS39,2)&"～"&MID($NT39,5,2)&"/"&RIGHT($NT39,2),IF(LEFT($NU39,6)=LEFT(JW$5,6),MID($NU39,5,2)&"/"&RIGHT($NU39,2)&"～"&MID($NV39,5,2)&"/"&RIGHT($NV39,2),IF(LEFT($NW39,6)=LEFT(JW$5,6),MID($NW39,5,2)&"/"&RIGHT($NW39,2)&"～"&MID($NX39,5,2)&"/"&RIGHT($NX39,2),IF(LEFT($NY39,6)=LEFT(JW$5,6),MID($NY39,5,2)&"/"&RIGHT($NY39,2)&"～"&MID($NZ39,5,2)&"/"&RIGHT($NZ39,2),"")))))) ->  | LB41: =IF(LEFT($NO39,6)=LEFT(LB$5,6),MID($NO39,5,2)&"/"&RIGHT($NO39,2)&"～"&MID($NP39,5,2)&"/"&RIGHT($NP39,2),IF(LEFT($NQ39,6)=LEFT(LB$5,6),MID($NQ39,5,2)&"/"&RIGHT($NQ39,2)&"～"&MID($NR39,5,2)&"/"&RIGHT($NR39,2),IF(LEFT($NS39,6)=LEFT(LB$5,6),MID($NS39,5,2)&"/"&RIGHT($NS39,2)&"～"&MID($NT39,5,2)&"/"&RIGHT($NT39,2),IF(LEFT($NU39,6)=LEFT(LB$5,6),MID($NU39,5,2)&"/"&RIGHT($NU39,2)&"～"&MID($NV39,5,2)&"/"&RIGHT($NV39,2),IF(LEFT($NW39,6)=LEFT(LB$5,6),MID($NW39,5,2)&"/"&RIGHT($NW39,2)&"～"&MID($NX39,5,2)&"/"&RIGHT($NX39,2),IF(LEFT($NY39,6)=LEFT(LB$5,6),MID($NY39,5,2)&"/"&RIGHT($NY39,2)&"～"&MID($NZ39,5,2)&"/"&RIGHT($NZ39,2),"")))))) ->  | ME41: =IF(LEFT($NO39,6)=LEFT(ME$5,6),MID($NO39,5,2)&"/"&RIGHT($NO39,2)&"～"&MID($NP39,5,2)&"/"&RIGHT($NP39,2),IF(LEFT($NQ39,6)=LEFT(ME$5,6),MID($NQ39,5,2)&"/"&RIGHT($NQ39,2)&"～"&MID($NR39,5,2)&"/"&RIGHT($NR39,2),IF(LEFT($NS39,6)=LEFT(ME$5,6),MID($NS39,5,2)&"/"&RIGHT($NS39,2)&"～"&MID($NT39,5,2)&"/"&RIGHT($NT39,2),IF(LEFT($NU39,6)=LEFT(ME$5,6),MID($NU39,5,2)&"/"&RIGHT($NU39,2)&"～"&MID($NV39,5,2)&"/"&RIGHT($NV39,2),IF(LEFT($NW39,6)=LEFT(ME$5,6),MID($NW39,5,2)&"/"&RIGHT($NW39,2)&"～"&MID($NX39,5,2)&"/"&RIGHT($NX39,2),IF(LEFT($NY39,6)=LEFT(ME$5,6),MID($NY39,5,2)&"/"&RIGHT($NY39,2)&"～"&MID($NZ39,5,2)&"/"&RIGHT($NZ39,2),"")))))) -> 
C42: =IF($C$3="様式34-1_1年度目",IF('様式34-1_1年度目'!AC18="","",'様式34-1_1年度目'!AC18),IF($C$3="様式34-1_2年度目",IF('様式34-1_2年度目'!AC18="","",'様式34-1_2年度目'!AC18),"")) ->  | F42: =IF($C$3="様式34-1_1年度目",IF('様式34-1_1年度目'!AD18="","",'様式34-1_1年度目'!AD18&" "&'様式34-1_1年度目'!AE18),IF($C$3="様式34-1_2年度目",IF('様式34-1_2年度目'!AD18="","",'様式34-1_2年度目'!AD18&" "&'様式34-1_2年度目'!AE18),"")) ->  | G42: =IF($C$3="様式34-1_1年度目",IF('様式34-1_1年度目'!AF18="","",'様式34-1_1年度目'!AF18),IF($C$3="様式34-1_2年度目",IF('様式34-1_2年度目'!AF18="","",'様式34-1_2年度目'!AF18),"")) ->  | H42: =IF(AND($NO42<>"",$NO42<$H$5),"("&1+DATE(LEFT($NP42,4),MID($NP42,5,2),RIGHT($NP42,2))-DATE(LEFT($NO42,4),MID($NO42,5,2),RIGHT($NO42,2))&")",IF(LEFT($NO42,6)=LEFT(H$5,6),"("&1+DATE(LEFT($NP42,4),MID($NP42,5,2),RIGHT($NP42,2))-DATE(LEFT($NO42,4),MID($NO42,5,2),RIGHT($NO42,2))&")",IF(LEFT($NQ42,6)=LEFT(H$5,6),"("&1+DATE(LEFT($NR42,4),MID($NR42,5,2),RIGHT($NR42,2))-DATE(LEFT($NQ42,4),MID($NQ42,5,2),RIGHT($NQ42,2))&")",IF(LEFT($NS42,6)=LEFT(H$5,6),"("&1+DATE(LEFT($NT42,4),MID($NT42,5,2),RIGHT($NT42,2))-DATE(LEFT($NS42,4),MID($NS42,5,2),RIGHT($NS42,2))&")",IF(LEFT($NU42,6)=LEFT(H$5,6),"("&1+DATE(LEFT($NV42,4),MID($NV42,5,2),RIGHT($NV42,2))-DATE(LEFT($NU42,4),MID($NU42,5,2),RIGHT($NU42,2))&")",IF(LEFT($NW42,6)=LEFT(H$5,6),"("&1+DATE(LEFT($NX42,4),MID($NX42,5,2),RIGHT($NX42,2))-DATE(LEFT($NW42,4),MID($NW42,5,2),RIGHT($NW42,2))&")",IF(LEFT($NY42,6)=LEFT(H$5,6),"("&1+DATE(LEFT($NZ42,4),MID($NZ42,5,2),RIGHT($NZ42,2))-DATE(LEFT($NY42,4),MID($NY42,5,2),RIGHT($NY42,2))&")",""))))))) ->  | AL42: =IF(LEFT($NO42,6)=LEFT(AL$5,6),"("&1+DATE(LEFT($NP42,4),MID($NP42,5,2),RIGHT($NP42,2))-DATE(LEFT($NO42,4),MID($NO42,5,2),RIGHT($NO42,2))&")",IF(LEFT($NQ42,6)=LEFT(AL$5,6),"("&1+DATE(LEFT($NR42,4),MID($NR42,5,2),RIGHT($NR42,2))-DATE(LEFT($NQ42,4),MID($NQ42,5,2),RIGHT($NQ42,2))&")",IF(LEFT($NS42,6)=LEFT(AL$5,6),"("&1+DATE(LEFT($NT42,4),MID($NT42,5,2),RIGHT($NT42,2))-DATE(LEFT($NS42,4),MID($NS42,5,2),RIGHT($NS42,2))&")",IF(LEFT($NU42,6)=LEFT(AL$5,6),"("&1+DATE(LEFT($NV42,4),MID($NV42,5,2),RIGHT($NV42,2))-DATE(LEFT($NU42,4),MID($NU42,5,2),RIGHT($NU42,2))&")",IF(LEFT($NW42,6)=LEFT(AL$5,6),"("&1+DATE(LEFT($NX42,4),MID($NX42,5,2),RIGHT($NX42,2))-DATE(LEFT($NW42,4),MID($NW42,5,2),RIGHT($NW42,2))&")",IF(LEFT($NY42,6)=LEFT(AL$5,6),"("&1+DATE(LEFT($NZ42,4),MID($NZ42,5,2),RIGHT($NZ42,2))-DATE(LEFT($NY42,4),MID($NY42,5,2),RIGHT($NY42,2))&")","")))))) ->  | BQ42: =IF(LEFT($NO42,6)=LEFT(BQ$5,6),"("&1+DATE(LEFT($NP42,4),MID($NP42,5,2),RIGHT($NP42,2))-DATE(LEFT($NO42,4),MID($NO42,5,2),RIGHT($NO42,2))&")",IF(LEFT($NQ42,6)=LEFT(BQ$5,6),"("&1+DATE(LEFT($NR42,4),MID($NR42,5,2),RIGHT($NR42,2))-DATE(LEFT($NQ42,4),MID($NQ42,5,2),RIGHT($NQ42,2))&")",IF(LEFT($NS42,6)=LEFT(BQ$5,6),"("&1+DATE(LEFT($NT42,4),MID($NT42,5,2),RIGHT($NT42,2))-DATE(LEFT($NS42,4),MID($NS42,5,2),RIGHT($NS42,2))&")",IF(LEFT($NU42,6)=LEFT(BQ$5,6),"("&1+DATE(LEFT($NV42,4),MID($NV42,5,2),RIGHT($NV42,2))-DATE(LEFT($NU42,4),MID($NU42,5,2),RIGHT($NU42,2))&")",IF(LEFT($NW42,6)=LEFT(BQ$5,6),"("&1+DATE(LEFT($NX42,4),MID($NX42,5,2),RIGHT($NX42,2))-DATE(LEFT($NW42,4),MID($NW42,5,2),RIGHT($NW42,2))&")",IF(LEFT($NY42,6)=LEFT(BQ$5,6),"("&1+DATE(LEFT($NZ42,4),MID($NZ42,5,2),RIGHT($NZ42,2))-DATE(LEFT($NY42,4),MID($NY42,5,2),RIGHT($NY42,2))&")","")))))) ->  | CU42: =IF(LEFT($NO42,6)=LEFT(CU$5,6),"("&1+DATE(LEFT($NP42,4),MID($NP42,5,2),RIGHT($NP42,2))-DATE(LEFT($NO42,4),MID($NO42,5,2),RIGHT($NO42,2))&")",IF(LEFT($NQ42,6)=LEFT(CU$5,6),"("&1+DATE(LEFT($NR42,4),MID($NR42,5,2),RIGHT($NR42,2))-DATE(LEFT($NQ42,4),MID($NQ42,5,2),RIGHT($NQ42,2))&")",IF(LEFT($NS42,6)=LEFT(CU$5,6),"("&1+DATE(LEFT($NT42,4),MID($NT42,5,2),RIGHT($NT42,2))-DATE(LEFT($NS42,4),MID($NS42,5,2),RIGHT($NS42,2))&")",IF(LEFT($NU42,6)=LEFT(CU$5,6),"("&1+DATE(LEFT($NV42,4),MID($NV42,5,2),RIGHT($NV42,2))-DATE(LEFT($NU42,4),MID($NU42,5,2),RIGHT($NU42,2))&")",IF(LEFT($NW42,6)=LEFT(CU$5,6),"("&1+DATE(LEFT($NX42,4),MID($NX42,5,2),RIGHT($NX42,2))-DATE(LEFT($NW42,4),MID($NW42,5,2),RIGHT($NW42,2))&")",IF(LEFT($NY42,6)=LEFT(CU$5,6),"("&1+DATE(LEFT($NZ42,4),MID($NZ42,5,2),RIGHT($NZ42,2))-DATE(LEFT($NY42,4),MID($NY42,5,2),RIGHT($NY42,2))&")","")))))) ->  | DZ42: =IF(LEFT($NO42,6)=LEFT(DZ$5,6),"("&1+DATE(LEFT($NP42,4),MID($NP42,5,2),RIGHT($NP42,2))-DATE(LEFT($NO42,4),MID($NO42,5,2),RIGHT($NO42,2))&")",IF(LEFT($NQ42,6)=LEFT(DZ$5,6),"("&1+DATE(LEFT($NR42,4),MID($NR42,5,2),RIGHT($NR42,2))-DATE(LEFT($NQ42,4),MID($NQ42,5,2),RIGHT($NQ42,2))&")",IF(LEFT($NS42,6)=LEFT(DZ$5,6),"("&1+DATE(LEFT($NT42,4),MID($NT42,5,2),RIGHT($NT42,2))-DATE(LEFT($NS42,4),MID($NS42,5,2),RIGHT($NS42,2))&")",IF(LEFT($NU42,6)=LEFT(DZ$5,6),"("&1+DATE(LEFT($NV42,4),MID($NV42,5,2),RIGHT($NV42,2))-DATE(LEFT($NU42,4),MID($NU42,5,2),RIGHT($NU42,2))&")",IF(LEFT($NW42,6)=LEFT(DZ$5,6),"("&1+DATE(LEFT($NX42,4),MID($NX42,5,2),RIGHT($NX42,2))-DATE(LEFT($NW42,4),MID($NW42,5,2),RIGHT($NW42,2))&")",IF(LEFT($NY42,6)=LEFT(DZ$5,6),"("&1+DATE(LEFT($NZ42,4),MID($NZ42,5,2),RIGHT($NZ42,2))-DATE(LEFT($NY42,4),MID($NY42,5,2),RIGHT($NY42,2))&")","")))))) ->  | FE42: =IF(LEFT($NO42,6)=LEFT(FE$5,6),"("&1+DATE(LEFT($NP42,4),MID($NP42,5,2),RIGHT($NP42,2))-DATE(LEFT($NO42,4),MID($NO42,5,2),RIGHT($NO42,2))&")",IF(LEFT($NQ42,6)=LEFT(FE$5,6),"("&1+DATE(LEFT($NR42,4),MID($NR42,5,2),RIGHT($NR42,2))-DATE(LEFT($NQ42,4),MID($NQ42,5,2),RIGHT($NQ42,2))&")",IF(LEFT($NS42,6)=LEFT(FE$5,6),"("&1+DATE(LEFT($NT42,4),MID($NT42,5,2),RIGHT($NT42,2))-DATE(LEFT($NS42,4),MID($NS42,5,2),RIGHT($NS42,2))&")",IF(LEFT($NU42,6)=LEFT(FE$5,6),"("&1+DATE(LEFT($NV42,4),MID($NV42,5,2),RIGHT($NV42,2))-DATE(LEFT($NU42,4),MID($NU42,5,2),RIGHT($NU42,2))&")",IF(LEFT($NW42,6)=LEFT(FE$5,6),"("&1+DATE(LEFT($NX42,4),MID($NX42,5,2),RIGHT($NX42,2))-DATE(LEFT($NW42,4),MID($NW42,5,2),RIGHT($NW42,2))&")",IF(LEFT($NY42,6)=LEFT(FE$5,6),"("&1+DATE(LEFT($NZ42,4),MID($NZ42,5,2),RIGHT($NZ42,2))-DATE(LEFT($NY42,4),MID($NY42,5,2),RIGHT($NY42,2))&")","")))))) ->  | GI42: =IF(LEFT($NO42,6)=LEFT(GI$5,6),"("&1+DATE(LEFT($NP42,4),MID($NP42,5,2),RIGHT($NP42,2))-DATE(LEFT($NO42,4),MID($NO42,5,2),RIGHT($NO42,2))&")",IF(LEFT($NQ42,6)=LEFT(GI$5,6),"("&1+DATE(LEFT($NR42,4),MID($NR42,5,2),RIGHT($NR42,2))-DATE(LEFT($NQ42,4),MID($NQ42,5,2),RIGHT($NQ42,2))&")",IF(LEFT($NS42,6)=LEFT(GI$5,6),"("&1+DATE(LEFT($NT42,4),MID($NT42,5,2),RIGHT($NT42,2))-DATE(LEFT($NS42,4),MID($NS42,5,2),RIGHT($NS42,2))&")",IF(LEFT($NU42,6)=LEFT(GI$5,6),"("&1+DATE(LEFT($NV42,4),MID($NV42,5,2),RIGHT($NV42,2))-DATE(LEFT($NU42,4),MID($NU42,5,2),RIGHT($NU42,2))&")",IF(LEFT($NW42,6)=LEFT(GI$5,6),"("&1+DATE(LEFT($NX42,4),MID($NX42,5,2),RIGHT($NX42,2))-DATE(LEFT($NW42,4),MID($NW42,5,2),RIGHT($NW42,2))&")",IF(LEFT($NY42,6)=LEFT(GI$5,6),"("&1+DATE(LEFT($NZ42,4),MID($NZ42,5,2),RIGHT($NZ42,2))-DATE(LEFT($NY42,4),MID($NY42,5,2),RIGHT($NY42,2))&")","")))))) ->  | HN42: =IF(LEFT($NO42,6)=LEFT(HN$5,6),"("&1+DATE(LEFT($NP42,4),MID($NP42,5,2),RIGHT($NP42,2))-DATE(LEFT($NO42,4),MID($NO42,5,2),RIGHT($NO42,2))&")",IF(LEFT($NQ42,6)=LEFT(HN$5,6),"("&1+DATE(LEFT($NR42,4),MID($NR42,5,2),RIGHT($NR42,2))-DATE(LEFT($NQ42,4),MID($NQ42,5,2),RIGHT($NQ42,2))&")",IF(LEFT($NS42,6)=LEFT(HN$5,6),"("&1+DATE(LEFT($NT42,4),MID($NT42,5,2),RIGHT($NT42,2))-DATE(LEFT($NS42,4),MID($NS42,5,2),RIGHT($NS42,2))&")",IF(LEFT($NU42,6)=LEFT(HN$5,6),"("&1+DATE(LEFT($NV42,4),MID($NV42,5,2),RIGHT($NV42,2))-DATE(LEFT($NU42,4),MID($NU42,5,2),RIGHT($NU42,2))&")",IF(LEFT($NW42,6)=LEFT(HN$5,6),"("&1+DATE(LEFT($NX42,4),MID($NX42,5,2),RIGHT($NX42,2))-DATE(LEFT($NW42,4),MID($NW42,5,2),RIGHT($NW42,2))&")",IF(LEFT($NY42,6)=LEFT(HN$5,6),"("&1+DATE(LEFT($NZ42,4),MID($NZ42,5,2),RIGHT($NZ42,2))-DATE(LEFT($NY42,4),MID($NY42,5,2),RIGHT($NY42,2))&")","")))))) ->  | IR42: =IF(LEFT($NO42,6)=LEFT(IR$5,6),"("&1+DATE(LEFT($NP42,4),MID($NP42,5,2),RIGHT($NP42,2))-DATE(LEFT($NO42,4),MID($NO42,5,2),RIGHT($NO42,2))&")",IF(LEFT($NQ42,6)=LEFT(IR$5,6),"("&1+DATE(LEFT($NR42,4),MID($NR42,5,2),RIGHT($NR42,2))-DATE(LEFT($NQ42,4),MID($NQ42,5,2),RIGHT($NQ42,2))&")",IF(LEFT($NS42,6)=LEFT(IR$5,6),"("&1+DATE(LEFT($NT42,4),MID($NT42,5,2),RIGHT($NT42,2))-DATE(LEFT($NS42,4),MID($NS42,5,2),RIGHT($NS42,2))&")",IF(LEFT($NU42,6)=LEFT(IR$5,6),"("&1+DATE(LEFT($NV42,4),MID($NV42,5,2),RIGHT($NV42,2))-DATE(LEFT($NU42,4),MID($NU42,5,2),RIGHT($NU42,2))&")",IF(LEFT($NW42,6)=LEFT(IR$5,6),"("&1+DATE(LEFT($NX42,4),MID($NX42,5,2),RIGHT($NX42,2))-DATE(LEFT($NW42,4),MID($NW42,5,2),RIGHT($NW42,2))&")",IF(LEFT($NY42,6)=LEFT(IR$5,6),"("&1+DATE(LEFT($NZ42,4),MID($NZ42,5,2),RIGHT($NZ42,2))-DATE(LEFT($NY42,4),MID($NY42,5,2),RIGHT($NY42,2))&")","")))))) ->  | JW42: =IF(LEFT($NO42,6)=LEFT(JW$5,6),"("&1+DATE(LEFT($NP42,4),MID($NP42,5,2),RIGHT($NP42,2))-DATE(LEFT($NO42,4),MID($NO42,5,2),RIGHT($NO42,2))&")",IF(LEFT($NQ42,6)=LEFT(JW$5,6),"("&1+DATE(LEFT($NR42,4),MID($NR42,5,2),RIGHT($NR42,2))-DATE(LEFT($NQ42,4),MID($NQ42,5,2),RIGHT($NQ42,2))&")",IF(LEFT($NS42,6)=LEFT(JW$5,6),"("&1+DATE(LEFT($NT42,4),MID($NT42,5,2),RIGHT($NT42,2))-DATE(LEFT($NS42,4),MID($NS42,5,2),RIGHT($NS42,2))&")",IF(LEFT($NU42,6)=LEFT(JW$5,6),"("&1+DATE(LEFT($NV42,4),MID($NV42,5,2),RIGHT($NV42,2))-DATE(LEFT($NU42,4),MID($NU42,5,2),RIGHT($NU42,2))&")",IF(LEFT($NW42,6)=LEFT(JW$5,6),"("&1+DATE(LEFT($NX42,4),MID($NX42,5,2),RIGHT($NX42,2))-DATE(LEFT($NW42,4),MID($NW42,5,2),RIGHT($NW42,2))&")",IF(LEFT($NY42,6)=LEFT(JW$5,6),"("&1+DATE(LEFT($NZ42,4),MID($NZ42,5,2),RIGHT($NZ42,2))-DATE(LEFT($NY42,4),MID($NY42,5,2),RIGHT($NY42,2))&")","")))))) ->  | LB42: =IF(LEFT($NO42,6)=LEFT(LB$5,6),"("&1+DATE(LEFT($NP42,4),MID($NP42,5,2),RIGHT($NP42,2))-DATE(LEFT($NO42,4),MID($NO42,5,2),RIGHT($NO42,2))&")",IF(LEFT($NQ42,6)=LEFT(LB$5,6),"("&1+DATE(LEFT($NR42,4),MID($NR42,5,2),RIGHT($NR42,2))-DATE(LEFT($NQ42,4),MID($NQ42,5,2),RIGHT($NQ42,2))&")",IF(LEFT($NS42,6)=LEFT(LB$5,6),"("&1+DATE(LEFT($NT42,4),MID($NT42,5,2),RIGHT($NT42,2))-DATE(LEFT($NS42,4),MID($NS42,5,2),RIGHT($NS42,2))&")",IF(LEFT($NU42,6)=LEFT(LB$5,6),"("&1+DATE(LEFT($NV42,4),MID($NV42,5,2),RIGHT($NV42,2))-DATE(LEFT($NU42,4),MID($NU42,5,2),RIGHT($NU42,2))&")",IF(LEFT($NW42,6)=LEFT(LB$5,6),"("&1+DATE(LEFT($NX42,4),MID($NX42,5,2),RIGHT($NX42,2))-DATE(LEFT($NW42,4),MID($NW42,5,2),RIGHT($NW42,2))&")",IF(LEFT($NY42,6)=LEFT(LB$5,6),"("&1+DATE(LEFT($NZ42,4),MID($NZ42,5,2),RIGHT($NZ42,2))-DATE(LEFT($NY42,4),MID($NY42,5,2),RIGHT($NY42,2))&")","")))))) ->  | ME42: =IF(LEFT($NO42,6)=LEFT(ME$5,6),"("&1+DATE(LEFT($NP42,4),MID($NP42,5,2),RIGHT($NP42,2))-DATE(LEFT($NO42,4),MID($NO42,5,2),RIGHT($NO42,2))&")",IF(LEFT($NQ42,6)=LEFT(ME$5,6),"("&1+DATE(LEFT($NR42,4),MID($NR42,5,2),RIGHT($NR42,2))-DATE(LEFT($NQ42,4),MID($NQ42,5,2),RIGHT($NQ42,2))&")",IF(LEFT($NS42,6)=LEFT(ME$5,6),"("&1+DATE(LEFT($NT42,4),MID($NT42,5,2),RIGHT($NT42,2))-DATE(LEFT($NS42,4),MID($NS42,5,2),RIGHT($NS42,2))&")",IF(LEFT($NU42,6)=LEFT(ME$5,6),"("&1+DATE(LEFT($NV42,4),MID($NV42,5,2),RIGHT($NV42,2))-DATE(LEFT($NU42,4),MID($NU42,5,2),RIGHT($NU42,2))&")",IF(LEFT($NW42,6)=LEFT(ME$5,6),"("&1+DATE(LEFT($NX42,4),MID($NX42,5,2),RIGHT($NX42,2))-DATE(LEFT($NW42,4),MID($NW42,5,2),RIGHT($NW42,2))&")",IF(LEFT($NY42,6)=LEFT(ME$5,6),"("&1+DATE(LEFT($NZ42,4),MID($NZ42,5,2),RIGHT($NZ42,2))-DATE(LEFT($NY42,4),MID($NY42,5,2),RIGHT($NY42,2))&")","")))))) ->  | NK42: =IF($C$3="様式34-1_1年度目",IF('様式34-1_1年度目'!AS18="","",'様式34-1_1年度目'!AS18),IF($C$3="様式34-1_2年度目",IF('様式34-1_2年度目'!AS18="","",'様式34-1_2年度目'!AS18),"")) ->  | NM42: 11 | NN42: 補修期間→ | NO42: =IF($C$3="様式34-1_1年度目",IF('様式34-1_1年度目'!AT18="","",VALUE(TEXT('様式34-1_1年度目'!AT18,"yyyymmdd"))),IF($C$3="様式34-1_2年度目",IF('様式34-1_2年度目'!AT18="","",VALUE(TEXT('様式34-1_2年度目'!AT18,"yyyymmdd"))),"")) ->  | NP42: =IF($C$3="様式34-1_1年度目",IF('様式34-1_1年度目'!AU18="","",VALUE(TEXT('様式34-1_1年度目'!AU18,"yyyymmdd"))),IF($C$3="様式34-1_2年度目",IF('様式34-1_2年度目'!AU18="","",VALUE(TEXT('様式34-1_2年度目'!AU18,"yyyymmdd"))),"")) ->  | NQ42: =IF($C$3="様式34-1_1年度目",IF('様式34-1_1年度目'!AW18="","",VALUE(TEXT('様式34-1_1年度目'!AW18,"yyyymmdd"))),IF($C$3="様式34-1_2年度目",IF('様式34-1_2年度目'!AW18="","",VALUE(TEXT('様式34-1_2年度目'!AW18,"yyyymmdd"))),"")) ->  | NR42: =IF($C$3="様式34-1_1年度目",IF('様式34-1_1年度目'!AX18="","",VALUE(TEXT('様式34-1_1年度目'!AX18,"yyyymmdd"))),IF($C$3="様式34-1_2年度目",IF('様式34-1_2年度目'!AX18="","",VALUE(TEXT('様式34-1_2年度目'!AX18,"yyyymmdd"))),"")) ->  | NS42: =IF($C$3="様式34-1_1年度目",IF('様式34-1_1年度目'!AZ18="","",VALUE(TEXT('様式34-1_1年度目'!AZ18,"yyyymmdd"))),IF($C$3="様式34-1_2年度目",IF('様式34-1_2年度目'!AZ18="","",VALUE(TEXT('様式34-1_2年度目'!AZ18,"yyyymmdd"))),"")) ->  | NT42: =IF($C$3="様式34-1_1年度目",IF('様式34-1_1年度目'!BA18="","",VALUE(TEXT('様式34-1_1年度目'!BA18,"yyyymmdd"))),IF($C$3="様式34-1_2年度目",IF('様式34-1_2年度目'!BA18="","",VALUE(TEXT('様式34-1_2年度目'!BA18,"yyyymmdd"))),"")) ->  | NU42: =IF($C$3="様式34-1_1年度目",IF('様式34-1_1年度目'!BC18="","",VALUE(TEXT('様式34-1_1年度目'!BC18,"yyyymmdd"))),IF($C$3="様式34-1_2年度目",IF('様式34-1_2年度目'!BC18="","",VALUE(TEXT('様式34-1_2年度目'!BC18,"yyyymmdd"))),"")) ->  | NV42: =IF($C$3="様式34-1_1年度目",IF('様式34-1_1年度目'!BD18="","",VALUE(TEXT('様式34-1_1年度目'!BD18,"yyyymmdd"))),IF($C$3="様式34-1_2年度目",IF('様式34-1_2年度目'!BD18="","",VALUE(TEXT('様式34-1_2年度目'!BD18,"yyyymmdd"))),"")) ->  | NW42: =IF($C$3="様式34-1_1年度目",IF('様式34-1_1年度目'!BF18="","",VALUE(TEXT('様式34-1_1年度目'!BF18,"yyyymmdd"))),IF($C$3="様式34-1_2年度目",IF('様式34-1_2年度目'!BF18="","",VALUE(TEXT('様式34-1_2年度目'!BF18,"yyyymmdd"))),"")) ->  | NX42: =IF($C$3="様式34-1_1年度目",IF('様式34-1_1年度目'!BG18="","",VALUE(TEXT('様式34-1_1年度目'!BG18,"yyyymmdd"))),IF($C$3="様式34-1_2年度目",IF('様式34-1_2年度目'!BG18="","",VALUE(TEXT('様式34-1_2年度目'!BG18,"yyyymmdd"))),"")) ->  | NY42: =IF($C$3="様式34-1_1年度目",IF('様式34-1_1年度目'!BI18="","",VALUE(TEXT('様式34-1_1年度目'!BI18,"yyyymmdd"))),IF($C$3="様式34-1_2年度目",IF('様式34-1_2年度目'!BI18="","",VALUE(TEXT('様式34-1_2年度目'!BI18,"yyyymmdd"))),"")) ->  | NZ42: =IF($C$3="様式34-1_1年度目",IF('様式34-1_1年度目'!BJ18="","",VALUE(TEXT('様式34-1_1年度目'!BJ18,"yyyymmdd"))),IF($C$3="様式34-1_2年度目",IF('様式34-1_2年度目'!BJ18="","",VALUE(TEXT('様式34-1_2年度目'!BJ18,"yyyymmdd"))),"")) -> 
H43: =+IF(OR(H$5=$NO42,H$5=$NQ42,H$5=$NS42,H$5=$NU42,H$5=$NW42,H$5=$NY42),1,IF(OR(AND($NO42<H$5,H$5<$NP42),AND($NQ42<H$5,H$5<$NR42),AND($NS42<H$5,H$5<$NT42),AND($NU42<H$5,H$5<$NV42),AND($NW42<H$5,H$5<$NX42),AND($NY42<H$5,H$5<$NZ42)),2,IF(OR(H$5=$NP42,H$5=$NR42,H$5=$NT42,H$5=$NV42,H$5=$NX42,H$5=$NZ42),3,""))) ->  | BT43: =+IF(OR(BT$5=$NO42,BT$5=$NQ42,BT$5=$NS42,BT$5=$NU42,BT$5=$NW42,BT$5=$NY42),1,IF(OR(AND($NO42<BT$5,BT$5<$NP42),AND($NQ42<BT$5,BT$5<$NR42),AND($NS42<BT$5,BT$5<$NT42),AND($NU42<BT$5,BT$5<$NV42),AND($NW42<BT$5,BT$5<$NX42),AND($NY42<BT$5,BT$5<$NZ42)),2,IF(OR(BT$5=$NP42,BT$5=$NR42,BT$5=$NT42,BT$5=$NV42,BT$5=$NX42,BT$5=$NZ42),3,""))) ->  | EF43: =+IF(OR(EF$5=$NO42,EF$5=$NQ42,EF$5=$NS42,EF$5=$NU42,EF$5=$NW42,EF$5=$NY42),1,IF(OR(AND($NO42<EF$5,EF$5<$NP42),AND($NQ42<EF$5,EF$5<$NR42),AND($NS42<EF$5,EF$5<$NT42),AND($NU42<EF$5,EF$5<$NV42),AND($NW42<EF$5,EF$5<$NX42),AND($NY42<EF$5,EF$5<$NZ42)),2,IF(OR(EF$5=$NP42,EF$5=$NR42,EF$5=$NT42,EF$5=$NV42,EF$5=$NX42,EF$5=$NZ42),3,""))) ->  | GR43: =+IF(OR(GR$5=$NO42,GR$5=$NQ42,GR$5=$NS42,GR$5=$NU42,GR$5=$NW42,GR$5=$NY42),1,IF(OR(AND($NO42<GR$5,GR$5<$NP42),AND($NQ42<GR$5,GR$5<$NR42),AND($NS42<GR$5,GR$5<$NT42),AND($NU42<GR$5,GR$5<$NV42),AND($NW42<GR$5,GR$5<$NX42),AND($NY42<GR$5,GR$5<$NZ42)),2,IF(OR(GR$5=$NP42,GR$5=$NR42,GR$5=$NT42,GR$5=$NV42,GR$5=$NX42,GR$5=$NZ42),3,""))) ->  | JD43: =+IF(OR(JD$5=$NO42,JD$5=$NQ42,JD$5=$NS42,JD$5=$NU42,JD$5=$NW42,JD$5=$NY42),1,IF(OR(AND($NO42<JD$5,JD$5<$NP42),AND($NQ42<JD$5,JD$5<$NR42),AND($NS42<JD$5,JD$5<$NT42),AND($NU42<JD$5,JD$5<$NV42),AND($NW42<JD$5,JD$5<$NX42),AND($NY42<JD$5,JD$5<$NZ42)),2,IF(OR(JD$5=$NP42,JD$5=$NR42,JD$5=$NT42,JD$5=$NV42,JD$5=$NX42,JD$5=$NZ42),3,""))) ->  | LP43: =+IF(OR(LP$5=$NO42,LP$5=$NQ42,LP$5=$NS42,LP$5=$NU42,LP$5=$NW42,LP$5=$NY42),1,IF(OR(AND($NO42<LP$5,LP$5<$NP42),AND($NQ42<LP$5,LP$5<$NR42),AND($NS42<LP$5,LP$5<$NT42),AND($NU42<LP$5,LP$5<$NV42),AND($NW42<LP$5,LP$5<$NX42),AND($NY42<LP$5,LP$5<$NZ42)),2,IF(OR(LP$5=$NP42,LP$5=$NR42,LP$5=$NT42,LP$5=$NV42,LP$5=$NX42,LP$5=$NZ42),3,""))) -> 
H44: =IF(AND($NO42<>"",$NO42<$H$5),MID($NO42,5,2)&"/"&RIGHT($NO42,2)&"～"&MID($NP42,5,2)&"/"&RIGHT($NP42,2),IF(LEFT($NO42,6)=LEFT(H$5,6),MID($NO42,5,2)&"/"&RIGHT($NO42,2)&"～"&MID($NP42,5,2)&"/"&RIGHT($NP42,2),IF(LEFT($NQ42,6)=LEFT(H$5,6),MID($NQ42,5,2)&"/"&RIGHT($NQ42,2)&"～"&MID($NR42,5,2)&"/"&RIGHT($NR42,2),IF(LEFT($NS42,6)=LEFT(H$5,6),MID($NS42,5,2)&"/"&RIGHT($NS42,2)&"～"&MID($NT42,5,2)&"/"&RIGHT($NT42,2),IF(LEFT($NU42,6)=LEFT(H$5,6),MID($NU42,5,2)&"/"&RIGHT($NU42,2)&"～"&MID($NV42,5,2)&"/"&RIGHT($NV42,2),IF(LEFT($NW42,6)=LEFT(H$5,6),MID($NW42,5,2)&"/"&RIGHT($NW42,2)&"～"&MID($NX42,5,2)&"/"&RIGHT($NX42,2),IF(LEFT($NY42,6)=LEFT(H$5,6),MID($NY42,5,2)&"/"&RIGHT($NY42,2)&"～"&MID($NZ42,5,2)&"/"&RIGHT($NZ42,2),""))))))) ->  | AL44: =IF(LEFT($NO42,6)=LEFT(AL$5,6),MID($NO42,5,2)&"/"&RIGHT($NO42,2)&"～"&MID($NP42,5,2)&"/"&RIGHT($NP42,2),IF(LEFT($NQ42,6)=LEFT(AL$5,6),MID($NQ42,5,2)&"/"&RIGHT($NQ42,2)&"～"&MID($NR42,5,2)&"/"&RIGHT($NR42,2),IF(LEFT($NS42,6)=LEFT(AL$5,6),MID($NS42,5,2)&"/"&RIGHT($NS42,2)&"～"&MID($NT42,5,2)&"/"&RIGHT($NT42,2),IF(LEFT($NU42,6)=LEFT(AL$5,6),MID($NU42,5,2)&"/"&RIGHT($NU42,2)&"～"&MID($NV42,5,2)&"/"&RIGHT($NV42,2),IF(LEFT($NW42,6)=LEFT(AL$5,6),MID($NW42,5,2)&"/"&RIGHT($NW42,2)&"～"&MID($NX42,5,2)&"/"&RIGHT($NX42,2),IF(LEFT($NY42,6)=LEFT(AL$5,6),MID($NY42,5,2)&"/"&RIGHT($NY42,2)&"～"&MID($NZ42,5,2)&"/"&RIGHT($NZ42,2),"")))))) ->  | BQ44: =IF(LEFT($NO42,6)=LEFT(BQ$5,6),MID($NO42,5,2)&"/"&RIGHT($NO42,2)&"～"&MID($NP42,5,2)&"/"&RIGHT($NP42,2),IF(LEFT($NQ42,6)=LEFT(BQ$5,6),MID($NQ42,5,2)&"/"&RIGHT($NQ42,2)&"～"&MID($NR42,5,2)&"/"&RIGHT($NR42,2),IF(LEFT($NS42,6)=LEFT(BQ$5,6),MID($NS42,5,2)&"/"&RIGHT($NS42,2)&"～"&MID($NT42,5,2)&"/"&RIGHT($NT42,2),IF(LEFT($NU42,6)=LEFT(BQ$5,6),MID($NU42,5,2)&"/"&RIGHT($NU42,2)&"～"&MID($NV42,5,2)&"/"&RIGHT($NV42,2),IF(LEFT($NW42,6)=LEFT(BQ$5,6),MID($NW42,5,2)&"/"&RIGHT($NW42,2)&"～"&MID($NX42,5,2)&"/"&RIGHT($NX42,2),IF(LEFT($NY42,6)=LEFT(BQ$5,6),MID($NY42,5,2)&"/"&RIGHT($NY42,2)&"～"&MID($NZ42,5,2)&"/"&RIGHT($NZ42,2),"")))))) ->  | CU44: =IF(LEFT($NO42,6)=LEFT(CU$5,6),MID($NO42,5,2)&"/"&RIGHT($NO42,2)&"～"&MID($NP42,5,2)&"/"&RIGHT($NP42,2),IF(LEFT($NQ42,6)=LEFT(CU$5,6),MID($NQ42,5,2)&"/"&RIGHT($NQ42,2)&"～"&MID($NR42,5,2)&"/"&RIGHT($NR42,2),IF(LEFT($NS42,6)=LEFT(CU$5,6),MID($NS42,5,2)&"/"&RIGHT($NS42,2)&"～"&MID($NT42,5,2)&"/"&RIGHT($NT42,2),IF(LEFT($NU42,6)=LEFT(CU$5,6),MID($NU42,5,2)&"/"&RIGHT($NU42,2)&"～"&MID($NV42,5,2)&"/"&RIGHT($NV42,2),IF(LEFT($NW42,6)=LEFT(CU$5,6),MID($NW42,5,2)&"/"&RIGHT($NW42,2)&"～"&MID($NX42,5,2)&"/"&RIGHT($NX42,2),IF(LEFT($NY42,6)=LEFT(CU$5,6),MID($NY42,5,2)&"/"&RIGHT($NY42,2)&"～"&MID($NZ42,5,2)&"/"&RIGHT($NZ42,2),"")))))) ->  | DZ44: =IF(LEFT($NO42,6)=LEFT(DZ$5,6),MID($NO42,5,2)&"/"&RIGHT($NO42,2)&"～"&MID($NP42,5,2)&"/"&RIGHT($NP42,2),IF(LEFT($NQ42,6)=LEFT(DZ$5,6),MID($NQ42,5,2)&"/"&RIGHT($NQ42,2)&"～"&MID($NR42,5,2)&"/"&RIGHT($NR42,2),IF(LEFT($NS42,6)=LEFT(DZ$5,6),MID($NS42,5,2)&"/"&RIGHT($NS42,2)&"～"&MID($NT42,5,2)&"/"&RIGHT($NT42,2),IF(LEFT($NU42,6)=LEFT(DZ$5,6),MID($NU42,5,2)&"/"&RIGHT($NU42,2)&"～"&MID($NV42,5,2)&"/"&RIGHT($NV42,2),IF(LEFT($NW42,6)=LEFT(DZ$5,6),MID($NW42,5,2)&"/"&RIGHT($NW42,2)&"～"&MID($NX42,5,2)&"/"&RIGHT($NX42,2),IF(LEFT($NY42,6)=LEFT(DZ$5,6),MID($NY42,5,2)&"/"&RIGHT($NY42,2)&"～"&MID($NZ42,5,2)&"/"&RIGHT($NZ42,2),"")))))) ->  | FE44: =IF(LEFT($NO42,6)=LEFT(FE$5,6),MID($NO42,5,2)&"/"&RIGHT($NO42,2)&"～"&MID($NP42,5,2)&"/"&RIGHT($NP42,2),IF(LEFT($NQ42,6)=LEFT(FE$5,6),MID($NQ42,5,2)&"/"&RIGHT($NQ42,2)&"～"&MID($NR42,5,2)&"/"&RIGHT($NR42,2),IF(LEFT($NS42,6)=LEFT(FE$5,6),MID($NS42,5,2)&"/"&RIGHT($NS42,2)&"～"&MID($NT42,5,2)&"/"&RIGHT($NT42,2),IF(LEFT($NU42,6)=LEFT(FE$5,6),MID($NU42,5,2)&"/"&RIGHT($NU42,2)&"～"&MID($NV42,5,2)&"/"&RIGHT($NV42,2),IF(LEFT($NW42,6)=LEFT(FE$5,6),MID($NW42,5,2)&"/"&RIGHT($NW42,2)&"～"&MID($NX42,5,2)&"/"&RIGHT($NX42,2),IF(LEFT($NY42,6)=LEFT(FE$5,6),MID($NY42,5,2)&"/"&RIGHT($NY42,2)&"～"&MID($NZ42,5,2)&"/"&RIGHT($NZ42,2),"")))))) ->  | GI44: =IF(LEFT($NO42,6)=LEFT(GI$5,6),MID($NO42,5,2)&"/"&RIGHT($NO42,2)&"～"&MID($NP42,5,2)&"/"&RIGHT($NP42,2),IF(LEFT($NQ42,6)=LEFT(GI$5,6),MID($NQ42,5,2)&"/"&RIGHT($NQ42,2)&"～"&MID($NR42,5,2)&"/"&RIGHT($NR42,2),IF(LEFT($NS42,6)=LEFT(GI$5,6),MID($NS42,5,2)&"/"&RIGHT($NS42,2)&"～"&MID($NT42,5,2)&"/"&RIGHT($NT42,2),IF(LEFT($NU42,6)=LEFT(GI$5,6),MID($NU42,5,2)&"/"&RIGHT($NU42,2)&"～"&MID($NV42,5,2)&"/"&RIGHT($NV42,2),IF(LEFT($NW42,6)=LEFT(GI$5,6),MID($NW42,5,2)&"/"&RIGHT($NW42,2)&"～"&MID($NX42,5,2)&"/"&RIGHT($NX42,2),IF(LEFT($NY42,6)=LEFT(GI$5,6),MID($NY42,5,2)&"/"&RIGHT($NY42,2)&"～"&MID($NZ42,5,2)&"/"&RIGHT($NZ42,2),"")))))) ->  | HN44: =IF(LEFT($NO42,6)=LEFT(HN$5,6),MID($NO42,5,2)&"/"&RIGHT($NO42,2)&"～"&MID($NP42,5,2)&"/"&RIGHT($NP42,2),IF(LEFT($NQ42,6)=LEFT(HN$5,6),MID($NQ42,5,2)&"/"&RIGHT($NQ42,2)&"～"&MID($NR42,5,2)&"/"&RIGHT($NR42,2),IF(LEFT($NS42,6)=LEFT(HN$5,6),MID($NS42,5,2)&"/"&RIGHT($NS42,2)&"～"&MID($NT42,5,2)&"/"&RIGHT($NT42,2),IF(LEFT($NU42,6)=LEFT(HN$5,6),MID($NU42,5,2)&"/"&RIGHT($NU42,2)&"～"&MID($NV42,5,2)&"/"&RIGHT($NV42,2),IF(LEFT($NW42,6)=LEFT(HN$5,6),MID($NW42,5,2)&"/"&RIGHT($NW42,2)&"～"&MID($NX42,5,2)&"/"&RIGHT($NX42,2),IF(LEFT($NY42,6)=LEFT(HN$5,6),MID($NY42,5,2)&"/"&RIGHT($NY42,2)&"～"&MID($NZ42,5,2)&"/"&RIGHT($NZ42,2),"")))))) ->  | IR44: =IF(LEFT($NO42,6)=LEFT(IR$5,6),MID($NO42,5,2)&"/"&RIGHT($NO42,2)&"～"&MID($NP42,5,2)&"/"&RIGHT($NP42,2),IF(LEFT($NQ42,6)=LEFT(IR$5,6),MID($NQ42,5,2)&"/"&RIGHT($NQ42,2)&"～"&MID($NR42,5,2)&"/"&RIGHT($NR42,2),IF(LEFT($NS42,6)=LEFT(IR$5,6),MID($NS42,5,2)&"/"&RIGHT($NS42,2)&"～"&MID($NT42,5,2)&"/"&RIGHT($NT42,2),IF(LEFT($NU42,6)=LEFT(IR$5,6),MID($NU42,5,2)&"/"&RIGHT($NU42,2)&"～"&MID($NV42,5,2)&"/"&RIGHT($NV42,2),IF(LEFT($NW42,6)=LEFT(IR$5,6),MID($NW42,5,2)&"/"&RIGHT($NW42,2)&"～"&MID($NX42,5,2)&"/"&RIGHT($NX42,2),IF(LEFT($NY42,6)=LEFT(IR$5,6),MID($NY42,5,2)&"/"&RIGHT($NY42,2)&"～"&MID($NZ42,5,2)&"/"&RIGHT($NZ42,2),"")))))) ->  | JW44: =IF(LEFT($NO42,6)=LEFT(JW$5,6),MID($NO42,5,2)&"/"&RIGHT($NO42,2)&"～"&MID($NP42,5,2)&"/"&RIGHT($NP42,2),IF(LEFT($NQ42,6)=LEFT(JW$5,6),MID($NQ42,5,2)&"/"&RIGHT($NQ42,2)&"～"&MID($NR42,5,2)&"/"&RIGHT($NR42,2),IF(LEFT($NS42,6)=LEFT(JW$5,6),MID($NS42,5,2)&"/"&RIGHT($NS42,2)&"～"&MID($NT42,5,2)&"/"&RIGHT($NT42,2),IF(LEFT($NU42,6)=LEFT(JW$5,6),MID($NU42,5,2)&"/"&RIGHT($NU42,2)&"～"&MID($NV42,5,2)&"/"&RIGHT($NV42,2),IF(LEFT($NW42,6)=LEFT(JW$5,6),MID($NW42,5,2)&"/"&RIGHT($NW42,2)&"～"&MID($NX42,5,2)&"/"&RIGHT($NX42,2),IF(LEFT($NY42,6)=LEFT(JW$5,6),MID($NY42,5,2)&"/"&RIGHT($NY42,2)&"～"&MID($NZ42,5,2)&"/"&RIGHT($NZ42,2),"")))))) ->  | LB44: =IF(LEFT($NO42,6)=LEFT(LB$5,6),MID($NO42,5,2)&"/"&RIGHT($NO42,2)&"～"&MID($NP42,5,2)&"/"&RIGHT($NP42,2),IF(LEFT($NQ42,6)=LEFT(LB$5,6),MID($NQ42,5,2)&"/"&RIGHT($NQ42,2)&"～"&MID($NR42,5,2)&"/"&RIGHT($NR42,2),IF(LEFT($NS42,6)=LEFT(LB$5,6),MID($NS42,5,2)&"/"&RIGHT($NS42,2)&"～"&MID($NT42,5,2)&"/"&RIGHT($NT42,2),IF(LEFT($NU42,6)=LEFT(LB$5,6),MID($NU42,5,2)&"/"&RIGHT($NU42,2)&"～"&MID($NV42,5,2)&"/"&RIGHT($NV42,2),IF(LEFT($NW42,6)=LEFT(LB$5,6),MID($NW42,5,2)&"/"&RIGHT($NW42,2)&"～"&MID($NX42,5,2)&"/"&RIGHT($NX42,2),IF(LEFT($NY42,6)=LEFT(LB$5,6),MID($NY42,5,2)&"/"&RIGHT($NY42,2)&"～"&MID($NZ42,5,2)&"/"&RIGHT($NZ42,2),"")))))) ->  | ME44: =IF(LEFT($NO42,6)=LEFT(ME$5,6),MID($NO42,5,2)&"/"&RIGHT($NO42,2)&"～"&MID($NP42,5,2)&"/"&RIGHT($NP42,2),IF(LEFT($NQ42,6)=LEFT(ME$5,6),MID($NQ42,5,2)&"/"&RIGHT($NQ42,2)&"～"&MID($NR42,5,2)&"/"&RIGHT($NR42,2),IF(LEFT($NS42,6)=LEFT(ME$5,6),MID($NS42,5,2)&"/"&RIGHT($NS42,2)&"～"&MID($NT42,5,2)&"/"&RIGHT($NT42,2),IF(LEFT($NU42,6)=LEFT(ME$5,6),MID($NU42,5,2)&"/"&RIGHT($NU42,2)&"～"&MID($NV42,5,2)&"/"&RIGHT($NV42,2),IF(LEFT($NW42,6)=LEFT(ME$5,6),MID($NW42,5,2)&"/"&RIGHT($NW42,2)&"～"&MID($NX42,5,2)&"/"&RIGHT($NX42,2),IF(LEFT($NY42,6)=LEFT(ME$5,6),MID($NY42,5,2)&"/"&RIGHT($NY42,2)&"～"&MID($NZ42,5,2)&"/"&RIGHT($NZ42,2),"")))))) -> 
C45: =IF($C$3="様式34-1_1年度目",IF('様式34-1_1年度目'!AC19="","",'様式34-1_1年度目'!AC19),IF($C$3="様式34-1_2年度目",IF('様式34-1_2年度目'!AC19="","",'様式34-1_2年度目'!AC19),"")) ->  | F45: =IF($C$3="様式34-1_1年度目",IF('様式34-1_1年度目'!AD19="","",'様式34-1_1年度目'!AD19&" "&'様式34-1_1年度目'!AE19),IF($C$3="様式34-1_2年度目",IF('様式34-1_2年度目'!AD19="","",'様式34-1_2年度目'!AD19&" "&'様式34-1_2年度目'!AE19),"")) ->  | G45: =IF($C$3="様式34-1_1年度目",IF('様式34-1_1年度目'!AF19="","",'様式34-1_1年度目'!AF19),IF($C$3="様式34-1_2年度目",IF('様式34-1_2年度目'!AF19="","",'様式34-1_2年度目'!AF19),"")) ->  | H45: =IF(AND($NO45<>"",$NO45<$H$5),"("&1+DATE(LEFT($NP45,4),MID($NP45,5,2),RIGHT($NP45,2))-DATE(LEFT($NO45,4),MID($NO45,5,2),RIGHT($NO45,2))&")",IF(LEFT($NO45,6)=LEFT(H$5,6),"("&1+DATE(LEFT($NP45,4),MID($NP45,5,2),RIGHT($NP45,2))-DATE(LEFT($NO45,4),MID($NO45,5,2),RIGHT($NO45,2))&")",IF(LEFT($NQ45,6)=LEFT(H$5,6),"("&1+DATE(LEFT($NR45,4),MID($NR45,5,2),RIGHT($NR45,2))-DATE(LEFT($NQ45,4),MID($NQ45,5,2),RIGHT($NQ45,2))&")",IF(LEFT($NS45,6)=LEFT(H$5,6),"("&1+DATE(LEFT($NT45,4),MID($NT45,5,2),RIGHT($NT45,2))-DATE(LEFT($NS45,4),MID($NS45,5,2),RIGHT($NS45,2))&")",IF(LEFT($NU45,6)=LEFT(H$5,6),"("&1+DATE(LEFT($NV45,4),MID($NV45,5,2),RIGHT($NV45,2))-DATE(LEFT($NU45,4),MID($NU45,5,2),RIGHT($NU45,2))&")",IF(LEFT($NW45,6)=LEFT(H$5,6),"("&1+DATE(LEFT($NX45,4),MID($NX45,5,2),RIGHT($NX45,2))-DATE(LEFT($NW45,4),MID($NW45,5,2),RIGHT($NW45,2))&")",IF(LEFT($NY45,6)=LEFT(H$5,6),"("&1+DATE(LEFT($NZ45,4),MID($NZ45,5,2),RIGHT($NZ45,2))-DATE(LEFT($NY45,4),MID($NY45,5,2),RIGHT($NY45,2))&")",""))))))) ->  | AL45: =IF(LEFT($NO45,6)=LEFT(AL$5,6),"("&1+DATE(LEFT($NP45,4),MID($NP45,5,2),RIGHT($NP45,2))-DATE(LEFT($NO45,4),MID($NO45,5,2),RIGHT($NO45,2))&")",IF(LEFT($NQ45,6)=LEFT(AL$5,6),"("&1+DATE(LEFT($NR45,4),MID($NR45,5,2),RIGHT($NR45,2))-DATE(LEFT($NQ45,4),MID($NQ45,5,2),RIGHT($NQ45,2))&")",IF(LEFT($NS45,6)=LEFT(AL$5,6),"("&1+DATE(LEFT($NT45,4),MID($NT45,5,2),RIGHT($NT45,2))-DATE(LEFT($NS45,4),MID($NS45,5,2),RIGHT($NS45,2))&")",IF(LEFT($NU45,6)=LEFT(AL$5,6),"("&1+DATE(LEFT($NV45,4),MID($NV45,5,2),RIGHT($NV45,2))-DATE(LEFT($NU45,4),MID($NU45,5,2),RIGHT($NU45,2))&")",IF(LEFT($NW45,6)=LEFT(AL$5,6),"("&1+DATE(LEFT($NX45,4),MID($NX45,5,2),RIGHT($NX45,2))-DATE(LEFT($NW45,4),MID($NW45,5,2),RIGHT($NW45,2))&")",IF(LEFT($NY45,6)=LEFT(AL$5,6),"("&1+DATE(LEFT($NZ45,4),MID($NZ45,5,2),RIGHT($NZ45,2))-DATE(LEFT($NY45,4),MID($NY45,5,2),RIGHT($NY45,2))&")","")))))) ->  | BQ45: =IF(LEFT($NO45,6)=LEFT(BQ$5,6),"("&1+DATE(LEFT($NP45,4),MID($NP45,5,2),RIGHT($NP45,2))-DATE(LEFT($NO45,4),MID($NO45,5,2),RIGHT($NO45,2))&")",IF(LEFT($NQ45,6)=LEFT(BQ$5,6),"("&1+DATE(LEFT($NR45,4),MID($NR45,5,2),RIGHT($NR45,2))-DATE(LEFT($NQ45,4),MID($NQ45,5,2),RIGHT($NQ45,2))&")",IF(LEFT($NS45,6)=LEFT(BQ$5,6),"("&1+DATE(LEFT($NT45,4),MID($NT45,5,2),RIGHT($NT45,2))-DATE(LEFT($NS45,4),MID($NS45,5,2),RIGHT($NS45,2))&")",IF(LEFT($NU45,6)=LEFT(BQ$5,6),"("&1+DATE(LEFT($NV45,4),MID($NV45,5,2),RIGHT($NV45,2))-DATE(LEFT($NU45,4),MID($NU45,5,2),RIGHT($NU45,2))&")",IF(LEFT($NW45,6)=LEFT(BQ$5,6),"("&1+DATE(LEFT($NX45,4),MID($NX45,5,2),RIGHT($NX45,2))-DATE(LEFT($NW45,4),MID($NW45,5,2),RIGHT($NW45,2))&")",IF(LEFT($NY45,6)=LEFT(BQ$5,6),"("&1+DATE(LEFT($NZ45,4),MID($NZ45,5,2),RIGHT($NZ45,2))-DATE(LEFT($NY45,4),MID($NY45,5,2),RIGHT($NY45,2))&")","")))))) ->  | CU45: =IF(LEFT($NO45,6)=LEFT(CU$5,6),"("&1+DATE(LEFT($NP45,4),MID($NP45,5,2),RIGHT($NP45,2))-DATE(LEFT($NO45,4),MID($NO45,5,2),RIGHT($NO45,2))&")",IF(LEFT($NQ45,6)=LEFT(CU$5,6),"("&1+DATE(LEFT($NR45,4),MID($NR45,5,2),RIGHT($NR45,2))-DATE(LEFT($NQ45,4),MID($NQ45,5,2),RIGHT($NQ45,2))&")",IF(LEFT($NS45,6)=LEFT(CU$5,6),"("&1+DATE(LEFT($NT45,4),MID($NT45,5,2),RIGHT($NT45,2))-DATE(LEFT($NS45,4),MID($NS45,5,2),RIGHT($NS45,2))&")",IF(LEFT($NU45,6)=LEFT(CU$5,6),"("&1+DATE(LEFT($NV45,4),MID($NV45,5,2),RIGHT($NV45,2))-DATE(LEFT($NU45,4),MID($NU45,5,2),RIGHT($NU45,2))&")",IF(LEFT($NW45,6)=LEFT(CU$5,6),"("&1+DATE(LEFT($NX45,4),MID($NX45,5,2),RIGHT($NX45,2))-DATE(LEFT($NW45,4),MID($NW45,5,2),RIGHT($NW45,2))&")",IF(LEFT($NY45,6)=LEFT(CU$5,6),"("&1+DATE(LEFT($NZ45,4),MID($NZ45,5,2),RIGHT($NZ45,2))-DATE(LEFT($NY45,4),MID($NY45,5,2),RIGHT($NY45,2))&")","")))))) ->  | DZ45: =IF(LEFT($NO45,6)=LEFT(DZ$5,6),"("&1+DATE(LEFT($NP45,4),MID($NP45,5,2),RIGHT($NP45,2))-DATE(LEFT($NO45,4),MID($NO45,5,2),RIGHT($NO45,2))&")",IF(LEFT($NQ45,6)=LEFT(DZ$5,6),"("&1+DATE(LEFT($NR45,4),MID($NR45,5,2),RIGHT($NR45,2))-DATE(LEFT($NQ45,4),MID($NQ45,5,2),RIGHT($NQ45,2))&")",IF(LEFT($NS45,6)=LEFT(DZ$5,6),"("&1+DATE(LEFT($NT45,4),MID($NT45,5,2),RIGHT($NT45,2))-DATE(LEFT($NS45,4),MID($NS45,5,2),RIGHT($NS45,2))&")",IF(LEFT($NU45,6)=LEFT(DZ$5,6),"("&1+DATE(LEFT($NV45,4),MID($NV45,5,2),RIGHT($NV45,2))-DATE(LEFT($NU45,4),MID($NU45,5,2),RIGHT($NU45,2))&")",IF(LEFT($NW45,6)=LEFT(DZ$5,6),"("&1+DATE(LEFT($NX45,4),MID($NX45,5,2),RIGHT($NX45,2))-DATE(LEFT($NW45,4),MID($NW45,5,2),RIGHT($NW45,2))&")",IF(LEFT($NY45,6)=LEFT(DZ$5,6),"("&1+DATE(LEFT($NZ45,4),MID($NZ45,5,2),RIGHT($NZ45,2))-DATE(LEFT($NY45,4),MID($NY45,5,2),RIGHT($NY45,2))&")","")))))) ->  | FE45: =IF(LEFT($NO45,6)=LEFT(FE$5,6),"("&1+DATE(LEFT($NP45,4),MID($NP45,5,2),RIGHT($NP45,2))-DATE(LEFT($NO45,4),MID($NO45,5,2),RIGHT($NO45,2))&")",IF(LEFT($NQ45,6)=LEFT(FE$5,6),"("&1+DATE(LEFT($NR45,4),MID($NR45,5,2),RIGHT($NR45,2))-DATE(LEFT($NQ45,4),MID($NQ45,5,2),RIGHT($NQ45,2))&")",IF(LEFT($NS45,6)=LEFT(FE$5,6),"("&1+DATE(LEFT($NT45,4),MID($NT45,5,2),RIGHT($NT45,2))-DATE(LEFT($NS45,4),MID($NS45,5,2),RIGHT($NS45,2))&")",IF(LEFT($NU45,6)=LEFT(FE$5,6),"("&1+DATE(LEFT($NV45,4),MID($NV45,5,2),RIGHT($NV45,2))-DATE(LEFT($NU45,4),MID($NU45,5,2),RIGHT($NU45,2))&")",IF(LEFT($NW45,6)=LEFT(FE$5,6),"("&1+DATE(LEFT($NX45,4),MID($NX45,5,2),RIGHT($NX45,2))-DATE(LEFT($NW45,4),MID($NW45,5,2),RIGHT($NW45,2))&")",IF(LEFT($NY45,6)=LEFT(FE$5,6),"("&1+DATE(LEFT($NZ45,4),MID($NZ45,5,2),RIGHT($NZ45,2))-DATE(LEFT($NY45,4),MID($NY45,5,2),RIGHT($NY45,2))&")","")))))) ->  | GI45: =IF(LEFT($NO45,6)=LEFT(GI$5,6),"("&1+DATE(LEFT($NP45,4),MID($NP45,5,2),RIGHT($NP45,2))-DATE(LEFT($NO45,4),MID($NO45,5,2),RIGHT($NO45,2))&")",IF(LEFT($NQ45,6)=LEFT(GI$5,6),"("&1+DATE(LEFT($NR45,4),MID($NR45,5,2),RIGHT($NR45,2))-DATE(LEFT($NQ45,4),MID($NQ45,5,2),RIGHT($NQ45,2))&")",IF(LEFT($NS45,6)=LEFT(GI$5,6),"("&1+DATE(LEFT($NT45,4),MID($NT45,5,2),RIGHT($NT45,2))-DATE(LEFT($NS45,4),MID($NS45,5,2),RIGHT($NS45,2))&")",IF(LEFT($NU45,6)=LEFT(GI$5,6),"("&1+DATE(LEFT($NV45,4),MID($NV45,5,2),RIGHT($NV45,2))-DATE(LEFT($NU45,4),MID($NU45,5,2),RIGHT($NU45,2))&")",IF(LEFT($NW45,6)=LEFT(GI$5,6),"("&1+DATE(LEFT($NX45,4),MID($NX45,5,2),RIGHT($NX45,2))-DATE(LEFT($NW45,4),MID($NW45,5,2),RIGHT($NW45,2))&")",IF(LEFT($NY45,6)=LEFT(GI$5,6),"("&1+DATE(LEFT($NZ45,4),MID($NZ45,5,2),RIGHT($NZ45,2))-DATE(LEFT($NY45,4),MID($NY45,5,2),RIGHT($NY45,2))&")","")))))) ->  | HN45: =IF(LEFT($NO45,6)=LEFT(HN$5,6),"("&1+DATE(LEFT($NP45,4),MID($NP45,5,2),RIGHT($NP45,2))-DATE(LEFT($NO45,4),MID($NO45,5,2),RIGHT($NO45,2))&")",IF(LEFT($NQ45,6)=LEFT(HN$5,6),"("&1+DATE(LEFT($NR45,4),MID($NR45,5,2),RIGHT($NR45,2))-DATE(LEFT($NQ45,4),MID($NQ45,5,2),RIGHT($NQ45,2))&")",IF(LEFT($NS45,6)=LEFT(HN$5,6),"("&1+DATE(LEFT($NT45,4),MID($NT45,5,2),RIGHT($NT45,2))-DATE(LEFT($NS45,4),MID($NS45,5,2),RIGHT($NS45,2))&")",IF(LEFT($NU45,6)=LEFT(HN$5,6),"("&1+DATE(LEFT($NV45,4),MID($NV45,5,2),RIGHT($NV45,2))-DATE(LEFT($NU45,4),MID($NU45,5,2),RIGHT($NU45,2))&")",IF(LEFT($NW45,6)=LEFT(HN$5,6),"("&1+DATE(LEFT($NX45,4),MID($NX45,5,2),RIGHT($NX45,2))-DATE(LEFT($NW45,4),MID($NW45,5,2),RIGHT($NW45,2))&")",IF(LEFT($NY45,6)=LEFT(HN$5,6),"("&1+DATE(LEFT($NZ45,4),MID($NZ45,5,2),RIGHT($NZ45,2))-DATE(LEFT($NY45,4),MID($NY45,5,2),RIGHT($NY45,2))&")","")))))) ->  | IR45: =IF(LEFT($NO45,6)=LEFT(IR$5,6),"("&1+DATE(LEFT($NP45,4),MID($NP45,5,2),RIGHT($NP45,2))-DATE(LEFT($NO45,4),MID($NO45,5,2),RIGHT($NO45,2))&")",IF(LEFT($NQ45,6)=LEFT(IR$5,6),"("&1+DATE(LEFT($NR45,4),MID($NR45,5,2),RIGHT($NR45,2))-DATE(LEFT($NQ45,4),MID($NQ45,5,2),RIGHT($NQ45,2))&")",IF(LEFT($NS45,6)=LEFT(IR$5,6),"("&1+DATE(LEFT($NT45,4),MID($NT45,5,2),RIGHT($NT45,2))-DATE(LEFT($NS45,4),MID($NS45,5,2),RIGHT($NS45,2))&")",IF(LEFT($NU45,6)=LEFT(IR$5,6),"("&1+DATE(LEFT($NV45,4),MID($NV45,5,2),RIGHT($NV45,2))-DATE(LEFT($NU45,4),MID($NU45,5,2),RIGHT($NU45,2))&")",IF(LEFT($NW45,6)=LEFT(IR$5,6),"("&1+DATE(LEFT($NX45,4),MID($NX45,5,2),RIGHT($NX45,2))-DATE(LEFT($NW45,4),MID($NW45,5,2),RIGHT($NW45,2))&")",IF(LEFT($NY45,6)=LEFT(IR$5,6),"("&1+DATE(LEFT($NZ45,4),MID($NZ45,5,2),RIGHT($NZ45,2))-DATE(LEFT($NY45,4),MID($NY45,5,2),RIGHT($NY45,2))&")","")))))) ->  | JW45: =IF(LEFT($NO45,6)=LEFT(JW$5,6),"("&1+DATE(LEFT($NP45,4),MID($NP45,5,2),RIGHT($NP45,2))-DATE(LEFT($NO45,4),MID($NO45,5,2),RIGHT($NO45,2))&")",IF(LEFT($NQ45,6)=LEFT(JW$5,6),"("&1+DATE(LEFT($NR45,4),MID($NR45,5,2),RIGHT($NR45,2))-DATE(LEFT($NQ45,4),MID($NQ45,5,2),RIGHT($NQ45,2))&")",IF(LEFT($NS45,6)=LEFT(JW$5,6),"("&1+DATE(LEFT($NT45,4),MID($NT45,5,2),RIGHT($NT45,2))-DATE(LEFT($NS45,4),MID($NS45,5,2),RIGHT($NS45,2))&")",IF(LEFT($NU45,6)=LEFT(JW$5,6),"("&1+DATE(LEFT($NV45,4),MID($NV45,5,2),RIGHT($NV45,2))-DATE(LEFT($NU45,4),MID($NU45,5,2),RIGHT($NU45,2))&")",IF(LEFT($NW45,6)=LEFT(JW$5,6),"("&1+DATE(LEFT($NX45,4),MID($NX45,5,2),RIGHT($NX45,2))-DATE(LEFT($NW45,4),MID($NW45,5,2),RIGHT($NW45,2))&")",IF(LEFT($NY45,6)=LEFT(JW$5,6),"("&1+DATE(LEFT($NZ45,4),MID($NZ45,5,2),RIGHT($NZ45,2))-DATE(LEFT($NY45,4),MID($NY45,5,2),RIGHT($NY45,2))&")","")))))) ->  | LB45: =IF(LEFT($NO45,6)=LEFT(LB$5,6),"("&1+DATE(LEFT($NP45,4),MID($NP45,5,2),RIGHT($NP45,2))-DATE(LEFT($NO45,4),MID($NO45,5,2),RIGHT($NO45,2))&")",IF(LEFT($NQ45,6)=LEFT(LB$5,6),"("&1+DATE(LEFT($NR45,4),MID($NR45,5,2),RIGHT($NR45,2))-DATE(LEFT($NQ45,4),MID($NQ45,5,2),RIGHT($NQ45,2))&")",IF(LEFT($NS45,6)=LEFT(LB$5,6),"("&1+DATE(LEFT($NT45,4),MID($NT45,5,2),RIGHT($NT45,2))-DATE(LEFT($NS45,4),MID($NS45,5,2),RIGHT($NS45,2))&")",IF(LEFT($NU45,6)=LEFT(LB$5,6),"("&1+DATE(LEFT($NV45,4),MID($NV45,5,2),RIGHT($NV45,2))-DATE(LEFT($NU45,4),MID($NU45,5,2),RIGHT($NU45,2))&")",IF(LEFT($NW45,6)=LEFT(LB$5,6),"("&1+DATE(LEFT($NX45,4),MID($NX45,5,2),RIGHT($NX45,2))-DATE(LEFT($NW45,4),MID($NW45,5,2),RIGHT($NW45,2))&")",IF(LEFT($NY45,6)=LEFT(LB$5,6),"("&1+DATE(LEFT($NZ45,4),MID($NZ45,5,2),RIGHT($NZ45,2))-DATE(LEFT($NY45,4),MID($NY45,5,2),RIGHT($NY45,2))&")","")))))) ->  | ME45: =IF(LEFT($NO45,6)=LEFT(ME$5,6),"("&1+DATE(LEFT($NP45,4),MID($NP45,5,2),RIGHT($NP45,2))-DATE(LEFT($NO45,4),MID($NO45,5,2),RIGHT($NO45,2))&")",IF(LEFT($NQ45,6)=LEFT(ME$5,6),"("&1+DATE(LEFT($NR45,4),MID($NR45,5,2),RIGHT($NR45,2))-DATE(LEFT($NQ45,4),MID($NQ45,5,2),RIGHT($NQ45,2))&")",IF(LEFT($NS45,6)=LEFT(ME$5,6),"("&1+DATE(LEFT($NT45,4),MID($NT45,5,2),RIGHT($NT45,2))-DATE(LEFT($NS45,4),MID($NS45,5,2),RIGHT($NS45,2))&")",IF(LEFT($NU45,6)=LEFT(ME$5,6),"("&1+DATE(LEFT($NV45,4),MID($NV45,5,2),RIGHT($NV45,2))-DATE(LEFT($NU45,4),MID($NU45,5,2),RIGHT($NU45,2))&")",IF(LEFT($NW45,6)=LEFT(ME$5,6),"("&1+DATE(LEFT($NX45,4),MID($NX45,5,2),RIGHT($NX45,2))-DATE(LEFT($NW45,4),MID($NW45,5,2),RIGHT($NW45,2))&")",IF(LEFT($NY45,6)=LEFT(ME$5,6),"("&1+DATE(LEFT($NZ45,4),MID($NZ45,5,2),RIGHT($NZ45,2))-DATE(LEFT($NY45,4),MID($NY45,5,2),RIGHT($NY45,2))&")","")))))) ->  | NK45: =IF($C$3="様式34-1_1年度目",IF('様式34-1_1年度目'!AS19="","",'様式34-1_1年度目'!AS19),IF($C$3="様式34-1_2年度目",IF('様式34-1_2年度目'!AS19="","",'様式34-1_2年度目'!AS19),"")) ->  | NM45: 12 | NN45: 補修期間→ | NO45: =IF($C$3="様式34-1_1年度目",IF('様式34-1_1年度目'!AT19="","",VALUE(TEXT('様式34-1_1年度目'!AT19,"yyyymmdd"))),IF($C$3="様式34-1_2年度目",IF('様式34-1_2年度目'!AT19="","",VALUE(TEXT('様式34-1_2年度目'!AT19,"yyyymmdd"))),"")) ->  | NP45: =IF($C$3="様式34-1_1年度目",IF('様式34-1_1年度目'!AU19="","",VALUE(TEXT('様式34-1_1年度目'!AU19,"yyyymmdd"))),IF($C$3="様式34-1_2年度目",IF('様式34-1_2年度目'!AU19="","",VALUE(TEXT('様式34-1_2年度目'!AU19,"yyyymmdd"))),"")) ->  | NQ45: =IF($C$3="様式34-1_1年度目",IF('様式34-1_1年度目'!AW19="","",VALUE(TEXT('様式34-1_1年度目'!AW19,"yyyymmdd"))),IF($C$3="様式34-1_2年度目",IF('様式34-1_2年度目'!AW19="","",VALUE(TEXT('様式34-1_2年度目'!AW19,"yyyymmdd"))),"")) ->  | NR45: =IF($C$3="様式34-1_1年度目",IF('様式34-1_1年度目'!AX19="","",VALUE(TEXT('様式34-1_1年度目'!AX19,"yyyymmdd"))),IF($C$3="様式34-1_2年度目",IF('様式34-1_2年度目'!AX19="","",VALUE(TEXT('様式34-1_2年度目'!AX19,"yyyymmdd"))),"")) ->  | NS45: =IF($C$3="様式34-1_1年度目",IF('様式34-1_1年度目'!AZ19="","",VALUE(TEXT('様式34-1_1年度目'!AZ19,"yyyymmdd"))),IF($C$3="様式34-1_2年度目",IF('様式34-1_2年度目'!AZ19="","",VALUE(TEXT('様式34-1_2年度目'!AZ19,"yyyymmdd"))),"")) ->  | NT45: =IF($C$3="様式34-1_1年度目",IF('様式34-1_1年度目'!BA19="","",VALUE(TEXT('様式34-1_1年度目'!BA19,"yyyymmdd"))),IF($C$3="様式34-1_2年度目",IF('様式34-1_2年度目'!BA19="","",VALUE(TEXT('様式34-1_2年度目'!BA19,"yyyymmdd"))),"")) ->  | NU45: =IF($C$3="様式34-1_1年度目",IF('様式34-1_1年度目'!BC19="","",VALUE(TEXT('様式34-1_1年度目'!BC19,"yyyymmdd"))),IF($C$3="様式34-1_2年度目",IF('様式34-1_2年度目'!BC19="","",VALUE(TEXT('様式34-1_2年度目'!BC19,"yyyymmdd"))),"")) ->  | NV45: =IF($C$3="様式34-1_1年度目",IF('様式34-1_1年度目'!BD19="","",VALUE(TEXT('様式34-1_1年度目'!BD19,"yyyymmdd"))),IF($C$3="様式34-1_2年度目",IF('様式34-1_2年度目'!BD19="","",VALUE(TEXT('様式34-1_2年度目'!BD19,"yyyymmdd"))),"")) ->  | NW45: =IF($C$3="様式34-1_1年度目",IF('様式34-1_1年度目'!BF19="","",VALUE(TEXT('様式34-1_1年度目'!BF19,"yyyymmdd"))),IF($C$3="様式34-1_2年度目",IF('様式34-1_2年度目'!BF19="","",VALUE(TEXT('様式34-1_2年度目'!BF19,"yyyymmdd"))),"")) ->  | NX45: =IF($C$3="様式34-1_1年度目",IF('様式34-1_1年度目'!BG19="","",VALUE(TEXT('様式34-1_1年度目'!BG19,"yyyymmdd"))),IF($C$3="様式34-1_2年度目",IF('様式34-1_2年度目'!BG19="","",VALUE(TEXT('様式34-1_2年度目'!BG19,"yyyymmdd"))),"")) ->  | NY45: =IF($C$3="様式34-1_1年度目",IF('様式34-1_1年度目'!BI19="","",VALUE(TEXT('様式34-1_1年度目'!BI19,"yyyymmdd"))),IF($C$3="様式34-1_2年度目",IF('様式34-1_2年度目'!BI19="","",VALUE(TEXT('様式34-1_2年度目'!BI19,"yyyymmdd"))),"")) ->  | NZ45: =IF($C$3="様式34-1_1年度目",IF('様式34-1_1年度目'!BJ19="","",VALUE(TEXT('様式34-1_1年度目'!BJ19,"yyyymmdd"))),IF($C$3="様式34-1_2年度目",IF('様式34-1_2年度目'!BJ19="","",VALUE(TEXT('様式34-1_2年度目'!BJ19,"yyyymmdd"))),"")) -> 
H46: =+IF(OR(H$5=$NO45,H$5=$NQ45,H$5=$NS45,H$5=$NU45,H$5=$NW45,H$5=$NY45),1,IF(OR(AND($NO45<H$5,H$5<$NP45),AND($NQ45<H$5,H$5<$NR45),AND($NS45<H$5,H$5<$NT45),AND($NU45<H$5,H$5<$NV45),AND($NW45<H$5,H$5<$NX45),AND($NY45<H$5,H$5<$NZ45)),2,IF(OR(H$5=$NP45,H$5=$NR45,H$5=$NT45,H$5=$NV45,H$5=$NX45,H$5=$NZ45),3,""))) ->  | BT46: =+IF(OR(BT$5=$NO45,BT$5=$NQ45,BT$5=$NS45,BT$5=$NU45,BT$5=$NW45,BT$5=$NY45),1,IF(OR(AND($NO45<BT$5,BT$5<$NP45),AND($NQ45<BT$5,BT$5<$NR45),AND($NS45<BT$5,BT$5<$NT45),AND($NU45<BT$5,BT$5<$NV45),AND($NW45<BT$5,BT$5<$NX45),AND($NY45<BT$5,BT$5<$NZ45)),2,IF(OR(BT$5=$NP45,BT$5=$NR45,BT$5=$NT45,BT$5=$NV45,BT$5=$NX45,BT$5=$NZ45),3,""))) ->  | EF46: =+IF(OR(EF$5=$NO45,EF$5=$NQ45,EF$5=$NS45,EF$5=$NU45,EF$5=$NW45,EF$5=$NY45),1,IF(OR(AND($NO45<EF$5,EF$5<$NP45),AND($NQ45<EF$5,EF$5<$NR45),AND($NS45<EF$5,EF$5<$NT45),AND($NU45<EF$5,EF$5<$NV45),AND($NW45<EF$5,EF$5<$NX45),AND($NY45<EF$5,EF$5<$NZ45)),2,IF(OR(EF$5=$NP45,EF$5=$NR45,EF$5=$NT45,EF$5=$NV45,EF$5=$NX45,EF$5=$NZ45),3,""))) ->  | GR46: =+IF(OR(GR$5=$NO45,GR$5=$NQ45,GR$5=$NS45,GR$5=$NU45,GR$5=$NW45,GR$5=$NY45),1,IF(OR(AND($NO45<GR$5,GR$5<$NP45),AND($NQ45<GR$5,GR$5<$NR45),AND($NS45<GR$5,GR$5<$NT45),AND($NU45<GR$5,GR$5<$NV45),AND($NW45<GR$5,GR$5<$NX45),AND($NY45<GR$5,GR$5<$NZ45)),2,IF(OR(GR$5=$NP45,GR$5=$NR45,GR$5=$NT45,GR$5=$NV45,GR$5=$NX45,GR$5=$NZ45),3,""))) ->  | JD46: =+IF(OR(JD$5=$NO45,JD$5=$NQ45,JD$5=$NS45,JD$5=$NU45,JD$5=$NW45,JD$5=$NY45),1,IF(OR(AND($NO45<JD$5,JD$5<$NP45),AND($NQ45<JD$5,JD$5<$NR45),AND($NS45<JD$5,JD$5<$NT45),AND($NU45<JD$5,JD$5<$NV45),AND($NW45<JD$5,JD$5<$NX45),AND($NY45<JD$5,JD$5<$NZ45)),2,IF(OR(JD$5=$NP45,JD$5=$NR45,JD$5=$NT45,JD$5=$NV45,JD$5=$NX45,JD$5=$NZ45),3,""))) ->  | LP46: =+IF(OR(LP$5=$NO45,LP$5=$NQ45,LP$5=$NS45,LP$5=$NU45,LP$5=$NW45,LP$5=$NY45),1,IF(OR(AND($NO45<LP$5,LP$5<$NP45),AND($NQ45<LP$5,LP$5<$NR45),AND($NS45<LP$5,LP$5<$NT45),AND($NU45<LP$5,LP$5<$NV45),AND($NW45<LP$5,LP$5<$NX45),AND($NY45<LP$5,LP$5<$NZ45)),2,IF(OR(LP$5=$NP45,LP$5=$NR45,LP$5=$NT45,LP$5=$NV45,LP$5=$NX45,LP$5=$NZ45),3,""))) -> 
H47: =IF(AND($NO45<>"",$NO45<$H$5),MID($NO45,5,2)&"/"&RIGHT($NO45,2)&"～"&MID($NP45,5,2)&"/"&RIGHT($NP45,2),IF(LEFT($NO45,6)=LEFT(H$5,6),MID($NO45,5,2)&"/"&RIGHT($NO45,2)&"～"&MID($NP45,5,2)&"/"&RIGHT($NP45,2),IF(LEFT($NQ45,6)=LEFT(H$5,6),MID($NQ45,5,2)&"/"&RIGHT($NQ45,2)&"～"&MID($NR45,5,2)&"/"&RIGHT($NR45,2),IF(LEFT($NS45,6)=LEFT(H$5,6),MID($NS45,5,2)&"/"&RIGHT($NS45,2)&"～"&MID($NT45,5,2)&"/"&RIGHT($NT45,2),IF(LEFT($NU45,6)=LEFT(H$5,6),MID($NU45,5,2)&"/"&RIGHT($NU45,2)&"～"&MID($NV45,5,2)&"/"&RIGHT($NV45,2),IF(LEFT($NW45,6)=LEFT(H$5,6),MID($NW45,5,2)&"/"&RIGHT($NW45,2)&"～"&MID($NX45,5,2)&"/"&RIGHT($NX45,2),IF(LEFT($NY45,6)=LEFT(H$5,6),MID($NY45,5,2)&"/"&RIGHT($NY45,2)&"～"&MID($NZ45,5,2)&"/"&RIGHT($NZ45,2),""))))))) ->  | AL47: =IF(LEFT($NO45,6)=LEFT(AL$5,6),MID($NO45,5,2)&"/"&RIGHT($NO45,2)&"～"&MID($NP45,5,2)&"/"&RIGHT($NP45,2),IF(LEFT($NQ45,6)=LEFT(AL$5,6),MID($NQ45,5,2)&"/"&RIGHT($NQ45,2)&"～"&MID($NR45,5,2)&"/"&RIGHT($NR45,2),IF(LEFT($NS45,6)=LEFT(AL$5,6),MID($NS45,5,2)&"/"&RIGHT($NS45,2)&"～"&MID($NT45,5,2)&"/"&RIGHT($NT45,2),IF(LEFT($NU45,6)=LEFT(AL$5,6),MID($NU45,5,2)&"/"&RIGHT($NU45,2)&"～"&MID($NV45,5,2)&"/"&RIGHT($NV45,2),IF(LEFT($NW45,6)=LEFT(AL$5,6),MID($NW45,5,2)&"/"&RIGHT($NW45,2)&"～"&MID($NX45,5,2)&"/"&RIGHT($NX45,2),IF(LEFT($NY45,6)=LEFT(AL$5,6),MID($NY45,5,2)&"/"&RIGHT($NY45,2)&"～"&MID($NZ45,5,2)&"/"&RIGHT($NZ45,2),"")))))) ->  | BQ47: =IF(LEFT($NO45,6)=LEFT(BQ$5,6),MID($NO45,5,2)&"/"&RIGHT($NO45,2)&"～"&MID($NP45,5,2)&"/"&RIGHT($NP45,2),IF(LEFT($NQ45,6)=LEFT(BQ$5,6),MID($NQ45,5,2)&"/"&RIGHT($NQ45,2)&"～"&MID($NR45,5,2)&"/"&RIGHT($NR45,2),IF(LEFT($NS45,6)=LEFT(BQ$5,6),MID($NS45,5,2)&"/"&RIGHT($NS45,2)&"～"&MID($NT45,5,2)&"/"&RIGHT($NT45,2),IF(LEFT($NU45,6)=LEFT(BQ$5,6),MID($NU45,5,2)&"/"&RIGHT($NU45,2)&"～"&MID($NV45,5,2)&"/"&RIGHT($NV45,2),IF(LEFT($NW45,6)=LEFT(BQ$5,6),MID($NW45,5,2)&"/"&RIGHT($NW45,2)&"～"&MID($NX45,5,2)&"/"&RIGHT($NX45,2),IF(LEFT($NY45,6)=LEFT(BQ$5,6),MID($NY45,5,2)&"/"&RIGHT($NY45,2)&"～"&MID($NZ45,5,2)&"/"&RIGHT($NZ45,2),"")))))) ->  | CU47: =IF(LEFT($NO45,6)=LEFT(CU$5,6),MID($NO45,5,2)&"/"&RIGHT($NO45,2)&"～"&MID($NP45,5,2)&"/"&RIGHT($NP45,2),IF(LEFT($NQ45,6)=LEFT(CU$5,6),MID($NQ45,5,2)&"/"&RIGHT($NQ45,2)&"～"&MID($NR45,5,2)&"/"&RIGHT($NR45,2),IF(LEFT($NS45,6)=LEFT(CU$5,6),MID($NS45,5,2)&"/"&RIGHT($NS45,2)&"～"&MID($NT45,5,2)&"/"&RIGHT($NT45,2),IF(LEFT($NU45,6)=LEFT(CU$5,6),MID($NU45,5,2)&"/"&RIGHT($NU45,2)&"～"&MID($NV45,5,2)&"/"&RIGHT($NV45,2),IF(LEFT($NW45,6)=LEFT(CU$5,6),MID($NW45,5,2)&"/"&RIGHT($NW45,2)&"～"&MID($NX45,5,2)&"/"&RIGHT($NX45,2),IF(LEFT($NY45,6)=LEFT(CU$5,6),MID($NY45,5,2)&"/"&RIGHT($NY45,2)&"～"&MID($NZ45,5,2)&"/"&RIGHT($NZ45,2),"")))))) ->  | DZ47: =IF(LEFT($NO45,6)=LEFT(DZ$5,6),MID($NO45,5,2)&"/"&RIGHT($NO45,2)&"～"&MID($NP45,5,2)&"/"&RIGHT($NP45,2),IF(LEFT($NQ45,6)=LEFT(DZ$5,6),MID($NQ45,5,2)&"/"&RIGHT($NQ45,2)&"～"&MID($NR45,5,2)&"/"&RIGHT($NR45,2),IF(LEFT($NS45,6)=LEFT(DZ$5,6),MID($NS45,5,2)&"/"&RIGHT($NS45,2)&"～"&MID($NT45,5,2)&"/"&RIGHT($NT45,2),IF(LEFT($NU45,6)=LEFT(DZ$5,6),MID($NU45,5,2)&"/"&RIGHT($NU45,2)&"～"&MID($NV45,5,2)&"/"&RIGHT($NV45,2),IF(LEFT($NW45,6)=LEFT(DZ$5,6),MID($NW45,5,2)&"/"&RIGHT($NW45,2)&"～"&MID($NX45,5,2)&"/"&RIGHT($NX45,2),IF(LEFT($NY45,6)=LEFT(DZ$5,6),MID($NY45,5,2)&"/"&RIGHT($NY45,2)&"～"&MID($NZ45,5,2)&"/"&RIGHT($NZ45,2),"")))))) ->  | FE47: =IF(LEFT($NO45,6)=LEFT(FE$5,6),MID($NO45,5,2)&"/"&RIGHT($NO45,2)&"～"&MID($NP45,5,2)&"/"&RIGHT($NP45,2),IF(LEFT($NQ45,6)=LEFT(FE$5,6),MID($NQ45,5,2)&"/"&RIGHT($NQ45,2)&"～"&MID($NR45,5,2)&"/"&RIGHT($NR45,2),IF(LEFT($NS45,6)=LEFT(FE$5,6),MID($NS45,5,2)&"/"&RIGHT($NS45,2)&"～"&MID($NT45,5,2)&"/"&RIGHT($NT45,2),IF(LEFT($NU45,6)=LEFT(FE$5,6),MID($NU45,5,2)&"/"&RIGHT($NU45,2)&"～"&MID($NV45,5,2)&"/"&RIGHT($NV45,2),IF(LEFT($NW45,6)=LEFT(FE$5,6),MID($NW45,5,2)&"/"&RIGHT($NW45,2)&"～"&MID($NX45,5,2)&"/"&RIGHT($NX45,2),IF(LEFT($NY45,6)=LEFT(FE$5,6),MID($NY45,5,2)&"/"&RIGHT($NY45,2)&"～"&MID($NZ45,5,2)&"/"&RIGHT($NZ45,2),"")))))) ->  | GI47: =IF(LEFT($NO45,6)=LEFT(GI$5,6),MID($NO45,5,2)&"/"&RIGHT($NO45,2)&"～"&MID($NP45,5,2)&"/"&RIGHT($NP45,2),IF(LEFT($NQ45,6)=LEFT(GI$5,6),MID($NQ45,5,2)&"/"&RIGHT($NQ45,2)&"～"&MID($NR45,5,2)&"/"&RIGHT($NR45,2),IF(LEFT($NS45,6)=LEFT(GI$5,6),MID($NS45,5,2)&"/"&RIGHT($NS45,2)&"～"&MID($NT45,5,2)&"/"&RIGHT($NT45,2),IF(LEFT($NU45,6)=LEFT(GI$5,6),MID($NU45,5,2)&"/"&RIGHT($NU45,2)&"～"&MID($NV45,5,2)&"/"&RIGHT($NV45,2),IF(LEFT($NW45,6)=LEFT(GI$5,6),MID($NW45,5,2)&"/"&RIGHT($NW45,2)&"～"&MID($NX45,5,2)&"/"&RIGHT($NX45,2),IF(LEFT($NY45,6)=LEFT(GI$5,6),MID($NY45,5,2)&"/"&RIGHT($NY45,2)&"～"&MID($NZ45,5,2)&"/"&RIGHT($NZ45,2),"")))))) ->  | HN47: =IF(LEFT($NO45,6)=LEFT(HN$5,6),MID($NO45,5,2)&"/"&RIGHT($NO45,2)&"～"&MID($NP45,5,2)&"/"&RIGHT($NP45,2),IF(LEFT($NQ45,6)=LEFT(HN$5,6),MID($NQ45,5,2)&"/"&RIGHT($NQ45,2)&"～"&MID($NR45,5,2)&"/"&RIGHT($NR45,2),IF(LEFT($NS45,6)=LEFT(HN$5,6),MID($NS45,5,2)&"/"&RIGHT($NS45,2)&"～"&MID($NT45,5,2)&"/"&RIGHT($NT45,2),IF(LEFT($NU45,6)=LEFT(HN$5,6),MID($NU45,5,2)&"/"&RIGHT($NU45,2)&"～"&MID($NV45,5,2)&"/"&RIGHT($NV45,2),IF(LEFT($NW45,6)=LEFT(HN$5,6),MID($NW45,5,2)&"/"&RIGHT($NW45,2)&"～"&MID($NX45,5,2)&"/"&RIGHT($NX45,2),IF(LEFT($NY45,6)=LEFT(HN$5,6),MID($NY45,5,2)&"/"&RIGHT($NY45,2)&"～"&MID($NZ45,5,2)&"/"&RIGHT($NZ45,2),"")))))) ->  | IR47: =IF(LEFT($NO45,6)=LEFT(IR$5,6),MID($NO45,5,2)&"/"&RIGHT($NO45,2)&"～"&MID($NP45,5,2)&"/"&RIGHT($NP45,2),IF(LEFT($NQ45,6)=LEFT(IR$5,6),MID($NQ45,5,2)&"/"&RIGHT($NQ45,2)&"～"&MID($NR45,5,2)&"/"&RIGHT($NR45,2),IF(LEFT($NS45,6)=LEFT(IR$5,6),MID($NS45,5,2)&"/"&RIGHT($NS45,2)&"～"&MID($NT45,5,2)&"/"&RIGHT($NT45,2),IF(LEFT($NU45,6)=LEFT(IR$5,6),MID($NU45,5,2)&"/"&RIGHT($NU45,2)&"～"&MID($NV45,5,2)&"/"&RIGHT($NV45,2),IF(LEFT($NW45,6)=LEFT(IR$5,6),MID($NW45,5,2)&"/"&RIGHT($NW45,2)&"～"&MID($NX45,5,2)&"/"&RIGHT($NX45,2),IF(LEFT($NY45,6)=LEFT(IR$5,6),MID($NY45,5,2)&"/"&RIGHT($NY45,2)&"～"&MID($NZ45,5,2)&"/"&RIGHT($NZ45,2),"")))))) ->  | JW47: =IF(LEFT($NO45,6)=LEFT(JW$5,6),MID($NO45,5,2)&"/"&RIGHT($NO45,2)&"～"&MID($NP45,5,2)&"/"&RIGHT($NP45,2),IF(LEFT($NQ45,6)=LEFT(JW$5,6),MID($NQ45,5,2)&"/"&RIGHT($NQ45,2)&"～"&MID($NR45,5,2)&"/"&RIGHT($NR45,2),IF(LEFT($NS45,6)=LEFT(JW$5,6),MID($NS45,5,2)&"/"&RIGHT($NS45,2)&"～"&MID($NT45,5,2)&"/"&RIGHT($NT45,2),IF(LEFT($NU45,6)=LEFT(JW$5,6),MID($NU45,5,2)&"/"&RIGHT($NU45,2)&"～"&MID($NV45,5,2)&"/"&RIGHT($NV45,2),IF(LEFT($NW45,6)=LEFT(JW$5,6),MID($NW45,5,2)&"/"&RIGHT($NW45,2)&"～"&MID($NX45,5,2)&"/"&RIGHT($NX45,2),IF(LEFT($NY45,6)=LEFT(JW$5,6),MID($NY45,5,2)&"/"&RIGHT($NY45,2)&"～"&MID($NZ45,5,2)&"/"&RIGHT($NZ45,2),"")))))) ->  | LB47: =IF(LEFT($NO45,6)=LEFT(LB$5,6),MID($NO45,5,2)&"/"&RIGHT($NO45,2)&"～"&MID($NP45,5,2)&"/"&RIGHT($NP45,2),IF(LEFT($NQ45,6)=LEFT(LB$5,6),MID($NQ45,5,2)&"/"&RIGHT($NQ45,2)&"～"&MID($NR45,5,2)&"/"&RIGHT($NR45,2),IF(LEFT($NS45,6)=LEFT(LB$5,6),MID($NS45,5,2)&"/"&RIGHT($NS45,2)&"～"&MID($NT45,5,2)&"/"&RIGHT($NT45,2),IF(LEFT($NU45,6)=LEFT(LB$5,6),MID($NU45,5,2)&"/"&RIGHT($NU45,2)&"～"&MID($NV45,5,2)&"/"&RIGHT($NV45,2),IF(LEFT($NW45,6)=LEFT(LB$5,6),MID($NW45,5,2)&"/"&RIGHT($NW45,2)&"～"&MID($NX45,5,2)&"/"&RIGHT($NX45,2),IF(LEFT($NY45,6)=LEFT(LB$5,6),MID($NY45,5,2)&"/"&RIGHT($NY45,2)&"～"&MID($NZ45,5,2)&"/"&RIGHT($NZ45,2),"")))))) ->  | ME47: =IF(LEFT($NO45,6)=LEFT(ME$5,6),MID($NO45,5,2)&"/"&RIGHT($NO45,2)&"～"&MID($NP45,5,2)&"/"&RIGHT($NP45,2),IF(LEFT($NQ45,6)=LEFT(ME$5,6),MID($NQ45,5,2)&"/"&RIGHT($NQ45,2)&"～"&MID($NR45,5,2)&"/"&RIGHT($NR45,2),IF(LEFT($NS45,6)=LEFT(ME$5,6),MID($NS45,5,2)&"/"&RIGHT($NS45,2)&"～"&MID($NT45,5,2)&"/"&RIGHT($NT45,2),IF(LEFT($NU45,6)=LEFT(ME$5,6),MID($NU45,5,2)&"/"&RIGHT($NU45,2)&"～"&MID($NV45,5,2)&"/"&RIGHT($NV45,2),IF(LEFT($NW45,6)=LEFT(ME$5,6),MID($NW45,5,2)&"/"&RIGHT($NW45,2)&"～"&MID($NX45,5,2)&"/"&RIGHT($NX45,2),IF(LEFT($NY45,6)=LEFT(ME$5,6),MID($NY45,5,2)&"/"&RIGHT($NY45,2)&"～"&MID($NZ45,5,2)&"/"&RIGHT($NZ45,2),"")))))) -> 
